Workbook

Sheet Instructions
A1: Instructions | C1: AFtable | D1: =Data!$M$124:$N$128
A2: 1. Go to 'Order Details' sheet (Note: all dark green boxes indicate a user input area, all cells containing a note have red indicators in top right corner, scroll over to display note) (Note: some cells contain drop down lists for selections, choose a selection from the list, do not type in entry) | C2: Bidders | D2: ='https://westvirginiaot.sharepoint.com/Users/a122318/Documents/_Asphalt/HMAPO2019/[HMAPO2019 MATERIAL LAYDOWN_052319.xlsb]Data'!$A$3:$F$108
A3: 2. Select a county (B-3) from the drop down menu. | C3: Bids | D3: =Data!$A$3:$BW$108
A4: 3. Select the "Get Bidders" button | C4: County | D4: ='https://westvirginiaot.sharepoint.com/Users/a122318/Documents/_Asphalt/HMAPO2019/[HMAPO2019 MATERIAL LAYDOWN_052319.xlsb]Data'!$I$111:$K$165
A5: 4. Select the "Clear Data" button to clear any existing, old data in the sheet | C5: CountyList | D5: ='https://westvirginiaot.sharepoint.com/Users/a122318/Documents/_Asphalt/HMAPO2019/[HMAPO2019 MATERIAL LAYDOWN_052319.xlsb]Data'!$I$111:$I$165
A6: 5. Under "Item Quantities," enter each quantity into the green blank (Note: if no quantity is needed of a certain item, can either enter 0 or leave blank) | C6: PID_Haul | D6: ='https://westvirginiaot.sharepoint.com/Users/a122318/Documents/_Asphalt/HMAPO2019/[HMAPO2019 MATERIAL LAYDOWN_052319.xlsb]Order Details'!$K$6:$Q$23
A7: 6. Enter the Milling Waste Haul Distance (cell K3 on Mileages worksheet) for each respective company (Note: if the same distance for all, enter the distance beside each company) | C7: OverrideList | D7: ='https://westvirginiaot.sharepoint.com/Users/a122318/Documents/_Asphalt/HMAPO2019/[HMAPO2019 MATERIAL LAYDOWN_052319.xlsb]Data'!$B$215:$B$233
A8: 7. View the 'Vendor Totals' sheet for a complete cost breakdown of each company, bid prices for each item, and lowest bidder | C8: PODB | D8: =Data!$A$3:$BM$107
A9: 8. The 'Vendor Totals' sheet will display the lowest, complete bid; meaning the vendor has a bid for each of the input quantities needed. | C9: Print_Area | D9: =Instructions!$A$1:$A$29
A10: 9. View the 'Order Summary' sheet for a complete list of unit bid prices for the lowest bidder from the 'Vendor Totals' sheet. | C10: ProjectDistrict | D10: ='Order Details'!$F$3:$F$4
A11: 10. If you'd like to perform a maual override selection of a vendor from the available group of vendors that is not the lowest bidder, you can do so on the 'Order Summary' sheet | C11: QA | D11: ='https://westvirginiaot.sharepoint.com/Users/a122318/Documents/_Asphalt/HMAPO2019/[HMAPO2019 MATERIAL LAYDOWN_052319.xlsb]Order Details'!$F$36
A12: 11. To perform a manual override pick a vendor using the drop down box at the top of the 'Order Summary' sheet (E-1), the data below will then be automatically filled in and a total will be displayed at the bottom. (Note: vendor identifications are found at the top of the 'Vendor Totals' sheet) | C12: QAA | D12: ='https://westvirginiaot.sharepoint.com/Users/a122318/Documents/_Asphalt/HMAPO2019/[HMAPO2019 MATERIAL LAYDOWN_052319.xlsb]Order Details'!$M$45
A13: 12. The 'Order Summary' sheet is fit to a single page for printing ease | C13: QABFIRST | D13: ='https://westvirginiaot.sharepoint.com/Users/a122318/Documents/_Asphalt/HMAPO2019/[HMAPO2019 MATERIAL LAYDOWN_052319.xlsb]Order Details'!$M$56
A14: 13. The PJ-101 form is automatically filled in with data from the 'Order Details' sheet and can either be completed in excel or printed and completed by hand by filling in all green spaces | C14: QAF | D14: ='https://westvirginiaot.sharepoint.com/Users/a122318/Documents/_Asphalt/HMAPO2019/[HMAPO2019 MATERIAL LAYDOWN_052319.xlsb]Order Details'!$M$64
A15: 14. The Field Personnel sheet is also filled in automatically with quantities and project data and can either completed in excel or printed out for completion | C15: QAG | D15: ='https://westvirginiaot.sharepoint.com/Users/a122318/Documents/_Asphalt/HMAPO2019/[HMAPO2019 MATERIAL LAYDOWN_052319.xlsb]Order Details'!$M$48
A16: 15. The WV-39 form is automatically filled in with all quantities,descriptions,unit prices, and item numbers and can be completed either on excel or printed out Note: The spreadsheet will automcatically place all quantities on the first sheet; using filters, the user can display the first six items on the first page and then using filters again, can display the remaining quantities on the WV-39 Continuation sheet. Also any unwanted quantities that do not have bids can be removed using filters as well. | C16: QAH | D16: ='https://westvirginiaot.sharepoint.com/Users/a122318/Documents/_Asphalt/HMAPO2019/[HMAPO2019 MATERIAL LAYDOWN_052319.xlsb]Order Details'!$M$49
C17: QAM | D17: ='https://westvirginiaot.sharepoint.com/Users/a122318/Documents/_Asphalt/HMAPO2019/[HMAPO2019 MATERIAL LAYDOWN_052319.xlsb]Order Details'!$M$52
C18: QAN | D18: ='https://westvirginiaot.sharepoint.com/Users/a122318/Documents/_Asphalt/HMAPO2019/[HMAPO2019 MATERIAL LAYDOWN_052319.xlsb]Order Details'!$M$53
C19: QAO | D19: ='Order Details'!$M$52
C20: QB | D20: ='https://westvirginiaot.sharepoint.com/Users/a122318/Documents/_Asphalt/HMAPO2019/[HMAPO2019 MATERIAL LAYDOWN_052319.xlsb]Order Details'!$F$37
C21: QC | D21: ='https://westvirginiaot.sharepoint.com/Users/a122318/Documents/_Asphalt/HMAPO2019/[HMAPO2019 MATERIAL LAYDOWN_052319.xlsb]Order Details'!$F$38
C22: QD | D22: ='https://westvirginiaot.sharepoint.com/Users/a122318/Documents/_Asphalt/HMAPO2019/[HMAPO2019 MATERIAL LAYDOWN_052319.xlsb]Order Details'!$F$39
C23: QE | D23: ='https://westvirginiaot.sharepoint.com/Users/a122318/Documents/_Asphalt/HMAPO2019/[HMAPO2019 MATERIAL LAYDOWN_052319.xlsb]Order Details'!$F$40
C24: QF | D24: ='https://westvirginiaot.sharepoint.com/Users/a122318/Documents/_Asphalt/HMAPO2019/[HMAPO2019 MATERIAL LAYDOWN_052319.xlsb]Order Details'!$F$41
C25: QG | D25: ='https://westvirginiaot.sharepoint.com/Users/a122318/Documents/_Asphalt/HMAPO2019/[HMAPO2019 MATERIAL LAYDOWN_052319.xlsb]Order Details'!$F$42
C26: QH | D26: ='https://westvirginiaot.sharepoint.com/Users/a122318/Documents/_Asphalt/HMAPO2019/[HMAPO2019 MATERIAL LAYDOWN_052319.xlsb]Order Details'!$F$43
C27: QI | D27: ='https://westvirginiaot.sharepoint.com/Users/a122318/Documents/_Asphalt/HMAPO2019/[HMAPO2019 MATERIAL LAYDOWN_052319.xlsb]Order Details'!$F$44
C28: QJ | D28: ='https://westvirginiaot.sharepoint.com/Users/a122318/Documents/_Asphalt/HMAPO2019/[HMAPO2019 MATERIAL LAYDOWN_052319.xlsb]Order Details'!$F$45
C29: QK | D29: ='https://westvirginiaot.sharepoint.com/Users/a122318/Documents/_Asphalt/HMAPO2019/[HMAPO2019 MATERIAL LAYDOWN_052319.xlsb]Order Details'!$F$46
C30: QL | D30: ='https://westvirginiaot.sharepoint.com/Users/a122318/Documents/_Asphalt/HMAPO2019/[HMAPO2019 MATERIAL LAYDOWN_052319.xlsb]Order Details'!$F$47
C31: QM | D31: ='https://westvirginiaot.sharepoint.com/Users/a122318/Documents/_Asphalt/HMAPO2019/[HMAPO2019 MATERIAL LAYDOWN_052319.xlsb]Order Details'!$F$48
C32: QN | D32: ='https://westvirginiaot.sharepoint.com/Users/a122318/Documents/_Asphalt/HMAPO2019/[HMAPO2019 MATERIAL LAYDOWN_052319.xlsb]Order Details'!$F$49
C33: QO | D33: ='https://westvirginiaot.sharepoint.com/Users/a122318/Documents/_Asphalt/HMAPO2019/[HMAPO2019 MATERIAL LAYDOWN_052319.xlsb]Order Details'!$F$50
C34: QP | D34: ='https://westvirginiaot.sharepoint.com/Users/a122318/Documents/_Asphalt/HMAPO2019/[HMAPO2019 MATERIAL LAYDOWN_052319.xlsb]Order Details'!$F$54
C35: QQ | D35: ='https://westvirginiaot.sharepoint.com/Users/a122318/Documents/_Asphalt/HMAPO2019/[HMAPO2019 MATERIAL LAYDOWN_052319.xlsb]Order Details'!$F$55
C36: QR | D36: ='https://westvirginiaot.sharepoint.com/Users/a122318/Documents/_Asphalt/HMAPO2019/[HMAPO2019 MATERIAL LAYDOWN_052319.xlsb]Order Details'!$F$56
C37: QS | D37: ='https://westvirginiaot.sharepoint.com/Users/a122318/Documents/_Asphalt/HMAPO2019/[HMAPO2019 MATERIAL LAYDOWN_052319.xlsb]Order Details'!$M$36
C38: QT | D38: ='https://westvirginiaot.sharepoint.com/Users/a122318/Documents/_Asphalt/HMAPO2019/[HMAPO2019 MATERIAL LAYDOWN_052319.xlsb]Order Details'!$M$37
C39: QU | D39: ='https://westvirginiaot.sharepoint.com/Users/a122318/Documents/_Asphalt/HMAPO2019/[HMAPO2019 MATERIAL LAYDOWN_052319.xlsb]Order Details'!$M$38
C40: QW | D40: ='https://westvirginiaot.sharepoint.com/Users/a122318/Documents/_Asphalt/HMAPO2019/[HMAPO2019 MATERIAL LAYDOWN_052319.xlsb]Order Details'!$M$58
C41: QX | D41: ='https://westvirginiaot.sharepoint.com/Users/a122318/Documents/_Asphalt/HMAPO2019/[HMAPO2019 MATERIAL LAYDOWN_052319.xlsb]Order Details'!$M$43
C42: QY | D42: ='https://westvirginiaot.sharepoint.com/Users/a122318/Documents/_Asphalt/HMAPO2019/[HMAPO2019 MATERIAL LAYDOWN_052319.xlsb]Order Details'!$F$57
C43: QZ | D43: ='https://westvirginiaot.sharepoint.com/Users/a122318/Documents/_Asphalt/HMAPO2019/[HMAPO2019 MATERIAL LAYDOWN_052319.xlsb]Order Details'!$M$44
C44: Route | D44: ='https://westvirginiaot.sharepoint.com/Users/a122318/Documents/_Asphalt/HMAPO2019/[HMAPO2019 MATERIAL LAYDOWN_052319.xlsb]Data'!$N$113:$N$118
C45: SAList | D45: ='https://westvirginiaot.sharepoint.com/Users/a122318/Documents/_Asphalt/HMAPO2019/[HMAPO2019 MATERIAL LAYDOWN_052319.xlsb]Data'!$B$173:$B$195
C46: SATable | D46: ='https://westvirginiaot.sharepoint.com/Users/a122318/Documents/_Asphalt/HMAPO2019/[HMAPO2019 MATERIAL LAYDOWN_052319.xlsb]Data'!$B$173:$C$195
C47: SCO | D47: ='https://westvirginiaot.sharepoint.com/Users/a122318/Documents/_Asphalt/HMAPO2019/[HMAPO2019 MATERIAL LAYDOWN_052319.xlsb]Order Details'!$N$2
C48: Sign | D48: =Data!$N$113:$O$118
C49: Stable | D49: =Data!$M$132:$N$135
C50: TUWtable | D50: =Data!$M$139:$N$142
C51: Vend | D51: =Data!$C$199:$C$208
C52: Vendor | D52: =Data!$A$3:$F$107
C53: Vendor1 | D53: ='https://westvirginiaot.sharepoint.com/Users/a122318/Documents/_Asphalt/HMAPO2019/[HMAPO2019 MATERIAL LAYDOWN_052319.xlsb]Order Details'!$K$6
C54: VendorBids | D54: ='https://westvirginiaot.sharepoint.com/Users/a122318/Documents/_Asphalt/HMAPO2019/[HMAPO2019 MATERIAL LAYDOWN_052319.xlsb]District Bids'!#REF!
C55: Vendorlist | D55: =Data!$C$199:$C$208
C56: VendorName | D56: ='Vendor Totals'!$A$106:$B$118
C57: VendorPID | D57: ='https://westvirginiaot.sharepoint.com/Users/a122318/Documents/_Asphalt/HMAPO2019/[HMAPO2019 MATERIAL LAYDOWN_052319.xlsb]District Bids'!$A$8:$BZ$112
C58: Vendors | D58: =Data!$C$199:$C$208

Sheet Complicated Price Adjustment
A1: 2025 Hot Mix Asphalt Contract (Materials, Delivery, and Laydown by Vendors) | F1: If you get an 'error message' asking wether you want to update links, reply yes.
A2: Unit Bid Price Adjustment | F2: If the current month is not displayed in Row 5, place cursor in Cell A5, press F2, press enter.
C3: Asphalt | D3: Fuel | F3: That will update the month and associated price indices.
A4: Asphalt Price Index at Month of Bid Opening August 2024, Ib | B4: Fuel Price Index at Month of Bid Opening August 2024, Ib | C4: 595 | D4: 2.5364 | F4: Monthly Fuel/Asphalt Price Link
A5: ='[3]Basic Price Adjustment'!$A5 -> Price Index March 2025, Ip | B5: =A5 -> Price Index March 2025, Ip | C5: ='[3]Basic Price Adjustment'!$C5 -> 579 | D5: ='[3]Basic Price Adjustment'!$D5 -> 2.6029 | K5: C= Cost Adjustment Factor
J6: Item | K6: Factor | L6: Pa
A7: Asphalt Cement Content, AC | F7: Description | G7: Factor | H7: Applicable Item(s) | J7: 1 | K7: 0.43 | L7: =ROUND((($D$5/$D$4)-1)*$D$4*K7,2) -> 0.03
F8: Asphalt Material | G8: 0.43 | H8: 1-17,66,69 | J8: 2 | K8: 0.43 | L8: =ROUND((($D$5/$D$4)-1)*$D$4*K8,2) -> 0.03
A9: 1 | B9: Section 401 - Base I | C9: 0.039 | F9: Asphalt Hauling | G9: 0.02 | H9: 27-28 | J9: 3 | K9: 0.43 | L9: 0.03
A10: 2 | B10: Section 401 - 25mm Superpave | C10: 0.044 | F10: Asphalt Laydown | G10: 0.14 | H10: 29-32 | J10: 4 | K10: 0.43 | L10: 0.03
A11: 3 | B11: Section 401 - Base II | C11: 0.05 | F11: Aggregate Production | G11: 0.52 | H11: 18 | J11: 5 | K11: 0.43 | L11: 0.03
A12: 4 | B12: Section 401 - Patch & Level | C12: 0.05 | F12: Aggregate Haul | G12: 0.02 | H12: 20-21 | J12: 6 | K12: 0.43 | L12: 0.03
A13: 5 | B13: Section 401 - Wearing IV | C13: 0.052 | F13: Excavating | G13: 0.25 | H13: 35-38 | J13: 7 | K13: 0.43 | L13: 0.03
A14: 6 | B14: Section 402 - Wearing IV | C14: 0.051 | J14: 8 | K14: 0.43 | L14: 0.03
A15: 7 | B15: Section 401 - 19mm Superpave | C15: 0.047 | J15: 9 | K15: 0.43 | L15: 0.03
A16: 8 | B16: Section 401 - Scratch Course | C16: 0.062 | J16: 10 | K16: 0.43 | L16: 0.03
A17: 9 | B17: Section 402 - 9.5mm Superpave | C17: 0.061 | J17: 11 | K17: 0.43 | L17: 0.03
A18: 10 | B18: Section 401 - Wearing I | C18: 0.061 | J18: 12 | K18: 0.43 | L18: 0.03
A19: 11 | B19: Section 402 - Wearing I | C19: 0.06 | J19: 13 | K19: 0.43 | L19: 0.03
A20: 12 | B20: Section 401 - 4.75mm Superpave | C20: 0.076 | J20: 14 | K20: 0.43 | L20: 0.03
A21: 13 | B21: Section 402 - 4.75mm Superpave | C21: 0.072 | J21: 15 | K21: 0.43 | L21: 0.03
A22: 14 | B22: Section 401 - Wearing III | C22: 0.073 | J22: 16 | K22: 0.43 | L22: 0.03
A23: 15 | B23: Section 402 - Wearing III | C23: 0.075 | J23: 17 | K23: 0.43 | L23: 0.03
A24: 16 | B24: Section 401 - 12.5mm Superpave | C24: 0.056 | J24: 66 | K24: 0.43 | L24: 0.03
A25: 17 | B25: Section 402 - 12.5mm Superpave | C25: 0.056 | J25: 69 | K25: 0.43 | L25: 0.03
A26: 66 | B26: Asphalt HPTO, SP 496 | C26: 0.071 | J26: 27 | K26: 0.02 | L26: 0
A27: 69 | B27: Ultra-Thin Asph. Overlay, SP 498 | C27: 0.076 | J27: 28 | K27: 0.02 | L27: 0
J28: 29 | K28: 0.14 | L28: 0.01
A29: The asphalt prices will be adjusted as follows: | B29: The fuel prices will be adjusted as follows: | J29: 30 | K29: 0.14 | L29: 0.01
A30: (Ip - Ib) x AC / 100 | B30: (Ip/Ib - 1) x Ib x C | D30: *per ton of asphalt | J30: 31 | K30: 0.14 | L30: 0.01
A31: Adjustment to Price* at Bid Opening | C31: Asphalt | D31: Fuel | E31: Total | J31: 32 | K31: 0.14 | L31: 0.01
A32: 1 | B32: Section 401 - Base I | C32: =ROUND(($C$5-$C$4)*C9,2) -> -0.62 | D32: =ROUND(L7,2) -> 0.03 | E32: =C32+D32 -> -0.59 | J32: 18 | K32: 0.52 | L32: 0.03
A33: 2 | B33: Section 401 - 25mm Superpave | C33: =ROUND(($C$5-$C$4)*C10,2) -> -0.7 | D33: =ROUND(L8,2) -> 0.03 | E33: =C33+D33 -> -0.67 | J33: 20 | K33: 0.02 | L33: 0
A34: 3 | B34: Section 401 - Base II | C34: -0.8 | D34: 0.03 | E34: -0.77 | J34: 21 | K34: 0.02 | L34: 0
A35: 4 | B35: Section 401 - Patch & Level | C35: -0.8 | D35: 0.03 | E35: -0.77 | J35: 35 | K35: 0.25 | L35: 0.02
A36: 5 | B36: Section 401 - Wearing IV | C36: -0.83 | D36: 0.03 | E36: -0.8 | J36: 36 | K36: 0.25 | L36: 0.02
A37: 6 | B37: Section 402 - Wearing IV | C37: -0.82 | D37: 0.03 | E37: -0.79 | J37: 37 | K37: 0.25 | L37: 0.02
A38: 7 | B38: Section 401 - 19mm Superpave | C38: -0.75 | D38: 0.03 | E38: -0.72 | J38: 38 | K38: 0.25 | L38: 0.02
A39: 8 | B39: Section 401 - Scratch Course | C39: -0.99 | D39: 0.03 | E39: -0.96
A40: 9 | B40: Section 402 - 9.5mm Superpave | C40: -0.98 | D40: 0.03 | E40: -0.95
A41: 10 | B41: Section 401 - Wearing I | C41: -0.98 | D41: 0.03 | E41: -0.95
A42: 11 | B42: Section 402 - Wearing I | C42: -0.96 | D42: 0.03 | E42: -0.93
A43: 12 | B43: Section 401 - 4.75mm Superpave | C43: -1.22 | D43: 0.03 | E43: -1.19
A44: 13 | B44: Section 402 - 4.75mm Superpave | C44: -1.15 | D44: 0.03 | E44: -1.12
A45: 14 | B45: Section 401 - Wearing III | C45: -1.17 | D45: 0.03 | E45: -1.14
A46: 15 | B46: Section 402 - Wearing III | C46: -1.2 | D46: 0.03 | E46: -1.17
A47: 16 | B47: Section 401 - 12.5mm Superpave | C47: -0.9 | D47: 0.03 | E47: =C47+D47 -> -0.87
A48: 17 | B48: Section 402 - 12.5mm Superpave | C48: -0.9 | D48: 0.03 | E48: =C48+D48 -> -0.87
A49: 66 | B49: Asphalt HPTO, SP 496 | C49: -1.14 | D49: 0.03 | E49: =C49+D49 -> -1.11
A50: 69 | B50: Ultra-Thin Asph. Overlay, SP 498 | C50: -1.22 | D50: 0.03 | E50: =C50+D50 -> -1.19

Sheet tables (hidden)
A1: County | B1: Number | C1: District | E1: District | G1: Other Override | I1: Other Override | K1: Supplemental Code | N1: Override List | P1: Sign System | S1: Activity | W1: Override List
A2: Barbour | B2: 1 | C2: 7 | E2: 1 | G2: Yes | I2: 0 | J2: NO | K2: 00 | L2: Not Applicable | N2: Vendor A | P2: Interstate | Q2: 1 | S2: 1 | T2: Asphalt Section 401 - Base I | U2: TON | W2: Vendor A
A3: Berkeley | B3: 2 | C3: 05 | E3: 2 | G3: No | I3: 1 | J3: YES | K3: 01 | L3: Alternate | N3: Vendor B | P3: US | Q3: 2 | S3: 2 | T3: Asphalt Section 401 - 25mm Superpave | U3: TON | W3: Vendor B
A4: Boone | B4: 3 | C4: 01 | E4: 3 | K4: 02 | L4: Wye | N4: Vendor C | P4: WV | Q4: 3 | S4: 3 | T4: Asphalt Section 401 - Base II | U4: TON | W4: Vendor C
A5: Braxton | B5: 4 | C5: 07 | E5: 4 | K5: 03 | L5: Spur | N5: Vendor D | P5: County | Q5: 4 | S5: 4 | T5: Asphalt Section 401 - Patch and Level | U5: TON | W5: Vendor D
A6: Brooke | B6: 5 | C6: 06 | E6: 5 | K6: 04 | L6: North | N6: Vendor E | P6: Park Forest | Q6: 6 | S6: 5 | T6: Asphalt Section 401 - Wearing IV | U6: TON | W6: Vendor E
A7: Cabell | B7: 6 | C7: 02 | E7: 6 | K7: 05 | L7: South | N7: Vendor F | P7: HARP | Q7: 8 | S7: 6 | T7: Asphalt Section 402 - Wearing IV | U7: TON | W7: Vendor F
A8: Calhoun | B8: 7 | C8: 03 | E8: 7 | K8: 06 | L8: East | N8: Vendor G | S8: 7 | T8: Asphalt Section 401 - 19mm Superpave | U8: TON | W8: Vendor G
A9: Clay | B9: 8 | C9: 01 | E9: 8 | K9: 07 | L9: West | N9: Vendor H | S9: 8 | T9: Asphalt Section 401 - Scratch Course | U9: TON | W9: Vendor H
A10: Doddridge | B10: 9 | C10: 04 | E10: 9 | K10: 08 | L10: Business | N10: Vendor I | S10: 9 | T10: Asphalt Section 402 - 9.5mm Superpave | U10: TON | W10: Vendor I
A11: Fayette | B11: 10 | C11: 09 | E11: 10 | K11: 09 | L11: North Bound(Business) | N11: Vendor J | S11: 10 | T11: Asphalt Section 401 - Wearing 1 | U11: TON | W11: Vendor J
A12: Gilmer | B12: 11 | C12: 07 | K12: 10 | L12: South Bound(Business) | N12: Vendor K | S12: 11 | T12: Asphalt Section 402 - Wearing 1 | U12: TON | W12: Vendor K
A13: Grant | B13: 12 | C13: 05 | K13: 11 | L13: East Bound(Business) | N13: Vendor L | S13: 12 | T13: Asphalt Section 401 - 4.75mm Superpave | U13: TON | W13: Vendor L
A14: Greenbrier | B14: 13 | C14: 09 | K14: 12 | L14: West Bound(Business) | N14: Vendor M | S14: 13 | T14: Asphalt Section 402 - 4.75mm Superpave | U14: TON | W14: Vendor M
A15: Hampshire | B15: 14 | C15: 05 | K15: 13 | L15: Truck Route | N15: Vendor N | S15: 14 | T15: Asphalt Section 401 - Wearing III | U15: TON | W15: Vendor N
A16: Hancock | B16: 15 | C16: 06 | K16: 14 | L16: Bypass | N16: Vendor O | S16: 15 | T16: Asphalt Section 402 - Wearing III | U16: TON | W16: Vendor O
A17: Hardy | B17: 16 | C17: 05 | K17: 15 | L17: Loop | N17: Vendor P | S17: 16 | T17: Asphalt Section 401 - 12.5mm Superpave | U17: TON | W17: Vendor P
A18: Harrison | B18: 17 | C18: 04 | K18: 16 | L18: Toll | N18: Vendor Q | S18: 17 | T18: Asphalt Section 402 - 12.5mm Superpave | U18: TON | W18: Vendor Q
A19: Jackson | B19: 18 | C19: 03 | K19: 17 | L19: Ramp | N19: Vendor R | S19: 18 | T19: Shoulder Stone Placement for Asphalt Section 307 - Class 10 | U19: TON | W19: Vendor R
A20: Jefferson | B20: 19 | C20: 05 | K20: 18 | L20: Other | N20: Vendor S | S20: 20 | T20: Haul by Vendor Shoulder Stone Placement - First Ton Mile | U20: MILE | W20: Vendor S
A21: Kanawha | B21: 20 | C21: 01 | K21: 19 | L21: City Streets - Non-State | N21: Vendor T | S21: 21 | T21: Haul by Vendor Shoulder Stone Placement - Each Additional Mile | U21: MILE | W21: Vendor T
A22: Lewis | B22: 21 | C22: 07 | K22: 20 | L22: Roads Under Construction | N22: Vendor U | S22: 22 | T22: Surcharge for PG Binder - 64H minus 22 | U22: TON | W22: Vendor U
A23: Lincoln | B23: 22 | C23: 02 | K23: 21 | L23: Footbridges | N23: Vendor V | S23: 23 | T23: Surcharge for PG Binder 64E minus 22 ordered in 400 Ton increments | U23: TON | W23: Vendor V
A24: Logan | B24: 23 | C24: 02 | K24: 22 | L24: Historical Bridges | N24: Vendor W | S24: 24 | T24: ESAL Surcharge - 3 million to 20 million ESALs | U24: TON | W24: Vendor W
A25: McDowell | B25: 24 | C25: 10 | N25: Vendor X | S25: 25 | T25: ESAL Surcharge - Greater than 20 million ESALs | U25: TON | W25: Vendor X
A26: Marion | B26: 25 | C26: 04 | N26: Vendor Y | S26: 26 | T26: Asphalt Haul by Vendor - First Ton Mile | U26: MILE | W26: Vendor Y
A27: Marshall | B27: 26 | C27: 06 | N27: Vendor Z | S27: 27 | T27: Asphalt Haul by Vendor - Each Additional Mile | U27: MILE | W27: Vendor Z
A28: Mason | B28: 27 | C28: 01 | N28: Vendor AA | S28: 28 | T28: Laydown of Materials. Items #1-17 and #67, Each Site 0-100 Tons | U28: TON | W28: Vendor AA
A29: Mercer | B29: 28 | C29: 10 | N29: Vendor AB | S29: 29 | T29: Laydown of Materials. Items #1-17 and #67, Each Site 101 to 200 Tons | U29: TON | W29: Vendor AB
A30: Mineral | B30: 29 | C30: 05 | N30: Vendor AC | S30: 30 | T30: Laydown of Materials. Items #1-17 and #67, Each Site 201 to 500 Tons | U30: TON | W30: Vendor AC
A31: Mingo | B31: 30 | C31: 02 | N31: Vendor AD | S31: 31 | T31: Laydown of Materials. Items #1-17 and #67, Each Site 501 Tons or Greater | U31: TON | W31: Vendor AD
A32: Monongalia | B32: 31 | C32: 04 | N32: Vendor AE | S32: 34 | T32: Excavation for Shoulder Paving - 0 to 1000 Sq. Yards | U32: SY | W32: Vendor AE
A33: Monroe | B33: 32 | C33: 09 | N33: Vendor AF | S33: 35 | T33: Excavation for Shoulder Paving - 1001 to 2000 Sq. Yards | U33: SY
A34: Morgan | B34: 33 | C34: 05 | S34: 36 | T34: Excavation for Shoulder Paving - 2001 to 3000 Sq. Yards | U34: SY
A35: Nicholas | B35: 34 | C35: 09 | S35: 37 | T35: Excavation for Shoulder Paving - 3001 Sq. Yards or Greater | U35: SY
A36: Ohio | B36: 35 | C36: 06 | S36: 38 | T36: Asphalt Base I Shoulder Paving Surcharge - 0 to 100 Tons | U36: TON
A37: Pendleton | B37: 36 | C37: 08 | S37: 39 | T37: Asphalt Base I Shoulder Paving Surcharge - 101 to 200 Tons | U37: TON
A38: Pleasants | B38: 37 | C38: 03 | S38: 40 | T38: Asphalt Base I Shoulder Paving Surcharge - 201 to 500 Tons | U38: TON
A39: Pocahontas | B39: 38 | C39: 08 | S39: 41 | T39: Asphalt Base I Shoulder Paving Surcharge - 501 Tons or Greater | U39: TON
A40: Preston | B40: 39 | C40: 04 | S40: 42 | T40: Asphalt Base II Shoulder Paving Surcharge - 0 to 100 Tons | U40: TON
A41: Putnam | B41: 40 | C41: 01 | S41: 43 | T41: Asphalt Base II Shoulder Paving Surcharge - 101 to 200 Tons | U41: TON
A42: Raleigh | B42: 41 | C42: 10 | S42: 44 | T42: Asphalt Base II Shoulder Paving Surcharge - 201 to 500 Tons | U42: TON
A43: Randolph | B43: 42 | C43: 08 | S43: 45 | T43: Asphalt Base II Shoulder Paving Surcharge - 501 Tons or Greater | U43: TON
A44: Ritchie | B44: 43 | C44: 03 | S44: 46 | T44: Asphalt Material for Tack Coat or Prime Material | U44: GAL
A45: Roane | B45: 44 | C45: 03 | S45: 47 | T45: Additional Heel-In Joints | U45: LF
A46: Summers | B46: 45 | C46: 09 | S46: 48 | T46: Skip Paving Surcharge | U46: TON
A47: Taylor | B47: 46 | C47: 04 | S47: 49 | T47: Pavement Profiling/Milling-WVDOH Owns Millings 0 to 250 Sq. Yards | U47: SY
A48: Tucker | B48: 47 | C48: 08 | S48: 50 | T48: Pavement Profiling/Milling-WVDOH Owns Millings 251 to 500 Sq. Yards | U48: SY
A49: Tyler | B49: 48 | C49: 06 | S49: 51 | T49: Pavement Profiling/Milling-WVDOH Owns Millings 501 to 1000 Sq. Yards | U49: SY
A50: Upshur | B50: 49 | C50: 07 | S50: 52 | T50: Pavement Profiling/Milling-WVDOH Owns Millings 1001 to 2500 Sq. Yards | U50: SY
A51: Wayne | B51: 50 | C51: 02 | S51: 53 | T51: Pavement Profiling/Milling-WVDOH Owns Millings 2501 to 5000 Sq. Yards | U51: SY
A52: Webster | B52: 51 | C52: 07 | S52: 54 | T52: Pavement Profiling/Milling-WVDOH Owns Millings 5001 Sq. Yards or Greater | U52: SY
A53: Wetzel | B53: 52 | C53: 06 | S53: 55 | T53: Pavement Profiling/Milling-Vendor Owns Millings 0 to 250 Sq. Yards | U53: SY
A54: Wirt | B54: 53 | C54: 03 | S54: 56 | T54: Pavement Profiling/Milling-Vendor Owns Millings 251 to 500 Sq. Yards | U54: SY
A55: Wood | B55: 54 | C55: 03 | S55: 57 | T55: Pavement Profiling/Milling-Vendor Owns Millings 501 to 1000 Sq. Yards | U55: SY
A56: Wyoming | B56: 55 | C56: 10 | S56: 58 | T56: Pavement Profiling/Milling-Vendor Owns Millings 1001 to 2500 Sq. Yards | U56: SY
S57: 59 | T57: Pavement Profiling/Milling-Vendor Owns Millings 2501 to 5000 Sq. Yards | U57: SY
S58: 60 | T58: Pavement Profiling/Milling-Vendor Owns Millings 5001 Sq. Yards or Greater | U58: SY
S59: 62 | T59: Haul of Profiled/Milled Cuttings or Fine Millings, First 10 Miles (Included #49-60 and #69-80) | U59: MILE
S60: 63 | T60: Haul of Profiled/Milled Cuttings or Fine Millings, Each additional Mile (Above 10 Miles) | U60: LOADED MILE
S61: 64 | T61: Pavement Repair - Asphalt Base II | U61: TON
S62: 65 | T62: Asphalt HPTO - SP496 - PG 64E-22 ordered 400 Ton increments | U62: TON
S63: 66 | T63: Non-Tracking Tack - to be used with #65 | U63: GAL
S64: 67 | T64: Lay Down of Materials - to be used with #65 - 400 Ton or Greater | U64: TON
S65: 68 | T65: Ultra-Thin Asphalt Overlay - SP498 | U65: TON
S66: 69 | T66: Fine Milling -WVDOH Owns Millings 0 to 250 Sq. Yards | U66: SY
S67: 70 | T67: Fine Milling -WVDOH Owns Millings 251 to 500 Sq. Yards | U67: SY
S68: 71 | T68: Fine Milling -WVDOH Owns Millings 501 to 1000 Sq. Yards | U68: SY
S69: 72 | T69: Fine Milling -WVDOH Owns Millings 1001 to 2500 Sq. Yards | U69: SY
S70: 73 | T70: Fine Milling -WVDOH Owns Millings 2501 to 5000 Sq. Yards | U70: SY
S71: 74 | T71: Fine Milling -WVDOH Owns Millings 5001 SY or Greater | U71: SY
S72: 75 | T72: Fine Milling- Vendor Owns Millings 0 to 250 Sq. Yards | U72: SY
S73: 76 | T73: Fine Milling- Vendor Owns Millings 251 to 500 Sq. Yards | U73: SY
S74: 77 | T74: Fine Milling- Vendor Owns Millings 501 to 1000 Sq. Yards | U74: SY
S75: 78 | T75: Fine Milling- Vendor Owns Millings 1001 to 2500 Sq. Yards | U75: SY
S76: 79 | T76: Fine Milling- Vendor Owns Millings 2501 to 5000 Sq. Yards | U76: SY
S77: 80 | T77: Fine Milling- Vendor Owns Millings 5001 SY or Greater | U77: SY
S78: 81 | T78: Milled Rumble Strips | U78: LF
S79: 83 | T79: Surcharge for Parking Lot and Facility Paving | U79: TON
S80: 84 | T80: Cleaning and Sweeping | U80: SY
S81: 85 | T81: Maintaining Traffic - Pilot Truck and Driver | U81: DAY
S82: 86 | T82: Maintaining Traffic - Traffic Control Devices | U82: UNIT
S83: 87 | T83: Maintaining Traffic - Flagger | U83: HOUR
S84: 88 | T84: Maintaining Traffic - Arrow Board | U84: DAY
S85: 89 | T85: Off-Season Plant Opening - First Day | U85: DAY
S86: 90 | T86: Off-Season Plant Opening - Each Additional Day | U86: DAY
S87: 19 | T87: Shoulder Stone Mobilization | U87: LUMP SUM
S88: 32 | T88: Mobilization - Daytime Paving | U88: LUMP SUM
S89: 33 | T89: Mobilization - Nighttime Paving | U89: LUMP SUM
S90: 61 | T90: Mobilization - Pavement Profiling/Milling | U90: LUMP SUM
S91: 82 | T91: Mobilization - Milled Rumble Strips | U91: LUMP SUM

Sheet District Bids (hidden)
I2: 7 | J2: 8 | K2: 9 | L2: 10 | M2: 11 | N2: 12 | O2: 13 | P2: 14 | Q2: 15 | R2: 16 | S2: 17 | T2: 18 | U2: 19 | V2: 20 | W2: 21 | X2: 22 | Y2: 23 | Z2: 24 | AA2: 25 | AB2: 26 | AC2: 27 | AD2: 28 | AE2: 29 | AF2: 30 | AG2: 31 | AH2: 32 | AI2: 33 | AJ2: 34 | AK2: 35 | AL2: 36 | AM2: 37 | AN2: 38 | AO2: 39 | AP2: 40 | AQ2: 41 | AR2: 42 | AS2: 43 | AT2: 44 | AU2: 45 | AV2: 46 | AW2: 47 | AX2: 48 | AY2: 49 | AZ2: 50 | BA2: 51 | BB2: 52 | BC2: 53 | BD2: 54 | BE2: 55 | BF2: 56 | BG2: 57 | BH2: 58 | BI2: 59 | BJ2: 60 | BK2: 61 | BL2: 62 | BM2: 63 | BN2: 64 | BO2: 65 | BP2: 66 | BQ2: 67 | BR2: 68 | BS2: 69 | BT2: 70 | BU2: 71 | BV2: 72 | BW2: 73 | BX2: 74 | BY2: 75 | BZ2: 76 | CA2: 77 | CB2: 78 | CC2: 79 | CD2: 80 | CE2: 81 | CF2: 82 | CG2: 83 | CH2: 84 | CI2: 85 | CJ2: 86 | CK2: 87 | CL2: 88 | CM2: 89 | CN2: 90 | CO2: 91 | CP2: 92 | CQ2: 93 | CR2: 94 | CS2: 95 | CT2: 96 | CU2: 97 | CV2: 98 | CW2: 99 | CX2: 100 | CY2: 101 | CZ2: 102 | DA2: 103 | DB2: 104 | DC2: 105 | DD2: 106 | DE2: 107 | DF2: 108
A4: County | B4: County# | C4: PID | D4: District | E4: Vendor | F4: Vendor Asphalt Location | G4: Vendor Stone Plant | H4: Shoulder Stone Location | I4: 1 | J4: 2 | K4: 3 | L4: 4 | M4: 5 | N4: 6 | O4: 7 | P4: 8 | Q4: 9 | R4: 10 | S4: 11 | T4: 12 | U4: 13 | V4: 14 | W4: 15 | X4: 16 | Y4: 17 | Z4: 18 | AA4: 19 | AB4: 20 | AC4: 21 | AD4: 22 | AE4: 23 | AF4: 24 | AG4: 25 | AH4: 26 | AI4: 27 | AJ4: 28 | AK4: 29 | AL4: 30 | AM4: 31 | AN4: 32 | AO4: 33 | AP4: 34 | AQ4: 35 | AR4: 36 | AS4: 37 | AT4: 38 | AU4: 39 | AV4: 40 | AW4: 41 | AX4: 42 | AY4: 43 | AZ4: 44 | BA4: 45 | BB4: 46 | BC4: 47 | BD4: 48 | BE4: 49 | BF4: 50 | BG4: 51 | BH4: 52 | BI4: 53 | BJ4: 54 | BK4: 55 | BL4: 56 | BM4: 57 | BN4: 58 | BO4: 59 | BP4: 60 | BQ4: 61 | BR4: 62 | BS4: 63 | BT4: 64 | BU4: 65 | BV4: 66 | BW4: 67 | BX4: 68 | BY4: 69 | BZ4: 70 | CA4: 71 | CB4: 72 | CC4: 73 | CD4: 74 | CE4: 75 | CF4: 76 | CG4: 77 | CH4: 78 | CI4: 79 | CJ4: 80 | CK4: 81 | CL4: 82 | CM4: 83 | CN4: 84 | CO4: 85 | CP4: 86 | CQ4: 87 | CR4: 88 | CS4: 89 | CT4: 90 | CU4: 91 | CV4: 92 | CW4: 93 | CX4: 94 | CY4: 95 | CZ4: 96 | DA4: 97 | DB4: 98 | DC4: 99 | DD4: 100 | DE4: 101 | DF4: 102
A5: Boone | B5: =VLOOKUP(A5,tables!$A$2:$C$56,2,0) -> 3 | C5: 1001 | D5: =VLOOKUP(A5,tables!$A$2:$C$56,3,0) -> 01 | E5: BTI Contracting Inc. St. Albans | F5: 484 Industrial Rd, St Albans, WV 25177 | G5: Scary Creek Materials | H5: #9 Orders Way, Winfield, WV | I5: 78.94 | J5: 79.89 | K5: 80.72 | L5: 80.72 | M5: 81.39 | N5: 91.22 | O5: 83.54 | P5: 88.1 | Q5: 97.57 | R5: 88.1 | S5: 97.57 | T5: 118.91 | U5: 118.95 | V5: 113.94 | W5: 118.92 | X5: 96.22 | Y5: 96.22 | Z5: 67.5 | AA5: 1950 | AB5: 2.9 | AC5: 0.3 | AD5: 5 | AE5: 5 | AF5: 12.5 | AG5: 1.75 | AH5: 4.5 | AI5: 3 | AJ5: 0.27 | AK5: 83 | AL5: 29.75 | AM5: 19.5 | AN5: 9.7 | AO5: 1750 | AP5: 8000 | AQ5: 7 | AR5: 5 | AS5: 4 | AT5: 3 | AU5: 21.25 | AV5: 16 | AW5: 6 | AX5: 4 | AY5: 20.75 | AZ5: 16 | BA5: 6 | BB5: 4 | BC5: 3.25 | BD5: 13 | BE5: 5 | BF5: 23 | BG5: 16.75 | BH5: 11.75 | BI5: 6.6 | BJ5: 4.5 | BK5: 3.4 | BL5: 20.25 | BM5: 15.25 | BN5: 9.75 | BO5: 5 | BP5: 3.25 | BQ5: 2.25 | BR5: 3250 | BS5: 0 | BT5: 0.27 | BU5: 345 | BV5: 0 | BW5: 5 | BX5: 0 | BY5: 0 | BZ5: 24 | CA5: 18 | CB5: 13.5 | CC5: 7.25 | CD5: 5.5 | CE5: 3.6 | CF5: 22.5 | CG5: 16.5 | CH5: 12 | CI5: 6 | CJ5: 4.4 | CK5: 2.6 | CL5: 0.75 | CM5: 4250 | CN5: 7.25 | CO5: 0.01 | CP5: 960 | CQ5: 1 | CR5: 69 | CS5: 40 | CT5: 3500 | CU5: 1250 | CV5: 75 | CW5: 40 | CX5: 1750 | CY5: 22 | CZ5: 1950 | DA5: 9.5 | DB5: 7.4 | DC5: 6 | DD5: 4.55 | DE5: 5.25 | DF5: 5000
A6: Clay | B6: =VLOOKUP(A6,tables!$A$2:$C$56,2,0) -> 8 | C6: 1002 | D6: =VLOOKUP(A6,tables!$A$2:$C$56,3,0) -> 01 | E6: BTI Contracting Inc. St. Albans | F6: 484 Industrial Rd, St Albans, WV 25177 | G6: Scary Creek Materials | H6: #9 Orders Way, Winfield, WV | I6: 78.94 | J6: 79.89 | K6: 80.72 | L6: 80.72 | M6: 81.39 | N6: 91.22 | O6: 83.54 | P6: 88.1 | Q6: 97.57 | R6: 88.1 | S6: 97.57 | T6: 118.91 | U6: 118.95 | V6: 113.94 | W6: 118.92 | X6: 96.22 | Y6: 96.22 | Z6: 67.5 | AA6: 1950 | AB6: 2.9 | AC6: 0.3 | AD6: 5 | AE6: 5 | AF6: 12.5 | AG6: 1.75 | AH6: 4.5 | AI6: 3 | AJ6: 0.27 | AK6: 83 | AL6: 29.75 | AM6: 19.5 | AN6: 9.7 | AO6: 1750 | AP6: 8000 | AQ6: 7 | AR6: 5 | AS6: 4 | AT6: 3 | AU6: 21.25 | AV6: 16 | AW6: 6 | AX6: 4 | AY6: 20.75 | AZ6: 16 | BA6: 6 | BB6: 4 | BC6: 3.25 | BD6: 13 | BE6: 5 | BF6: 23 | BG6: 16.75 | BH6: 11.75 | BI6: 6.6 | BJ6: 4.5 | BK6: 3.4 | BL6: 20.25 | BM6: 15.25 | BN6: 9.75 | BO6: 5 | BP6: 3.25 | BQ6: 2.25 | BR6: 3250 | BS6: 0 | BT6: 0.27 | BU6: 345 | BV6: 0 | BW6: 5 | BX6: 0 | BY6: 0 | BZ6: 24 | CA6: 18 | CB6: 13.5 | CC6: 7.25 | CD6: 5.5 | CE6: 3.6 | CF6: 22.5 | CG6: 16.5 | CH6: 12 | CI6: 6 | CJ6: 4.4 | CK6: 2.6 | CL6: 0.75 | CM6: 4250 | CN6: 7.25 | CO6: 0.01 | CP6: 960 | CQ6: 1 | CR6: 69 | CS6: 40 | CT6: 3500 | CU6: 1250 | CV6: 75 | CW6: 40 | CX6: 1750 | CY6: 22 | CZ6: 1950 | DA6: 9.5 | DB6: 7.4 | DC6: 6 | DD6: 4.55 | DE6: 5.25 | DF6: 5000
A7: Kanawha | B7: =VLOOKUP(A7,tables!$A$2:$C$56,2,0) -> 20 | C7: 1003 | D7: =VLOOKUP(A7,tables!$A$2:$C$56,3,0) -> 01 | E7: BTI Contracting Inc. St. Albans | F7: 484 Industrial Rd, St Albans, WV 25177 | G7: Scary Creek Materials | H7: #9 Orders Way, Winfield, WV | I7: 78.94 | J7: 79.89 | K7: 80.72 | L7: 80.72 | M7: 81.39 | N7: 91.22 | O7: 83.54 | P7: 88.1 | Q7: 97.57 | R7: 88.1 | S7: 97.57 | T7: 118.91 | U7: 118.95 | V7: 113.94 | W7: 118.92 | X7: 96.22 | Y7: 96.22 | Z7: 67.5 | AA7: 1950 | AB7: 2.9 | AC7: 0.3 | AD7: 5 | AE7: 5 | AF7: 12.5 | AG7: 1.75 | AH7: 4.5 | AI7: 3 | AJ7: 0.27 | AK7: 83 | AL7: 29.75 | AM7: 19.5 | AN7: 9.7 | AO7: 1750 | AP7: 8000 | AQ7: 7 | AR7: 5 | AS7: 4 | AT7: 3 | AU7: 21.25 | AV7: 16 | AW7: 6 | AX7: 4 | AY7: 20.75 | AZ7: 16 | BA7: 6 | BB7: 4 | BC7: 3.25 | BD7: 13 | BE7: 5 | BF7: 23 | BG7: 16.75 | BH7: 11.75 | BI7: 6.6 | BJ7: 4.5 | BK7: 3.4 | BL7: 20.25 | BM7: 15.25 | BN7: 9.75 | BO7: 5 | BP7: 3.25 | BQ7: 2.25 | BR7: 3250 | BS7: 0 | BT7: 0.27 | BU7: 345 | BV7: 0 | BW7: 5 | BX7: 0 | BY7: 0 | BZ7: 24 | CA7: 18 | CB7: 13.5 | CC7: 7.25 | CD7: 5.5 | CE7: 3.6 | CF7: 22.5 | CG7: 16.5 | CH7: 12 | CI7: 6 | CJ7: 4.4 | CK7: 2.6 | CL7: 0.75 | CM7: 4250 | CN7: 7.25 | CO7: 0.01 | CP7: 960 | CQ7: 1 | CR7: 69 | CS7: 40 | CT7: 3500 | CU7: 1250 | CV7: 75 | CW7: 40 | CX7: 1750 | CY7: 22 | CZ7: 1950 | DA7: 9.5 | DB7: 7.4 | DC7: 6 | DD7: 4.55 | DE7: 5.25 | DF7: 5000
A8: Mason | B8: =VLOOKUP(A8,tables!$A$2:$C$56,2,0) -> 27 | C8: 1004 | D8: =VLOOKUP(A8,tables!$A$2:$C$56,3,0) -> 01 | E8: BTI Contracting Inc. St. Albans | F8: 484 Industrial Rd, St Albans, WV 25177 | G8: Scary Creek Materials | H8: #9 Orders Way, Winfield, WV | I8: 78.94 | J8: 79.89 | K8: 80.72 | L8: 80.72 | M8: 81.39 | N8: 91.22 | O8: 83.54 | P8: 88.1 | Q8: 97.57 | R8: 88.1 | S8: 97.57 | T8: 118.91 | U8: 118.95 | V8: 113.94 | W8: 118.92 | X8: 96.22 | Y8: 96.22 | Z8: 67.5 | AA8: 1950 | AB8: 2.9 | AC8: 0.3 | AD8: 5 | AE8: 5 | AF8: 12.5 | AG8: 1.75 | AH8: 4.5 | AI8: 3 | AJ8: 0.27 | AK8: 83 | AL8: 29.75 | AM8: 19.5 | AN8: 9.7 | AO8: 1750 | AP8: 8000 | AQ8: 7 | AR8: 5 | AS8: 4 | AT8: 3 | AU8: 21.25 | AV8: 16 | AW8: 6 | AX8: 4 | AY8: 20.75 | AZ8: 16 | BA8: 6 | BB8: 4 | BC8: 3.25 | BD8: 13 | BE8: 5 | BF8: 23 | BG8: 16.75 | BH8: 11.75 | BI8: 6.6 | BJ8: 4.5 | BK8: 3.4 | BL8: 20.25 | BM8: 15.25 | BN8: 9.75 | BO8: 5 | BP8: 3.25 | BQ8: 2.25 | BR8: 3250 | BS8: 0 | BT8: 0.27 | BU8: 345 | BV8: 0 | BW8: 5 | BX8: 0 | BY8: 0 | BZ8: 24 | CA8: 18 | CB8: 13.5 | CC8: 7.25 | CD8: 5.5 | CE8: 3.6 | CF8: 22.5 | CG8: 16.5 | CH8: 12 | CI8: 6 | CJ8: 4.4 | CK8: 2.6 | CL8: 0.75 | CM8: 4250 | CN8: 7.25 | CO8: 0.01 | CP8: 960 | CQ8: 1 | CR8: 69 | CS8: 40 | CT8: 3500 | CU8: 1250 | CV8: 75 | CW8: 40 | CX8: 1750 | CY8: 22 | CZ8: 1950 | DA8: 9.5 | DB8: 7.4 | DC8: 6 | DD8: 4.55 | DE8: 5.25 | DF8: 5000
A9: Putnam | B9: =VLOOKUP(A9,tables!$A$2:$C$56,2,0) -> 40 | C9: 1005 | D9: =VLOOKUP(A9,tables!$A$2:$C$56,3,0) -> 01 | E9: BTI Contracting Inc. St. Albans | F9: 484 Industrial Rd, St Albans, WV 25177 | G9: Scary Creek Materials | H9: #9 Orders Way, Winfield, WV | I9: 78.94 | J9: 79.89 | K9: 80.72 | L9: 80.72 | M9: 81.39 | N9: 91.22 | O9: 83.54 | P9: 88.1 | Q9: 97.57 | R9: 88.1 | S9: 97.57 | T9: 118.91 | U9: 118.95 | V9: 113.94 | W9: 118.92 | X9: 96.22 | Y9: 96.22 | Z9: 67.5 | AA9: 1950 | AB9: 2.9 | AC9: 0.3 | AD9: 5 | AE9: 5 | AF9: 12.5 | AG9: 1.75 | AH9: 4.5 | AI9: 3 | AJ9: 0.27 | AK9: 83 | AL9: 29.75 | AM9: 19.5 | AN9: 9.7 | AO9: 1750 | AP9: 8000 | AQ9: 7 | AR9: 5 | AS9: 4 | AT9: 3 | AU9: 21.25 | AV9: 16 | AW9: 6 | AX9: 4 | AY9: 20.75 | AZ9: 16 | BA9: 6 | BB9: 4 | BC9: 3.25 | BD9: 13 | BE9: 5 | BF9: 23 | BG9: 16.75 | BH9: 11.75 | BI9: 6.6 | BJ9: 4.5 | BK9: 3.4 | BL9: 20.25 | BM9: 15.25 | BN9: 9.75 | BO9: 5 | BP9: 3.25 | BQ9: 2.25 | BR9: 3250 | BS9: 0 | BT9: 0.27 | BU9: 345 | BV9: 0 | BW9: 5 | BX9: 0 | BY9: 0 | BZ9: 24 | CA9: 18 | CB9: 13.5 | CC9: 7.25 | CD9: 5.5 | CE9: 3.6 | CF9: 22.5 | CG9: 16.5 | CH9: 12 | CI9: 6 | CJ9: 4.4 | CK9: 2.6 | CL9: 0.75 | CM9: 4250 | CN9: 7.25 | CO9: 0.01 | CP9: 960 | CQ9: 1 | CR9: 69 | CS9: 40 | CT9: 3500 | CU9: 1250 | CV9: 75 | CW9: 40 | CX9: 1750 | CY9: 22 | CZ9: 1950 | DA9: 9.5 | DB9: 7.4 | DC9: 6 | DD9: 4.55 | DE9: 5.25 | DF9: 5000
A10: Boone | B10: =VLOOKUP(A10,tables!$A$2:$C$56,2,0) -> 3 | C10: 1006 | D10: =VLOOKUP(A10,tables!$A$2:$C$56,3,0) -> 01 | E10: BTI Contracting Inc. St. Albans | F10: 484 Industrial Rd, St Albans, WV 25177 | G10: Valley Stone Yard | H10: 360 Valley Rd., Millwood WV, 25262 | I10: 78.94 | J10: 79.89 | K10: 80.72 | L10: 80.72 | M10: 81.39 | N10: 91.22 | O10: 83.54 | P10: 88.1 | Q10: 97.57 | R10: 88.1 | S10: 97.57 | T10: 118.91 | U10: 118.95 | V10: 113.94 | W10: 118.92 | X10: 96.22 | Y10: 96.22 | Z10: 67.5 | AA10: 1950 | AB10: 2.9 | AC10: 0.3 | AD10: 5 | AE10: 5 | AF10: 12.5 | AG10: 1.75 | AH10: 4.5 | AI10: 3 | AJ10: 0.27 | AK10: 83 | AL10: 29.75 | AM10: 19.5 | AN10: 9.7 | AO10: 1750 | AP10: 8000 | AQ10: 7 | AR10: 5 | AS10: 4 | AT10: 3 | AU10: 21.25 | AV10: 16 | AW10: 6 | AX10: 4 | AY10: 20.75 | AZ10: 16 | BA10: 6 | BB10: 4 | BC10: 3.25 | BD10: 13 | BE10: 5 | BF10: 23 | BG10: 16.75 | BH10: 11.75 | BI10: 6.6 | BJ10: 4.5 | BK10: 3.4 | BL10: 20.25 | BM10: 15.25 | BN10: 9.75 | BO10: 5 | BP10: 3.25 | BQ10: 2.25 | BR10: 3250 | BS10: 0 | BT10: 0.27 | BU10: 345 | BV10: 0 | BW10: 5 | BX10: 0 | BY10: 0 | BZ10: 24 | CA10: 18 | CB10: 13.5 | CC10: 7.25 | CD10: 5.5 | CE10: 3.6 | CF10: 22.5 | CG10: 16.5 | CH10: 12 | CI10: 6 | CJ10: 4.4 | CK10: 2.6 | CL10: 0.75 | CM10: 4250 | CN10: 7.25 | CO10: 0.01 | CP10: 960 | CQ10: 1 | CR10: 69 | CS10: 40 | CT10: 3500 | CU10: 1250 | CV10: 75 | CW10: 40 | CX10: 1750 | CY10: 22 | CZ10: 1950 | DA10: 9.5 | DB10: 7.4 | DC10: 6 | DD10: 4.55 | DE10: 5.25 | DF10: 5000
A11: Clay | B11: =VLOOKUP(A11,tables!$A$2:$C$56,2,0) -> 8 | C11: 1007 | D11: =VLOOKUP(A11,tables!$A$2:$C$56,3,0) -> 01 | E11: BTI Contracting Inc. St. Albans | F11: 484 Industrial Rd, St Albans, WV 25177 | G11: Valley Stone Yard | H11: 360 Valley Rd., Millwood WV, 25262 | I11: 78.94 | J11: 79.89 | K11: 80.72 | L11: 80.72 | M11: 81.39 | N11: 91.22 | O11: 83.54 | P11: 88.1 | Q11: 97.57 | R11: 88.1 | S11: 97.57 | T11: 118.91 | U11: 118.95 | V11: 113.94 | W11: 118.92 | X11: 96.22 | Y11: 96.22 | Z11: 67.5 | AA11: 1950 | AB11: 2.9 | AC11: 0.3 | AD11: 5 | AE11: 5 | AF11: 12.5 | AG11: 1.75 | AH11: 4.5 | AI11: 3 | AJ11: 0.27 | AK11: 83 | AL11: 29.75 | AM11: 19.5 | AN11: 9.7 | AO11: 1750 | AP11: 8000 | AQ11: 7 | AR11: 5 | AS11: 4 | AT11: 3 | AU11: 21.25 | AV11: 16 | AW11: 6 | AX11: 4 | AY11: 20.75 | AZ11: 16 | BA11: 6 | BB11: 4 | BC11: 3.25 | BD11: 13 | BE11: 5 | BF11: 23 | BG11: 16.75 | BH11: 11.75 | BI11: 6.6 | BJ11: 4.5 | BK11: 3.4 | BL11: 20.25 | BM11: 15.25 | BN11: 9.75 | BO11: 5 | BP11: 3.25 | BQ11: 2.25 | BR11: 3250 | BS11: 0 | BT11: 0.27 | BU11: 345 | BV11: 0 | BW11: 5 | BX11: 0 | BY11: 0 | BZ11: 24 | CA11: 18 | CB11: 13.5 | CC11: 7.25 | CD11: 5.5 | CE11: 3.6 | CF11: 22.5 | CG11: 16.5 | CH11: 12 | CI11: 6 | CJ11: 4.4 | CK11: 2.6 | CL11: 0.75 | CM11: 4250 | CN11: 7.25 | CO11: 0.01 | CP11: 960 | CQ11: 1 | CR11: 69 | CS11: 40 | CT11: 3500 | CU11: 1250 | CV11: 75 | CW11: 40 | CX11: 1750 | CY11: 22 | CZ11: 1950 | DA11: 9.5 | DB11: 7.4 | DC11: 6 | DD11: 4.55 | DE11: 5.25 | DF11: 5000
A12: Kanawha | B12: =VLOOKUP(A12,tables!$A$2:$C$56,2,0) -> 20 | C12: 1008 | D12: =VLOOKUP(A12,tables!$A$2:$C$56,3,0) -> 01 | E12: BTI Contracting Inc. St. Albans | F12: 484 Industrial Rd, St Albans, WV 25177 | G12: Valley Stone Yard | H12: 360 Valley Rd., Millwood WV, 25262 | I12: 78.94 | J12: 79.89 | K12: 80.72 | L12: 80.72 | M12: 81.39 | N12: 91.22 | O12: 83.54 | P12: 88.1 | Q12: 97.57 | R12: 88.1 | S12: 97.57 | T12: 118.91 | U12: 118.95 | V12: 113.94 | W12: 118.92 | X12: 96.22 | Y12: 96.22 | Z12: 67.5 | AA12: 1950 | AB12: 2.9 | AC12: 0.3 | AD12: 5 | AE12: 5 | AF12: 12.5 | AG12: 1.75 | AH12: 4.5 | AI12: 3 | AJ12: 0.27 | AK12: 83 | AL12: 29.75 | AM12: 19.5 | AN12: 9.7 | AO12: 1750 | AP12: 8000 | AQ12: 7 | AR12: 5 | AS12: 4 | AT12: 3 | AU12: 21.25 | AV12: 16 | AW12: 6 | AX12: 4 | AY12: 20.75 | AZ12: 16 | BA12: 6 | BB12: 4 | BC12: 3.25 | BD12: 13 | BE12: 5 | BF12: 23 | BG12: 16.75 | BH12: 11.75 | BI12: 6.6 | BJ12: 4.5 | BK12: 3.4 | BL12: 20.25 | BM12: 15.25 | BN12: 9.75 | BO12: 5 | BP12: 3.25 | BQ12: 2.25 | BR12: 3250 | BS12: 0 | BT12: 0.27 | BU12: 345 | BV12: 0 | BW12: 5 | BX12: 0 | BY12: 0 | BZ12: 24 | CA12: 18 | CB12: 13.5 | CC12: 7.25 | CD12: 5.5 | CE12: 3.6 | CF12: 22.5 | CG12: 16.5 | CH12: 12 | CI12: 6 | CJ12: 4.4 | CK12: 2.6 | CL12: 0.75 | CM12: 4250 | CN12: 7.25 | CO12: 0.01 | CP12: 960 | CQ12: 1 | CR12: 69 | CS12: 40 | CT12: 3500 | CU12: 1250 | CV12: 75 | CW12: 40 | CX12: 1750 | CY12: 22 | CZ12: 1950 | DA12: 9.5 | DB12: 7.4 | DC12: 6 | DD12: 4.55 | DE12: 5.25 | DF12: 5000
A13: Mason | B13: =VLOOKUP(A13,tables!$A$2:$C$56,2,0) -> 27 | C13: 1009 | D13: =VLOOKUP(A13,tables!$A$2:$C$56,3,0) -> 01 | E13: BTI Contracting Inc. St. Albans | F13: 484 Industrial Rd, St Albans, WV 25177 | G13: Valley Stone Yard | H13: 360 Valley Rd., Millwood WV, 25262 | I13: 78.94 | J13: 79.89 | K13: 80.72 | L13: 80.72 | M13: 81.39 | N13: 91.22 | O13: 83.54 | P13: 88.1 | Q13: 97.57 | R13: 88.1 | S13: 97.57 | T13: 118.91 | U13: 118.95 | V13: 113.94 | W13: 118.92 | X13: 96.22 | Y13: 96.22 | Z13: 67.5 | AA13: 1950 | AB13: 2.9 | AC13: 0.3 | AD13: 5 | AE13: 5 | AF13: 12.5 | AG13: 1.75 | AH13: 4.5 | AI13: 3 | AJ13: 0.27 | AK13: 83 | AL13: 29.75 | AM13: 19.5 | AN13: 9.7 | AO13: 1750 | AP13: 8000 | AQ13: 7 | AR13: 5 | AS13: 4 | AT13: 3 | AU13: 21.25 | AV13: 16 | AW13: 6 | AX13: 4 | AY13: 20.75 | AZ13: 16 | BA13: 6 | BB13: 4 | BC13: 3.25 | BD13: 13 | BE13: 5 | BF13: 23 | BG13: 16.75 | BH13: 11.75 | BI13: 6.6 | BJ13: 4.5 | BK13: 3.4 | BL13: 20.25 | BM13: 15.25 | BN13: 9.75 | BO13: 5 | BP13: 3.25 | BQ13: 2.25 | BR13: 3250 | BS13: 0 | BT13: 0.27 | BU13: 345 | BV13: 0 | BW13: 5 | BX13: 0 | BY13: 0 | BZ13: 24 | CA13: 18 | CB13: 13.5 | CC13: 7.25 | CD13: 5.5 | CE13: 3.6 | CF13: 22.5 | CG13: 16.5 | CH13: 12 | CI13: 6 | CJ13: 4.4 | CK13: 2.6 | CL13: 0.75 | CM13: 4250 | CN13: 7.25 | CO13: 0.01 | CP13: 960 | CQ13: 1 | CR13: 69 | CS13: 40 | CT13: 3500 | CU13: 1250 | CV13: 75 | CW13: 40 | CX13: 1750 | CY13: 22 | CZ13: 1950 | DA13: 9.5 | DB13: 7.4 | DC13: 6 | DD13: 4.55 | DE13: 5.25 | DF13: 5000
A14: Putnam | B14: =VLOOKUP(A14,tables!$A$2:$C$56,2,0) -> 40 | C14: 1010 | D14: =VLOOKUP(A14,tables!$A$2:$C$56,3,0) -> 01 | E14: BTI Contracting Inc. St. Albans | F14: 484 Industrial Rd, St Albans, WV 25177 | G14: Valley Stone Yard | H14: 360 Valley Rd., Millwood WV, 25262 | I14: 78.94 | J14: 79.89 | K14: 80.72 | L14: 80.72 | M14: 81.39 | N14: 91.22 | O14: 83.54 | P14: 88.1 | Q14: 97.57 | R14: 88.1 | S14: 97.57 | T14: 118.91 | U14: 118.95 | V14: 113.94 | W14: 118.92 | X14: 96.22 | Y14: 96.22 | Z14: 67.5 | AA14: 1950 | AB14: 2.9 | AC14: 0.3 | AD14: 5 | AE14: 5 | AF14: 12.5 | AG14: 1.75 | AH14: 4.5 | AI14: 3 | AJ14: 0.27 | AK14: 83 | AL14: 29.75 | AM14: 19.5 | AN14: 9.7 | AO14: 1750 | AP14: 8000 | AQ14: 7 | AR14: 5 | AS14: 4 | AT14: 3 | AU14: 21.25 | AV14: 16 | AW14: 6 | AX14: 4 | AY14: 20.75 | AZ14: 16 | BA14: 6 | BB14: 4 | BC14: 3.25 | BD14: 13 | BE14: 5 | BF14: 23 | BG14: 16.75 | BH14: 11.75 | BI14: 6.6 | BJ14: 4.5 | BK14: 3.4 | BL14: 20.25 | BM14: 15.25 | BN14: 9.75 | BO14: 5 | BP14: 3.25 | BQ14: 2.25 | BR14: 3250 | BS14: 0 | BT14: 0.27 | BU14: 345 | BV14: 0 | BW14: 5 | BX14: 0 | BY14: 0 | BZ14: 24 | CA14: 18 | CB14: 13.5 | CC14: 7.25 | CD14: 5.5 | CE14: 3.6 | CF14: 22.5 | CG14: 16.5 | CH14: 12 | CI14: 6 | CJ14: 4.4 | CK14: 2.6 | CL14: 0.75 | CM14: 4250 | CN14: 7.25 | CO14: 0.01 | CP14: 960 | CQ14: 1 | CR14: 69 | CS14: 40 | CT14: 3500 | CU14: 1250 | CV14: 75 | CW14: 40 | CX14: 1750 | CY14: 22 | CZ14: 1950 | DA14: 9.5 | DB14: 7.4 | DC14: 6 | DD14: 4.55 | DE14: 5.25 | DF14: 5000
A15: Boone | B15: =VLOOKUP(A15,tables!$A$2:$C$56,2,0) -> 3 | C15: 1011 | D15: =VLOOKUP(A15,tables!$A$2:$C$56,3,0) -> 01 | E15: BTI Contracting Inc. St. Albans | F15: 484 Industrial Rd, St Albans, WV 25177 | G15: Mountain Materials- Valley Quarry | H15: 12434 US 60, Olive Hill KY | I15: 78.94 | J15: 79.89 | K15: 80.72 | L15: 80.72 | M15: 81.39 | N15: 91.22 | O15: 83.54 | P15: 88.1 | Q15: 97.57 | R15: 88.1 | S15: 97.57 | T15: 118.91 | U15: 118.95 | V15: 113.94 | W15: 118.92 | X15: 96.22 | Y15: 96.22 | Z15: 67.5 | AA15: 1950 | AB15: 2.9 | AC15: 0.3 | AD15: 5 | AE15: 5 | AF15: 12.5 | AG15: 1.75 | AH15: 4.5 | AI15: 3 | AJ15: 0.27 | AK15: 83 | AL15: 29.75 | AM15: 19.5 | AN15: 9.7 | AO15: 1750 | AP15: 8000 | AQ15: 7 | AR15: 5 | AS15: 4 | AT15: 3 | AU15: 21.25 | AV15: 16 | AW15: 6 | AX15: 4 | AY15: 20.75 | AZ15: 16 | BA15: 6 | BB15: 4 | BC15: 3.25 | BD15: 13 | BE15: 5 | BF15: 23 | BG15: 16.75 | BH15: 11.75 | BI15: 6.6 | BJ15: 4.5 | BK15: 3.4 | BL15: 20.25 | BM15: 15.25 | BN15: 9.75 | BO15: 5 | BP15: 3.25 | BQ15: 2.25 | BR15: 3250 | BS15: 0 | BT15: 0.27 | BU15: 345 | BV15: 0 | BW15: 5 | BX15: 0 | BY15: 0 | BZ15: 24 | CA15: 18 | CB15: 13.5 | CC15: 7.25 | CD15: 5.5 | CE15: 3.6 | CF15: 22.5 | CG15: 16.5 | CH15: 12 | CI15: 6 | CJ15: 4.4 | CK15: 2.6 | CL15: 0.75 | CM15: 4250 | CN15: 7.25 | CO15: 0.01 | CP15: 960 | CQ15: 1 | CR15: 69 | CS15: 40 | CT15: 3500 | CU15: 1250 | CV15: 75 | CW15: 40 | CX15: 1750 | CY15: 22 | CZ15: 1950 | DA15: 9.5 | DB15: 7.4 | DC15: 6 | DD15: 4.55 | DE15: 5.25 | DF15: 5000
A16: Kanawha | B16: =VLOOKUP(A16,tables!$A$2:$C$56,2,0) -> 20 | C16: 1012 | D16: =VLOOKUP(A16,tables!$A$2:$C$56,3,0) -> 01 | E16: BTI Contracting Inc. St. Albans | F16: 484 Industrial Rd, St Albans, WV 25177 | G16: Mountain Materials- Valley Quarry | H16: 12434 US 60, Olive Hill KY | I16: 78.94 | J16: 79.89 | K16: 80.72 | L16: 80.72 | M16: 81.39 | N16: 91.22 | O16: 83.54 | P16: 88.1 | Q16: 97.57 | R16: 88.1 | S16: 97.57 | T16: 118.91 | U16: 118.95 | V16: 113.94 | W16: 118.92 | X16: 96.22 | Y16: 96.22 | Z16: 67.5 | AA16: 1950 | AB16: 2.9 | AC16: 0.3 | AD16: 5 | AE16: 5 | AF16: 12.5 | AG16: 1.75 | AH16: 4.5 | AI16: 3 | AJ16: 0.27 | AK16: 83 | AL16: 29.75 | AM16: 19.5 | AN16: 9.7 | AO16: 1750 | AP16: 8000 | AQ16: 7 | AR16: 5 | AS16: 4 | AT16: 3 | AU16: 21.25 | AV16: 16 | AW16: 6 | AX16: 4 | AY16: 20.75 | AZ16: 16 | BA16: 6 | BB16: 4 | BC16: 3.25 | BD16: 13 | BE16: 5 | BF16: 23 | BG16: 16.75 | BH16: 11.75 | BI16: 6.6 | BJ16: 4.5 | BK16: 3.4 | BL16: 20.25 | BM16: 15.25 | BN16: 9.75 | BO16: 5 | BP16: 3.25 | BQ16: 2.25 | BR16: 3250 | BS16: 0 | BT16: 0.27 | BU16: 345 | BV16: 0 | BW16: 5 | BX16: 0 | BY16: 0 | BZ16: 24 | CA16: 18 | CB16: 13.5 | CC16: 7.25 | CD16: 5.5 | CE16: 3.6 | CF16: 22.5 | CG16: 16.5 | CH16: 12 | CI16: 6 | CJ16: 4.4 | CK16: 2.6 | CL16: 0.75 | CM16: 4250 | CN16: 7.25 | CO16: 0.01 | CP16: 960 | CQ16: 1 | CR16: 69 | CS16: 40 | CT16: 3500 | CU16: 1250 | CV16: 75 | CW16: 40 | CX16: 1750 | CY16: 22 | CZ16: 1950 | DA16: 9.5 | DB16: 7.4 | DC16: 6 | DD16: 4.55 | DE16: 5.25 | DF16: 5000
A17: Mason | B17: =VLOOKUP(A17,tables!$A$2:$C$56,2,0) -> 27 | C17: 1013 | D17: =VLOOKUP(A17,tables!$A$2:$C$56,3,0) -> 01 | E17: BTI Contracting Inc. St. Albans | F17: 484 Industrial Rd, St Albans, WV 25177 | G17: Mountain Materials- Valley Quarry | H17: 12434 US 60, Olive Hill KY | I17: 78.94 | J17: 79.89 | K17: 80.72 | L17: 80.72 | M17: 81.39 | N17: 91.22 | O17: 83.54 | P17: 88.1 | Q17: 97.57 | R17: 88.1 | S17: 97.57 | T17: 118.91 | U17: 118.95 | V17: 113.94 | W17: 118.92 | X17: 96.22 | Y17: 96.22 | Z17: 67.5 | AA17: 1950 | AB17: 2.9 | AC17: 0.3 | AD17: 5 | AE17: 5 | AF17: 12.5 | AG17: 1.75 | AH17: 4.5 | AI17: 3 | AJ17: 0.27 | AK17: 83 | AL17: 29.75 | AM17: 19.5 | AN17: 9.7 | AO17: 1750 | AP17: 8000 | AQ17: 7 | AR17: 5 | AS17: 4 | AT17: 3 | AU17: 21.25 | AV17: 16 | AW17: 6 | AX17: 4 | AY17: 20.75 | AZ17: 16 | BA17: 6 | BB17: 4 | BC17: 3.25 | BD17: 13 | BE17: 5 | BF17: 23 | BG17: 16.75 | BH17: 11.75 | BI17: 6.6 | BJ17: 4.5 | BK17: 3.4 | BL17: 20.25 | BM17: 15.25 | BN17: 9.75 | BO17: 5 | BP17: 3.25 | BQ17: 2.25 | BR17: 3250 | BS17: 0 | BT17: 0.27 | BU17: 345 | BV17: 0 | BW17: 5 | BX17: 0 | BY17: 0 | BZ17: 24 | CA17: 18 | CB17: 13.5 | CC17: 7.25 | CD17: 5.5 | CE17: 3.6 | CF17: 22.5 | CG17: 16.5 | CH17: 12 | CI17: 6 | CJ17: 4.4 | CK17: 2.6 | CL17: 0.75 | CM17: 4250 | CN17: 7.25 | CO17: 0.01 | CP17: 960 | CQ17: 1 | CR17: 69 | CS17: 40 | CT17: 3500 | CU17: 1250 | CV17: 75 | CW17: 40 | CX17: 1750 | CY17: 22 | CZ17: 1950 | DA17: 9.5 | DB17: 7.4 | DC17: 6 | DD17: 4.55 | DE17: 5.25 | DF17: 5000
A18: Putnam | B18: =VLOOKUP(A18,tables!$A$2:$C$56,2,0) -> 40 | C18: 1014 | D18: =VLOOKUP(A18,tables!$A$2:$C$56,3,0) -> 01 | E18: BTI Contracting Inc. St. Albans | F18: 484 Industrial Rd, St Albans, WV 25177 | G18: Mountain Materials- Valley Quarry | H18: 12434 US 60, Olive Hill KY | I18: 78.94 | J18: 79.89 | K18: 80.72 | L18: 80.72 | M18: 81.39 | N18: 91.22 | O18: 83.54 | P18: 88.1 | Q18: 97.57 | R18: 88.1 | S18: 97.57 | T18: 118.91 | U18: 118.95 | V18: 113.94 | W18: 118.92 | X18: 96.22 | Y18: 96.22 | Z18: 67.5 | AA18: 1950 | AB18: 2.9 | AC18: 0.3 | AD18: 5 | AE18: 5 | AF18: 12.5 | AG18: 1.75 | AH18: 4.5 | AI18: 3 | AJ18: 0.27 | AK18: 83 | AL18: 29.75 | AM18: 19.5 | AN18: 9.7 | AO18: 1750 | AP18: 8000 | AQ18: 7 | AR18: 5 | AS18: 4 | AT18: 3 | AU18: 21.25 | AV18: 16 | AW18: 6 | AX18: 4 | AY18: 20.75 | AZ18: 16 | BA18: 6 | BB18: 4 | BC18: 3.25 | BD18: 13 | BE18: 5 | BF18: 23 | BG18: 16.75 | BH18: 11.75 | BI18: 6.6 | BJ18: 4.5 | BK18: 3.4 | BL18: 20.25 | BM18: 15.25 | BN18: 9.75 | BO18: 5 | BP18: 3.25 | BQ18: 2.25 | BR18: 3250 | BS18: 0 | BT18: 0.27 | BU18: 345 | BV18: 0 | BW18: 5 | BX18: 0 | BY18: 0 | BZ18: 24 | CA18: 18 | CB18: 13.5 | CC18: 7.25 | CD18: 5.5 | CE18: 3.6 | CF18: 22.5 | CG18: 16.5 | CH18: 12 | CI18: 6 | CJ18: 4.4 | CK18: 2.6 | CL18: 0.75 | CM18: 4250 | CN18: 7.25 | CO18: 0.01 | CP18: 960 | CQ18: 1 | CR18: 69 | CS18: 40 | CT18: 3500 | CU18: 1250 | CV18: 75 | CW18: 40 | CX18: 1750 | CY18: 22 | CZ18: 1950 | DA18: 9.5 | DB18: 7.4 | DC18: 6 | DD18: 4.55 | DE18: 5.25 | DF18: 5000
A19: Boone | B19: =VLOOKUP(A19,tables!$A$2:$C$56,2,0) -> 3 | C19: 1015 | D19: =VLOOKUP(A19,tables!$A$2:$C$56,3,0) -> 01 | E19: BTI Contracting Inc. Kenova | F19: 2334 Route 52 Kenova, WV 25530 | G19: Valley Stone Yard | H19: 360 Valley Rd., Millwood WV, 25262 | I19: 77.27 | J19: 78.22 | K19: 80.12 | L19: 80.12 | M19: 82.83 | N19: 89.57 | O19: 80.45 | P19: 87.7 | Q19: 93.17 | R19: 87.7 | S19: 95.9 | T19: 118.91 | U19: 118.95 | V19: 103.94 | W19: 118.92 | X19: 96.22 | Y19: 96.22 | Z19: 67.5 | AA19: 1950 | AB19: 2.9 | AC19: 0.3 | AD19: 5 | AE19: 5 | AF19: 12.5 | AG19: 1.75 | AH19: 4.5 | AI19: 3 | AJ19: 0.27 | AK19: 83 | AL19: 29.75 | AM19: 19.5 | AN19: 9.7 | AO19: 1750 | AP19: 8000 | AQ19: 7 | AR19: 5 | AS19: 4 | AT19: 3 | AU19: 21.25 | AV19: 16 | AW19: 6 | AX19: 4 | AY19: 20.75 | AZ19: 16 | BA19: 6 | BB19: 4 | BC19: 3.25 | BD19: 13 | BE19: 5 | BF19: 23 | BG19: 16.75 | BH19: 11.75 | BI19: 6.6 | BJ19: 4.5 | BK19: 3.4 | BL19: 20.25 | BM19: 15.25 | BN19: 9.75 | BO19: 5 | BP19: 3.25 | BQ19: 2.25 | BR19: 3250 | BS19: 0 | BT19: 0.27 | BU19: 345 | BV19: 0 | BW19: 5 | BX19: 0 | BY19: 0 | BZ19: 24 | CA19: 18 | CB19: 13.5 | CC19: 7.25 | CD19: 5.5 | CE19: 3.6 | CF19: 22.5 | CG19: 16.5 | CH19: 12 | CI19: 6 | CJ19: 4.4 | CK19: 2.6 | CL19: 0.75 | CM19: 4250 | CN19: 7.25 | CO19: 0.01 | CP19: 960 | CQ19: 1 | CR19: 69 | CS19: 40 | CT19: 3500 | CU19: 1250 | CV19: 75 | CW19: 40 | CX19: 1750 | CY19: 22 | CZ19: 1950 | DA19: 9.5 | DB19: 7.4 | DC19: 6 | DD19: 4.55 | DE19: 5.25 | DF19: 5000
A20: Mason | B20: =VLOOKUP(A20,tables!$A$2:$C$56,2,0) -> 27 | C20: 1016 | D20: =VLOOKUP(A20,tables!$A$2:$C$56,3,0) -> 01 | E20: BTI Contracting Inc. Kenova | F20: 2334 Route 52 Kenova, WV 25530 | G20: Valley Stone Yard | H20: 360 Valley Rd., Millwood WV, 25262 | I20: 77.27 | J20: 78.22 | K20: 80.12 | L20: 80.12 | M20: 82.83 | N20: 89.57 | O20: 80.45 | P20: 87.7 | Q20: 93.17 | R20: 87.7 | S20: 95.9 | T20: 118.91 | U20: 118.95 | V20: 103.94 | W20: 118.92 | X20: 96.22 | Y20: 96.22 | Z20: 67.5 | AA20: 1950 | AB20: 2.9 | AC20: 0.3 | AD20: 5 | AE20: 5 | AF20: 12.5 | AG20: 1.75 | AH20: 4.5 | AI20: 3 | AJ20: 0.27 | AK20: 83 | AL20: 29.75 | AM20: 19.5 | AN20: 9.7 | AO20: 1750 | AP20: 8000 | AQ20: 7 | AR20: 5 | AS20: 4 | AT20: 3 | AU20: 21.25 | AV20: 16 | AW20: 6 | AX20: 4 | AY20: 20.75 | AZ20: 16 | BA20: 6 | BB20: 4 | BC20: 3.25 | BD20: 13 | BE20: 5 | BF20: 23 | BG20: 16.75 | BH20: 11.75 | BI20: 6.6 | BJ20: 4.5 | BK20: 3.4 | BL20: 20.25 | BM20: 15.25 | BN20: 9.75 | BO20: 5 | BP20: 3.25 | BQ20: 2.25 | BR20: 3250 | BS20: 0 | BT20: 0.27 | BU20: 345 | BV20: 0 | BW20: 5 | BX20: 0 | BY20: 0 | BZ20: 24 | CA20: 18 | CB20: 13.5 | CC20: 7.25 | CD20: 5.5 | CE20: 3.6 | CF20: 22.5 | CG20: 16.5 | CH20: 12 | CI20: 6 | CJ20: 4.4 | CK20: 2.6 | CL20: 0.75 | CM20: 4250 | CN20: 7.25 | CO20: 0.01 | CP20: 960 | CQ20: 1 | CR20: 69 | CS20: 40 | CT20: 3500 | CU20: 1250 | CV20: 75 | CW20: 40 | CX20: 1750 | CY20: 22 | CZ20: 1950 | DA20: 9.5 | DB20: 7.4 | DC20: 6 | DD20: 4.55 | DE20: 5.25 | DF20: 5000
A21: Putnam | B21: =VLOOKUP(A21,tables!$A$2:$C$56,2,0) -> 40 | C21: 1017 | D21: =VLOOKUP(A21,tables!$A$2:$C$56,3,0) -> 01 | E21: BTI Contracting Inc. Kenova | F21: 2334 Route 52 Kenova, WV 25530 | G21: Valley Stone Yard | H21: 360 Valley Rd., Millwood WV, 25262 | I21: 77.27 | J21: 78.22 | K21: 80.12 | L21: 80.12 | M21: 82.83 | N21: 89.57 | O21: 80.45 | P21: 87.7 | Q21: 93.17 | R21: 87.7 | S21: 95.9 | T21: 118.91 | U21: 118.95 | V21: 103.94 | W21: 118.92 | X21: 96.22 | Y21: 96.22 | Z21: 67.5 | AA21: 1950 | AB21: 2.9 | AC21: 0.3 | AD21: 5 | AE21: 5 | AF21: 12.5 | AG21: 1.75 | AH21: 4.5 | AI21: 3 | AJ21: 0.27 | AK21: 83 | AL21: 29.75 | AM21: 19.5 | AN21: 9.7 | AO21: 1750 | AP21: 8000 | AQ21: 7 | AR21: 5 | AS21: 4 | AT21: 3 | AU21: 21.25 | AV21: 16 | AW21: 6 | AX21: 4 | AY21: 20.75 | AZ21: 16 | BA21: 6 | BB21: 4 | BC21: 3.25 | BD21: 13 | BE21: 5 | BF21: 23 | BG21: 16.75 | BH21: 11.75 | BI21: 6.6 | BJ21: 4.5 | BK21: 3.4 | BL21: 20.25 | BM21: 15.25 | BN21: 9.75 | BO21: 5 | BP21: 3.25 | BQ21: 2.25 | BR21: 3250 | BS21: 0 | BT21: 0.27 | BU21: 345 | BV21: 0 | BW21: 5 | BX21: 0 | BY21: 0 | BZ21: 24 | CA21: 18 | CB21: 13.5 | CC21: 7.25 | CD21: 5.5 | CE21: 3.6 | CF21: 22.5 | CG21: 16.5 | CH21: 12 | CI21: 6 | CJ21: 4.4 | CK21: 2.6 | CL21: 0.75 | CM21: 4250 | CN21: 7.25 | CO21: 0.01 | CP21: 960 | CQ21: 1 | CR21: 69 | CS21: 40 | CT21: 3500 | CU21: 1250 | CV21: 75 | CW21: 40 | CX21: 1750 | CY21: 22 | CZ21: 1950 | DA21: 9.5 | DB21: 7.4 | DC21: 6 | DD21: 4.55 | DE21: 5.25 | DF21: 5000
A22: Boone | B22: =VLOOKUP(A22,tables!$A$2:$C$56,2,0) -> 3 | C22: 1018 | D22: =VLOOKUP(A22,tables!$A$2:$C$56,3,0) -> 01 | E22: BTI Contracting Inc. Kenova | F22: 2334 Route 52 Kenova, WV 25530 | G22: Scary Creek Materials | H22: #9 Orders Way, Winfield, WV | I22: 77.27 | J22: 78.22 | K22: 80.12 | L22: 80.12 | M22: 82.83 | N22: 89.57 | O22: 80.45 | P22: 87.7 | Q22: 93.17 | R22: 87.7 | S22: 95.9 | T22: 118.91 | U22: 118.95 | V22: 103.94 | W22: 118.92 | X22: 96.22 | Y22: 96.22 | Z22: 67.5 | AA22: 1950 | AB22: 2.9 | AC22: 0.3 | AD22: 5 | AE22: 5 | AF22: 12.5 | AG22: 1.75 | AH22: 4.5 | AI22: 3 | AJ22: 0.27 | AK22: 83 | AL22: 29.75 | AM22: 19.5 | AN22: 9.7 | AO22: 1750 | AP22: 8000 | AQ22: 7 | AR22: 5 | AS22: 4 | AT22: 3 | AU22: 21.25 | AV22: 16 | AW22: 6 | AX22: 4 | AY22: 20.75 | AZ22: 16 | BA22: 6 | BB22: 4 | BC22: 3.25 | BD22: 13 | BE22: 5 | BF22: 23 | BG22: 16.75 | BH22: 11.75 | BI22: 6.6 | BJ22: 4.5 | BK22: 3.4 | BL22: 20.25 | BM22: 15.25 | BN22: 9.75 | BO22: 5 | BP22: 3.25 | BQ22: 2.25 | BR22: 3250 | BS22: 0 | BT22: 0.27 | BU22: 345 | BV22: 0 | BW22: 5 | BX22: 0 | BY22: 0 | BZ22: 24 | CA22: 18 | CB22: 13.5 | CC22: 7.25 | CD22: 5.5 | CE22: 3.6 | CF22: 22.5 | CG22: 16.5 | CH22: 12 | CI22: 6 | CJ22: 4.4 | CK22: 2.6 | CL22: 0.75 | CM22: 4250 | CN22: 7.25 | CO22: 0.01 | CP22: 960 | CQ22: 1 | CR22: 69 | CS22: 40 | CT22: 3500 | CU22: 1250 | CV22: 75 | CW22: 40 | CX22: 1750 | CY22: 22 | CZ22: 1950 | DA22: 9.5 | DB22: 7.4 | DC22: 6 | DD22: 4.55 | DE22: 5.25 | DF22: 5000
A23: Mason | B23: =VLOOKUP(A23,tables!$A$2:$C$56,2,0) -> 27 | C23: 1019 | D23: =VLOOKUP(A23,tables!$A$2:$C$56,3,0) -> 01 | E23: BTI Contracting Inc. Kenova | F23: 2334 Route 52 Kenova, WV 25530 | G23: Scary Creek Materials | H23: #9 Orders Way, Winfield, WV | I23: 77.27 | J23: 78.22 | K23: 80.12 | L23: 80.12 | M23: 82.83 | N23: 89.57 | O23: 80.45 | P23: 87.7 | Q23: 93.17 | R23: 87.7 | S23: 95.9 | T23: 118.91 | U23: 118.95 | V23: 103.94 | W23: 118.92 | X23: 96.22 | Y23: 96.22 | Z23: 67.5 | AA23: 1950 | AB23: 2.9 | AC23: 0.3 | AD23: 5 | AE23: 5 | AF23: 12.5 | AG23: 1.75 | AH23: 4.5 | AI23: 3 | AJ23: 0.27 | AK23: 83 | AL23: 29.75 | AM23: 19.5 | AN23: 9.7 | AO23: 1750 | AP23: 8000 | AQ23: 7 | AR23: 5 | AS23: 4 | AT23: 3 | AU23: 21.25 | AV23: 16 | AW23: 6 | AX23: 4 | AY23: 20.75 | AZ23: 16 | BA23: 6 | BB23: 4 | BC23: 3.25 | BD23: 13 | BE23: 5 | BF23: 23 | BG23: 16.75 | BH23: 11.75 | BI23: 6.6 | BJ23: 4.5 | BK23: 3.4 | BL23: 20.25 | BM23: 15.25 | BN23: 9.75 | BO23: 5 | BP23: 3.25 | BQ23: 2.25 | BR23: 3250 | BS23: 0 | BT23: 0.27 | BU23: 345 | BV23: 0 | BW23: 5 | BX23: 0 | BY23: 0 | BZ23: 24 | CA23: 18 | CB23: 13.5 | CC23: 7.25 | CD23: 5.5 | CE23: 3.6 | CF23: 22.5 | CG23: 16.5 | CH23: 12 | CI23: 6 | CJ23: 4.4 | CK23: 2.6 | CL23: 0.75 | CM23: 4250 | CN23: 7.25 | CO23: 0.01 | CP23: 960 | CQ23: 1 | CR23: 69 | CS23: 40 | CT23: 3500 | CU23: 1250 | CV23: 75 | CW23: 40 | CX23: 1750 | CY23: 22 | CZ23: 1950 | DA23: 9.5 | DB23: 7.4 | DC23: 6 | DD23: 4.55 | DE23: 5.25 | DF23: 5000
A24: Putnam | B24: =VLOOKUP(A24,tables!$A$2:$C$56,2,0) -> 40 | C24: 1020 | D24: =VLOOKUP(A24,tables!$A$2:$C$56,3,0) -> 01 | E24: BTI Contracting Inc. Kenova | F24: 2334 Route 52 Kenova, WV 25530 | G24: Scary Creek Materials | H24: #9 Orders Way, Winfield, WV | I24: 77.27 | J24: 78.22 | K24: 80.12 | L24: 80.12 | M24: 82.83 | N24: 89.57 | O24: 80.45 | P24: 87.7 | Q24: 93.17 | R24: 87.7 | S24: 95.9 | T24: 118.91 | U24: 118.95 | V24: 103.94 | W24: 118.92 | X24: 96.22 | Y24: 96.22 | Z24: 67.5 | AA24: 1950 | AB24: 2.9 | AC24: 0.3 | AD24: 5 | AE24: 5 | AF24: 12.5 | AG24: 1.75 | AH24: 4.5 | AI24: 3 | AJ24: 0.27 | AK24: 83 | AL24: 29.75 | AM24: 19.5 | AN24: 9.7 | AO24: 1750 | AP24: 8000 | AQ24: 7 | AR24: 5 | AS24: 4 | AT24: 3 | AU24: 21.25 | AV24: 16 | AW24: 6 | AX24: 4 | AY24: 20.75 | AZ24: 16 | BA24: 6 | BB24: 4 | BC24: 3.25 | BD24: 13 | BE24: 5 | BF24: 23 | BG24: 16.75 | BH24: 11.75 | BI24: 6.6 | BJ24: 4.5 | BK24: 3.4 | BL24: 20.25 | BM24: 15.25 | BN24: 9.75 | BO24: 5 | BP24: 3.25 | BQ24: 2.25 | BR24: 3250 | BS24: 0 | BT24: 0.27 | BU24: 345 | BV24: 0 | BW24: 5 | BX24: 0 | BY24: 0 | BZ24: 24 | CA24: 18 | CB24: 13.5 | CC24: 7.25 | CD24: 5.5 | CE24: 3.6 | CF24: 22.5 | CG24: 16.5 | CH24: 12 | CI24: 6 | CJ24: 4.4 | CK24: 2.6 | CL24: 0.75 | CM24: 4250 | CN24: 7.25 | CO24: 0.01 | CP24: 960 | CQ24: 1 | CR24: 69 | CS24: 40 | CT24: 3500 | CU24: 1250 | CV24: 75 | CW24: 40 | CX24: 1750 | CY24: 22 | CZ24: 1950 | DA24: 9.5 | DB24: 7.4 | DC24: 6 | DD24: 4.55 | DE24: 5.25 | DF24: 5000
A25: Boone | B25: =VLOOKUP(A25,tables!$A$2:$C$56,2,0) -> 3 | C25: 1021 | D25: =VLOOKUP(A25,tables!$A$2:$C$56,3,0) -> 01 | E25: BTI Contracting Inc. Kenova | F25: 2334 Route 52 Kenova, WV 25530 | G25: Mountain Materials- Valley Quarry | H25: 12434 US 60, Olive Hill KY | I25: 77.27 | J25: 78.22 | K25: 80.12 | L25: 80.12 | M25: 82.83 | N25: 89.57 | O25: 80.45 | P25: 87.7 | Q25: 93.17 | R25: 87.7 | S25: 95.9 | T25: 118.91 | U25: 118.95 | V25: 103.94 | W25: 118.92 | X25: 96.22 | Y25: 96.22 | Z25: 67.5 | AA25: 1950 | AB25: 2.9 | AC25: 0.3 | AD25: 5 | AE25: 5 | AF25: 12.5 | AG25: 1.75 | AH25: 4.5 | AI25: 3 | AJ25: 0.27 | AK25: 83 | AL25: 29.75 | AM25: 19.5 | AN25: 9.7 | AO25: 1750 | AP25: 8000 | AQ25: 7 | AR25: 5 | AS25: 4 | AT25: 3 | AU25: 21.25 | AV25: 16 | AW25: 6 | AX25: 4 | AY25: 20.75 | AZ25: 16 | BA25: 6 | BB25: 4 | BC25: 3.25 | BD25: 13 | BE25: 5 | BF25: 23 | BG25: 16.75 | BH25: 11.75 | BI25: 6.6 | BJ25: 4.5 | BK25: 3.4 | BL25: 20.25 | BM25: 15.25 | BN25: 9.75 | BO25: 5 | BP25: 3.25 | BQ25: 2.25 | BR25: 3250 | BS25: 0 | BT25: 0.27 | BU25: 345 | BV25: 0 | BW25: 5 | BX25: 0 | BY25: 0 | BZ25: 24 | CA25: 18 | CB25: 13.5 | CC25: 7.25 | CD25: 5.5 | CE25: 3.6 | CF25: 22.5 | CG25: 16.5 | CH25: 12 | CI25: 6 | CJ25: 4.4 | CK25: 2.6 | CL25: 0.75 | CM25: 4250 | CN25: 7.25 | CO25: 0.01 | CP25: 960 | CQ25: 1 | CR25: 69 | CS25: 40 | CT25: 3500 | CU25: 1250 | CV25: 75 | CW25: 40 | CX25: 1750 | CY25: 22 | CZ25: 1950 | DA25: 9.5 | DB25: 7.4 | DC25: 6 | DD25: 4.55 | DE25: 5.25 | DF25: 5000
A26: Mason | B26: =VLOOKUP(A26,tables!$A$2:$C$56,2,0) -> 27 | C26: 1022 | D26: =VLOOKUP(A26,tables!$A$2:$C$56,3,0) -> 01 | E26: BTI Contracting Inc. Kenova | F26: 2334 Route 52 Kenova, WV 25530 | G26: Mountain Materials- Valley Quarry | H26: 12434 US 60, Olive Hill KY | I26: 77.27 | J26: 78.22 | K26: 80.12 | L26: 80.12 | M26: 82.83 | N26: 89.57 | O26: 80.45 | P26: 87.7 | Q26: 93.17 | R26: 87.7 | S26: 95.9 | T26: 118.91 | U26: 118.95 | V26: 103.94 | W26: 118.92 | X26: 96.22 | Y26: 96.22 | Z26: 67.5 | AA26: 1950 | AB26: 2.9 | AC26: 0.3 | AD26: 5 | AE26: 5 | AF26: 12.5 | AG26: 1.75 | AH26: 4.5 | AI26: 3 | AJ26: 0.27 | AK26: 83 | AL26: 29.75 | AM26: 19.5 | AN26: 9.7 | AO26: 1750 | AP26: 8000 | AQ26: 7 | AR26: 5 | AS26: 4 | AT26: 3 | AU26: 21.25 | AV26: 16 | AW26: 6 | AX26: 4 | AY26: 20.75 | AZ26: 16 | BA26: 6 | BB26: 4 | BC26: 3.25 | BD26: 13 | BE26: 5 | BF26: 23 | BG26: 16.75 | BH26: 11.75 | BI26: 6.6 | BJ26: 4.5 | BK26: 3.4 | BL26: 20.25 | BM26: 15.25 | BN26: 9.75 | BO26: 5 | BP26: 3.25 | BQ26: 2.25 | BR26: 3250 | BS26: 0 | BT26: 0.27 | BU26: 345 | BV26: 0 | BW26: 5 | BX26: 0 | BY26: 0 | BZ26: 24 | CA26: 18 | CB26: 13.5 | CC26: 7.25 | CD26: 5.5 | CE26: 3.6 | CF26: 22.5 | CG26: 16.5 | CH26: 12 | CI26: 6 | CJ26: 4.4 | CK26: 2.6 | CL26: 0.75 | CM26: 4250 | CN26: 7.25 | CO26: 0.01 | CP26: 960 | CQ26: 1 | CR26: 69 | CS26: 40 | CT26: 3500 | CU26: 1250 | CV26: 75 | CW26: 40 | CX26: 1750 | CY26: 22 | CZ26: 1950 | DA26: 9.5 | DB26: 7.4 | DC26: 6 | DD26: 4.55 | DE26: 5.25 | DF26: 5000
A27: Putnam | B27: =VLOOKUP(A27,tables!$A$2:$C$56,2,0) -> 40 | C27: 1023 | D27: =VLOOKUP(A27,tables!$A$2:$C$56,3,0) -> 01 | E27: BTI Contracting Inc. Kenova | F27: 2334 Route 52 Kenova, WV 25530 | G27: Mountain Materials- Valley Quarry | H27: 12434 US 60, Olive Hill KY | I27: 77.27 | J27: 78.22 | K27: 80.12 | L27: 80.12 | M27: 82.83 | N27: 89.57 | O27: 80.45 | P27: 87.7 | Q27: 93.17 | R27: 87.7 | S27: 95.9 | T27: 118.91 | U27: 118.95 | V27: 103.94 | W27: 118.92 | X27: 96.22 | Y27: 96.22 | Z27: 67.5 | AA27: 1950 | AB27: 2.9 | AC27: 0.3 | AD27: 5 | AE27: 5 | AF27: 12.5 | AG27: 1.75 | AH27: 4.5 | AI27: 3 | AJ27: 0.27 | AK27: 83 | AL27: 29.75 | AM27: 19.5 | AN27: 9.7 | AO27: 1750 | AP27: 8000 | AQ27: 7 | AR27: 5 | AS27: 4 | AT27: 3 | AU27: 21.25 | AV27: 16 | AW27: 6 | AX27: 4 | AY27: 20.75 | AZ27: 16 | BA27: 6 | BB27: 4 | BC27: 3.25 | BD27: 13 | BE27: 5 | BF27: 23 | BG27: 16.75 | BH27: 11.75 | BI27: 6.6 | BJ27: 4.5 | BK27: 3.4 | BL27: 20.25 | BM27: 15.25 | BN27: 9.75 | BO27: 5 | BP27: 3.25 | BQ27: 2.25 | BR27: 3250 | BS27: 0 | BT27: 0.27 | BU27: 345 | BV27: 0 | BW27: 5 | BX27: 0 | BY27: 0 | BZ27: 24 | CA27: 18 | CB27: 13.5 | CC27: 7.25 | CD27: 5.5 | CE27: 3.6 | CF27: 22.5 | CG27: 16.5 | CH27: 12 | CI27: 6 | CJ27: 4.4 | CK27: 2.6 | CL27: 0.75 | CM27: 4250 | CN27: 7.25 | CO27: 0.01 | CP27: 960 | CQ27: 1 | CR27: 69 | CS27: 40 | CT27: 3500 | CU27: 1250 | CV27: 75 | CW27: 40 | CX27: 1750 | CY27: 22 | CZ27: 1950 | DA27: 9.5 | DB27: 7.4 | DC27: 6 | DD27: 4.55 | DE27: 5.25 | DF27: 5000
A28: Clay | B28: =VLOOKUP(A28,tables!$A$2:$C$56,2,0) -> 8 | C28: 1024 | D28: =VLOOKUP(A28,tables!$A$2:$C$56,3,0) -> 01 | E28: Meadows Stone & Paving Inc., Gassaway Stoneyard | F28: 661 B&O Railroad Yard, Gassaway, WV 26624 | G28: Gassaway Plant | H28: 661 B&O Railroad Yard, Gassaway, WV 26624 | I28: 73 | J28: 80 | K28: 78 | L28: 78 | M28: 78 | N28: 93 | O28: 80 | P28: 81.5 | Q28: 83.5 | R28: 81.5 | S28: 101 | T28: 113 | U28: 125 | V28: 111 | W28: 122 | X28: 81 | Y28: 103 | Z28: 42 | AA28: 2000 | AB28: 2.5 | AC28: 0.3 | AD28: 12 | AE28: 8 | AF28: 12 | AG28: 5 | AH28: 10 | AI28: 2.5 | AJ28: 0.3 | AK28: 100 | AL28: 35 | AM28: 17 | AN28: 10 | AO28: 1800 | AP28: 3800 | AQ28: 7 | AR28: 4.25 | AS28: 3 | AT28: 2 | AU28: 25 | AV28: 16 | AW28: 4.75 | AX28: 2.5 | AY28: 25 | AZ28: 16 | BA28: 4.75 | BB28: 2.5 | BC28: 3 | BD28: 14 | BE28: 4.75 | BF28: 34 | BG28: 21 | BH28: 12 | BI28: 6 | BJ28: 3.9 | BK28: 2.55 | BL28: 30 | BM28: 19 | BN28: 11.5 | BO28: 5.9 | BP28: 3.6 | BQ28: 2.4 | BR28: 3400 | BS28: 0 | BT28: 5.25 | BU28: 360 | BV28: 0 | BW28: 0 | BX28: 0 | BY28: 0 | BZ28: 44 | CA28: 26.5 | CB28: 14.75 | CC28: 8.1 | CD28: 4.8 | CE28: 3.05 | CF28: 40 | CG28: 25 | CH28: 14.25 | CI28: 8 | CJ28: 4.5 | CK28: 2.9 | CL28: 0.6 | CM28: 3500 | CN28: 7 | CO28: 0.02 | CP28: 850 | CQ28: 1.25 | CR28: 60 | CS28: 50 | CT28: 3500 | CU28: 1400 | CV28: 70 | CW28: 50 | CX28: 3500 | CY28: 20 | CZ28: 1500 | DA28: 24 | DB28: 20 | DC28: 16 | DD28: 11 | DE28: 2.25 | DF28: 4000
A29: Kanawha | B29: =VLOOKUP(A29,tables!$A$2:$C$56,2,0) -> 20 | C29: 1025 | D29: =VLOOKUP(A29,tables!$A$2:$C$56,3,0) -> 01 | E29: Meadows Stone & Paving Inc., Gassaway Stoneyard | F29: 661 B&O Railroad Yard, Gassaway, WV 26624 | G29: Gassaway Plant | H29: 661 B&O Railroad Yard, Gassaway, WV 26624 | I29: 73 | J29: 80 | K29: 78 | L29: 78 | M29: 78 | N29: 93 | O29: 80 | P29: 81.5 | Q29: 83.5 | R29: 81.5 | S29: 101 | T29: 113 | U29: 125 | V29: 111 | W29: 122 | X29: 81 | Y29: 103 | Z29: 42 | AA29: 0 | AB29: 2.5 | AC29: 0.3 | AD29: 12 | AE29: 8 | AF29: 12 | AG29: 5 | AH29: 10 | AI29: 2.5 | AJ29: 0.3 | AK29: 100 | AL29: 35 | AM29: 17 | AN29: 10 | AO29: 0 | AP29: 0 | AQ29: 7 | AR29: 4.25 | AS29: 3 | AT29: 2 | AU29: 25 | AV29: 16 | AW29: 4.75 | AX29: 2.5 | AY29: 25 | AZ29: 16 | BA29: 4.75 | BB29: 2.5 | BC29: 3 | BD29: 14 | BE29: 4.75 | BF29: 34 | BG29: 21 | BH29: 12 | BI29: 6 | BJ29: 3.9 | BK29: 2.55 | BL29: 30 | BM29: 19 | BN29: 11.5 | BO29: 5.9 | BP29: 3.6 | BQ29: 2.4 | BR29: 0 | BS29: 0 | BT29: 5.25 | BU29: 360 | BV29: 0 | BW29: 0 | BX29: 0 | BY29: 0 | BZ29: 44 | CA29: 26.5 | CB29: 14.75 | CC29: 8.1 | CD29: 4.8 | CE29: 3.05 | CF29: 40 | CG29: 25 | CH29: 14.25 | CI29: 8 | CJ29: 4.5 | CK29: 2.9 | CL29: 0.6 | CM29: 0 | CN29: 7 | CO29: 0.02 | CP29: 850 | CQ29: 1.25 | CR29: 60 | CS29: 50 | CT29: 3500 | CU29: 1400 | CV29: 70 | CW29: 50 | CX29: 0 | CY29: 20 | CZ29: 0 | DA29: 24 | DB29: 20 | DC29: 16 | DD29: 11 | DE29: 2.25 | DF29: 0
A30: Boone | B30: =VLOOKUP(A30,tables!$A$2:$C$56,2,0) -> 3 | C30: 1026 | D30: =VLOOKUP(A30,tables!$A$2:$C$56,3,0) -> 01 | E30: West Virginia Paving, Inc., Dunbar Plant | F30: 2902 Charles Ave., Dunbar, WV 25064 | G30: Shamblin Stone | H30: 658 Winfield Rd., St Albans, WV 25177 | I30: 86.5 | J30: 86.5 | K30: 88 | L30: 88 | M30: 88 | N30: 0 | O30: 91.5 | P30: 95.5 | Q30: 107.5 | R30: 95.5 | S30: 104.5 | T30: 0 | U30: 0 | V30: 113.5 | W30: 0 | X30: 103.5 | Y30: 103.5 | Z30: 65 | AA30: 2000 | AB30: 2.75 | AC30: 0.33 | AD30: 15 | AE30: 4 | AF30: 12 | AG30: 2 | AH30: 5 | AI30: 2.75 | AJ30: 0.28 | AK30: 85 | AL30: 30 | AM30: 20 | AN30: 10 | AO30: 2000 | AP30: 15000 | AQ30: 6.75 | AR30: 4.75 | AS30: 3.75 | AT30: 2.75 | AU30: 20.75 | AV30: 15.75 | AW30: 4.75 | AX30: 2.75 | AY30: 20.75 | AZ30: 15.75 | BA30: 4.75 | BB30: 2.75 | BC30: 3.5 | BD30: 14 | BE30: 6 | BF30: 22.25 | BG30: 17.5 | BH30: 12.5 | BI30: 6.75 | BJ30: 4.85 | BK30: 3.75 | BL30: 21.5 | BM30: 16.5 | BN30: 11.5 | BO30: 5.75 | BP30: 3.85 | BQ30: 2.75 | BR30: 3500 | BS30: 0 | BT30: 0.28 | BU30: 350 | BV30: 0 | BW30: 5 | BX30: 0 | BY30: 0 | BZ30: 24.9 | CA30: 19.9 | CB30: 14.9 | CC30: 8 | CD30: 6.15 | CE30: 4.35 | CF30: 23.9 | CG30: 18.9 | CH30: 13.9 | CI30: 7 | CJ30: 5.15 | CK30: 3.35 | CL30: 0.5 | CM30: 4500 | CN30: 8 | CO30: 0.01 | CP30: 1000 | CQ30: 1.5 | CR30: 70 | CS30: 40 | CT30: 5000 | CU30: 2000 | CV30: 76 | CW30: 35 | CX30: 2000 | CY30: 13 | CZ30: 2000 | DA30: 8.5 | DB30: 8 | DC30: 6.5 | DD30: 5 | DE30: 6 | DF30: 5000
A31: Clay | B31: =VLOOKUP(A31,tables!$A$2:$C$56,2,0) -> 8 | C31: 1027 | D31: =VLOOKUP(A31,tables!$A$2:$C$56,3,0) -> 01 | E31: West Virginia Paving, Inc., Dunbar Plant | F31: 2902 Charles Ave., Dunbar, WV 25064 | G31: Shamblin Stone | H31: 658 Winfield Rd., St Albans, WV 25177 | I31: 86.5 | J31: 86.5 | K31: 88 | L31: 88 | M31: 88 | N31: 0 | O31: 91.5 | P31: 95.5 | Q31: 107.5 | R31: 95.5 | S31: 104.5 | T31: 0 | U31: 0 | V31: 113.5 | W31: 0 | X31: 103.5 | Y31: 103.5 | Z31: 65 | AA31: 2000 | AB31: 2.75 | AC31: 0.33 | AD31: 15 | AE31: 4 | AF31: 12 | AG31: 2 | AH31: 5 | AI31: 2.75 | AJ31: 0.28 | AK31: 85 | AL31: 30 | AM31: 20 | AN31: 10 | AO31: 2000 | AP31: 15000 | AQ31: 6.75 | AR31: 4.75 | AS31: 3.75 | AT31: 2.75 | AU31: 20.75 | AV31: 15.75 | AW31: 4.75 | AX31: 2.75 | AY31: 20.75 | AZ31: 15.75 | BA31: 4.75 | BB31: 2.75 | BC31: 3.5 | BD31: 14 | BE31: 6 | BF31: 22.25 | BG31: 17.5 | BH31: 12.5 | BI31: 6.75 | BJ31: 4.85 | BK31: 3.75 | BL31: 21.5 | BM31: 16.5 | BN31: 11.5 | BO31: 5.75 | BP31: 3.85 | BQ31: 2.75 | BR31: 3500 | BS31: 0 | BT31: 0.28 | BU31: 350 | BV31: 0 | BW31: 5 | BX31: 0 | BY31: 0 | BZ31: 24.9 | CA31: 19.9 | CB31: 14.9 | CC31: 8 | CD31: 6.15 | CE31: 4.35 | CF31: 23.9 | CG31: 18.9 | CH31: 13.9 | CI31: 7 | CJ31: 5.15 | CK31: 3.35 | CL31: 0.5 | CM31: 4500 | CN31: 8 | CO31: 0.01 | CP31: 1000 | CQ31: 1.5 | CR31: 70 | CS31: 40 | CT31: 5000 | CU31: 2000 | CV31: 76 | CW31: 35 | CX31: 2000 | CY31: 13 | CZ31: 2000 | DA31: 8.5 | DB31: 8 | DC31: 6.5 | DD31: 5 | DE31: 6 | DF31: 5000
A32: Kanawha | B32: =VLOOKUP(A32,tables!$A$2:$C$56,2,0) -> 20 | C32: 1028 | D32: =VLOOKUP(A32,tables!$A$2:$C$56,3,0) -> 01 | E32: West Virginia Paving, Inc., Dunbar Plant | F32: 2902 Charles Ave., Dunbar, WV 25064 | G32: Shamblin Stone | H32: 658 Winfield Rd., St Albans, WV 25177 | I32: 86.5 | J32: 86.5 | K32: 88 | L32: 88 | M32: 88 | N32: 0 | O32: 91.5 | P32: 95.5 | Q32: 107.5 | R32: 95.5 | S32: 104.5 | T32: 0 | U32: 0 | V32: 113.5 | W32: 0 | X32: 103.5 | Y32: 103.5 | Z32: 65 | AA32: 2000 | AB32: 2.75 | AC32: 0.33 | AD32: 15 | AE32: 4 | AF32: 12 | AG32: 2 | AH32: 5 | AI32: 2.75 | AJ32: 0.28 | AK32: 85 | AL32: 30 | AM32: 20 | AN32: 10 | AO32: 2000 | AP32: 15000 | AQ32: 6.75 | AR32: 4.75 | AS32: 3.75 | AT32: 2.75 | AU32: 20.75 | AV32: 15.75 | AW32: 4.75 | AX32: 2.75 | AY32: 20.75 | AZ32: 15.75 | BA32: 4.75 | BB32: 2.75 | BC32: 3.5 | BD32: 14 | BE32: 6 | BF32: 22.25 | BG32: 17.5 | BH32: 12.5 | BI32: 6.75 | BJ32: 4.85 | BK32: 3.75 | BL32: 21.5 | BM32: 16.5 | BN32: 11.5 | BO32: 5.75 | BP32: 3.85 | BQ32: 2.75 | BR32: 3500 | BS32: 0 | BT32: 0.28 | BU32: 350 | BV32: 0 | BW32: 5 | BX32: 0 | BY32: 0 | BZ32: 24.9 | CA32: 19.9 | CB32: 14.9 | CC32: 8 | CD32: 6.15 | CE32: 4.35 | CF32: 23.9 | CG32: 18.9 | CH32: 13.9 | CI32: 7 | CJ32: 5.15 | CK32: 3.35 | CL32: 0.5 | CM32: 4500 | CN32: 8 | CO32: 0.01 | CP32: 1000 | CQ32: 1.5 | CR32: 70 | CS32: 40 | CT32: 5000 | CU32: 2000 | CV32: 76 | CW32: 35 | CX32: 2000 | CY32: 13 | CZ32: 2000 | DA32: 8.5 | DB32: 8 | DC32: 6.5 | DD32: 5 | DE32: 6 | DF32: 5000
A33: Mason | B33: =VLOOKUP(A33,tables!$A$2:$C$56,2,0) -> 27 | C33: 1029 | D33: =VLOOKUP(A33,tables!$A$2:$C$56,3,0) -> 01 | E33: West Virginia Paving, Inc., Dunbar Plant | F33: 2902 Charles Ave., Dunbar, WV 25064 | G33: Shamblin Stone | H33: 658 Winfield Rd., St Albans, WV 25177 | I33: 86.5 | J33: 86.5 | K33: 88 | L33: 88 | M33: 88 | N33: 0 | O33: 91.5 | P33: 95.5 | Q33: 107.5 | R33: 95.5 | S33: 104.5 | T33: 0 | U33: 0 | V33: 113.5 | W33: 0 | X33: 103.5 | Y33: 103.5 | Z33: 65 | AA33: 2000 | AB33: 2.75 | AC33: 0.33 | AD33: 15 | AE33: 4 | AF33: 12 | AG33: 2 | AH33: 5 | AI33: 2.75 | AJ33: 0.28 | AK33: 85 | AL33: 30 | AM33: 20 | AN33: 10 | AO33: 2000 | AP33: 15000 | AQ33: 6.75 | AR33: 4.75 | AS33: 3.75 | AT33: 2.75 | AU33: 20.75 | AV33: 15.75 | AW33: 4.75 | AX33: 2.75 | AY33: 20.75 | AZ33: 15.75 | BA33: 4.75 | BB33: 2.75 | BC33: 3.5 | BD33: 14 | BE33: 6 | BF33: 22.25 | BG33: 17.5 | BH33: 12.5 | BI33: 6.75 | BJ33: 4.85 | BK33: 3.75 | BL33: 21.5 | BM33: 16.5 | BN33: 11.5 | BO33: 5.75 | BP33: 3.85 | BQ33: 2.75 | BR33: 3500 | BS33: 0 | BT33: 0.28 | BU33: 350 | BV33: 0 | BW33: 5 | BX33: 0 | BY33: 0 | BZ33: 24.9 | CA33: 19.9 | CB33: 14.9 | CC33: 8 | CD33: 6.15 | CE33: 4.35 | CF33: 23.9 | CG33: 18.9 | CH33: 13.9 | CI33: 7 | CJ33: 5.15 | CK33: 3.35 | CL33: 0.5 | CM33: 4500 | CN33: 8 | CO33: 0.01 | CP33: 1000 | CQ33: 1.5 | CR33: 70 | CS33: 40 | CT33: 5000 | CU33: 2000 | CV33: 76 | CW33: 35 | CX33: 2000 | CY33: 13 | CZ33: 2000 | DA33: 8.5 | DB33: 8 | DC33: 6.5 | DD33: 5 | DE33: 6 | DF33: 5000
A34: Putnam | B34: =VLOOKUP(A34,tables!$A$2:$C$56,2,0) -> 40 | C34: 1030 | D34: =VLOOKUP(A34,tables!$A$2:$C$56,3,0) -> 01 | E34: West Virginia Paving, Inc., Dunbar Plant | F34: 2902 Charles Ave., Dunbar, WV 25064 | G34: Shamblin Stone | H34: 658 Winfield Rd., St Albans, WV 25177 | I34: 86.5 | J34: 86.5 | K34: 88 | L34: 88 | M34: 88 | N34: 0 | O34: 91.5 | P34: 95.5 | Q34: 107.5 | R34: 95.5 | S34: 104.5 | T34: 0 | U34: 0 | V34: 113.5 | W34: 0 | X34: 103.5 | Y34: 103.5 | Z34: 65 | AA34: 2000 | AB34: 2.75 | AC34: 0.33 | AD34: 15 | AE34: 4 | AF34: 12 | AG34: 2 | AH34: 5 | AI34: 2.75 | AJ34: 0.28 | AK34: 85 | AL34: 30 | AM34: 20 | AN34: 10 | AO34: 2000 | AP34: 15000 | AQ34: 6.75 | AR34: 4.75 | AS34: 3.75 | AT34: 2.75 | AU34: 20.75 | AV34: 15.75 | AW34: 4.75 | AX34: 2.75 | AY34: 20.75 | AZ34: 15.75 | BA34: 4.75 | BB34: 2.75 | BC34: 3.5 | BD34: 14 | BE34: 6 | BF34: 22.25 | BG34: 17.5 | BH34: 12.5 | BI34: 6.75 | BJ34: 4.85 | BK34: 3.75 | BL34: 21.5 | BM34: 16.5 | BN34: 11.5 | BO34: 5.75 | BP34: 3.85 | BQ34: 2.75 | BR34: 3500 | BS34: 0 | BT34: 0.28 | BU34: 350 | BV34: 0 | BW34: 5 | BX34: 0 | BY34: 0 | BZ34: 24.9 | CA34: 19.9 | CB34: 14.9 | CC34: 8 | CD34: 6.15 | CE34: 4.35 | CF34: 23.9 | CG34: 18.9 | CH34: 13.9 | CI34: 7 | CJ34: 5.15 | CK34: 3.35 | CL34: 0.5 | CM34: 4500 | CN34: 8 | CO34: 0.01 | CP34: 1000 | CQ34: 1.5 | CR34: 70 | CS34: 40 | CT34: 5000 | CU34: 2000 | CV34: 76 | CW34: 35 | CX34: 2000 | CY34: 13 | CZ34: 2000 | DA34: 8.5 | DB34: 8 | DC34: 6.5 | DD34: 5 | DE34: 6 | DF34: 5000
A35: Boone | B35: =VLOOKUP(A35,tables!$A$2:$C$56,2,0) -> 3 | C35: 1031 | D35: =VLOOKUP(A35,tables!$A$2:$C$56,3,0) -> 01 | E35: West Virginia Paving, Inc., Dunbar Plant | F35: 2902 Charles Ave., Dunbar, WV 25064 | G35: Shamblin Stone | H35: 70 Dunbar Ave., Dunbar WV 25064 | I35: 86.5 | J35: 86.5 | K35: 88 | L35: 88 | M35: 88 | N35: 0 | O35: 91.5 | P35: 95.5 | Q35: 107.5 | R35: 95.5 | S35: 104.5 | T35: 0 | U35: 0 | V35: 113.5 | W35: 0 | X35: 103.5 | Y35: 103.5 | Z35: 65 | AA35: 2000 | AB35: 2.75 | AC35: 0.33 | AD35: 15 | AE35: 4 | AF35: 12 | AG35: 2 | AH35: 5 | AI35: 2.75 | AJ35: 0.28 | AK35: 85 | AL35: 30 | AM35: 20 | AN35: 10 | AO35: 2000 | AP35: 15000 | AQ35: 6.75 | AR35: 4.75 | AS35: 3.75 | AT35: 2.75 | AU35: 20.75 | AV35: 15.75 | AW35: 4.75 | AX35: 2.75 | AY35: 20.75 | AZ35: 15.75 | BA35: 4.75 | BB35: 2.75 | BC35: 3.5 | BD35: 14 | BE35: 6 | BF35: 22.25 | BG35: 17.5 | BH35: 12.5 | BI35: 6.75 | BJ35: 4.85 | BK35: 3.75 | BL35: 21.5 | BM35: 16.5 | BN35: 11.5 | BO35: 5.75 | BP35: 3.85 | BQ35: 2.75 | BR35: 3500 | BS35: 0 | BT35: 0.28 | BU35: 350 | BV35: 0 | BW35: 5 | BX35: 0 | BY35: 0 | BZ35: 24.9 | CA35: 19.9 | CB35: 14.9 | CC35: 8 | CD35: 6.15 | CE35: 4.35 | CF35: 23.9 | CG35: 18.9 | CH35: 13.9 | CI35: 7 | CJ35: 5.15 | CK35: 3.35 | CL35: 0.5 | CM35: 4500 | CN35: 8 | CO35: 0.01 | CP35: 1000 | CQ35: 1.5 | CR35: 70 | CS35: 40 | CT35: 5000 | CU35: 2000 | CV35: 76 | CW35: 35 | CX35: 2000 | CY35: 13 | CZ35: 2000 | DA35: 8.5 | DB35: 8 | DC35: 6.5 | DD35: 5 | DE35: 6 | DF35: 5000
A36: Clay | B36: =VLOOKUP(A36,tables!$A$2:$C$56,2,0) -> 8 | C36: 1032 | D36: =VLOOKUP(A36,tables!$A$2:$C$56,3,0) -> 01 | E36: West Virginia Paving, Inc., Dunbar Plant | F36: 2902 Charles Ave., Dunbar, WV 25064 | G36: Shamblin Stone | H36: 70 Dunbar Ave., Dunbar WV 25064 | I36: 86.5 | J36: 86.5 | K36: 88 | L36: 88 | M36: 88 | N36: 0 | O36: 91.5 | P36: 95.5 | Q36: 107.5 | R36: 95.5 | S36: 104.5 | T36: 0 | U36: 0 | V36: 113.5 | W36: 0 | X36: 103.5 | Y36: 103.5 | Z36: 65 | AA36: 2000 | AB36: 2.75 | AC36: 0.33 | AD36: 15 | AE36: 4 | AF36: 12 | AG36: 2 | AH36: 5 | AI36: 2.75 | AJ36: 0.28 | AK36: 85 | AL36: 30 | AM36: 20 | AN36: 10 | AO36: 2000 | AP36: 15000 | AQ36: 6.75 | AR36: 4.75 | AS36: 3.75 | AT36: 2.75 | AU36: 20.75 | AV36: 15.75 | AW36: 4.75 | AX36: 2.75 | AY36: 20.75 | AZ36: 15.75 | BA36: 4.75 | BB36: 2.75 | BC36: 3.5 | BD36: 14 | BE36: 6 | BF36: 22.25 | BG36: 17.5 | BH36: 12.5 | BI36: 6.75 | BJ36: 4.85 | BK36: 3.75 | BL36: 21.5 | BM36: 16.5 | BN36: 11.5 | BO36: 5.75 | BP36: 3.85 | BQ36: 2.75 | BR36: 3500 | BS36: 0 | BT36: 0.28 | BU36: 350 | BV36: 0 | BW36: 5 | BX36: 0 | BY36: 0 | BZ36: 24.9 | CA36: 19.9 | CB36: 14.9 | CC36: 8 | CD36: 6.15 | CE36: 4.35 | CF36: 23.9 | CG36: 18.9 | CH36: 13.9 | CI36: 7 | CJ36: 5.15 | CK36: 3.35 | CL36: 0.5 | CM36: 4500 | CN36: 8 | CO36: 0.01 | CP36: 1000 | CQ36: 1.5 | CR36: 70 | CS36: 40 | CT36: 5000 | CU36: 2000 | CV36: 76 | CW36: 35 | CX36: 2000 | CY36: 13 | CZ36: 2000 | DA36: 8.5 | DB36: 8 | DC36: 6.5 | DD36: 5 | DE36: 6 | DF36: 5000
A37: Kanawha | B37: =VLOOKUP(A37,tables!$A$2:$C$56,2,0) -> 20 | C37: 1033 | D37: =VLOOKUP(A37,tables!$A$2:$C$56,3,0) -> 01 | E37: West Virginia Paving, Inc., Dunbar Plant | F37: 2902 Charles Ave., Dunbar, WV 25064 | G37: Shamblin Stone | H37: 70 Dunbar Ave., Dunbar WV 25064 | I37: 86.5 | J37: 86.5 | K37: 88 | L37: 88 | M37: 88 | N37: 0 | O37: 91.5 | P37: 95.5 | Q37: 107.5 | R37: 95.5 | S37: 104.5 | T37: 0 | U37: 0 | V37: 113.5 | W37: 0 | X37: 103.5 | Y37: 103.5 | Z37: 65 | AA37: 2000 | AB37: 2.75 | AC37: 0.33 | AD37: 15 | AE37: 4 | AF37: 12 | AG37: 2 | AH37: 5 | AI37: 2.75 | AJ37: 0.28 | AK37: 85 | AL37: 30 | AM37: 20 | AN37: 10 | AO37: 2000 | AP37: 15000 | AQ37: 6.75 | AR37: 4.75 | AS37: 3.75 | AT37: 2.75 | AU37: 20.75 | AV37: 15.75 | AW37: 4.75 | AX37: 2.75 | AY37: 20.75 | AZ37: 15.75 | BA37: 4.75 | BB37: 2.75 | BC37: 3.5 | BD37: 14 | BE37: 6 | BF37: 22.25 | BG37: 17.5 | BH37: 12.5 | BI37: 6.75 | BJ37: 4.85 | BK37: 3.75 | BL37: 21.5 | BM37: 16.5 | BN37: 11.5 | BO37: 5.75 | BP37: 3.85 | BQ37: 2.75 | BR37: 3500 | BS37: 0 | BT37: 0.28 | BU37: 350 | BV37: 0 | BW37: 5 | BX37: 0 | BY37: 0 | BZ37: 24.9 | CA37: 19.9 | CB37: 14.9 | CC37: 8 | CD37: 6.15 | CE37: 4.35 | CF37: 23.9 | CG37: 18.9 | CH37: 13.9 | CI37: 7 | CJ37: 5.15 | CK37: 3.35 | CL37: 0.5 | CM37: 4500 | CN37: 8 | CO37: 0.01 | CP37: 1000 | CQ37: 1.5 | CR37: 70 | CS37: 40 | CT37: 5000 | CU37: 2000 | CV37: 76 | CW37: 35 | CX37: 2000 | CY37: 13 | CZ37: 2000 | DA37: 8.5 | DB37: 8 | DC37: 6.5 | DD37: 5 | DE37: 6 | DF37: 5000
A38: Mason | B38: =VLOOKUP(A38,tables!$A$2:$C$56,2,0) -> 27 | C38: 1034 | D38: =VLOOKUP(A38,tables!$A$2:$C$56,3,0) -> 01 | E38: West Virginia Paving, Inc., Dunbar Plant | F38: 2902 Charles Ave., Dunbar, WV 25064 | G38: Shamblin Stone | H38: 70 Dunbar Ave., Dunbar WV 25064 | I38: 86.5 | J38: 86.5 | K38: 88 | L38: 88 | M38: 88 | N38: 0 | O38: 91.5 | P38: 95.5 | Q38: 107.5 | R38: 95.5 | S38: 104.5 | T38: 0 | U38: 0 | V38: 113.5 | W38: 0 | X38: 103.5 | Y38: 103.5 | Z38: 65 | AA38: 2000 | AB38: 2.75 | AC38: 0.33 | AD38: 15 | AE38: 4 | AF38: 12 | AG38: 2 | AH38: 5 | AI38: 2.75 | AJ38: 0.28 | AK38: 85 | AL38: 30 | AM38: 20 | AN38: 10 | AO38: 2000 | AP38: 15000 | AQ38: 6.75 | AR38: 4.75 | AS38: 3.75 | AT38: 2.75 | AU38: 20.75 | AV38: 15.75 | AW38: 4.75 | AX38: 2.75 | AY38: 20.75 | AZ38: 15.75 | BA38: 4.75 | BB38: 2.75 | BC38: 3.5 | BD38: 14 | BE38: 6 | BF38: 22.25 | BG38: 17.5 | BH38: 12.5 | BI38: 6.75 | BJ38: 4.85 | BK38: 3.75 | BL38: 21.5 | BM38: 16.5 | BN38: 11.5 | BO38: 5.75 | BP38: 3.85 | BQ38: 2.75 | BR38: 3500 | BS38: 0 | BT38: 0.28 | BU38: 350 | BV38: 0 | BW38: 5 | BX38: 0 | BY38: 0 | BZ38: 24.9 | CA38: 19.9 | CB38: 14.9 | CC38: 8 | CD38: 6.15 | CE38: 4.35 | CF38: 23.9 | CG38: 18.9 | CH38: 13.9 | CI38: 7 | CJ38: 5.15 | CK38: 3.35 | CL38: 0.5 | CM38: 4500 | CN38: 8 | CO38: 0.01 | CP38: 1000 | CQ38: 1.5 | CR38: 70 | CS38: 40 | CT38: 5000 | CU38: 2000 | CV38: 76 | CW38: 35 | CX38: 2000 | CY38: 13 | CZ38: 2000 | DA38: 8.5 | DB38: 8 | DC38: 6.5 | DD38: 5 | DE38: 6 | DF38: 5000
A39: Putnam | B39: =VLOOKUP(A39,tables!$A$2:$C$56,2,0) -> 40 | C39: 1035 | D39: =VLOOKUP(A39,tables!$A$2:$C$56,3,0) -> 01 | E39: West Virginia Paving, Inc., Dunbar Plant | F39: 2902 Charles Ave., Dunbar, WV 25064 | G39: Shamblin Stone | H39: 70 Dunbar Ave., Dunbar WV 25064 | I39: 86.5 | J39: 86.5 | K39: 88 | L39: 88 | M39: 88 | N39: 0 | O39: 91.5 | P39: 95.5 | Q39: 107.5 | R39: 95.5 | S39: 104.5 | T39: 0 | U39: 0 | V39: 113.5 | W39: 0 | X39: 103.5 | Y39: 103.5 | Z39: 65 | AA39: 2000 | AB39: 2.75 | AC39: 0.33 | AD39: 15 | AE39: 4 | AF39: 12 | AG39: 2 | AH39: 5 | AI39: 2.75 | AJ39: 0.28 | AK39: 85 | AL39: 30 | AM39: 20 | AN39: 10 | AO39: 2000 | AP39: 15000 | AQ39: 6.75 | AR39: 4.75 | AS39: 3.75 | AT39: 2.75 | AU39: 20.75 | AV39: 15.75 | AW39: 4.75 | AX39: 2.75 | AY39: 20.75 | AZ39: 15.75 | BA39: 4.75 | BB39: 2.75 | BC39: 3.5 | BD39: 14 | BE39: 6 | BF39: 22.25 | BG39: 17.5 | BH39: 12.5 | BI39: 6.75 | BJ39: 4.85 | BK39: 3.75 | BL39: 21.5 | BM39: 16.5 | BN39: 11.5 | BO39: 5.75 | BP39: 3.85 | BQ39: 2.75 | BR39: 3500 | BS39: 0 | BT39: 0.28 | BU39: 350 | BV39: 0 | BW39: 5 | BX39: 0 | BY39: 0 | BZ39: 24.9 | CA39: 19.9 | CB39: 14.9 | CC39: 8 | CD39: 6.15 | CE39: 4.35 | CF39: 23.9 | CG39: 18.9 | CH39: 13.9 | CI39: 7 | CJ39: 5.15 | CK39: 3.35 | CL39: 0.5 | CM39: 4500 | CN39: 8 | CO39: 0.01 | CP39: 1000 | CQ39: 1.5 | CR39: 70 | CS39: 40 | CT39: 5000 | CU39: 2000 | CV39: 76 | CW39: 35 | CX39: 2000 | CY39: 13 | CZ39: 2000 | DA39: 8.5 | DB39: 8 | DC39: 6.5 | DD39: 5 | DE39: 6 | DF39: 5000
A40: Mason | B40: =VLOOKUP(A40,tables!$A$2:$C$56,2,0) -> 27 | C40: 1036 | D40: =VLOOKUP(A40,tables!$A$2:$C$56,3,0) -> 01 | E40: West Virginia Paving, Inc., Dunbar Plant | F40: 2902 Charles Ave., Dunbar, WV 25064 | G40: Shelly Materials | H40: Route 7 North, Gallipolis OH, 45631 | I40: 86.5 | J40: 86.5 | K40: 88 | L40: 88 | M40: 88 | N40: 0 | O40: 91.5 | P40: 95.5 | Q40: 107.5 | R40: 95.5 | S40: 104.5 | T40: 0 | U40: 0 | V40: 113.5 | W40: 0 | X40: 103.5 | Y40: 103.5 | Z40: 65 | AA40: 2000 | AB40: 2.75 | AC40: 0.33 | AD40: 15 | AE40: 4 | AF40: 12 | AG40: 2 | AH40: 5 | AI40: 2.75 | AJ40: 0.28 | AK40: 85 | AL40: 30 | AM40: 20 | AN40: 10 | AO40: 2000 | AP40: 15000 | AQ40: 6.75 | AR40: 4.75 | AS40: 3.75 | AT40: 2.75 | AU40: 20.75 | AV40: 15.75 | AW40: 4.75 | AX40: 2.75 | AY40: 20.75 | AZ40: 15.75 | BA40: 4.75 | BB40: 2.75 | BC40: 3.5 | BD40: 14 | BE40: 6 | BF40: 22.25 | BG40: 17.5 | BH40: 12.5 | BI40: 6.75 | BJ40: 4.85 | BK40: 3.75 | BL40: 21.5 | BM40: 16.5 | BN40: 11.5 | BO40: 5.75 | BP40: 3.85 | BQ40: 2.75 | BR40: 3500 | BS40: 0 | BT40: 0.28 | BU40: 350 | BV40: 0 | BW40: 5 | BX40: 0 | BY40: 0 | BZ40: 24.9 | CA40: 19.9 | CB40: 14.9 | CC40: 8 | CD40: 6.15 | CE40: 4.35 | CF40: 23.9 | CG40: 18.9 | CH40: 13.9 | CI40: 7 | CJ40: 5.15 | CK40: 3.35 | CL40: 0.5 | CM40: 4500 | CN40: 8 | CO40: 0.01 | CP40: 1000 | CQ40: 1.5 | CR40: 70 | CS40: 40 | CT40: 5000 | CU40: 2000 | CV40: 76 | CW40: 35 | CX40: 2000 | CY40: 13 | CZ40: 2000 | DA40: 8.5 | DB40: 8 | DC40: 6.5 | DD40: 5 | DE40: 6 | DF40: 5000
A41: Mason | B41: =VLOOKUP(A41,tables!$A$2:$C$56,2,0) -> 27 | C41: 1037 | D41: =VLOOKUP(A41,tables!$A$2:$C$56,3,0) -> 01 | E41: West Virginia Paving, Inc., Dunbar Plant | F41: 2902 Charles Ave., Dunbar, WV 25064 | G41: Valley Stone Yard | H41: 360 Valley Rd., Millwood WV, 25262 | I41: 86.5 | J41: 86.5 | K41: 88 | L41: 88 | M41: 88 | N41: 0 | O41: 91.5 | P41: 95.5 | Q41: 107.5 | R41: 95.5 | S41: 104.5 | T41: 0 | U41: 0 | V41: 113.5 | W41: 0 | X41: 103.5 | Y41: 103.5 | Z41: 65 | AA41: 2000 | AB41: 2.75 | AC41: 0.33 | AD41: 15 | AE41: 4 | AF41: 12 | AG41: 2 | AH41: 5 | AI41: 2.75 | AJ41: 0.28 | AK41: 85 | AL41: 30 | AM41: 20 | AN41: 10 | AO41: 2000 | AP41: 15000 | AQ41: 6.75 | AR41: 4.75 | AS41: 3.75 | AT41: 2.75 | AU41: 20.75 | AV41: 15.75 | AW41: 4.75 | AX41: 2.75 | AY41: 20.75 | AZ41: 15.75 | BA41: 4.75 | BB41: 2.75 | BC41: 3.5 | BD41: 14 | BE41: 6 | BF41: 22.25 | BG41: 17.5 | BH41: 12.5 | BI41: 6.75 | BJ41: 4.85 | BK41: 3.75 | BL41: 21.5 | BM41: 16.5 | BN41: 11.5 | BO41: 5.75 | BP41: 3.85 | BQ41: 2.75 | BR41: 3500 | BS41: 0 | BT41: 0.28 | BU41: 350 | BV41: 0 | BW41: 5 | BX41: 0 | BY41: 0 | BZ41: 24.9 | CA41: 19.9 | CB41: 14.9 | CC41: 8 | CD41: 6.15 | CE41: 4.35 | CF41: 23.9 | CG41: 18.9 | CH41: 13.9 | CI41: 7 | CJ41: 5.15 | CK41: 3.35 | CL41: 0.5 | CM41: 4500 | CN41: 8 | CO41: 0.01 | CP41: 1000 | CQ41: 1.5 | CR41: 70 | CS41: 40 | CT41: 5000 | CU41: 2000 | CV41: 76 | CW41: 35 | CX41: 2000 | CY41: 13 | CZ41: 2000 | DA41: 8.5 | DB41: 8 | DC41: 6.5 | DD41: 5 | DE41: 6 | DF41: 5000
A42: Mason | B42: =VLOOKUP(A42,tables!$A$2:$C$56,2,0) -> 27 | C42: 1038 | D42: =VLOOKUP(A42,tables!$A$2:$C$56,3,0) -> 01 | E42: West Virginia Paving, Inc., Dunbar Plant | F42: 2902 Charles Ave., Dunbar, WV 25064 | G42: WV Paving | H42: 4022 Ohio River Rd., Huntington, WV 25702 | I42: 86.5 | J42: 86.5 | K42: 88 | L42: 88 | M42: 88 | N42: 0 | O42: 91.5 | P42: 95.5 | Q42: 107.5 | R42: 95.5 | S42: 104.5 | T42: 0 | U42: 0 | V42: 113.5 | W42: 0 | X42: 103.5 | Y42: 103.5 | Z42: 65 | AA42: 2000 | AB42: 2.75 | AC42: 0.33 | AD42: 15 | AE42: 4 | AF42: 12 | AG42: 2 | AH42: 5 | AI42: 2.75 | AJ42: 0.28 | AK42: 85 | AL42: 30 | AM42: 20 | AN42: 10 | AO42: 2000 | AP42: 15000 | AQ42: 6.75 | AR42: 4.75 | AS42: 3.75 | AT42: 2.75 | AU42: 20.75 | AV42: 15.75 | AW42: 4.75 | AX42: 2.75 | AY42: 20.75 | AZ42: 15.75 | BA42: 4.75 | BB42: 2.75 | BC42: 3.5 | BD42: 14 | BE42: 6 | BF42: 22.25 | BG42: 17.5 | BH42: 12.5 | BI42: 6.75 | BJ42: 4.85 | BK42: 3.75 | BL42: 21.5 | BM42: 16.5 | BN42: 11.5 | BO42: 5.75 | BP42: 3.85 | BQ42: 2.75 | BR42: 3500 | BS42: 0 | BT42: 0.28 | BU42: 350 | BV42: 0 | BW42: 5 | BX42: 0 | BY42: 0 | BZ42: 24.9 | CA42: 19.9 | CB42: 14.9 | CC42: 8 | CD42: 6.15 | CE42: 4.35 | CF42: 23.9 | CG42: 18.9 | CH42: 13.9 | CI42: 7 | CJ42: 5.15 | CK42: 3.35 | CL42: 0.5 | CM42: 4500 | CN42: 8 | CO42: 0.01 | CP42: 1000 | CQ42: 1.5 | CR42: 70 | CS42: 40 | CT42: 5000 | CU42: 2000 | CV42: 76 | CW42: 35 | CX42: 2000 | CY42: 13 | CZ42: 2000 | DA42: 8.5 | DB42: 8 | DC42: 6.5 | DD42: 5 | DE42: 6 | DF42: 5000
A43: Boone | B43: =VLOOKUP(A43,tables!$A$2:$C$56,2,0) -> 3 | C43: 1039 | D43: =VLOOKUP(A43,tables!$A$2:$C$56,3,0) -> 01 | E43: West Virginia Paving, Inc., Poca Plant | F43: Rt 1 Wright Rd., Poca, WV 25159 | G43: Shamblin Stone | H43: 658 Winfield Rd., St Albans, WV 25177 | I43: 86.5 | J43: 86.5 | K43: 88 | L43: 88 | M43: 88 | N43: 0 | O43: 91.5 | P43: 95.5 | Q43: 107.5 | R43: 95.5 | S43: 104.5 | T43: 0 | U43: 0 | V43: 113.5 | W43: 0 | X43: 103.5 | Y43: 103.5 | Z43: 65 | AA43: 2000 | AB43: 2.75 | AC43: 0.33 | AD43: 15 | AE43: 4 | AF43: 12 | AG43: 2 | AH43: 5 | AI43: 2.75 | AJ43: 0.28 | AK43: 85 | AL43: 30 | AM43: 20 | AN43: 10 | AO43: 2000 | AP43: 15000 | AQ43: 6.75 | AR43: 4.75 | AS43: 3.75 | AT43: 2.75 | AU43: 20.75 | AV43: 15.75 | AW43: 4.75 | AX43: 2.75 | AY43: 20.75 | AZ43: 15.75 | BA43: 4.75 | BB43: 2.75 | BC43: 3.5 | BD43: 14 | BE43: 6 | BF43: 22.25 | BG43: 17.5 | BH43: 12.5 | BI43: 6.75 | BJ43: 4.85 | BK43: 3.75 | BL43: 21.5 | BM43: 16.5 | BN43: 11.5 | BO43: 5.75 | BP43: 3.85 | BQ43: 2.75 | BR43: 3500 | BS43: 0 | BT43: 0.28 | BU43: 350 | BV43: 0 | BW43: 5 | BX43: 0 | BY43: 0 | BZ43: 24.9 | CA43: 19.9 | CB43: 14.9 | CC43: 8 | CD43: 6.15 | CE43: 4.35 | CF43: 23.9 | CG43: 18.9 | CH43: 13.9 | CI43: 7 | CJ43: 5.15 | CK43: 3.35 | CL43: 0.5 | CM43: 4500 | CN43: 8 | CO43: 0.01 | CP43: 1000 | CQ43: 1.5 | CR43: 70 | CS43: 40 | CT43: 5000 | CU43: 2000 | CV43: 76 | CW43: 35 | CX43: 2000 | CY43: 13 | CZ43: 2000 | DA43: 8.5 | DB43: 8 | DC43: 6.5 | DD43: 5 | DE43: 6 | DF43: 5000
A44: Clay | B44: =VLOOKUP(A44,tables!$A$2:$C$56,2,0) -> 8 | C44: 1040 | D44: =VLOOKUP(A44,tables!$A$2:$C$56,3,0) -> 01 | E44: West Virginia Paving, Inc., Poca Plant | F44: Rt 1 Wright Rd., Poca, WV 25159 | G44: Shamblin Stone | H44: 658 Winfield Rd., St Albans, WV 25177 | I44: 86.5 | J44: 86.5 | K44: 88 | L44: 88 | M44: 88 | N44: 0 | O44: 91.5 | P44: 95.5 | Q44: 107.5 | R44: 95.5 | S44: 104.5 | T44: 0 | U44: 0 | V44: 113.5 | W44: 0 | X44: 103.5 | Y44: 103.5 | Z44: 65 | AA44: 2000 | AB44: 2.75 | AC44: 0.33 | AD44: 15 | AE44: 4 | AF44: 12 | AG44: 2 | AH44: 5 | AI44: 2.75 | AJ44: 0.28 | AK44: 85 | AL44: 30 | AM44: 20 | AN44: 10 | AO44: 2000 | AP44: 15000 | AQ44: 6.75 | AR44: 4.75 | AS44: 3.75 | AT44: 2.75 | AU44: 20.75 | AV44: 15.75 | AW44: 4.75 | AX44: 2.75 | AY44: 20.75 | AZ44: 15.75 | BA44: 4.75 | BB44: 2.75 | BC44: 3.5 | BD44: 14 | BE44: 6 | BF44: 22.25 | BG44: 17.5 | BH44: 12.5 | BI44: 6.75 | BJ44: 4.85 | BK44: 3.75 | BL44: 21.5 | BM44: 16.5 | BN44: 11.5 | BO44: 5.75 | BP44: 3.85 | BQ44: 2.75 | BR44: 3500 | BS44: 0 | BT44: 0.28 | BU44: 350 | BV44: 0 | BW44: 5 | BX44: 0 | BY44: 0 | BZ44: 24.9 | CA44: 19.9 | CB44: 14.9 | CC44: 8 | CD44: 6.15 | CE44: 4.35 | CF44: 23.9 | CG44: 18.9 | CH44: 13.9 | CI44: 7 | CJ44: 5.15 | CK44: 3.35 | CL44: 0.5 | CM44: 4500 | CN44: 8 | CO44: 0.01 | CP44: 1000 | CQ44: 1.5 | CR44: 70 | CS44: 40 | CT44: 5000 | CU44: 2000 | CV44: 76 | CW44: 35 | CX44: 2000 | CY44: 13 | CZ44: 2000 | DA44: 8.5 | DB44: 8 | DC44: 6.5 | DD44: 5 | DE44: 6 | DF44: 5000
A45: Kanawha | B45: =VLOOKUP(A45,tables!$A$2:$C$56,2,0) -> 20 | C45: 1041 | D45: =VLOOKUP(A45,tables!$A$2:$C$56,3,0) -> 01 | E45: West Virginia Paving, Inc., Poca Plant | F45: Rt 1 Wright Rd., Poca, WV 25159 | G45: Shamblin Stone | H45: 658 Winfield Rd., St Albans, WV 25177 | I45: 86.5 | J45: 86.5 | K45: 88 | L45: 88 | M45: 88 | N45: 0 | O45: 91.5 | P45: 95.5 | Q45: 107.5 | R45: 95.5 | S45: 104.5 | T45: 0 | U45: 0 | V45: 113.5 | W45: 0 | X45: 103.5 | Y45: 103.5 | Z45: 65 | AA45: 2000 | AB45: 2.75 | AC45: 0.33 | AD45: 15 | AE45: 4 | AF45: 12 | AG45: 2 | AH45: 5 | AI45: 2.75 | AJ45: 0.28 | AK45: 85 | AL45: 30 | AM45: 20 | AN45: 10 | AO45: 2000 | AP45: 15000 | AQ45: 6.75 | AR45: 4.75 | AS45: 3.75 | AT45: 2.75 | AU45: 20.75 | AV45: 15.75 | AW45: 4.75 | AX45: 2.75 | AY45: 20.75 | AZ45: 15.75 | BA45: 4.75 | BB45: 2.75 | BC45: 3.5 | BD45: 14 | BE45: 6 | BF45: 22.25 | BG45: 17.5 | BH45: 12.5 | BI45: 6.75 | BJ45: 4.85 | BK45: 3.75 | BL45: 21.5 | BM45: 16.5 | BN45: 11.5 | BO45: 5.75 | BP45: 3.85 | BQ45: 2.75 | BR45: 3500 | BS45: 0 | BT45: 0.28 | BU45: 350 | BV45: 0 | BW45: 5 | BX45: 0 | BY45: 0 | BZ45: 24.9 | CA45: 19.9 | CB45: 14.9 | CC45: 8 | CD45: 6.15 | CE45: 4.35 | CF45: 23.9 | CG45: 18.9 | CH45: 13.9 | CI45: 7 | CJ45: 5.15 | CK45: 3.35 | CL45: 0.5 | CM45: 4500 | CN45: 8 | CO45: 0.01 | CP45: 1000 | CQ45: 1.5 | CR45: 70 | CS45: 40 | CT45: 5000 | CU45: 2000 | CV45: 76 | CW45: 35 | CX45: 2000 | CY45: 13 | CZ45: 2000 | DA45: 8.5 | DB45: 8 | DC45: 6.5 | DD45: 5 | DE45: 6 | DF45: 5000
A46: Mason | B46: =VLOOKUP(A46,tables!$A$2:$C$56,2,0) -> 27 | C46: 1042 | D46: =VLOOKUP(A46,tables!$A$2:$C$56,3,0) -> 01 | E46: West Virginia Paving, Inc., Poca Plant | F46: Rt 1 Wright Rd., Poca, WV 25159 | G46: Shamblin Stone | H46: 658 Winfield Rd., St Albans, WV 25177 | I46: 86.5 | J46: 86.5 | K46: 88 | L46: 88 | M46: 88 | N46: 0 | O46: 91.5 | P46: 95.5 | Q46: 107.5 | R46: 95.5 | S46: 104.5 | T46: 0 | U46: 0 | V46: 113.5 | W46: 0 | X46: 103.5 | Y46: 103.5 | Z46: 65 | AA46: 2000 | AB46: 2.75 | AC46: 0.33 | AD46: 15 | AE46: 4 | AF46: 12 | AG46: 2 | AH46: 5 | AI46: 2.75 | AJ46: 0.28 | AK46: 85 | AL46: 30 | AM46: 20 | AN46: 10 | AO46: 2000 | AP46: 15000 | AQ46: 6.75 | AR46: 4.75 | AS46: 3.75 | AT46: 2.75 | AU46: 20.75 | AV46: 15.75 | AW46: 4.75 | AX46: 2.75 | AY46: 20.75 | AZ46: 15.75 | BA46: 4.75 | BB46: 2.75 | BC46: 3.5 | BD46: 14 | BE46: 6 | BF46: 22.25 | BG46: 17.5 | BH46: 12.5 | BI46: 6.75 | BJ46: 4.85 | BK46: 3.75 | BL46: 21.5 | BM46: 16.5 | BN46: 11.5 | BO46: 5.75 | BP46: 3.85 | BQ46: 2.75 | BR46: 3500 | BS46: 0 | BT46: 0.28 | BU46: 350 | BV46: 0 | BW46: 5 | BX46: 0 | BY46: 0 | BZ46: 24.9 | CA46: 19.9 | CB46: 14.9 | CC46: 8 | CD46: 6.15 | CE46: 4.35 | CF46: 23.9 | CG46: 18.9 | CH46: 13.9 | CI46: 7 | CJ46: 5.15 | CK46: 3.35 | CL46: 0.5 | CM46: 4500 | CN46: 8 | CO46: 0.01 | CP46: 1000 | CQ46: 1.5 | CR46: 70 | CS46: 40 | CT46: 5000 | CU46: 2000 | CV46: 76 | CW46: 35 | CX46: 2000 | CY46: 13 | CZ46: 2000 | DA46: 8.5 | DB46: 8 | DC46: 6.5 | DD46: 5 | DE46: 6 | DF46: 5000
A47: Putnam | B47: =VLOOKUP(A47,tables!$A$2:$C$56,2,0) -> 40 | C47: 1043 | D47: =VLOOKUP(A47,tables!$A$2:$C$56,3,0) -> 01 | E47: West Virginia Paving, Inc., Poca Plant | F47: Rt 1 Wright Rd., Poca, WV 25159 | G47: Shamblin Stone | H47: 658 Winfield Rd., St Albans, WV 25177 | I47: 86.5 | J47: 86.5 | K47: 88 | L47: 88 | M47: 88 | N47: 0 | O47: 91.5 | P47: 95.5 | Q47: 107.5 | R47: 95.5 | S47: 104.5 | T47: 0 | U47: 0 | V47: 113.5 | W47: 0 | X47: 103.5 | Y47: 103.5 | Z47: 65 | AA47: 2000 | AB47: 2.75 | AC47: 0.33 | AD47: 15 | AE47: 4 | AF47: 12 | AG47: 2 | AH47: 5 | AI47: 2.75 | AJ47: 0.28 | AK47: 85 | AL47: 30 | AM47: 20 | AN47: 10 | AO47: 2000 | AP47: 15000 | AQ47: 6.75 | AR47: 4.75 | AS47: 3.75 | AT47: 2.75 | AU47: 20.75 | AV47: 15.75 | AW47: 4.75 | AX47: 2.75 | AY47: 20.75 | AZ47: 15.75 | BA47: 4.75 | BB47: 2.75 | BC47: 3.5 | BD47: 14 | BE47: 6 | BF47: 22.25 | BG47: 17.5 | BH47: 12.5 | BI47: 6.75 | BJ47: 4.85 | BK47: 3.75 | BL47: 21.5 | BM47: 16.5 | BN47: 11.5 | BO47: 5.75 | BP47: 3.85 | BQ47: 2.75 | BR47: 3500 | BS47: 0 | BT47: 0.28 | BU47: 350 | BV47: 0 | BW47: 5 | BX47: 0 | BY47: 0 | BZ47: 24.9 | CA47: 19.9 | CB47: 14.9 | CC47: 8 | CD47: 6.15 | CE47: 4.35 | CF47: 23.9 | CG47: 18.9 | CH47: 13.9 | CI47: 7 | CJ47: 5.15 | CK47: 3.35 | CL47: 0.5 | CM47: 4500 | CN47: 8 | CO47: 0.01 | CP47: 1000 | CQ47: 1.5 | CR47: 70 | CS47: 40 | CT47: 5000 | CU47: 2000 | CV47: 76 | CW47: 35 | CX47: 2000 | CY47: 13 | CZ47: 2000 | DA47: 8.5 | DB47: 8 | DC47: 6.5 | DD47: 5 | DE47: 6 | DF47: 5000
A48: Boone | B48: =VLOOKUP(A48,tables!$A$2:$C$56,2,0) -> 3 | C48: 1044 | D48: =VLOOKUP(A48,tables!$A$2:$C$56,3,0) -> 01 | E48: West Virginia Paving, Inc., Poca Plant | F48: Rt 1 Wright Rd., Poca, WV 25159 | G48: Shamblin Stone | H48: 70 Dunbar Ave., Dunbar WV 25064 | I48: 86.5 | J48: 86.5 | K48: 88 | L48: 88 | M48: 88 | N48: 0 | O48: 91.5 | P48: 95.5 | Q48: 107.5 | R48: 95.5 | S48: 104.5 | T48: 0 | U48: 0 | V48: 113.5 | W48: 0 | X48: 103.5 | Y48: 103.5 | Z48: 65 | AA48: 2000 | AB48: 2.75 | AC48: 0.33 | AD48: 15 | AE48: 4 | AF48: 12 | AG48: 2 | AH48: 5 | AI48: 2.75 | AJ48: 0.28 | AK48: 85 | AL48: 30 | AM48: 20 | AN48: 10 | AO48: 2000 | AP48: 15000 | AQ48: 6.75 | AR48: 4.75 | AS48: 3.75 | AT48: 2.75 | AU48: 20.75 | AV48: 15.75 | AW48: 4.75 | AX48: 2.75 | AY48: 20.75 | AZ48: 15.75 | BA48: 4.75 | BB48: 2.75 | BC48: 3.5 | BD48: 14 | BE48: 6 | BF48: 22.25 | BG48: 17.5 | BH48: 12.5 | BI48: 6.75 | BJ48: 4.85 | BK48: 3.75 | BL48: 21.5 | BM48: 16.5 | BN48: 11.5 | BO48: 5.75 | BP48: 3.85 | BQ48: 2.75 | BR48: 3500 | BS48: 0 | BT48: 0.28 | BU48: 350 | BV48: 0 | BW48: 5 | BX48: 0 | BY48: 0 | BZ48: 24.9 | CA48: 19.9 | CB48: 14.9 | CC48: 8 | CD48: 6.15 | CE48: 4.35 | CF48: 23.9 | CG48: 18.9 | CH48: 13.9 | CI48: 7 | CJ48: 5.15 | CK48: 3.35 | CL48: 0.5 | CM48: 4500 | CN48: 8 | CO48: 0.01 | CP48: 1000 | CQ48: 1.5 | CR48: 70 | CS48: 40 | CT48: 5000 | CU48: 2000 | CV48: 76 | CW48: 35 | CX48: 2000 | CY48: 13 | CZ48: 2000 | DA48: 8.5 | DB48: 8 | DC48: 6.5 | DD48: 5 | DE48: 6 | DF48: 5000
A49: Clay | B49: =VLOOKUP(A49,tables!$A$2:$C$56,2,0) -> 8 | C49: 1045 | D49: =VLOOKUP(A49,tables!$A$2:$C$56,3,0) -> 01 | E49: West Virginia Paving, Inc., Poca Plant | F49: Rt 1 Wright Rd., Poca, WV 25159 | G49: Shamblin Stone | H49: 70 Dunbar Ave., Dunbar WV 25064 | I49: 86.5 | J49: 86.5 | K49: 88 | L49: 88 | M49: 88 | N49: 0 | O49: 91.5 | P49: 95.5 | Q49: 107.5 | R49: 95.5 | S49: 104.5 | T49: 0 | U49: 0 | V49: 113.5 | W49: 0 | X49: 103.5 | Y49: 103.5 | Z49: 65 | AA49: 2000 | AB49: 2.75 | AC49: 0.33 | AD49: 15 | AE49: 4 | AF49: 12 | AG49: 2 | AH49: 5 | AI49: 2.75 | AJ49: 0.28 | AK49: 85 | AL49: 30 | AM49: 20 | AN49: 10 | AO49: 2000 | AP49: 15000 | AQ49: 6.75 | AR49: 4.75 | AS49: 3.75 | AT49: 2.75 | AU49: 20.75 | AV49: 15.75 | AW49: 4.75 | AX49: 2.75 | AY49: 20.75 | AZ49: 15.75 | BA49: 4.75 | BB49: 2.75 | BC49: 3.5 | BD49: 14 | BE49: 6 | BF49: 22.25 | BG49: 17.5 | BH49: 12.5 | BI49: 6.75 | BJ49: 4.85 | BK49: 3.75 | BL49: 21.5 | BM49: 16.5 | BN49: 11.5 | BO49: 5.75 | BP49: 3.85 | BQ49: 2.75 | BR49: 3500 | BS49: 0 | BT49: 0.28 | BU49: 350 | BV49: 0 | BW49: 5 | BX49: 0 | BY49: 0 | BZ49: 24.9 | CA49: 19.9 | CB49: 14.9 | CC49: 8 | CD49: 6.15 | CE49: 4.35 | CF49: 23.9 | CG49: 18.9 | CH49: 13.9 | CI49: 7 | CJ49: 5.15 | CK49: 3.35 | CL49: 0.5 | CM49: 4500 | CN49: 8 | CO49: 0.01 | CP49: 1000 | CQ49: 1.5 | CR49: 70 | CS49: 40 | CT49: 5000 | CU49: 2000 | CV49: 76 | CW49: 35 | CX49: 2000 | CY49: 13 | CZ49: 2000 | DA49: 8.5 | DB49: 8 | DC49: 6.5 | DD49: 5 | DE49: 6 | DF49: 5000
A50: Kanawha | B50: =VLOOKUP(A50,tables!$A$2:$C$56,2,0) -> 20 | C50: 1046 | D50: =VLOOKUP(A50,tables!$A$2:$C$56,3,0) -> 01 | E50: West Virginia Paving, Inc., Poca Plant | F50: Rt 1 Wright Rd., Poca, WV 25159 | G50: Shamblin Stone | H50: 70 Dunbar Ave., Dunbar WV 25064 | I50: 86.5 | J50: 86.5 | K50: 88 | L50: 88 | M50: 88 | N50: 0 | O50: 91.5 | P50: 95.5 | Q50: 107.5 | R50: 95.5 | S50: 104.5 | T50: 0 | U50: 0 | V50: 113.5 | W50: 0 | X50: 103.5 | Y50: 103.5 | Z50: 65 | AA50: 2000 | AB50: 2.75 | AC50: 0.33 | AD50: 15 | AE50: 4 | AF50: 12 | AG50: 2 | AH50: 5 | AI50: 2.75 | AJ50: 0.28 | AK50: 85 | AL50: 30 | AM50: 20 | AN50: 10 | AO50: 2000 | AP50: 15000 | AQ50: 6.75 | AR50: 4.75 | AS50: 3.75 | AT50: 2.75 | AU50: 20.75 | AV50: 15.75 | AW50: 4.75 | AX50: 2.75 | AY50: 20.75 | AZ50: 15.75 | BA50: 4.75 | BB50: 2.75 | BC50: 3.5 | BD50: 14 | BE50: 6 | BF50: 22.25 | BG50: 17.5 | BH50: 12.5 | BI50: 6.75 | BJ50: 4.85 | BK50: 3.75 | BL50: 21.5 | BM50: 16.5 | BN50: 11.5 | BO50: 5.75 | BP50: 3.85 | BQ50: 2.75 | BR50: 3500 | BS50: 0 | BT50: 0.28 | BU50: 350 | BV50: 0 | BW50: 5 | BX50: 0 | BY50: 0 | BZ50: 24.9 | CA50: 19.9 | CB50: 14.9 | CC50: 8 | CD50: 6.15 | CE50: 4.35 | CF50: 23.9 | CG50: 18.9 | CH50: 13.9 | CI50: 7 | CJ50: 5.15 | CK50: 3.35 | CL50: 0.5 | CM50: 4500 | CN50: 8 | CO50: 0.01 | CP50: 1000 | CQ50: 1.5 | CR50: 70 | CS50: 40 | CT50: 5000 | CU50: 2000 | CV50: 76 | CW50: 35 | CX50: 2000 | CY50: 13 | CZ50: 2000 | DA50: 8.5 | DB50: 8 | DC50: 6.5 | DD50: 5 | DE50: 6 | DF50: 5000
A51: Mason | B51: =VLOOKUP(A51,tables!$A$2:$C$56,2,0) -> 27 | C51: 1047 | D51: =VLOOKUP(A51,tables!$A$2:$C$56,3,0) -> 01 | E51: West Virginia Paving, Inc., Poca Plant | F51: Rt 1 Wright Rd., Poca, WV 25159 | G51: Shamblin Stone | H51: 70 Dunbar Ave., Dunbar WV 25064 | I51: 86.5 | J51: 86.5 | K51: 88 | L51: 88 | M51: 88 | N51: 0 | O51: 91.5 | P51: 95.5 | Q51: 107.5 | R51: 95.5 | S51: 104.5 | T51: 0 | U51: 0 | V51: 113.5 | W51: 0 | X51: 103.5 | Y51: 103.5 | Z51: 65 | AA51: 2000 | AB51: 2.75 | AC51: 0.33 | AD51: 15 | AE51: 4 | AF51: 12 | AG51: 2 | AH51: 5 | AI51: 2.75 | AJ51: 0.28 | AK51: 85 | AL51: 30 | AM51: 20 | AN51: 10 | AO51: 2000 | AP51: 15000 | AQ51: 6.75 | AR51: 4.75 | AS51: 3.75 | AT51: 2.75 | AU51: 20.75 | AV51: 15.75 | AW51: 4.75 | AX51: 2.75 | AY51: 20.75 | AZ51: 15.75 | BA51: 4.75 | BB51: 2.75 | BC51: 3.5 | BD51: 14 | BE51: 6 | BF51: 22.25 | BG51: 17.5 | BH51: 12.5 | BI51: 6.75 | BJ51: 4.85 | BK51: 3.75 | BL51: 21.5 | BM51: 16.5 | BN51: 11.5 | BO51: 5.75 | BP51: 3.85 | BQ51: 2.75 | BR51: 3500 | BS51: 0 | BT51: 0.28 | BU51: 350 | BV51: 0 | BW51: 5 | BX51: 0 | BY51: 0 | BZ51: 24.9 | CA51: 19.9 | CB51: 14.9 | CC51: 8 | CD51: 6.15 | CE51: 4.35 | CF51: 23.9 | CG51: 18.9 | CH51: 13.9 | CI51: 7 | CJ51: 5.15 | CK51: 3.35 | CL51: 0.5 | CM51: 4500 | CN51: 8 | CO51: 0.01 | CP51: 1000 | CQ51: 1.5 | CR51: 70 | CS51: 40 | CT51: 5000 | CU51: 2000 | CV51: 76 | CW51: 35 | CX51: 2000 | CY51: 13 | CZ51: 2000 | DA51: 8.5 | DB51: 8 | DC51: 6.5 | DD51: 5 | DE51: 6 | DF51: 5000
A52: Putnam | B52: =VLOOKUP(A52,tables!$A$2:$C$56,2,0) -> 40 | C52: 1048 | D52: =VLOOKUP(A52,tables!$A$2:$C$56,3,0) -> 01 | E52: West Virginia Paving, Inc., Poca Plant | F52: Rt 1 Wright Rd., Poca, WV 25159 | G52: Shamblin Stone | H52: 70 Dunbar Ave., Dunbar WV 25064 | I52: 86.5 | J52: 86.5 | K52: 88 | L52: 88 | M52: 88 | N52: 0 | O52: 91.5 | P52: 95.5 | Q52: 107.5 | R52: 95.5 | S52: 104.5 | T52: 0 | U52: 0 | V52: 113.5 | W52: 0 | X52: 103.5 | Y52: 103.5 | Z52: 65 | AA52: 2000 | AB52: 2.75 | AC52: 0.33 | AD52: 15 | AE52: 4 | AF52: 12 | AG52: 2 | AH52: 5 | AI52: 2.75 | AJ52: 0.28 | AK52: 85 | AL52: 30 | AM52: 20 | AN52: 10 | AO52: 2000 | AP52: 15000 | AQ52: 6.75 | AR52: 4.75 | AS52: 3.75 | AT52: 2.75 | AU52: 20.75 | AV52: 15.75 | AW52: 4.75 | AX52: 2.75 | AY52: 20.75 | AZ52: 15.75 | BA52: 4.75 | BB52: 2.75 | BC52: 3.5 | BD52: 14 | BE52: 6 | BF52: 22.25 | BG52: 17.5 | BH52: 12.5 | BI52: 6.75 | BJ52: 4.85 | BK52: 3.75 | BL52: 21.5 | BM52: 16.5 | BN52: 11.5 | BO52: 5.75 | BP52: 3.85 | BQ52: 2.75 | BR52: 3500 | BS52: 0 | BT52: 0.28 | BU52: 350 | BV52: 0 | BW52: 5 | BX52: 0 | BY52: 0 | BZ52: 24.9 | CA52: 19.9 | CB52: 14.9 | CC52: 8 | CD52: 6.15 | CE52: 4.35 | CF52: 23.9 | CG52: 18.9 | CH52: 13.9 | CI52: 7 | CJ52: 5.15 | CK52: 3.35 | CL52: 0.5 | CM52: 4500 | CN52: 8 | CO52: 0.01 | CP52: 1000 | CQ52: 1.5 | CR52: 70 | CS52: 40 | CT52: 5000 | CU52: 2000 | CV52: 76 | CW52: 35 | CX52: 2000 | CY52: 13 | CZ52: 2000 | DA52: 8.5 | DB52: 8 | DC52: 6.5 | DD52: 5 | DE52: 6 | DF52: 5000
A53: Mason | B53: =VLOOKUP(A53,tables!$A$2:$C$56,2,0) -> 27 | C53: 1049 | D53: =VLOOKUP(A53,tables!$A$2:$C$56,3,0) -> 01 | E53: West Virginia Paving, Inc., Poca Plant | F53: Rt 1 Wright Rd., Poca, WV 25159 | G53: Shelly Materials | H53: Route 7 North, Gallipolis OH, 45631 | I53: 86.5 | J53: 86.5 | K53: 88 | L53: 88 | M53: 88 | N53: 0 | O53: 91.5 | P53: 95.5 | Q53: 107.5 | R53: 95.5 | S53: 104.5 | T53: 0 | U53: 0 | V53: 113.5 | W53: 0 | X53: 103.5 | Y53: 103.5 | Z53: 65 | AA53: 2000 | AB53: 2.75 | AC53: 0.33 | AD53: 15 | AE53: 4 | AF53: 12 | AG53: 2 | AH53: 5 | AI53: 2.75 | AJ53: 0.28 | AK53: 85 | AL53: 30 | AM53: 20 | AN53: 10 | AO53: 2000 | AP53: 15000 | AQ53: 6.75 | AR53: 4.75 | AS53: 3.75 | AT53: 2.75 | AU53: 20.75 | AV53: 15.75 | AW53: 4.75 | AX53: 2.75 | AY53: 20.75 | AZ53: 15.75 | BA53: 4.75 | BB53: 2.75 | BC53: 3.5 | BD53: 14 | BE53: 6 | BF53: 22.25 | BG53: 17.5 | BH53: 12.5 | BI53: 6.75 | BJ53: 4.85 | BK53: 3.75 | BL53: 21.5 | BM53: 16.5 | BN53: 11.5 | BO53: 5.75 | BP53: 3.85 | BQ53: 2.75 | BR53: 3500 | BS53: 0 | BT53: 0.28 | BU53: 350 | BV53: 0 | BW53: 5 | BX53: 0 | BY53: 0 | BZ53: 24.9 | CA53: 19.9 | CB53: 14.9 | CC53: 8 | CD53: 6.15 | CE53: 4.35 | CF53: 23.9 | CG53: 18.9 | CH53: 13.9 | CI53: 7 | CJ53: 5.15 | CK53: 3.35 | CL53: 0.5 | CM53: 4500 | CN53: 8 | CO53: 0.01 | CP53: 1000 | CQ53: 1.5 | CR53: 70 | CS53: 40 | CT53: 5000 | CU53: 2000 | CV53: 76 | CW53: 35 | CX53: 2000 | CY53: 13 | CZ53: 2000 | DA53: 8.5 | DB53: 8 | DC53: 6.5 | DD53: 5 | DE53: 6 | DF53: 5000
A54: Mason | B54: =VLOOKUP(A54,tables!$A$2:$C$56,2,0) -> 27 | C54: 1050 | D54: =VLOOKUP(A54,tables!$A$2:$C$56,3,0) -> 01 | E54: West Virginia Paving, Inc., Poca Plant | F54: Rt 1 Wright Rd., Poca, WV 25159 | G54: Valley Stone Yard | H54: 360 Valley Rd., Millwood WV, 25262 | I54: 86.5 | J54: 86.5 | K54: 88 | L54: 88 | M54: 88 | N54: 0 | O54: 91.5 | P54: 95.5 | Q54: 107.5 | R54: 95.5 | S54: 104.5 | T54: 0 | U54: 0 | V54: 113.5 | W54: 0 | X54: 103.5 | Y54: 103.5 | Z54: 65 | AA54: 2000 | AB54: 2.75 | AC54: 0.33 | AD54: 15 | AE54: 4 | AF54: 12 | AG54: 2 | AH54: 5 | AI54: 2.75 | AJ54: 0.28 | AK54: 85 | AL54: 30 | AM54: 20 | AN54: 10 | AO54: 2000 | AP54: 15000 | AQ54: 6.75 | AR54: 4.75 | AS54: 3.75 | AT54: 2.75 | AU54: 20.75 | AV54: 15.75 | AW54: 4.75 | AX54: 2.75 | AY54: 20.75 | AZ54: 15.75 | BA54: 4.75 | BB54: 2.75 | BC54: 3.5 | BD54: 14 | BE54: 6 | BF54: 22.25 | BG54: 17.5 | BH54: 12.5 | BI54: 6.75 | BJ54: 4.85 | BK54: 3.75 | BL54: 21.5 | BM54: 16.5 | BN54: 11.5 | BO54: 5.75 | BP54: 3.85 | BQ54: 2.75 | BR54: 3500 | BS54: 0 | BT54: 0.28 | BU54: 350 | BV54: 0 | BW54: 5 | BX54: 0 | BY54: 0 | BZ54: 24.9 | CA54: 19.9 | CB54: 14.9 | CC54: 8 | CD54: 6.15 | CE54: 4.35 | CF54: 23.9 | CG54: 18.9 | CH54: 13.9 | CI54: 7 | CJ54: 5.15 | CK54: 3.35 | CL54: 0.5 | CM54: 4500 | CN54: 8 | CO54: 0.01 | CP54: 1000 | CQ54: 1.5 | CR54: 70 | CS54: 40 | CT54: 5000 | CU54: 2000 | CV54: 76 | CW54: 35 | CX54: 2000 | CY54: 13 | CZ54: 2000 | DA54: 8.5 | DB54: 8 | DC54: 6.5 | DD54: 5 | DE54: 6 | DF54: 5000
A55: Mason | B55: =VLOOKUP(A55,tables!$A$2:$C$56,2,0) -> 27 | C55: 1051 | D55: =VLOOKUP(A55,tables!$A$2:$C$56,3,0) -> 01 | E55: West Virginia Paving, Inc., Poca Plant | F55: Rt 1 Wright Rd., Poca, WV 25159 | G55: WV Paving | H55: 4022 Ohio River Rd., Huntington, WV 25702 | I55: 86.5 | J55: 86.5 | K55: 88 | L55: 88 | M55: 88 | N55: 0 | O55: 91.5 | P55: 95.5 | Q55: 107.5 | R55: 95.5 | S55: 104.5 | T55: 0 | U55: 0 | V55: 113.5 | W55: 0 | X55: 103.5 | Y55: 103.5 | Z55: 65 | AA55: 2000 | AB55: 2.75 | AC55: 0.33 | AD55: 15 | AE55: 4 | AF55: 12 | AG55: 2 | AH55: 5 | AI55: 2.75 | AJ55: 0.28 | AK55: 85 | AL55: 30 | AM55: 20 | AN55: 10 | AO55: 2000 | AP55: 15000 | AQ55: 6.75 | AR55: 4.75 | AS55: 3.75 | AT55: 2.75 | AU55: 20.75 | AV55: 15.75 | AW55: 4.75 | AX55: 2.75 | AY55: 20.75 | AZ55: 15.75 | BA55: 4.75 | BB55: 2.75 | BC55: 3.5 | BD55: 14 | BE55: 6 | BF55: 22.25 | BG55: 17.5 | BH55: 12.5 | BI55: 6.75 | BJ55: 4.85 | BK55: 3.75 | BL55: 21.5 | BM55: 16.5 | BN55: 11.5 | BO55: 5.75 | BP55: 3.85 | BQ55: 2.75 | BR55: 3500 | BS55: 0 | BT55: 0.28 | BU55: 350 | BV55: 0 | BW55: 5 | BX55: 0 | BY55: 0 | BZ55: 24.9 | CA55: 19.9 | CB55: 14.9 | CC55: 8 | CD55: 6.15 | CE55: 4.35 | CF55: 23.9 | CG55: 18.9 | CH55: 13.9 | CI55: 7 | CJ55: 5.15 | CK55: 3.35 | CL55: 0.5 | CM55: 4500 | CN55: 8 | CO55: 0.01 | CP55: 1000 | CQ55: 1.5 | CR55: 70 | CS55: 40 | CT55: 5000 | CU55: 2000 | CV55: 76 | CW55: 35 | CX55: 2000 | CY55: 13 | CZ55: 2000 | DA55: 8.5 | DB55: 8 | DC55: 6.5 | DD55: 5 | DE55: 6 | DF55: 5000
A56: Mason | B56: =VLOOKUP(A56,tables!$A$2:$C$56,2,0) -> 27 | C56: 1052 | D56: =VLOOKUP(A56,tables!$A$2:$C$56,3,0) -> 01 | E56: West Virginia Paving, Inc., Ripley Plant | F56: 2187 Ripley Rd., Ripley, WV25271 | G56: Shamblin Stone | H56: 658 Winfield Rd., St Albans, WV 25177 | I56: 0 | J56: 0 | K56: 96 | L56: 96 | M56: 96 | N56: 0 | O56: 0 | P56: 100 | Q56: 0 | R56: 100 | S56: 0 | T56: 0 | U56: 0 | V56: 110 | W56: 0 | X56: 0 | Y56: 0 | Z56: 65 | AA56: 2000 | AB56: 2.75 | AC56: 0.33 | AD56: 15 | AE56: 4 | AF56: 12 | AG56: 2 | AH56: 5 | AI56: 2.75 | AJ56: 0.28 | AK56: 85 | AL56: 30 | AM56: 20 | AN56: 10 | AO56: 2000 | AP56: 15000 | AQ56: 6.75 | AR56: 4.75 | AS56: 3.75 | AT56: 2.75 | AU56: 20.75 | AV56: 15.75 | AW56: 4.75 | AX56: 2.75 | AY56: 20.75 | AZ56: 15.75 | BA56: 4.75 | BB56: 2.75 | BC56: 3.5 | BD56: 14 | BE56: 6 | BF56: 22.25 | BG56: 17.5 | BH56: 12.5 | BI56: 6.75 | BJ56: 4.85 | BK56: 3.75 | BL56: 21.5 | BM56: 16.5 | BN56: 11.5 | BO56: 5.75 | BP56: 3.85 | BQ56: 2.75 | BR56: 3500 | BS56: 0 | BT56: 0.28 | BU56: 350 | BV56: 0 | BW56: 5 | BX56: 0 | BY56: 0 | BZ56: 24.9 | CA56: 19.9 | CB56: 14.9 | CC56: 8 | CD56: 6.15 | CE56: 4.35 | CF56: 23.9 | CG56: 18.9 | CH56: 13.9 | CI56: 7 | CJ56: 5.15 | CK56: 3.35 | CL56: 0.5 | CM56: 4500 | CN56: 8 | CO56: 0.01 | CP56: 1000 | CQ56: 1.5 | CR56: 70 | CS56: 40 | CT56: 5000 | CU56: 2000 | CV56: 76 | CW56: 35 | CX56: 2000 | CY56: 13 | CZ56: 2000 | DA56: 8.5 | DB56: 8 | DC56: 6.5 | DD56: 5 | DE56: 6 | DF56: 5000
A57: Mason | B57: =VLOOKUP(A57,tables!$A$2:$C$56,2,0) -> 27 | C57: 1053 | D57: =VLOOKUP(A57,tables!$A$2:$C$56,3,0) -> 01 | E57: West Virginia Paving, Inc., Ripley Plant | F57: 2187 Ripley Rd., Ripley, WV25271 | G57: WV Paving | H57: 4022 Ohio River Rd., Huntington, WV 25702 | I57: 0 | J57: 0 | K57: 96 | L57: 96 | M57: 96 | N57: 0 | O57: 0 | P57: 100 | Q57: 0 | R57: 100 | S57: 0 | T57: 0 | U57: 0 | V57: 110 | W57: 0 | X57: 0 | Y57: 0 | Z57: 65 | AA57: 2000 | AB57: 2.75 | AC57: 0.33 | AD57: 15 | AE57: 4 | AF57: 12 | AG57: 2 | AH57: 5 | AI57: 2.75 | AJ57: 0.28 | AK57: 85 | AL57: 30 | AM57: 20 | AN57: 10 | AO57: 2000 | AP57: 15000 | AQ57: 6.75 | AR57: 4.75 | AS57: 3.75 | AT57: 2.75 | AU57: 20.75 | AV57: 15.75 | AW57: 4.75 | AX57: 2.75 | AY57: 20.75 | AZ57: 15.75 | BA57: 4.75 | BB57: 2.75 | BC57: 3.5 | BD57: 14 | BE57: 6 | BF57: 22.25 | BG57: 17.5 | BH57: 12.5 | BI57: 6.75 | BJ57: 4.85 | BK57: 3.75 | BL57: 21.5 | BM57: 16.5 | BN57: 11.5 | BO57: 5.75 | BP57: 3.85 | BQ57: 2.75 | BR57: 3500 | BS57: 0 | BT57: 0.28 | BU57: 350 | BV57: 0 | BW57: 5 | BX57: 0 | BY57: 0 | BZ57: 24.9 | CA57: 19.9 | CB57: 14.9 | CC57: 8 | CD57: 6.15 | CE57: 4.35 | CF57: 23.9 | CG57: 18.9 | CH57: 13.9 | CI57: 7 | CJ57: 5.15 | CK57: 3.35 | CL57: 0.5 | CM57: 4500 | CN57: 8 | CO57: 0.01 | CP57: 1000 | CQ57: 1.5 | CR57: 70 | CS57: 40 | CT57: 5000 | CU57: 2000 | CV57: 76 | CW57: 35 | CX57: 2000 | CY57: 13 | CZ57: 2000 | DA57: 8.5 | DB57: 8 | DC57: 6.5 | DD57: 5 | DE57: 6 | DF57: 5000
A58: Mason | B58: =VLOOKUP(A58,tables!$A$2:$C$56,2,0) -> 27 | C58: 1054 | D58: =VLOOKUP(A58,tables!$A$2:$C$56,3,0) -> 01 | E58: West Virginia Paving, Inc., Ripley Plant | F58: 2187 Ripley Rd., Ripley, WV25271 | G58: Shamblin Stone | H58: 70 Dunbar Ave., Dunbar WV 25064 | I58: 0 | J58: 0 | K58: 96 | L58: 96 | M58: 96 | N58: 0 | O58: 0 | P58: 100 | Q58: 0 | R58: 100 | S58: 0 | T58: 0 | U58: 0 | V58: 110 | W58: 0 | X58: 0 | Y58: 0 | Z58: 65 | AA58: 2000 | AB58: 2.75 | AC58: 0.33 | AD58: 15 | AE58: 4 | AF58: 12 | AG58: 2 | AH58: 5 | AI58: 2.75 | AJ58: 0.28 | AK58: 85 | AL58: 30 | AM58: 20 | AN58: 10 | AO58: 2000 | AP58: 15000 | AQ58: 6.75 | AR58: 4.75 | AS58: 3.75 | AT58: 2.75 | AU58: 20.75 | AV58: 15.75 | AW58: 4.75 | AX58: 2.75 | AY58: 20.75 | AZ58: 15.75 | BA58: 4.75 | BB58: 2.75 | BC58: 3.5 | BD58: 14 | BE58: 6 | BF58: 22.25 | BG58: 17.5 | BH58: 12.5 | BI58: 6.75 | BJ58: 4.85 | BK58: 3.75 | BL58: 21.5 | BM58: 16.5 | BN58: 11.5 | BO58: 5.75 | BP58: 3.85 | BQ58: 2.75 | BR58: 3500 | BS58: 0 | BT58: 0.28 | BU58: 350 | BV58: 0 | BW58: 5 | BX58: 0 | BY58: 0 | BZ58: 24.9 | CA58: 19.9 | CB58: 14.9 | CC58: 8 | CD58: 6.15 | CE58: 4.35 | CF58: 23.9 | CG58: 18.9 | CH58: 13.9 | CI58: 7 | CJ58: 5.15 | CK58: 3.35 | CL58: 0.5 | CM58: 4500 | CN58: 8 | CO58: 0.01 | CP58: 1000 | CQ58: 1.5 | CR58: 70 | CS58: 40 | CT58: 5000 | CU58: 2000 | CV58: 76 | CW58: 35 | CX58: 2000 | CY58: 13 | CZ58: 2000 | DA58: 8.5 | DB58: 8 | DC58: 6.5 | DD58: 5 | DE58: 6 | DF58: 5000
A59: Mason | B59: =VLOOKUP(A59,tables!$A$2:$C$56,2,0) -> 27 | C59: 1055 | D59: =VLOOKUP(A59,tables!$A$2:$C$56,3,0) -> 01 | E59: West Virginia Paving, Inc., Ripley Plant | F59: 2187 Ripley Rd., Ripley, WV25271 | G59: Valley Stone Yard | H59: 360 Valley Rd., Millwood WV, 25262 | I59: 0 | J59: 0 | K59: 96 | L59: 96 | M59: 96 | N59: 0 | O59: 0 | P59: 100 | Q59: 0 | R59: 100 | S59: 0 | T59: 0 | U59: 0 | V59: 110 | W59: 0 | X59: 0 | Y59: 0 | Z59: 65 | AA59: 2000 | AB59: 2.75 | AC59: 0.33 | AD59: 15 | AE59: 4 | AF59: 12 | AG59: 2 | AH59: 5 | AI59: 2.75 | AJ59: 0.28 | AK59: 85 | AL59: 30 | AM59: 20 | AN59: 10 | AO59: 2000 | AP59: 15000 | AQ59: 6.75 | AR59: 4.75 | AS59: 3.75 | AT59: 2.75 | AU59: 20.75 | AV59: 15.75 | AW59: 4.75 | AX59: 2.75 | AY59: 20.75 | AZ59: 15.75 | BA59: 4.75 | BB59: 2.75 | BC59: 3.5 | BD59: 14 | BE59: 6 | BF59: 22.25 | BG59: 17.5 | BH59: 12.5 | BI59: 6.75 | BJ59: 4.85 | BK59: 3.75 | BL59: 21.5 | BM59: 16.5 | BN59: 11.5 | BO59: 5.75 | BP59: 3.85 | BQ59: 2.75 | BR59: 3500 | BS59: 0 | BT59: 0.28 | BU59: 350 | BV59: 0 | BW59: 5 | BX59: 0 | BY59: 0 | BZ59: 24.9 | CA59: 19.9 | CB59: 14.9 | CC59: 8 | CD59: 6.15 | CE59: 4.35 | CF59: 23.9 | CG59: 18.9 | CH59: 13.9 | CI59: 7 | CJ59: 5.15 | CK59: 3.35 | CL59: 0.5 | CM59: 4500 | CN59: 8 | CO59: 0.01 | CP59: 1000 | CQ59: 1.5 | CR59: 70 | CS59: 40 | CT59: 5000 | CU59: 2000 | CV59: 76 | CW59: 35 | CX59: 2000 | CY59: 13 | CZ59: 2000 | DA59: 8.5 | DB59: 8 | DC59: 6.5 | DD59: 5 | DE59: 6 | DF59: 5000
A60: Mason | B60: =VLOOKUP(A60,tables!$A$2:$C$56,2,0) -> 27 | C60: 1056 | D60: =VLOOKUP(A60,tables!$A$2:$C$56,3,0) -> 01 | E60: West Virginia Paving, Inc., Ripley Plant | F60: 2187 Ripley Rd., Ripley, WV25271 | G60: Shelly Materials | H60: Route 7 North, Gallipolis OH, 45631 | I60: 0 | J60: 0 | K60: 96 | L60: 96 | M60: 96 | N60: 0 | O60: 0 | P60: 100 | Q60: 0 | R60: 100 | S60: 0 | T60: 0 | U60: 0 | V60: 110 | W60: 0 | X60: 0 | Y60: 0 | Z60: 65 | AA60: 2000 | AB60: 2.75 | AC60: 0.33 | AD60: 15 | AE60: 4 | AF60: 12 | AG60: 2 | AH60: 5 | AI60: 2.75 | AJ60: 0.28 | AK60: 85 | AL60: 30 | AM60: 20 | AN60: 10 | AO60: 2000 | AP60: 15000 | AQ60: 6.75 | AR60: 4.75 | AS60: 3.75 | AT60: 2.75 | AU60: 20.75 | AV60: 15.75 | AW60: 4.75 | AX60: 2.75 | AY60: 20.75 | AZ60: 15.75 | BA60: 4.75 | BB60: 2.75 | BC60: 3.5 | BD60: 14 | BE60: 6 | BF60: 22.25 | BG60: 17.5 | BH60: 12.5 | BI60: 6.75 | BJ60: 4.85 | BK60: 3.75 | BL60: 21.5 | BM60: 16.5 | BN60: 11.5 | BO60: 5.75 | BP60: 3.85 | BQ60: 2.75 | BR60: 3500 | BS60: 0 | BT60: 0.28 | BU60: 350 | BV60: 0 | BW60: 5 | BX60: 0 | BY60: 0 | BZ60: 24.9 | CA60: 19.9 | CB60: 14.9 | CC60: 8 | CD60: 6.15 | CE60: 4.35 | CF60: 23.9 | CG60: 18.9 | CH60: 13.9 | CI60: 7 | CJ60: 5.15 | CK60: 3.35 | CL60: 0.5 | CM60: 4500 | CN60: 8 | CO60: 0.01 | CP60: 1000 | CQ60: 1.5 | CR60: 70 | CS60: 40 | CT60: 5000 | CU60: 2000 | CV60: 76 | CW60: 35 | CX60: 2000 | CY60: 13 | CZ60: 2000 | DA60: 8.5 | DB60: 8 | DC60: 6.5 | DD60: 5 | DE60: 6 | DF60: 5000
A61: Putnam | B61: =VLOOKUP(A61,tables!$A$2:$C$56,2,0) -> 40 | C61: 1057 | D61: =VLOOKUP(A61,tables!$A$2:$C$56,3,0) -> 01 | E61: West Virginia Paving, Inc., Ripley Plant | F61: 2187 Ripley Rd., Ripley, WV25271 | G61: Shamblin Stone | H61: 658 Winfield Rd., St Albans, WV 25177 | I61: 0 | J61: 0 | K61: 96 | L61: 96 | M61: 96 | N61: 0 | O61: 0 | P61: 100 | Q61: 0 | R61: 100 | S61: 0 | T61: 0 | U61: 0 | V61: 110 | W61: 0 | X61: 0 | Y61: 0 | Z61: 65 | AA61: 2000 | AB61: 2.75 | AC61: 0.33 | AD61: 15 | AE61: 4 | AF61: 12 | AG61: 2 | AH61: 5 | AI61: 2.75 | AJ61: 0.28 | AK61: 85 | AL61: 30 | AM61: 20 | AN61: 10 | AO61: 2000 | AP61: 15000 | AQ61: 6.75 | AR61: 4.75 | AS61: 3.75 | AT61: 2.75 | AU61: 20.75 | AV61: 15.75 | AW61: 4.75 | AX61: 2.75 | AY61: 20.75 | AZ61: 15.75 | BA61: 4.75 | BB61: 2.75 | BC61: 3.5 | BD61: 14 | BE61: 6 | BF61: 22.25 | BG61: 17.5 | BH61: 12.5 | BI61: 6.75 | BJ61: 4.85 | BK61: 3.75 | BL61: 21.5 | BM61: 16.5 | BN61: 11.5 | BO61: 5.75 | BP61: 3.85 | BQ61: 2.75 | BR61: 3500 | BS61: 0 | BT61: 0.28 | BU61: 350 | BV61: 0 | BW61: 5 | BX61: 0 | BY61: 0 | BZ61: 24.9 | CA61: 19.9 | CB61: 14.9 | CC61: 8 | CD61: 6.15 | CE61: 4.35 | CF61: 23.9 | CG61: 18.9 | CH61: 13.9 | CI61: 7 | CJ61: 5.15 | CK61: 3.35 | CL61: 0.5 | CM61: 4500 | CN61: 8 | CO61: 0.01 | CP61: 1000 | CQ61: 1.5 | CR61: 70 | CS61: 40 | CT61: 5000 | CU61: 2000 | CV61: 76 | CW61: 35 | CX61: 2000 | CY61: 13 | CZ61: 2000 | DA61: 8.5 | DB61: 8 | DC61: 6.5 | DD61: 5 | DE61: 6 | DF61: 5000
A62: Putnam | B62: =VLOOKUP(A62,tables!$A$2:$C$56,2,0) -> 40 | C62: 1058 | D62: =VLOOKUP(A62,tables!$A$2:$C$56,3,0) -> 01 | E62: West Virginia Paving, Inc., Ripley Plant | F62: 2187 Ripley Rd., Ripley, WV25271 | G62: WV Paving | H62: 4022 Ohio River Rd., Huntington, WV 25702 | I62: 0 | J62: 0 | K62: 96 | L62: 96 | M62: 96 | N62: 0 | O62: 0 | P62: 100 | Q62: 0 | R62: 100 | S62: 0 | T62: 0 | U62: 0 | V62: 110 | W62: 0 | X62: 0 | Y62: 0 | Z62: 65 | AA62: 2000 | AB62: 2.75 | AC62: 0.33 | AD62: 15 | AE62: 4 | AF62: 12 | AG62: 2 | AH62: 5 | AI62: 2.75 | AJ62: 0.28 | AK62: 85 | AL62: 30 | AM62: 20 | AN62: 10 | AO62: 2000 | AP62: 15000 | AQ62: 6.75 | AR62: 4.75 | AS62: 3.75 | AT62: 2.75 | AU62: 20.75 | AV62: 15.75 | AW62: 4.75 | AX62: 2.75 | AY62: 20.75 | AZ62: 15.75 | BA62: 4.75 | BB62: 2.75 | BC62: 3.5 | BD62: 14 | BE62: 6 | BF62: 22.25 | BG62: 17.5 | BH62: 12.5 | BI62: 6.75 | BJ62: 4.85 | BK62: 3.75 | BL62: 21.5 | BM62: 16.5 | BN62: 11.5 | BO62: 5.75 | BP62: 3.85 | BQ62: 2.75 | BR62: 3500 | BS62: 0 | BT62: 0.28 | BU62: 350 | BV62: 0 | BW62: 5 | BX62: 0 | BY62: 0 | BZ62: 24.9 | CA62: 19.9 | CB62: 14.9 | CC62: 8 | CD62: 6.15 | CE62: 4.35 | CF62: 23.9 | CG62: 18.9 | CH62: 13.9 | CI62: 7 | CJ62: 5.15 | CK62: 3.35 | CL62: 0.5 | CM62: 4500 | CN62: 8 | CO62: 0.01 | CP62: 1000 | CQ62: 1.5 | CR62: 70 | CS62: 40 | CT62: 5000 | CU62: 2000 | CV62: 76 | CW62: 35 | CX62: 2000 | CY62: 13 | CZ62: 2000 | DA62: 8.5 | DB62: 8 | DC62: 6.5 | DD62: 5 | DE62: 6 | DF62: 5000
A63: Putnam | B63: =VLOOKUP(A63,tables!$A$2:$C$56,2,0) -> 40 | C63: 1059 | D63: =VLOOKUP(A63,tables!$A$2:$C$56,3,0) -> 01 | E63: West Virginia Paving, Inc., Ripley Plant | F63: 2187 Ripley Rd., Ripley, WV25271 | G63: Shamblin Stone | H63: 70 Dunbar Ave., Dunbar WV 25064 | I63: 0 | J63: 0 | K63: 96 | L63: 96 | M63: 96 | N63: 0 | O63: 0 | P63: 100 | Q63: 0 | R63: 100 | S63: 0 | T63: 0 | U63: 0 | V63: 110 | W63: 0 | X63: 0 | Y63: 0 | Z63: 65 | AA63: 2000 | AB63: 2.75 | AC63: 0.33 | AD63: 15 | AE63: 4 | AF63: 12 | AG63: 2 | AH63: 5 | AI63: 2.75 | AJ63: 0.28 | AK63: 85 | AL63: 30 | AM63: 20 | AN63: 10 | AO63: 2000 | AP63: 15000 | AQ63: 6.75 | AR63: 4.75 | AS63: 3.75 | AT63: 2.75 | AU63: 20.75 | AV63: 15.75 | AW63: 4.75 | AX63: 2.75 | AY63: 20.75 | AZ63: 15.75 | BA63: 4.75 | BB63: 2.75 | BC63: 3.5 | BD63: 14 | BE63: 6 | BF63: 22.25 | BG63: 17.5 | BH63: 12.5 | BI63: 6.75 | BJ63: 4.85 | BK63: 3.75 | BL63: 21.5 | BM63: 16.5 | BN63: 11.5 | BO63: 5.75 | BP63: 3.85 | BQ63: 2.75 | BR63: 3500 | BS63: 0 | BT63: 0.28 | BU63: 350 | BV63: 0 | BW63: 5 | BX63: 0 | BY63: 0 | BZ63: 24.9 | CA63: 19.9 | CB63: 14.9 | CC63: 8 | CD63: 6.15 | CE63: 4.35 | CF63: 23.9 | CG63: 18.9 | CH63: 13.9 | CI63: 7 | CJ63: 5.15 | CK63: 3.35 | CL63: 0.5 | CM63: 4500 | CN63: 8 | CO63: 0.01 | CP63: 1000 | CQ63: 1.5 | CR63: 70 | CS63: 40 | CT63: 5000 | CU63: 2000 | CV63: 76 | CW63: 35 | CX63: 2000 | CY63: 13 | CZ63: 2000 | DA63: 8.5 | DB63: 8 | DC63: 6.5 | DD63: 5 | DE63: 6 | DF63: 5000
A64: Putnam | B64: =VLOOKUP(A64,tables!$A$2:$C$56,2,0) -> 40 | C64: 1060 | D64: =VLOOKUP(A64,tables!$A$2:$C$56,3,0) -> 01 | E64: West Virginia Paving, Inc., Ripley Plant | F64: 2187 Ripley Rd., Ripley, WV25271 | G64: Valley Stone Yard | H64: 360 Valley Rd., Millwood WV, 25262 | I64: 0 | J64: 0 | K64: 96 | L64: 96 | M64: 96 | N64: 0 | O64: 0 | P64: 100 | Q64: 0 | R64: 100 | S64: 0 | T64: 0 | U64: 0 | V64: 110 | W64: 0 | X64: 0 | Y64: 0 | Z64: 65 | AA64: 2000 | AB64: 2.75 | AC64: 0.33 | AD64: 15 | AE64: 4 | AF64: 12 | AG64: 2 | AH64: 5 | AI64: 2.75 | AJ64: 0.28 | AK64: 85 | AL64: 30 | AM64: 20 | AN64: 10 | AO64: 2000 | AP64: 15000 | AQ64: 6.75 | AR64: 4.75 | AS64: 3.75 | AT64: 2.75 | AU64: 20.75 | AV64: 15.75 | AW64: 4.75 | AX64: 2.75 | AY64: 20.75 | AZ64: 15.75 | BA64: 4.75 | BB64: 2.75 | BC64: 3.5 | BD64: 14 | BE64: 6 | BF64: 22.25 | BG64: 17.5 | BH64: 12.5 | BI64: 6.75 | BJ64: 4.85 | BK64: 3.75 | BL64: 21.5 | BM64: 16.5 | BN64: 11.5 | BO64: 5.75 | BP64: 3.85 | BQ64: 2.75 | BR64: 3500 | BS64: 0 | BT64: 0.28 | BU64: 350 | BV64: 0 | BW64: 5 | BX64: 0 | BY64: 0 | BZ64: 24.9 | CA64: 19.9 | CB64: 14.9 | CC64: 8 | CD64: 6.15 | CE64: 4.35 | CF64: 23.9 | CG64: 18.9 | CH64: 13.9 | CI64: 7 | CJ64: 5.15 | CK64: 3.35 | CL64: 0.5 | CM64: 4500 | CN64: 8 | CO64: 0.01 | CP64: 1000 | CQ64: 1.5 | CR64: 70 | CS64: 40 | CT64: 5000 | CU64: 2000 | CV64: 76 | CW64: 35 | CX64: 2000 | CY64: 13 | CZ64: 2000 | DA64: 8.5 | DB64: 8 | DC64: 6.5 | DD64: 5 | DE64: 6 | DF64: 5000
A65: Putnam | B65: =VLOOKUP(A65,tables!$A$2:$C$56,2,0) -> 40 | C65: 1061 | D65: =VLOOKUP(A65,tables!$A$2:$C$56,3,0) -> 01 | E65: West Virginia Paving, Inc., Ripley Plant | F65: 2187 Ripley Rd., Ripley, WV25271 | G65: Shelly Materials | H65: Route 7 North, Gallipolis OH, 45631 | I65: 0 | J65: 0 | K65: 96 | L65: 96 | M65: 96 | N65: 0 | O65: 0 | P65: 100 | Q65: 0 | R65: 100 | S65: 0 | T65: 0 | U65: 0 | V65: 110 | W65: 0 | X65: 0 | Y65: 0 | Z65: 65 | AA65: 2000 | AB65: 2.75 | AC65: 0.33 | AD65: 15 | AE65: 4 | AF65: 12 | AG65: 2 | AH65: 5 | AI65: 2.75 | AJ65: 0.28 | AK65: 85 | AL65: 30 | AM65: 20 | AN65: 10 | AO65: 2000 | AP65: 15000 | AQ65: 6.75 | AR65: 4.75 | AS65: 3.75 | AT65: 2.75 | AU65: 20.75 | AV65: 15.75 | AW65: 4.75 | AX65: 2.75 | AY65: 20.75 | AZ65: 15.75 | BA65: 4.75 | BB65: 2.75 | BC65: 3.5 | BD65: 14 | BE65: 6 | BF65: 22.25 | BG65: 17.5 | BH65: 12.5 | BI65: 6.75 | BJ65: 4.85 | BK65: 3.75 | BL65: 21.5 | BM65: 16.5 | BN65: 11.5 | BO65: 5.75 | BP65: 3.85 | BQ65: 2.75 | BR65: 3500 | BS65: 0 | BT65: 0.28 | BU65: 350 | BV65: 0 | BW65: 5 | BX65: 0 | BY65: 0 | BZ65: 24.9 | CA65: 19.9 | CB65: 14.9 | CC65: 8 | CD65: 6.15 | CE65: 4.35 | CF65: 23.9 | CG65: 18.9 | CH65: 13.9 | CI65: 7 | CJ65: 5.15 | CK65: 3.35 | CL65: 0.5 | CM65: 4500 | CN65: 8 | CO65: 0.01 | CP65: 1000 | CQ65: 1.5 | CR65: 70 | CS65: 40 | CT65: 5000 | CU65: 2000 | CV65: 76 | CW65: 35 | CX65: 2000 | CY65: 13 | CZ65: 2000 | DA65: 8.5 | DB65: 8 | DC65: 6.5 | DD65: 5 | DE65: 6 | DF65: 5000
A66: Mason | B66: =VLOOKUP(A66,tables!$A$2:$C$56,2,0) -> 27 | C66: 1062 | D66: =VLOOKUP(A66,tables!$A$2:$C$56,3,0) -> 01 | E66: West Virginia Paving, Inc., Shelly Co. | F66: Rt. 7 North,Gallipolis, OH 45631 | G66: Shamblin Stone | H66: 658 Winfield Rd., St Albans, WV 25177 | I66: 0 | J66: 0 | K66: 92 | L66: 92 | M66: 92 | N66: 0 | O66: 0 | P66: 102 | Q66: 0 | R66: 102 | S66: 0 | T66: 0 | U66: 0 | V66: 0 | W66: 0 | X66: 0 | Y66: 0 | Z66: 65 | AA66: 2000 | AB66: 2.75 | AC66: 0.51 | AD66: 15 | AE66: 4 | AF66: 12 | AG66: 2 | AH66: 5 | AI66: 2.75 | AJ66: 0.46 | AK66: 85 | AL66: 30 | AM66: 20 | AN66: 10 | AO66: 2000 | AP66: 15000 | AQ66: 6.75 | AR66: 4.75 | AS66: 3.75 | AT66: 2.75 | AU66: 20.75 | AV66: 15.75 | AW66: 4.75 | AX66: 2.75 | AY66: 20.75 | AZ66: 15.75 | BA66: 4.75 | BB66: 2.75 | BC66: 3.5 | BD66: 14 | BE66: 6 | BF66: 21.5 | BG66: 16.75 | BH66: 11.75 | BI66: 6.75 | BJ66: 4.75 | BK66: 3.75 | BL66: 20.75 | BM66: 15.75 | BN66: 11.75 | BO66: 5.75 | BP66: 3.75 | BQ66: 2.75 | BR66: 3500 | BS66: 0 | BT66: 0.46 | BU66: 350 | BV66: 0 | BW66: 5 | BX66: 0 | BY66: 0 | BZ66: 24.9 | CA66: 19.9 | CB66: 14.9 | CC66: 8 | CD66: 6.15 | CE66: 4.35 | CF66: 23.9 | CG66: 18.9 | CH66: 13.9 | CI66: 7 | CJ66: 5.15 | CK66: 3.35 | CL66: 0.5 | CM66: 4500 | CN66: 8 | CO66: 0.01 | CP66: 1000 | CQ66: 1.5 | CR66: 70 | CS66: 40 | CT66: 5000 | CU66: 2000 | CV66: 76 | CW66: 35 | CX66: 2000 | CY66: 13 | CZ66: 2000 | DA66: 8.5 | DB66: 8 | DC66: 6.5 | DD66: 5 | DE66: 6 | DF66: 5000
A67: Mason | B67: =VLOOKUP(A67,tables!$A$2:$C$56,2,0) -> 27 | C67: 1063 | D67: =VLOOKUP(A67,tables!$A$2:$C$56,3,0) -> 01 | E67: West Virginia Paving, Inc., Shelly Co. | F67: Rt. 7 North,Gallipolis, OH 45631 | G67: WV Paving | H67: 4022 Ohio River Rd., Huntington, WV 25702 | I67: 0 | J67: 0 | K67: 92 | L67: 92 | M67: 92 | N67: 0 | O67: 0 | P67: 102 | Q67: 0 | R67: 102 | S67: 0 | T67: 0 | U67: 0 | V67: 0 | W67: 0 | X67: 0 | Y67: 0 | Z67: 65 | AA67: 2000 | AB67: 2.75 | AC67: 0.51 | AD67: 15 | AE67: 4 | AF67: 12 | AG67: 2 | AH67: 5 | AI67: 2.75 | AJ67: 0.46 | AK67: 85 | AL67: 30 | AM67: 20 | AN67: 10 | AO67: 2000 | AP67: 15000 | AQ67: 6.75 | AR67: 4.75 | AS67: 3.75 | AT67: 2.75 | AU67: 20.75 | AV67: 15.75 | AW67: 4.75 | AX67: 2.75 | AY67: 20.75 | AZ67: 15.75 | BA67: 4.75 | BB67: 2.75 | BC67: 3.5 | BD67: 14 | BE67: 6 | BF67: 21.5 | BG67: 16.75 | BH67: 11.75 | BI67: 6.75 | BJ67: 4.75 | BK67: 3.75 | BL67: 20.75 | BM67: 15.75 | BN67: 11.75 | BO67: 5.75 | BP67: 3.75 | BQ67: 2.75 | BR67: 3500 | BS67: 0 | BT67: 0.46 | BU67: 350 | BV67: 0 | BW67: 5 | BX67: 0 | BY67: 0 | BZ67: 24.9 | CA67: 19.9 | CB67: 14.9 | CC67: 8 | CD67: 6.15 | CE67: 4.35 | CF67: 23.9 | CG67: 18.9 | CH67: 13.9 | CI67: 7 | CJ67: 5.15 | CK67: 3.35 | CL67: 0.5 | CM67: 4500 | CN67: 8 | CO67: 0.01 | CP67: 1000 | CQ67: 1.5 | CR67: 70 | CS67: 40 | CT67: 5000 | CU67: 2000 | CV67: 76 | CW67: 35 | CX67: 2000 | CY67: 13 | CZ67: 2000 | DA67: 8.5 | DB67: 8 | DC67: 6.5 | DD67: 5 | DE67: 6 | DF67: 5000
A68: Mason | B68: =VLOOKUP(A68,tables!$A$2:$C$56,2,0) -> 27 | C68: 1064 | D68: =VLOOKUP(A68,tables!$A$2:$C$56,3,0) -> 01 | E68: West Virginia Paving, Inc., Shelly Co. | F68: Rt. 7 North,Gallipolis, OH 45631 | G68: Shamblin Stone | H68: 70 Dunbar Ave., Dunbar WV 25064 | I68: 0 | J68: 0 | K68: 92 | L68: 92 | M68: 92 | N68: 0 | O68: 0 | P68: 102 | Q68: 0 | R68: 102 | S68: 0 | T68: 0 | U68: 0 | V68: 0 | W68: 0 | X68: 0 | Y68: 0 | Z68: 65 | AA68: 2000 | AB68: 2.75 | AC68: 0.51 | AD68: 15 | AE68: 4 | AF68: 12 | AG68: 2 | AH68: 5 | AI68: 2.75 | AJ68: 0.46 | AK68: 85 | AL68: 30 | AM68: 20 | AN68: 10 | AO68: 2000 | AP68: 15000 | AQ68: 6.75 | AR68: 4.75 | AS68: 3.75 | AT68: 2.75 | AU68: 20.75 | AV68: 15.75 | AW68: 4.75 | AX68: 2.75 | AY68: 20.75 | AZ68: 15.75 | BA68: 4.75 | BB68: 2.75 | BC68: 3.5 | BD68: 14 | BE68: 6 | BF68: 21.5 | BG68: 16.75 | BH68: 11.75 | BI68: 6.75 | BJ68: 4.75 | BK68: 3.75 | BL68: 20.75 | BM68: 15.75 | BN68: 11.75 | BO68: 5.75 | BP68: 3.75 | BQ68: 2.75 | BR68: 3500 | BS68: 0 | BT68: 0.46 | BU68: 350 | BV68: 0 | BW68: 5 | BX68: 0 | BY68: 0 | BZ68: 24.9 | CA68: 19.9 | CB68: 14.9 | CC68: 8 | CD68: 6.15 | CE68: 4.35 | CF68: 23.9 | CG68: 18.9 | CH68: 13.9 | CI68: 7 | CJ68: 5.15 | CK68: 3.35 | CL68: 0.5 | CM68: 4500 | CN68: 8 | CO68: 0.01 | CP68: 1000 | CQ68: 1.5 | CR68: 70 | CS68: 40 | CT68: 5000 | CU68: 2000 | CV68: 76 | CW68: 35 | CX68: 2000 | CY68: 13 | CZ68: 2000 | DA68: 8.5 | DB68: 8 | DC68: 6.5 | DD68: 5 | DE68: 6 | DF68: 5000
A69: Mason | B69: =VLOOKUP(A69,tables!$A$2:$C$56,2,0) -> 27 | C69: 1065 | D69: =VLOOKUP(A69,tables!$A$2:$C$56,3,0) -> 01 | E69: West Virginia Paving, Inc., Shelly Co. | F69: Rt. 7 North,Gallipolis, OH 45631 | G69: Valley Stone Yard | H69: 360 Valley Rd., Millwood WV, 25262 | I69: 0 | J69: 0 | K69: 92 | L69: 92 | M69: 92 | N69: 0 | O69: 0 | P69: 102 | Q69: 0 | R69: 102 | S69: 0 | T69: 0 | U69: 0 | V69: 0 | W69: 0 | X69: 0 | Y69: 0 | Z69: 65 | AA69: 2000 | AB69: 2.75 | AC69: 0.51 | AD69: 15 | AE69: 4 | AF69: 12 | AG69: 2 | AH69: 5 | AI69: 2.75 | AJ69: 0.46 | AK69: 85 | AL69: 30 | AM69: 20 | AN69: 10 | AO69: 2000 | AP69: 15000 | AQ69: 6.75 | AR69: 4.75 | AS69: 3.75 | AT69: 2.75 | AU69: 20.75 | AV69: 15.75 | AW69: 4.75 | AX69: 2.75 | AY69: 20.75 | AZ69: 15.75 | BA69: 4.75 | BB69: 2.75 | BC69: 3.5 | BD69: 14 | BE69: 6 | BF69: 21.5 | BG69: 16.75 | BH69: 11.75 | BI69: 6.75 | BJ69: 4.75 | BK69: 3.75 | BL69: 20.75 | BM69: 15.75 | BN69: 11.75 | BO69: 5.75 | BP69: 3.75 | BQ69: 2.75 | BR69: 3500 | BS69: 0 | BT69: 0.46 | BU69: 350 | BV69: 0 | BW69: 5 | BX69: 0 | BY69: 0 | BZ69: 24.9 | CA69: 19.9 | CB69: 14.9 | CC69: 8 | CD69: 6.15 | CE69: 4.35 | CF69: 23.9 | CG69: 18.9 | CH69: 13.9 | CI69: 7 | CJ69: 5.15 | CK69: 3.35 | CL69: 0.5 | CM69: 4500 | CN69: 8 | CO69: 0.01 | CP69: 1000 | CQ69: 1.5 | CR69: 70 | CS69: 40 | CT69: 5000 | CU69: 2000 | CV69: 76 | CW69: 35 | CX69: 2000 | CY69: 13 | CZ69: 2000 | DA69: 8.5 | DB69: 8 | DC69: 6.5 | DD69: 5 | DE69: 6 | DF69: 5000
A70: Mason | B70: =VLOOKUP(A70,tables!$A$2:$C$56,2,0) -> 27 | C70: 1066 | D70: =VLOOKUP(A70,tables!$A$2:$C$56,3,0) -> 01 | E70: West Virginia Paving, Inc., Shelly Co. | F70: Rt. 7 North,Gallipolis, OH 45631 | G70: Shelly Materials | H70: Route 7 North, Gallipolis OH, 45631 | I70: 0 | J70: 0 | K70: 92 | L70: 92 | M70: 92 | N70: 0 | O70: 0 | P70: 102 | Q70: 0 | R70: 102 | S70: 0 | T70: 0 | U70: 0 | V70: 0 | W70: 0 | X70: 0 | Y70: 0 | Z70: 65 | AA70: 2000 | AB70: 2.75 | AC70: 0.51 | AD70: 15 | AE70: 4 | AF70: 12 | AG70: 2 | AH70: 5 | AI70: 2.75 | AJ70: 0.46 | AK70: 85 | AL70: 30 | AM70: 20 | AN70: 10 | AO70: 2000 | AP70: 15000 | AQ70: 6.75 | AR70: 4.75 | AS70: 3.75 | AT70: 2.75 | AU70: 20.75 | AV70: 15.75 | AW70: 4.75 | AX70: 2.75 | AY70: 20.75 | AZ70: 15.75 | BA70: 4.75 | BB70: 2.75 | BC70: 3.5 | BD70: 14 | BE70: 6 | BF70: 21.5 | BG70: 16.75 | BH70: 11.75 | BI70: 6.75 | BJ70: 4.75 | BK70: 3.75 | BL70: 20.75 | BM70: 15.75 | BN70: 11.75 | BO70: 5.75 | BP70: 3.75 | BQ70: 2.75 | BR70: 3500 | BS70: 0 | BT70: 0.46 | BU70: 350 | BV70: 0 | BW70: 5 | BX70: 0 | BY70: 0 | BZ70: 24.9 | CA70: 19.9 | CB70: 14.9 | CC70: 8 | CD70: 6.15 | CE70: 4.35 | CF70: 23.9 | CG70: 18.9 | CH70: 13.9 | CI70: 7 | CJ70: 5.15 | CK70: 3.35 | CL70: 0.5 | CM70: 4500 | CN70: 8 | CO70: 0.01 | CP70: 1000 | CQ70: 1.5 | CR70: 70 | CS70: 40 | CT70: 5000 | CU70: 2000 | CV70: 76 | CW70: 35 | CX70: 2000 | CY70: 13 | CZ70: 2000 | DA70: 8.5 | DB70: 8 | DC70: 6.5 | DD70: 5 | DE70: 6 | DF70: 5000
A71: Cabell | B71: =VLOOKUP(A71,tables!$A$2:$C$56,2,0) -> 6 | C71: 2001 | D71: =VLOOKUP(A71,tables!$A$2:$C$56,3,0) -> 02 | E71: BTI Contracting Inc. Kenova | F71: 2334 Route 52 Kenova, WV 25530 | G71: Scary Creek Materials | H71: #9 Orders Way, Winfield, WV | I71: 77.27 | J71: 78.22 | K71: 80.12 | L71: 80.12 | M71: 82.83 | N71: 89.57 | O71: 80.45 | P71: 87.7 | Q71: 93.17 | R71: 87.7 | S71: 95.9 | T71: 118.91 | U71: 118.95 | V71: 103.94 | W71: 118.92 | X71: 96.22 | Y71: 96.22 | Z71: 67.5 | AA71: 1950 | AB71: 2.9 | AC71: 0.3 | AD71: 5 | AE71: 5 | AF71: 12.5 | AG71: 1.75 | AH71: 4.5 | AI71: 3 | AJ71: 0.27 | AK71: 83 | AL71: 29.75 | AM71: 19.5 | AN71: 9.7 | AO71: 1750 | AP71: 8000 | AQ71: 7 | AR71: 5 | AS71: 4 | AT71: 3 | AU71: 21.25 | AV71: 16 | AW71: 6 | AX71: 4 | AY71: 20.75 | AZ71: 16 | BA71: 6 | BB71: 4 | BC71: 3.25 | BD71: 13 | BE71: 5 | BF71: 23 | BG71: 16.75 | BH71: 11.75 | BI71: 6.6 | BJ71: 4.5 | BK71: 3.4 | BL71: 20.25 | BM71: 15.25 | BN71: 9.75 | BO71: 5 | BP71: 3.25 | BQ71: 2.25 | BR71: 3250 | BS71: 0 | BT71: 0.27 | BU71: 345 | BV71: 0 | BW71: 5 | BX71: 0 | BY71: 0 | BZ71: 24 | CA71: 18 | CB71: 13.5 | CC71: 7.25 | CD71: 5.5 | CE71: 3.6 | CF71: 22.5 | CG71: 16.5 | CH71: 12 | CI71: 6 | CJ71: 4.4 | CK71: 2.6 | CL71: 0.75 | CM71: 4250 | CN71: 7.25 | CO71: 0.01 | CP71: 960 | CQ71: 1 | CR71: 69 | CS71: 40 | CT71: 3500 | CU71: 1250 | CV71: 75 | CW71: 40 | CX71: 1750 | CY71: 22 | CZ71: 1950 | DA71: 9.5 | DB71: 7.4 | DC71: 6 | DD71: 4.55 | DE71: 5.25 | DF71: 5000
A72: Lincoln | B72: =VLOOKUP(A72,tables!$A$2:$C$56,2,0) -> 22 | C72: 2002 | D72: =VLOOKUP(A72,tables!$A$2:$C$56,3,0) -> 02 | E72: BTI Contracting Inc. Kenova | F72: 2334 Route 52 Kenova, WV 25530 | G72: Scary Creek Materials | H72: #9 Orders Way, Winfield, WV | I72: 77.27 | J72: 78.22 | K72: 80.12 | L72: 80.12 | M72: 82.83 | N72: 89.57 | O72: 80.45 | P72: 87.7 | Q72: 93.17 | R72: 87.7 | S72: 95.9 | T72: 118.91 | U72: 118.95 | V72: 103.94 | W72: 118.92 | X72: 96.22 | Y72: 96.22 | Z72: 67.5 | AA72: 1950 | AB72: 2.9 | AC72: 0.3 | AD72: 5 | AE72: 5 | AF72: 12.5 | AG72: 1.75 | AH72: 4.5 | AI72: 3 | AJ72: 0.27 | AK72: 83 | AL72: 29.75 | AM72: 19.5 | AN72: 9.7 | AO72: 1750 | AP72: 8000 | AQ72: 7 | AR72: 5 | AS72: 4 | AT72: 3 | AU72: 21.25 | AV72: 16 | AW72: 6 | AX72: 4 | AY72: 20.75 | AZ72: 16 | BA72: 6 | BB72: 4 | BC72: 3.25 | BD72: 13 | BE72: 5 | BF72: 23 | BG72: 16.75 | BH72: 11.75 | BI72: 6.6 | BJ72: 4.5 | BK72: 3.4 | BL72: 20.25 | BM72: 15.25 | BN72: 9.75 | BO72: 5 | BP72: 3.25 | BQ72: 2.25 | BR72: 3250 | BS72: 0 | BT72: 0.27 | BU72: 345 | BV72: 0 | BW72: 5 | BX72: 0 | BY72: 0 | BZ72: 24 | CA72: 18 | CB72: 13.5 | CC72: 7.25 | CD72: 5.5 | CE72: 3.6 | CF72: 22.5 | CG72: 16.5 | CH72: 12 | CI72: 6 | CJ72: 4.4 | CK72: 2.6 | CL72: 0.75 | CM72: 4250 | CN72: 7.25 | CO72: 0.01 | CP72: 960 | CQ72: 1 | CR72: 69 | CS72: 40 | CT72: 3500 | CU72: 1250 | CV72: 75 | CW72: 40 | CX72: 1750 | CY72: 22 | CZ72: 1950 | DA72: 9.5 | DB72: 7.4 | DC72: 6 | DD72: 4.55 | DE72: 5.25 | DF72: 5000
A73: Logan | B73: =VLOOKUP(A73,tables!$A$2:$C$56,2,0) -> 23 | C73: 2003 | D73: =VLOOKUP(A73,tables!$A$2:$C$56,3,0) -> 02 | E73: BTI Contracting Inc. Kenova | F73: 2334 Route 52 Kenova, WV 25530 | G73: Scary Creek Materials | H73: #9 Orders Way, Winfield, WV | I73: 77.27 | J73: 78.22 | K73: 80.12 | L73: 80.12 | M73: 82.83 | N73: 89.57 | O73: 80.45 | P73: 87.7 | Q73: 93.17 | R73: 87.7 | S73: 95.9 | T73: 118.91 | U73: 118.95 | V73: 103.94 | W73: 118.92 | X73: 96.22 | Y73: 96.22 | Z73: 67.5 | AA73: 1950 | AB73: 2.9 | AC73: 0.3 | AD73: 5 | AE73: 5 | AF73: 12.5 | AG73: 1.75 | AH73: 4.5 | AI73: 3 | AJ73: 0.27 | AK73: 83 | AL73: 29.75 | AM73: 19.5 | AN73: 9.7 | AO73: 1750 | AP73: 8000 | AQ73: 7 | AR73: 5 | AS73: 4 | AT73: 3 | AU73: 21.25 | AV73: 16 | AW73: 6 | AX73: 4 | AY73: 20.75 | AZ73: 16 | BA73: 6 | BB73: 4 | BC73: 3.25 | BD73: 13 | BE73: 5 | BF73: 23 | BG73: 16.75 | BH73: 11.75 | BI73: 6.6 | BJ73: 4.5 | BK73: 3.4 | BL73: 20.25 | BM73: 15.25 | BN73: 9.75 | BO73: 5 | BP73: 3.25 | BQ73: 2.25 | BR73: 3250 | BS73: 0 | BT73: 0.27 | BU73: 345 | BV73: 0 | BW73: 5 | BX73: 0 | BY73: 0 | BZ73: 24 | CA73: 18 | CB73: 13.5 | CC73: 7.25 | CD73: 5.5 | CE73: 3.6 | CF73: 22.5 | CG73: 16.5 | CH73: 12 | CI73: 6 | CJ73: 4.4 | CK73: 2.6 | CL73: 0.75 | CM73: 4250 | CN73: 7.25 | CO73: 0.01 | CP73: 960 | CQ73: 1 | CR73: 69 | CS73: 40 | CT73: 3500 | CU73: 1250 | CV73: 75 | CW73: 40 | CX73: 1750 | CY73: 22 | CZ73: 1950 | DA73: 9.5 | DB73: 7.4 | DC73: 6 | DD73: 4.55 | DE73: 5.25 | DF73: 5000
A74: Mingo | B74: =VLOOKUP(A74,tables!$A$2:$C$56,2,0) -> 30 | C74: 2004 | D74: =VLOOKUP(A74,tables!$A$2:$C$56,3,0) -> 02 | E74: BTI Contracting Inc. Kenova | F74: 2334 Route 52 Kenova, WV 25530 | G74: Scary Creek Materials | H74: #9 Orders Way, Winfield, WV | I74: 77.27 | J74: 78.22 | K74: 80.12 | L74: 80.12 | M74: 82.83 | N74: 89.57 | O74: 80.45 | P74: 87.7 | Q74: 93.17 | R74: 87.7 | S74: 95.9 | T74: 118.91 | U74: 118.95 | V74: 103.94 | W74: 118.92 | X74: 96.22 | Y74: 96.22 | Z74: 67.5 | AA74: 1950 | AB74: 2.9 | AC74: 0.3 | AD74: 5 | AE74: 5 | AF74: 12.5 | AG74: 1.75 | AH74: 4.5 | AI74: 3 | AJ74: 0.27 | AK74: 83 | AL74: 29.75 | AM74: 19.5 | AN74: 9.7 | AO74: 1750 | AP74: 8000 | AQ74: 7 | AR74: 5 | AS74: 4 | AT74: 3 | AU74: 21.25 | AV74: 16 | AW74: 6 | AX74: 4 | AY74: 20.75 | AZ74: 16 | BA74: 6 | BB74: 4 | BC74: 3.25 | BD74: 13 | BE74: 5 | BF74: 23 | BG74: 16.75 | BH74: 11.75 | BI74: 6.6 | BJ74: 4.5 | BK74: 3.4 | BL74: 20.25 | BM74: 15.25 | BN74: 9.75 | BO74: 5 | BP74: 3.25 | BQ74: 2.25 | BR74: 3250 | BS74: 0 | BT74: 0.27 | BU74: 345 | BV74: 0 | BW74: 5 | BX74: 0 | BY74: 0 | BZ74: 24 | CA74: 18 | CB74: 13.5 | CC74: 7.25 | CD74: 5.5 | CE74: 3.6 | CF74: 22.5 | CG74: 16.5 | CH74: 12 | CI74: 6 | CJ74: 4.4 | CK74: 2.6 | CL74: 0.75 | CM74: 4250 | CN74: 7.25 | CO74: 0.01 | CP74: 960 | CQ74: 1 | CR74: 69 | CS74: 40 | CT74: 3500 | CU74: 1250 | CV74: 75 | CW74: 40 | CX74: 1750 | CY74: 22 | CZ74: 1950 | DA74: 9.5 | DB74: 7.4 | DC74: 6 | DD74: 4.55 | DE74: 5.25 | DF74: 5000
A75: Wayne | B75: =VLOOKUP(A75,tables!$A$2:$C$56,2,0) -> 50 | C75: 2005 | D75: =VLOOKUP(A75,tables!$A$2:$C$56,3,0) -> 02 | E75: BTI Contracting Inc. Kenova | F75: 2334 Route 52 Kenova, WV 25530 | G75: Scary Creek Materials | H75: #9 Orders Way, Winfield, WV | I75: 77.27 | J75: 78.22 | K75: 80.12 | L75: 80.12 | M75: 82.83 | N75: 89.57 | O75: 80.45 | P75: 87.7 | Q75: 93.17 | R75: 87.7 | S75: 95.9 | T75: 118.91 | U75: 118.95 | V75: 103.94 | W75: 118.92 | X75: 96.22 | Y75: 96.22 | Z75: 67.5 | AA75: 1950 | AB75: 2.9 | AC75: 0.3 | AD75: 5 | AE75: 5 | AF75: 12.5 | AG75: 1.75 | AH75: 4.5 | AI75: 3 | AJ75: 0.27 | AK75: 83 | AL75: 29.75 | AM75: 19.5 | AN75: 9.7 | AO75: 1750 | AP75: 8000 | AQ75: 7 | AR75: 5 | AS75: 4 | AT75: 3 | AU75: 21.25 | AV75: 16 | AW75: 6 | AX75: 4 | AY75: 20.75 | AZ75: 16 | BA75: 6 | BB75: 4 | BC75: 3.25 | BD75: 13 | BE75: 5 | BF75: 23 | BG75: 16.75 | BH75: 11.75 | BI75: 6.6 | BJ75: 4.5 | BK75: 3.4 | BL75: 20.25 | BM75: 15.25 | BN75: 9.75 | BO75: 5 | BP75: 3.25 | BQ75: 2.25 | BR75: 3250 | BS75: 0 | BT75: 0.27 | BU75: 345 | BV75: 0 | BW75: 5 | BX75: 0 | BY75: 0 | BZ75: 24 | CA75: 18 | CB75: 13.5 | CC75: 7.25 | CD75: 5.5 | CE75: 3.6 | CF75: 22.5 | CG75: 16.5 | CH75: 12 | CI75: 6 | CJ75: 4.4 | CK75: 2.6 | CL75: 0.75 | CM75: 4250 | CN75: 7.25 | CO75: 0.01 | CP75: 960 | CQ75: 1 | CR75: 69 | CS75: 40 | CT75: 3500 | CU75: 1250 | CV75: 75 | CW75: 40 | CX75: 1750 | CY75: 22 | CZ75: 1950 | DA75: 9.5 | DB75: 7.4 | DC75: 6 | DD75: 4.55 | DE75: 5.25 | DF75: 5000
A76: Cabell | B76: =VLOOKUP(A76,tables!$A$2:$C$56,2,0) -> 6 | C76: 2006 | D76: =VLOOKUP(A76,tables!$A$2:$C$56,3,0) -> 02 | E76: BTI Contracting Inc. Kenova | F76: 2334 Route 52 Kenova, WV 25530 | G76: Valley Stone Yard | H76: 360 Valley Rd., Millwood WV, 25262 | I76: 77.27 | J76: 78.22 | K76: 80.12 | L76: 80.12 | M76: 82.83 | N76: 89.57 | O76: 80.45 | P76: 87.7 | Q76: 93.17 | R76: 87.7 | S76: 95.9 | T76: 118.91 | U76: 118.95 | V76: 103.94 | W76: 118.92 | X76: 96.22 | Y76: 96.22 | Z76: 67.5 | AA76: 1950 | AB76: 2.9 | AC76: 0.3 | AD76: 5 | AE76: 5 | AF76: 12.5 | AG76: 1.75 | AH76: 4.5 | AI76: 3 | AJ76: 0.27 | AK76: 83 | AL76: 29.75 | AM76: 19.5 | AN76: 9.7 | AO76: 1750 | AP76: 8000 | AQ76: 7 | AR76: 5 | AS76: 4 | AT76: 3 | AU76: 21.25 | AV76: 16 | AW76: 6 | AX76: 4 | AY76: 20.75 | AZ76: 16 | BA76: 6 | BB76: 4 | BC76: 3.25 | BD76: 13 | BE76: 5 | BF76: 23 | BG76: 16.75 | BH76: 11.75 | BI76: 6.6 | BJ76: 4.5 | BK76: 3.4 | BL76: 20.25 | BM76: 15.25 | BN76: 9.75 | BO76: 5 | BP76: 3.25 | BQ76: 2.25 | BR76: 3250 | BS76: 0 | BT76: 0.27 | BU76: 345 | BV76: 0 | BW76: 5 | BX76: 0 | BY76: 0 | BZ76: 24 | CA76: 18 | CB76: 13.5 | CC76: 7.25 | CD76: 5.5 | CE76: 3.6 | CF76: 22.5 | CG76: 16.5 | CH76: 12 | CI76: 6 | CJ76: 4.4 | CK76: 2.6 | CL76: 0.75 | CM76: 4250 | CN76: 7.25 | CO76: 0.01 | CP76: 960 | CQ76: 1 | CR76: 69 | CS76: 40 | CT76: 3500 | CU76: 1250 | CV76: 75 | CW76: 40 | CX76: 1750 | CY76: 22 | CZ76: 1950 | DA76: 9.5 | DB76: 7.4 | DC76: 6 | DD76: 4.55 | DE76: 5.25 | DF76: 5000
A77: Lincoln | B77: =VLOOKUP(A77,tables!$A$2:$C$56,2,0) -> 22 | C77: 2007 | D77: =VLOOKUP(A77,tables!$A$2:$C$56,3,0) -> 02 | E77: BTI Contracting Inc. Kenova | F77: 2334 Route 52 Kenova, WV 25530 | G77: Valley Stone Yard | H77: 360 Valley Rd., Millwood WV, 25262 | I77: 77.27 | J77: 78.22 | K77: 80.12 | L77: 80.12 | M77: 82.83 | N77: 89.57 | O77: 80.45 | P77: 87.7 | Q77: 93.17 | R77: 87.7 | S77: 95.9 | T77: 118.91 | U77: 118.95 | V77: 103.94 | W77: 118.92 | X77: 96.22 | Y77: 96.22 | Z77: 67.5 | AA77: 1950 | AB77: 2.9 | AC77: 0.3 | AD77: 5 | AE77: 5 | AF77: 12.5 | AG77: 1.75 | AH77: 4.5 | AI77: 3 | AJ77: 0.27 | AK77: 83 | AL77: 29.75 | AM77: 19.5 | AN77: 9.7 | AO77: 1750 | AP77: 8000 | AQ77: 7 | AR77: 5 | AS77: 4 | AT77: 3 | AU77: 21.25 | AV77: 16 | AW77: 6 | AX77: 4 | AY77: 20.75 | AZ77: 16 | BA77: 6 | BB77: 4 | BC77: 3.25 | BD77: 13 | BE77: 5 | BF77: 23 | BG77: 16.75 | BH77: 11.75 | BI77: 6.6 | BJ77: 4.5 | BK77: 3.4 | BL77: 20.25 | BM77: 15.25 | BN77: 9.75 | BO77: 5 | BP77: 3.25 | BQ77: 2.25 | BR77: 3250 | BS77: 0 | BT77: 0.27 | BU77: 345 | BV77: 0 | BW77: 5 | BX77: 0 | BY77: 0 | BZ77: 24 | CA77: 18 | CB77: 13.5 | CC77: 7.25 | CD77: 5.5 | CE77: 3.6 | CF77: 22.5 | CG77: 16.5 | CH77: 12 | CI77: 6 | CJ77: 4.4 | CK77: 2.6 | CL77: 0.75 | CM77: 4250 | CN77: 7.25 | CO77: 0.01 | CP77: 960 | CQ77: 1 | CR77: 69 | CS77: 40 | CT77: 3500 | CU77: 1250 | CV77: 75 | CW77: 40 | CX77: 1750 | CY77: 22 | CZ77: 1950 | DA77: 9.5 | DB77: 7.4 | DC77: 6 | DD77: 4.55 | DE77: 5.25 | DF77: 5000
A78: Logan | B78: =VLOOKUP(A78,tables!$A$2:$C$56,2,0) -> 23 | C78: 2008 | D78: =VLOOKUP(A78,tables!$A$2:$C$56,3,0) -> 02 | E78: BTI Contracting Inc. Kenova | F78: 2334 Route 52 Kenova, WV 25530 | G78: Valley Stone Yard | H78: 360 Valley Rd., Millwood WV, 25262 | I78: 77.27 | J78: 78.22 | K78: 80.12 | L78: 80.12 | M78: 82.83 | N78: 89.57 | O78: 80.45 | P78: 87.7 | Q78: 93.17 | R78: 87.7 | S78: 95.9 | T78: 118.91 | U78: 118.95 | V78: 103.94 | W78: 118.92 | X78: 96.22 | Y78: 96.22 | Z78: 67.5 | AA78: 1950 | AB78: 2.9 | AC78: 0.3 | AD78: 5 | AE78: 5 | AF78: 12.5 | AG78: 1.75 | AH78: 4.5 | AI78: 3 | AJ78: 0.27 | AK78: 83 | AL78: 29.75 | AM78: 19.5 | AN78: 9.7 | AO78: 1750 | AP78: 8000 | AQ78: 7 | AR78: 5 | AS78: 4 | AT78: 3 | AU78: 21.25 | AV78: 16 | AW78: 6 | AX78: 4 | AY78: 20.75 | AZ78: 16 | BA78: 6 | BB78: 4 | BC78: 3.25 | BD78: 13 | BE78: 5 | BF78: 23 | BG78: 16.75 | BH78: 11.75 | BI78: 6.6 | BJ78: 4.5 | BK78: 3.4 | BL78: 20.25 | BM78: 15.25 | BN78: 9.75 | BO78: 5 | BP78: 3.25 | BQ78: 2.25 | BR78: 3250 | BS78: 0 | BT78: 0.27 | BU78: 345 | BV78: 0 | BW78: 5 | BX78: 0 | BY78: 0 | BZ78: 24 | CA78: 18 | CB78: 13.5 | CC78: 7.25 | CD78: 5.5 | CE78: 3.6 | CF78: 22.5 | CG78: 16.5 | CH78: 12 | CI78: 6 | CJ78: 4.4 | CK78: 2.6 | CL78: 0.75 | CM78: 4250 | CN78: 7.25 | CO78: 0.01 | CP78: 960 | CQ78: 1 | CR78: 69 | CS78: 40 | CT78: 3500 | CU78: 1250 | CV78: 75 | CW78: 40 | CX78: 1750 | CY78: 22 | CZ78: 1950 | DA78: 9.5 | DB78: 7.4 | DC78: 6 | DD78: 4.55 | DE78: 5.25 | DF78: 5000
A79: Mingo | B79: =VLOOKUP(A79,tables!$A$2:$C$56,2,0) -> 30 | C79: 2009 | D79: =VLOOKUP(A79,tables!$A$2:$C$56,3,0) -> 02 | E79: BTI Contracting Inc. Kenova | F79: 2334 Route 52 Kenova, WV 25530 | G79: Valley Stone Yard | H79: 360 Valley Rd., Millwood WV, 25262 | I79: 77.27 | J79: 78.22 | K79: 80.12 | L79: 80.12 | M79: 82.83 | N79: 89.57 | O79: 80.45 | P79: 87.7 | Q79: 93.17 | R79: 87.7 | S79: 95.9 | T79: 118.91 | U79: 118.95 | V79: 103.94 | W79: 118.92 | X79: 96.22 | Y79: 96.22 | Z79: 67.5 | AA79: 1950 | AB79: 2.9 | AC79: 0.3 | AD79: 5 | AE79: 5 | AF79: 12.5 | AG79: 1.75 | AH79: 4.5 | AI79: 3 | AJ79: 0.27 | AK79: 83 | AL79: 29.75 | AM79: 19.5 | AN79: 9.7 | AO79: 1750 | AP79: 8000 | AQ79: 7 | AR79: 5 | AS79: 4 | AT79: 3 | AU79: 21.25 | AV79: 16 | AW79: 6 | AX79: 4 | AY79: 20.75 | AZ79: 16 | BA79: 6 | BB79: 4 | BC79: 3.25 | BD79: 13 | BE79: 5 | BF79: 23 | BG79: 16.75 | BH79: 11.75 | BI79: 6.6 | BJ79: 4.5 | BK79: 3.4 | BL79: 20.25 | BM79: 15.25 | BN79: 9.75 | BO79: 5 | BP79: 3.25 | BQ79: 2.25 | BR79: 3250 | BS79: 0 | BT79: 0.27 | BU79: 345 | BV79: 0 | BW79: 5 | BX79: 0 | BY79: 0 | BZ79: 24 | CA79: 18 | CB79: 13.5 | CC79: 7.25 | CD79: 5.5 | CE79: 3.6 | CF79: 22.5 | CG79: 16.5 | CH79: 12 | CI79: 6 | CJ79: 4.4 | CK79: 2.6 | CL79: 0.75 | CM79: 4250 | CN79: 7.25 | CO79: 0.01 | CP79: 960 | CQ79: 1 | CR79: 69 | CS79: 40 | CT79: 3500 | CU79: 1250 | CV79: 75 | CW79: 40 | CX79: 1750 | CY79: 22 | CZ79: 1950 | DA79: 9.5 | DB79: 7.4 | DC79: 6 | DD79: 4.55 | DE79: 5.25 | DF79: 5000
A80: Wayne | B80: =VLOOKUP(A80,tables!$A$2:$C$56,2,0) -> 50 | C80: 2010 | D80: =VLOOKUP(A80,tables!$A$2:$C$56,3,0) -> 02 | E80: BTI Contracting Inc. Kenova | F80: 2334 Route 52 Kenova, WV 25530 | G80: Valley Stone Yard | H80: 360 Valley Rd., Millwood WV, 25262 | I80: 77.27 | J80: 78.22 | K80: 80.12 | L80: 80.12 | M80: 82.83 | N80: 89.57 | O80: 80.45 | P80: 87.7 | Q80: 93.17 | R80: 87.7 | S80: 95.9 | T80: 118.91 | U80: 118.95 | V80: 103.94 | W80: 118.92 | X80: 96.22 | Y80: 96.22 | Z80: 67.5 | AA80: 1950 | AB80: 2.9 | AC80: 0.3 | AD80: 5 | AE80: 5 | AF80: 12.5 | AG80: 1.75 | AH80: 4.5 | AI80: 3 | AJ80: 0.27 | AK80: 83 | AL80: 29.75 | AM80: 19.5 | AN80: 9.7 | AO80: 1750 | AP80: 8000 | AQ80: 7 | AR80: 5 | AS80: 4 | AT80: 3 | AU80: 21.25 | AV80: 16 | AW80: 6 | AX80: 4 | AY80: 20.75 | AZ80: 16 | BA80: 6 | BB80: 4 | BC80: 3.25 | BD80: 13 | BE80: 5 | BF80: 23 | BG80: 16.75 | BH80: 11.75 | BI80: 6.6 | BJ80: 4.5 | BK80: 3.4 | BL80: 20.25 | BM80: 15.25 | BN80: 9.75 | BO80: 5 | BP80: 3.25 | BQ80: 2.25 | BR80: 3250 | BS80: 0 | BT80: 0.27 | BU80: 345 | BV80: 0 | BW80: 5 | BX80: 0 | BY80: 0 | BZ80: 24 | CA80: 18 | CB80: 13.5 | CC80: 7.25 | CD80: 5.5 | CE80: 3.6 | CF80: 22.5 | CG80: 16.5 | CH80: 12 | CI80: 6 | CJ80: 4.4 | CK80: 2.6 | CL80: 0.75 | CM80: 4250 | CN80: 7.25 | CO80: 0.01 | CP80: 960 | CQ80: 1 | CR80: 69 | CS80: 40 | CT80: 3500 | CU80: 1250 | CV80: 75 | CW80: 40 | CX80: 1750 | CY80: 22 | CZ80: 1950 | DA80: 9.5 | DB80: 7.4 | DC80: 6 | DD80: 4.55 | DE80: 5.25 | DF80: 5000
A81: Cabell | B81: =VLOOKUP(A81,tables!$A$2:$C$56,2,0) -> 6 | C81: 2011 | D81: =VLOOKUP(A81,tables!$A$2:$C$56,3,0) -> 02 | E81: BTI Contracting Inc. Kenova | F81: 2334 Route 52 Kenova, WV 25530 | G81: Mountain Materials- Valley Quarry | H81: 12434 US 60, Olive Hill KY | I81: 77.27 | J81: 78.22 | K81: 80.12 | L81: 80.12 | M81: 82.83 | N81: 89.57 | O81: 80.45 | P81: 87.7 | Q81: 93.17 | R81: 87.7 | S81: 95.9 | T81: 118.91 | U81: 118.95 | V81: 103.94 | W81: 118.92 | X81: 96.22 | Y81: 96.22 | Z81: 67.5 | AA81: 1950 | AB81: 2.9 | AC81: 0.3 | AD81: 5 | AE81: 5 | AF81: 12.5 | AG81: 1.75 | AH81: 4.5 | AI81: 3 | AJ81: 0.27 | AK81: 83 | AL81: 29.75 | AM81: 19.5 | AN81: 9.7 | AO81: 1750 | AP81: 8000 | AQ81: 7 | AR81: 5 | AS81: 4 | AT81: 3 | AU81: 21.25 | AV81: 16 | AW81: 6 | AX81: 4 | AY81: 20.75 | AZ81: 16 | BA81: 6 | BB81: 4 | BC81: 3.25 | BD81: 13 | BE81: 5 | BF81: 23 | BG81: 16.75 | BH81: 11.75 | BI81: 6.6 | BJ81: 4.5 | BK81: 3.4 | BL81: 20.25 | BM81: 15.25 | BN81: 9.75 | BO81: 5 | BP81: 3.25 | BQ81: 2.25 | BR81: 3250 | BS81: 0 | BT81: 0.27 | BU81: 345 | BV81: 0 | BW81: 5 | BX81: 0 | BY81: 0 | BZ81: 24 | CA81: 18 | CB81: 13.5 | CC81: 7.25 | CD81: 5.5 | CE81: 3.6 | CF81: 22.5 | CG81: 16.5 | CH81: 12 | CI81: 6 | CJ81: 4.4 | CK81: 2.6 | CL81: 0.75 | CM81: 4250 | CN81: 7.25 | CO81: 0.01 | CP81: 960 | CQ81: 1 | CR81: 69 | CS81: 40 | CT81: 3500 | CU81: 1250 | CV81: 75 | CW81: 40 | CX81: 1750 | CY81: 22 | CZ81: 1950 | DA81: 9.5 | DB81: 7.4 | DC81: 6 | DD81: 4.55 | DE81: 5.25 | DF81: 5000
A82: Lincoln | B82: =VLOOKUP(A82,tables!$A$2:$C$56,2,0) -> 22 | C82: 2012 | D82: =VLOOKUP(A82,tables!$A$2:$C$56,3,0) -> 02 | E82: BTI Contracting Inc. Kenova | F82: 2334 Route 52 Kenova, WV 25530 | G82: Mountain Materials- Valley Quarry | H82: 12434 US 60, Olive Hill KY | I82: 77.27 | J82: 78.22 | K82: 80.12 | L82: 80.12 | M82: 82.83 | N82: 89.57 | O82: 80.45 | P82: 87.7 | Q82: 93.17 | R82: 87.7 | S82: 95.9 | T82: 118.91 | U82: 118.95 | V82: 103.94 | W82: 118.92 | X82: 96.22 | Y82: 96.22 | Z82: 67.5 | AA82: 1950 | AB82: 2.9 | AC82: 0.3 | AD82: 5 | AE82: 5 | AF82: 12.5 | AG82: 1.75 | AH82: 4.5 | AI82: 3 | AJ82: 0.27 | AK82: 83 | AL82: 29.75 | AM82: 19.5 | AN82: 9.7 | AO82: 1750 | AP82: 8000 | AQ82: 7 | AR82: 5 | AS82: 4 | AT82: 3 | AU82: 21.25 | AV82: 16 | AW82: 6 | AX82: 4 | AY82: 20.75 | AZ82: 16 | BA82: 6 | BB82: 4 | BC82: 3.25 | BD82: 13 | BE82: 5 | BF82: 23 | BG82: 16.75 | BH82: 11.75 | BI82: 6.6 | BJ82: 4.5 | BK82: 3.4 | BL82: 20.25 | BM82: 15.25 | BN82: 9.75 | BO82: 5 | BP82: 3.25 | BQ82: 2.25 | BR82: 3250 | BS82: 0 | BT82: 0.27 | BU82: 345 | BV82: 0 | BW82: 5 | BX82: 0 | BY82: 0 | BZ82: 24 | CA82: 18 | CB82: 13.5 | CC82: 7.25 | CD82: 5.5 | CE82: 3.6 | CF82: 22.5 | CG82: 16.5 | CH82: 12 | CI82: 6 | CJ82: 4.4 | CK82: 2.6 | CL82: 0.75 | CM82: 4250 | CN82: 7.25 | CO82: 0.01 | CP82: 960 | CQ82: 1 | CR82: 69 | CS82: 40 | CT82: 3500 | CU82: 1250 | CV82: 75 | CW82: 40 | CX82: 1750 | CY82: 22 | CZ82: 1950 | DA82: 9.5 | DB82: 7.4 | DC82: 6 | DD82: 4.55 | DE82: 5.25 | DF82: 5000
A83: Logan | B83: =VLOOKUP(A83,tables!$A$2:$C$56,2,0) -> 23 | C83: 2013 | D83: =VLOOKUP(A83,tables!$A$2:$C$56,3,0) -> 02 | E83: BTI Contracting Inc. Kenova | F83: 2334 Route 52 Kenova, WV 25530 | G83: Mountain Materials- Valley Quarry | H83: 12434 US 60, Olive Hill KY | I83: 77.27 | J83: 78.22 | K83: 80.12 | L83: 80.12 | M83: 82.83 | N83: 89.57 | O83: 80.45 | P83: 87.7 | Q83: 93.17 | R83: 87.7 | S83: 95.9 | T83: 118.91 | U83: 118.95 | V83: 103.94 | W83: 118.92 | X83: 96.22 | Y83: 96.22 | Z83: 67.5 | AA83: 1950 | AB83: 2.9 | AC83: 0.3 | AD83: 5 | AE83: 5 | AF83: 12.5 | AG83: 1.75 | AH83: 4.5 | AI83: 3 | AJ83: 0.27 | AK83: 83 | AL83: 29.75 | AM83: 19.5 | AN83: 9.7 | AO83: 1750 | AP83: 8000 | AQ83: 7 | AR83: 5 | AS83: 4 | AT83: 3 | AU83: 21.25 | AV83: 16 | AW83: 6 | AX83: 4 | AY83: 20.75 | AZ83: 16 | BA83: 6 | BB83: 4 | BC83: 3.25 | BD83: 13 | BE83: 5 | BF83: 23 | BG83: 16.75 | BH83: 11.75 | BI83: 6.6 | BJ83: 4.5 | BK83: 3.4 | BL83: 20.25 | BM83: 15.25 | BN83: 9.75 | BO83: 5 | BP83: 3.25 | BQ83: 2.25 | BR83: 3250 | BS83: 0 | BT83: 0.27 | BU83: 345 | BV83: 0 | BW83: 5 | BX83: 0 | BY83: 0 | BZ83: 24 | CA83: 18 | CB83: 13.5 | CC83: 7.25 | CD83: 5.5 | CE83: 3.6 | CF83: 22.5 | CG83: 16.5 | CH83: 12 | CI83: 6 | CJ83: 4.4 | CK83: 2.6 | CL83: 0.75 | CM83: 4250 | CN83: 7.25 | CO83: 0.01 | CP83: 960 | CQ83: 1 | CR83: 69 | CS83: 40 | CT83: 3500 | CU83: 1250 | CV83: 75 | CW83: 40 | CX83: 1750 | CY83: 22 | CZ83: 1950 | DA83: 9.5 | DB83: 7.4 | DC83: 6 | DD83: 4.55 | DE83: 5.25 | DF83: 5000
A84: Mingo | B84: =VLOOKUP(A84,tables!$A$2:$C$56,2,0) -> 30 | C84: 2014 | D84: =VLOOKUP(A84,tables!$A$2:$C$56,3,0) -> 02 | E84: BTI Contracting Inc. Kenova | F84: 2334 Route 52 Kenova, WV 25530 | G84: Mountain Materials- Valley Quarry | H84: 12434 US 60, Olive Hill KY | I84: 77.27 | J84: 78.22 | K84: 80.12 | L84: 80.12 | M84: 82.83 | N84: 89.57 | O84: 80.45 | P84: 87.7 | Q84: 93.17 | R84: 87.7 | S84: 95.9 | T84: 118.91 | U84: 118.95 | V84: 103.94 | W84: 118.92 | X84: 96.22 | Y84: 96.22 | Z84: 67.5 | AA84: 1950 | AB84: 2.9 | AC84: 0.3 | AD84: 5 | AE84: 5 | AF84: 12.5 | AG84: 1.75 | AH84: 4.5 | AI84: 3 | AJ84: 0.27 | AK84: 83 | AL84: 29.75 | AM84: 19.5 | AN84: 9.7 | AO84: 1750 | AP84: 8000 | AQ84: 7 | AR84: 5 | AS84: 4 | AT84: 3 | AU84: 21.25 | AV84: 16 | AW84: 6 | AX84: 4 | AY84: 20.75 | AZ84: 16 | BA84: 6 | BB84: 4 | BC84: 3.25 | BD84: 13 | BE84: 5 | BF84: 23 | BG84: 16.75 | BH84: 11.75 | BI84: 6.6 | BJ84: 4.5 | BK84: 3.4 | BL84: 20.25 | BM84: 15.25 | BN84: 9.75 | BO84: 5 | BP84: 3.25 | BQ84: 2.25 | BR84: 3250 | BS84: 0 | BT84: 0.27 | BU84: 345 | BV84: 0 | BW84: 5 | BX84: 0 | BY84: 0 | BZ84: 24 | CA84: 18 | CB84: 13.5 | CC84: 7.25 | CD84: 5.5 | CE84: 3.6 | CF84: 22.5 | CG84: 16.5 | CH84: 12 | CI84: 6 | CJ84: 4.4 | CK84: 2.6 | CL84: 0.75 | CM84: 4250 | CN84: 7.25 | CO84: 0.01 | CP84: 960 | CQ84: 1 | CR84: 69 | CS84: 40 | CT84: 3500 | CU84: 1250 | CV84: 75 | CW84: 40 | CX84: 1750 | CY84: 22 | CZ84: 1950 | DA84: 9.5 | DB84: 7.4 | DC84: 6 | DD84: 4.55 | DE84: 5.25 | DF84: 5000
A85: Wayne | B85: =VLOOKUP(A85,tables!$A$2:$C$56,2,0) -> 50 | C85: 2015 | D85: =VLOOKUP(A85,tables!$A$2:$C$56,3,0) -> 02 | E85: BTI Contracting Inc. Kenova | F85: 2334 Route 52 Kenova, WV 25530 | G85: Mountain Materials- Valley Quarry | H85: 12434 US 60, Olive Hill KY | I85: 77.27 | J85: 78.22 | K85: 80.12 | L85: 80.12 | M85: 82.83 | N85: 89.57 | O85: 80.45 | P85: 87.7 | Q85: 93.17 | R85: 87.7 | S85: 95.9 | T85: 118.91 | U85: 118.95 | V85: 103.94 | W85: 118.92 | X85: 96.22 | Y85: 96.22 | Z85: 67.5 | AA85: 1950 | AB85: 2.9 | AC85: 0.3 | AD85: 5 | AE85: 5 | AF85: 12.5 | AG85: 1.75 | AH85: 4.5 | AI85: 3 | AJ85: 0.27 | AK85: 83 | AL85: 29.75 | AM85: 19.5 | AN85: 9.7 | AO85: 1750 | AP85: 8000 | AQ85: 7 | AR85: 5 | AS85: 4 | AT85: 3 | AU85: 21.25 | AV85: 16 | AW85: 6 | AX85: 4 | AY85: 20.75 | AZ85: 16 | BA85: 6 | BB85: 4 | BC85: 3.25 | BD85: 13 | BE85: 5 | BF85: 23 | BG85: 16.75 | BH85: 11.75 | BI85: 6.6 | BJ85: 4.5 | BK85: 3.4 | BL85: 20.25 | BM85: 15.25 | BN85: 9.75 | BO85: 5 | BP85: 3.25 | BQ85: 2.25 | BR85: 3250 | BS85: 0 | BT85: 0.27 | BU85: 345 | BV85: 0 | BW85: 5 | BX85: 0 | BY85: 0 | BZ85: 24 | CA85: 18 | CB85: 13.5 | CC85: 7.25 | CD85: 5.5 | CE85: 3.6 | CF85: 22.5 | CG85: 16.5 | CH85: 12 | CI85: 6 | CJ85: 4.4 | CK85: 2.6 | CL85: 0.75 | CM85: 4250 | CN85: 7.25 | CO85: 0.01 | CP85: 960 | CQ85: 1 | CR85: 69 | CS85: 40 | CT85: 3500 | CU85: 1250 | CV85: 75 | CW85: 40 | CX85: 1750 | CY85: 22 | CZ85: 1950 | DA85: 9.5 | DB85: 7.4 | DC85: 6 | DD85: 4.55 | DE85: 5.25 | DF85: 5000
A86: Cabell | B86: =VLOOKUP(A86,tables!$A$2:$C$56,2,0) -> 6 | C86: 2016 | D86: =VLOOKUP(A86,tables!$A$2:$C$56,3,0) -> 02 | E86: BTI Contracting Inc. St. Albans | F86: 484 Industrial Rd, St Albans, WV 25177 | G86: Scary Creek Materials | H86: #9 Orders Way, Winfield, WV | I86: 78.94 | J86: 79.89 | K86: 80.72 | L86: 80.72 | M86: 81.39 | N86: 91.22 | O86: 83.54 | P86: 88.1 | Q86: 97.57 | R86: 88.1 | S86: 97.57 | T86: 118.91 | U86: 118.95 | V86: 113.94 | W86: 118.92 | X86: 96.22 | Y86: 96.22 | Z86: 67.5 | AA86: 1950 | AB86: 2.9 | AC86: 0.3 | AD86: 5 | AE86: 5 | AF86: 12.5 | AG86: 1.75 | AH86: 4.5 | AI86: 3 | AJ86: 0.27 | AK86: 83 | AL86: 29.75 | AM86: 19.5 | AN86: 9.7 | AO86: 1750 | AP86: 8000 | AQ86: 7 | AR86: 5 | AS86: 4 | AT86: 3 | AU86: 21.25 | AV86: 16 | AW86: 6 | AX86: 4 | AY86: 20.75 | AZ86: 16 | BA86: 6 | BB86: 4 | BC86: 3.25 | BD86: 13 | BE86: 5 | BF86: 23 | BG86: 16.75 | BH86: 11.75 | BI86: 6.6 | BJ86: 4.5 | BK86: 3.4 | BL86: 20.25 | BM86: 15.25 | BN86: 9.75 | BO86: 5 | BP86: 3.25 | BQ86: 2.25 | BR86: 3250 | BS86: 0 | BT86: 0.27 | BU86: 345 | BV86: 0 | BW86: 5 | BX86: 0 | BY86: 0 | BZ86: 24 | CA86: 18 | CB86: 13.5 | CC86: 7.25 | CD86: 5.5 | CE86: 3.6 | CF86: 22.5 | CG86: 16.5 | CH86: 12 | CI86: 6 | CJ86: 4.4 | CK86: 2.6 | CL86: 0.75 | CM86: 4250 | CN86: 7.25 | CO86: 0.01 | CP86: 960 | CQ86: 1 | CR86: 69 | CS86: 40 | CT86: 3500 | CU86: 1250 | CV86: 75 | CW86: 40 | CX86: 1750 | CY86: 22 | CZ86: 1950 | DA86: 9.5 | DB86: 7.4 | DC86: 6 | DD86: 4.55 | DE86: 5.25 | DF86: 5000
A87: Lincoln | B87: =VLOOKUP(A87,tables!$A$2:$C$56,2,0) -> 22 | C87: 2017 | D87: =VLOOKUP(A87,tables!$A$2:$C$56,3,0) -> 02 | E87: BTI Contracting Inc. St. Albans | F87: 484 Industrial Rd, St Albans, WV 25177 | G87: Scary Creek Materials | H87: #9 Orders Way, Winfield, WV | I87: 78.94 | J87: 79.89 | K87: 80.72 | L87: 80.72 | M87: 81.39 | N87: 91.22 | O87: 83.54 | P87: 88.1 | Q87: 97.57 | R87: 88.1 | S87: 97.57 | T87: 118.91 | U87: 118.95 | V87: 113.94 | W87: 118.92 | X87: 96.22 | Y87: 96.22 | Z87: 67.5 | AA87: 1950 | AB87: 2.9 | AC87: 0.3 | AD87: 5 | AE87: 5 | AF87: 12.5 | AG87: 1.75 | AH87: 4.5 | AI87: 3 | AJ87: 0.27 | AK87: 83 | AL87: 29.75 | AM87: 19.5 | AN87: 9.7 | AO87: 1750 | AP87: 8000 | AQ87: 7 | AR87: 5 | AS87: 4 | AT87: 3 | AU87: 21.25 | AV87: 16 | AW87: 6 | AX87: 4 | AY87: 20.75 | AZ87: 16 | BA87: 6 | BB87: 4 | BC87: 3.25 | BD87: 13 | BE87: 5 | BF87: 23 | BG87: 16.75 | BH87: 11.75 | BI87: 6.6 | BJ87: 4.5 | BK87: 3.4 | BL87: 20.25 | BM87: 15.25 | BN87: 9.75 | BO87: 5 | BP87: 3.25 | BQ87: 2.25 | BR87: 3250 | BS87: 0 | BT87: 0.27 | BU87: 345 | BV87: 0 | BW87: 5 | BX87: 0 | BY87: 0 | BZ87: 24 | CA87: 18 | CB87: 13.5 | CC87: 7.25 | CD87: 5.5 | CE87: 3.6 | CF87: 22.5 | CG87: 16.5 | CH87: 12 | CI87: 6 | CJ87: 4.4 | CK87: 2.6 | CL87: 0.75 | CM87: 4250 | CN87: 7.25 | CO87: 0.01 | CP87: 960 | CQ87: 1 | CR87: 69 | CS87: 40 | CT87: 3500 | CU87: 1250 | CV87: 75 | CW87: 40 | CX87: 1750 | CY87: 22 | CZ87: 1950 | DA87: 9.5 | DB87: 7.4 | DC87: 6 | DD87: 4.55 | DE87: 5.25 | DF87: 5000
A88: Logan | B88: =VLOOKUP(A88,tables!$A$2:$C$56,2,0) -> 23 | C88: 2018 | D88: =VLOOKUP(A88,tables!$A$2:$C$56,3,0) -> 02 | E88: BTI Contracting Inc. St. Albans | F88: 484 Industrial Rd, St Albans, WV 25177 | G88: Scary Creek Materials | H88: #9 Orders Way, Winfield, WV | I88: 78.94 | J88: 79.89 | K88: 80.72 | L88: 80.72 | M88: 81.39 | N88: 91.22 | O88: 83.54 | P88: 88.1 | Q88: 97.57 | R88: 88.1 | S88: 97.57 | T88: 118.91 | U88: 118.95 | V88: 113.94 | W88: 118.92 | X88: 96.22 | Y88: 96.22 | Z88: 67.5 | AA88: 1950 | AB88: 2.9 | AC88: 0.3 | AD88: 5 | AE88: 5 | AF88: 12.5 | AG88: 1.75 | AH88: 4.5 | AI88: 3 | AJ88: 0.27 | AK88: 83 | AL88: 29.75 | AM88: 19.5 | AN88: 9.7 | AO88: 1750 | AP88: 8000 | AQ88: 7 | AR88: 5 | AS88: 4 | AT88: 3 | AU88: 21.25 | AV88: 16 | AW88: 6 | AX88: 4 | AY88: 20.75 | AZ88: 16 | BA88: 6 | BB88: 4 | BC88: 3.25 | BD88: 13 | BE88: 5 | BF88: 23 | BG88: 16.75 | BH88: 11.75 | BI88: 6.6 | BJ88: 4.5 | BK88: 3.4 | BL88: 20.25 | BM88: 15.25 | BN88: 9.75 | BO88: 5 | BP88: 3.25 | BQ88: 2.25 | BR88: 3250 | BS88: 0 | BT88: 0.27 | BU88: 345 | BV88: 0 | BW88: 5 | BX88: 0 | BY88: 0 | BZ88: 24 | CA88: 18 | CB88: 13.5 | CC88: 7.25 | CD88: 5.5 | CE88: 3.6 | CF88: 22.5 | CG88: 16.5 | CH88: 12 | CI88: 6 | CJ88: 4.4 | CK88: 2.6 | CL88: 0.75 | CM88: 4250 | CN88: 7.25 | CO88: 0.01 | CP88: 960 | CQ88: 1 | CR88: 69 | CS88: 40 | CT88: 3500 | CU88: 1250 | CV88: 75 | CW88: 40 | CX88: 1750 | CY88: 22 | CZ88: 1950 | DA88: 9.5 | DB88: 7.4 | DC88: 6 | DD88: 4.55 | DE88: 5.25 | DF88: 5000
A89: Mingo | B89: =VLOOKUP(A89,tables!$A$2:$C$56,2,0) -> 30 | C89: 2019 | D89: =VLOOKUP(A89,tables!$A$2:$C$56,3,0) -> 02 | E89: BTI Contracting Inc. St. Albans | F89: 484 Industrial Rd, St Albans, WV 25177 | G89: Scary Creek Materials | H89: #9 Orders Way, Winfield, WV | I89: 78.94 | J89: 79.89 | K89: 80.72 | L89: 80.72 | M89: 81.39 | N89: 91.22 | O89: 83.54 | P89: 88.1 | Q89: 97.57 | R89: 88.1 | S89: 97.57 | T89: 118.91 | U89: 118.95 | V89: 113.94 | W89: 118.92 | X89: 96.22 | Y89: 96.22 | Z89: 67.5 | AA89: 1950 | AB89: 2.9 | AC89: 0.3 | AD89: 5 | AE89: 5 | AF89: 12.5 | AG89: 1.75 | AH89: 4.5 | AI89: 3 | AJ89: 0.27 | AK89: 83 | AL89: 29.75 | AM89: 19.5 | AN89: 9.7 | AO89: 1750 | AP89: 8000 | AQ89: 7 | AR89: 5 | AS89: 4 | AT89: 3 | AU89: 21.25 | AV89: 16 | AW89: 6 | AX89: 4 | AY89: 20.75 | AZ89: 16 | BA89: 6 | BB89: 4 | BC89: 3.25 | BD89: 13 | BE89: 5 | BF89: 23 | BG89: 16.75 | BH89: 11.75 | BI89: 6.6 | BJ89: 4.5 | BK89: 3.4 | BL89: 20.25 | BM89: 15.25 | BN89: 9.75 | BO89: 5 | BP89: 3.25 | BQ89: 2.25 | BR89: 3250 | BS89: 0 | BT89: 0.27 | BU89: 345 | BV89: 0 | BW89: 5 | BX89: 0 | BY89: 0 | BZ89: 24 | CA89: 18 | CB89: 13.5 | CC89: 7.25 | CD89: 5.5 | CE89: 3.6 | CF89: 22.5 | CG89: 16.5 | CH89: 12 | CI89: 6 | CJ89: 4.4 | CK89: 2.6 | CL89: 0.75 | CM89: 4250 | CN89: 7.25 | CO89: 0.01 | CP89: 960 | CQ89: 1 | CR89: 69 | CS89: 40 | CT89: 3500 | CU89: 1250 | CV89: 75 | CW89: 40 | CX89: 1750 | CY89: 22 | CZ89: 1950 | DA89: 9.5 | DB89: 7.4 | DC89: 6 | DD89: 4.55 | DE89: 5.25 | DF89: 5000
A90: Cabell | B90: =VLOOKUP(A90,tables!$A$2:$C$56,2,0) -> 6 | C90: 2020 | D90: =VLOOKUP(A90,tables!$A$2:$C$56,3,0) -> 02 | E90: BTI Contracting Inc. St. Albans | F90: 484 Industrial Rd, St Albans, WV 25177 | G90: Valley Stone Yard | H90: 360 Valley Rd., Millwood WV, 25262 | I90: 78.94 | J90: 79.89 | K90: 80.72 | L90: 80.72 | M90: 81.39 | N90: 91.22 | O90: 83.54 | P90: 88.1 | Q90: 97.57 | R90: 88.1 | S90: 97.57 | T90: 118.91 | U90: 118.95 | V90: 113.94 | W90: 118.92 | X90: 96.22 | Y90: 96.22 | Z90: 67.5 | AA90: 1950 | AB90: 2.9 | AC90: 0.3 | AD90: 5 | AE90: 5 | AF90: 12.5 | AG90: 1.75 | AH90: 4.5 | AI90: 3 | AJ90: 0.27 | AK90: 83 | AL90: 29.75 | AM90: 19.5 | AN90: 9.7 | AO90: 1750 | AP90: 8000 | AQ90: 7 | AR90: 5 | AS90: 4 | AT90: 3 | AU90: 21.25 | AV90: 16 | AW90: 6 | AX90: 4 | AY90: 20.75 | AZ90: 16 | BA90: 6 | BB90: 4 | BC90: 3.25 | BD90: 13 | BE90: 5 | BF90: 23 | BG90: 16.75 | BH90: 11.75 | BI90: 6.6 | BJ90: 4.5 | BK90: 3.4 | BL90: 20.25 | BM90: 15.25 | BN90: 9.75 | BO90: 5 | BP90: 3.25 | BQ90: 2.25 | BR90: 3250 | BS90: 0 | BT90: 0.27 | BU90: 345 | BV90: 0 | BW90: 5 | BX90: 0 | BY90: 0 | BZ90: 24 | CA90: 18 | CB90: 13.5 | CC90: 7.25 | CD90: 5.5 | CE90: 3.6 | CF90: 22.5 | CG90: 16.5 | CH90: 12 | CI90: 6 | CJ90: 4.4 | CK90: 2.6 | CL90: 0.75 | CM90: 4250 | CN90: 7.25 | CO90: 0.01 | CP90: 960 | CQ90: 1 | CR90: 69 | CS90: 40 | CT90: 3500 | CU90: 1250 | CV90: 75 | CW90: 40 | CX90: 1750 | CY90: 22 | CZ90: 1950 | DA90: 9.5 | DB90: 7.4 | DC90: 6 | DD90: 4.55 | DE90: 5.25 | DF90: 5000
A91: Lincoln | B91: =VLOOKUP(A91,tables!$A$2:$C$56,2,0) -> 22 | C91: 2021 | D91: =VLOOKUP(A91,tables!$A$2:$C$56,3,0) -> 02 | E91: BTI Contracting Inc. St. Albans | F91: 484 Industrial Rd, St Albans, WV 25177 | G91: Valley Stone Yard | H91: 360 Valley Rd., Millwood WV, 25262 | I91: 78.94 | J91: 79.89 | K91: 80.72 | L91: 80.72 | M91: 81.39 | N91: 91.22 | O91: 83.54 | P91: 88.1 | Q91: 97.57 | R91: 88.1 | S91: 97.57 | T91: 118.91 | U91: 118.95 | V91: 113.94 | W91: 118.92 | X91: 96.22 | Y91: 96.22 | Z91: 67.5 | AA91: 1950 | AB91: 2.9 | AC91: 0.3 | AD91: 5 | AE91: 5 | AF91: 12.5 | AG91: 1.75 | AH91: 4.5 | AI91: 3 | AJ91: 0.27 | AK91: 83 | AL91: 29.75 | AM91: 19.5 | AN91: 9.7 | AO91: 1750 | AP91: 8000 | AQ91: 7 | AR91: 5 | AS91: 4 | AT91: 3 | AU91: 21.25 | AV91: 16 | AW91: 6 | AX91: 4 | AY91: 20.75 | AZ91: 16 | BA91: 6 | BB91: 4 | BC91: 3.25 | BD91: 13 | BE91: 5 | BF91: 23 | BG91: 16.75 | BH91: 11.75 | BI91: 6.6 | BJ91: 4.5 | BK91: 3.4 | BL91: 20.25 | BM91: 15.25 | BN91: 9.75 | BO91: 5 | BP91: 3.25 | BQ91: 2.25 | BR91: 3250 | BS91: 0 | BT91: 0.27 | BU91: 345 | BV91: 0 | BW91: 5 | BX91: 0 | BY91: 0 | BZ91: 24 | CA91: 18 | CB91: 13.5 | CC91: 7.25 | CD91: 5.5 | CE91: 3.6 | CF91: 22.5 | CG91: 16.5 | CH91: 12 | CI91: 6 | CJ91: 4.4 | CK91: 2.6 | CL91: 0.75 | CM91: 4250 | CN91: 7.25 | CO91: 0.01 | CP91: 960 | CQ91: 1 | CR91: 69 | CS91: 40 | CT91: 3500 | CU91: 1250 | CV91: 75 | CW91: 40 | CX91: 1750 | CY91: 22 | CZ91: 1950 | DA91: 9.5 | DB91: 7.4 | DC91: 6 | DD91: 4.55 | DE91: 5.25 | DF91: 5000
A92: Logan | B92: =VLOOKUP(A92,tables!$A$2:$C$56,2,0) -> 23 | C92: 2022 | D92: =VLOOKUP(A92,tables!$A$2:$C$56,3,0) -> 02 | E92: BTI Contracting Inc. St. Albans | F92: 484 Industrial Rd, St Albans, WV 25177 | G92: Valley Stone Yard | H92: 360 Valley Rd., Millwood WV, 25262 | I92: 78.94 | J92: 79.89 | K92: 80.72 | L92: 80.72 | M92: 81.39 | N92: 91.22 | O92: 83.54 | P92: 88.1 | Q92: 97.57 | R92: 88.1 | S92: 97.57 | T92: 118.91 | U92: 118.95 | V92: 113.94 | W92: 118.92 | X92: 96.22 | Y92: 96.22 | Z92: 67.5 | AA92: 1950 | AB92: 2.9 | AC92: 0.3 | AD92: 5 | AE92: 5 | AF92: 12.5 | AG92: 1.75 | AH92: 4.5 | AI92: 3 | AJ92: 0.27 | AK92: 83 | AL92: 29.75 | AM92: 19.5 | AN92: 9.7 | AO92: 1750 | AP92: 8000 | AQ92: 7 | AR92: 5 | AS92: 4 | AT92: 3 | AU92: 21.25 | AV92: 16 | AW92: 6 | AX92: 4 | AY92: 20.75 | AZ92: 16 | BA92: 6 | BB92: 4 | BC92: 3.25 | BD92: 13 | BE92: 5 | BF92: 23 | BG92: 16.75 | BH92: 11.75 | BI92: 6.6 | BJ92: 4.5 | BK92: 3.4 | BL92: 20.25 | BM92: 15.25 | BN92: 9.75 | BO92: 5 | BP92: 3.25 | BQ92: 2.25 | BR92: 3250 | BS92: 0 | BT92: 0.27 | BU92: 345 | BV92: 0 | BW92: 5 | BX92: 0 | BY92: 0 | BZ92: 24 | CA92: 18 | CB92: 13.5 | CC92: 7.25 | CD92: 5.5 | CE92: 3.6 | CF92: 22.5 | CG92: 16.5 | CH92: 12 | CI92: 6 | CJ92: 4.4 | CK92: 2.6 | CL92: 0.75 | CM92: 4250 | CN92: 7.25 | CO92: 0.01 | CP92: 960 | CQ92: 1 | CR92: 69 | CS92: 40 | CT92: 3500 | CU92: 1250 | CV92: 75 | CW92: 40 | CX92: 1750 | CY92: 22 | CZ92: 1950 | DA92: 9.5 | DB92: 7.4 | DC92: 6 | DD92: 4.55 | DE92: 5.25 | DF92: 5000
A93: Mingo | B93: =VLOOKUP(A93,tables!$A$2:$C$56,2,0) -> 30 | C93: 2023 | D93: =VLOOKUP(A93,tables!$A$2:$C$56,3,0) -> 02 | E93: BTI Contracting Inc. St. Albans | F93: 484 Industrial Rd, St Albans, WV 25177 | G93: Valley Stone Yard | H93: 360 Valley Rd., Millwood WV, 25262 | I93: 78.94 | J93: 79.89 | K93: 80.72 | L93: 80.72 | M93: 81.39 | N93: 91.22 | O93: 83.54 | P93: 88.1 | Q93: 97.57 | R93: 88.1 | S93: 97.57 | T93: 118.91 | U93: 118.95 | V93: 113.94 | W93: 118.92 | X93: 96.22 | Y93: 96.22 | Z93: 67.5 | AA93: 1950 | AB93: 2.9 | AC93: 0.3 | AD93: 5 | AE93: 5 | AF93: 12.5 | AG93: 1.75 | AH93: 4.5 | AI93: 3 | AJ93: 0.27 | AK93: 83 | AL93: 29.75 | AM93: 19.5 | AN93: 9.7 | AO93: 1750 | AP93: 8000 | AQ93: 7 | AR93: 5 | AS93: 4 | AT93: 3 | AU93: 21.25 | AV93: 16 | AW93: 6 | AX93: 4 | AY93: 20.75 | AZ93: 16 | BA93: 6 | BB93: 4 | BC93: 3.25 | BD93: 13 | BE93: 5 | BF93: 23 | BG93: 16.75 | BH93: 11.75 | BI93: 6.6 | BJ93: 4.5 | BK93: 3.4 | BL93: 20.25 | BM93: 15.25 | BN93: 9.75 | BO93: 5 | BP93: 3.25 | BQ93: 2.25 | BR93: 3250 | BS93: 0 | BT93: 0.27 | BU93: 345 | BV93: 0 | BW93: 5 | BX93: 0 | BY93: 0 | BZ93: 24 | CA93: 18 | CB93: 13.5 | CC93: 7.25 | CD93: 5.5 | CE93: 3.6 | CF93: 22.5 | CG93: 16.5 | CH93: 12 | CI93: 6 | CJ93: 4.4 | CK93: 2.6 | CL93: 0.75 | CM93: 4250 | CN93: 7.25 | CO93: 0.01 | CP93: 960 | CQ93: 1 | CR93: 69 | CS93: 40 | CT93: 3500 | CU93: 1250 | CV93: 75 | CW93: 40 | CX93: 1750 | CY93: 22 | CZ93: 1950 | DA93: 9.5 | DB93: 7.4 | DC93: 6 | DD93: 4.55 | DE93: 5.25 | DF93: 5000
A94: Cabell | B94: =VLOOKUP(A94,tables!$A$2:$C$56,2,0) -> 6 | C94: 2024 | D94: =VLOOKUP(A94,tables!$A$2:$C$56,3,0) -> 02 | E94: BTI Contracting Inc. St. Albans | F94: 484 Industrial Rd, St Albans, WV 25177 | G94: Mountain Materials- Valley Quarry | H94: 12434 US 60, Olive Hill KY | I94: 78.94 | J94: 79.89 | K94: 80.72 | L94: 80.72 | M94: 81.39 | N94: 91.22 | O94: 83.54 | P94: 88.1 | Q94: 97.57 | R94: 88.1 | S94: 97.57 | T94: 118.91 | U94: 118.95 | V94: 113.94 | W94: 118.92 | X94: 96.22 | Y94: 96.22 | Z94: 67.5 | AA94: 1950 | AB94: 2.9 | AC94: 0.3 | AD94: 5 | AE94: 5 | AF94: 12.5 | AG94: 1.75 | AH94: 4.5 | AI94: 3 | AJ94: 0.27 | AK94: 83 | AL94: 29.75 | AM94: 19.5 | AN94: 9.7 | AO94: 1750 | AP94: 8000 | AQ94: 7 | AR94: 5 | AS94: 4 | AT94: 3 | AU94: 21.25 | AV94: 16 | AW94: 6 | AX94: 4 | AY94: 20.75 | AZ94: 16 | BA94: 6 | BB94: 4 | BC94: 3.25 | BD94: 13 | BE94: 5 | BF94: 23 | BG94: 16.75 | BH94: 11.75 | BI94: 6.6 | BJ94: 4.5 | BK94: 3.4 | BL94: 20.25 | BM94: 15.25 | BN94: 9.75 | BO94: 5 | BP94: 3.25 | BQ94: 2.25 | BR94: 3250 | BS94: 0 | BT94: 0.27 | BU94: 345 | BV94: 0 | BW94: 5 | BX94: 0 | BY94: 0 | BZ94: 24 | CA94: 18 | CB94: 13.5 | CC94: 7.25 | CD94: 5.5 | CE94: 3.6 | CF94: 22.5 | CG94: 16.5 | CH94: 12 | CI94: 6 | CJ94: 4.4 | CK94: 2.6 | CL94: 0.75 | CM94: 4250 | CN94: 7.25 | CO94: 0.01 | CP94: 960 | CQ94: 1 | CR94: 69 | CS94: 40 | CT94: 3500 | CU94: 1250 | CV94: 75 | CW94: 40 | CX94: 1750 | CY94: 22 | CZ94: 1950 | DA94: 9.5 | DB94: 7.4 | DC94: 6 | DD94: 4.55 | DE94: 5.25 | DF94: 5000
A95: Lincoln | B95: =VLOOKUP(A95,tables!$A$2:$C$56,2,0) -> 22 | C95: 2025 | D95: =VLOOKUP(A95,tables!$A$2:$C$56,3,0) -> 02 | E95: BTI Contracting Inc. St. Albans | F95: 484 Industrial Rd, St Albans, WV 25177 | G95: Mountain Materials- Valley Quarry | H95: 12434 US 60, Olive Hill KY | I95: 78.94 | J95: 79.89 | K95: 80.72 | L95: 80.72 | M95: 81.39 | N95: 91.22 | O95: 83.54 | P95: 88.1 | Q95: 97.57 | R95: 88.1 | S95: 97.57 | T95: 118.91 | U95: 118.95 | V95: 113.94 | W95: 118.92 | X95: 96.22 | Y95: 96.22 | Z95: 67.5 | AA95: 1950 | AB95: 2.9 | AC95: 0.3 | AD95: 5 | AE95: 5 | AF95: 12.5 | AG95: 1.75 | AH95: 4.5 | AI95: 3 | AJ95: 0.27 | AK95: 83 | AL95: 29.75 | AM95: 19.5 | AN95: 9.7 | AO95: 1750 | AP95: 8000 | AQ95: 7 | AR95: 5 | AS95: 4 | AT95: 3 | AU95: 21.25 | AV95: 16 | AW95: 6 | AX95: 4 | AY95: 20.75 | AZ95: 16 | BA95: 6 | BB95: 4 | BC95: 3.25 | BD95: 13 | BE95: 5 | BF95: 23 | BG95: 16.75 | BH95: 11.75 | BI95: 6.6 | BJ95: 4.5 | BK95: 3.4 | BL95: 20.25 | BM95: 15.25 | BN95: 9.75 | BO95: 5 | BP95: 3.25 | BQ95: 2.25 | BR95: 3250 | BS95: 0 | BT95: 0.27 | BU95: 345 | BV95: 0 | BW95: 5 | BX95: 0 | BY95: 0 | BZ95: 24 | CA95: 18 | CB95: 13.5 | CC95: 7.25 | CD95: 5.5 | CE95: 3.6 | CF95: 22.5 | CG95: 16.5 | CH95: 12 | CI95: 6 | CJ95: 4.4 | CK95: 2.6 | CL95: 0.75 | CM95: 4250 | CN95: 7.25 | CO95: 0.01 | CP95: 960 | CQ95: 1 | CR95: 69 | CS95: 40 | CT95: 3500 | CU95: 1250 | CV95: 75 | CW95: 40 | CX95: 1750 | CY95: 22 | CZ95: 1950 | DA95: 9.5 | DB95: 7.4 | DC95: 6 | DD95: 4.55 | DE95: 5.25 | DF95: 5000
A96: Logan | B96: =VLOOKUP(A96,tables!$A$2:$C$56,2,0) -> 23 | C96: 2026 | D96: =VLOOKUP(A96,tables!$A$2:$C$56,3,0) -> 02 | E96: BTI Contracting Inc. St. Albans | F96: 484 Industrial Rd, St Albans, WV 25177 | G96: Mountain Materials- Valley Quarry | H96: 12434 US 60, Olive Hill KY | I96: 78.94 | J96: 79.89 | K96: 80.72 | L96: 80.72 | M96: 81.39 | N96: 91.22 | O96: 83.54 | P96: 88.1 | Q96: 97.57 | R96: 88.1 | S96: 97.57 | T96: 118.91 | U96: 118.95 | V96: 113.94 | W96: 118.92 | X96: 96.22 | Y96: 96.22 | Z96: 67.5 | AA96: 1950 | AB96: 2.9 | AC96: 0.3 | AD96: 5 | AE96: 5 | AF96: 12.5 | AG96: 1.75 | AH96: 4.5 | AI96: 3 | AJ96: 0.27 | AK96: 83 | AL96: 29.75 | AM96: 19.5 | AN96: 9.7 | AO96: 1750 | AP96: 8000 | AQ96: 7 | AR96: 5 | AS96: 4 | AT96: 3 | AU96: 21.25 | AV96: 16 | AW96: 6 | AX96: 4 | AY96: 20.75 | AZ96: 16 | BA96: 6 | BB96: 4 | BC96: 3.25 | BD96: 13 | BE96: 5 | BF96: 23 | BG96: 16.75 | BH96: 11.75 | BI96: 6.6 | BJ96: 4.5 | BK96: 3.4 | BL96: 20.25 | BM96: 15.25 | BN96: 9.75 | BO96: 5 | BP96: 3.25 | BQ96: 2.25 | BR96: 3250 | BS96: 0 | BT96: 0.27 | BU96: 345 | BV96: 0 | BW96: 5 | BX96: 0 | BY96: 0 | BZ96: 24 | CA96: 18 | CB96: 13.5 | CC96: 7.25 | CD96: 5.5 | CE96: 3.6 | CF96: 22.5 | CG96: 16.5 | CH96: 12 | CI96: 6 | CJ96: 4.4 | CK96: 2.6 | CL96: 0.75 | CM96: 4250 | CN96: 7.25 | CO96: 0.01 | CP96: 960 | CQ96: 1 | CR96: 69 | CS96: 40 | CT96: 3500 | CU96: 1250 | CV96: 75 | CW96: 40 | CX96: 1750 | CY96: 22 | CZ96: 1950 | DA96: 9.5 | DB96: 7.4 | DC96: 6 | DD96: 4.55 | DE96: 5.25 | DF96: 5000
A97: Mingo | B97: =VLOOKUP(A97,tables!$A$2:$C$56,2,0) -> 30 | C97: 2027 | D97: =VLOOKUP(A97,tables!$A$2:$C$56,3,0) -> 02 | E97: BTI Contracting Inc. St. Albans | F97: 484 Industrial Rd, St Albans, WV 25177 | G97: Mountain Materials- Valley Quarry | H97: 12434 US 60, Olive Hill KY | I97: 78.94 | J97: 79.89 | K97: 80.72 | L97: 80.72 | M97: 81.39 | N97: 91.22 | O97: 83.54 | P97: 88.1 | Q97: 97.57 | R97: 88.1 | S97: 97.57 | T97: 118.91 | U97: 118.95 | V97: 113.94 | W97: 118.92 | X97: 96.22 | Y97: 96.22 | Z97: 67.5 | AA97: 1950 | AB97: 2.9 | AC97: 0.3 | AD97: 5 | AE97: 5 | AF97: 12.5 | AG97: 1.75 | AH97: 4.5 | AI97: 3 | AJ97: 0.27 | AK97: 83 | AL97: 29.75 | AM97: 19.5 | AN97: 9.7 | AO97: 1750 | AP97: 8000 | AQ97: 7 | AR97: 5 | AS97: 4 | AT97: 3 | AU97: 21.25 | AV97: 16 | AW97: 6 | AX97: 4 | AY97: 20.75 | AZ97: 16 | BA97: 6 | BB97: 4 | BC97: 3.25 | BD97: 13 | BE97: 5 | BF97: 23 | BG97: 16.75 | BH97: 11.75 | BI97: 6.6 | BJ97: 4.5 | BK97: 3.4 | BL97: 20.25 | BM97: 15.25 | BN97: 9.75 | BO97: 5 | BP97: 3.25 | BQ97: 2.25 | BR97: 3250 | BS97: 0 | BT97: 0.27 | BU97: 345 | BV97: 0 | BW97: 5 | BX97: 0 | BY97: 0 | BZ97: 24 | CA97: 18 | CB97: 13.5 | CC97: 7.25 | CD97: 5.5 | CE97: 3.6 | CF97: 22.5 | CG97: 16.5 | CH97: 12 | CI97: 6 | CJ97: 4.4 | CK97: 2.6 | CL97: 0.75 | CM97: 4250 | CN97: 7.25 | CO97: 0.01 | CP97: 960 | CQ97: 1 | CR97: 69 | CS97: 40 | CT97: 3500 | CU97: 1250 | CV97: 75 | CW97: 40 | CX97: 1750 | CY97: 22 | CZ97: 1950 | DA97: 9.5 | DB97: 7.4 | DC97: 6 | DD97: 4.55 | DE97: 5.25 | DF97: 5000
A98: Cabell | B98: =VLOOKUP(A98,tables!$A$2:$C$56,2,0) -> 6 | C98: 2028 | D98: =VLOOKUP(A98,tables!$A$2:$C$56,3,0) -> 02 | E98: West Virginia Paving, Inc., Shelly Co. | F98: Rt. 7 North,Gallipolis, OH 45631 | G98: Shamblin Stone | H98: 658 Winfield Rd., St Albans, WV 25177 | I98: 0 | J98: 0 | K98: 92 | L98: 92 | M98: 92 | N98: 0 | O98: 0 | P98: 102 | Q98: 0 | R98: 102 | S98: 0 | T98: 0 | U98: 0 | V98: 0 | W98: 0 | X98: 0 | Y98: 0 | Z98: 65 | AA98: 2000 | AB98: 2.75 | AC98: 0.51 | AD98: 15 | AE98: 4 | AF98: 12 | AG98: 2 | AH98: 5 | AI98: 2.75 | AJ98: 0.46 | AK98: 85 | AL98: 30 | AM98: 20 | AN98: 10 | AO98: 2000 | AP98: 15000 | AQ98: 6.75 | AR98: 4.75 | AS98: 3.75 | AT98: 2.75 | AU98: 20.75 | AV98: 15.75 | AW98: 4.75 | AX98: 2.75 | AY98: 20.75 | AZ98: 15.75 | BA98: 4.75 | BB98: 2.75 | BC98: 3.5 | BD98: 14 | BE98: 6 | BF98: 21.5 | BG98: 16.75 | BH98: 11.75 | BI98: 6.75 | BJ98: 4.75 | BK98: 3.75 | BL98: 20.75 | BM98: 15.75 | BN98: 11.75 | BO98: 5.75 | BP98: 3.75 | BQ98: 2.75 | BR98: 3500 | BS98: 0 | BT98: 0.46 | BU98: 350 | BV98: 0 | BW98: 5 | BX98: 0 | BY98: 0 | BZ98: 24.9 | CA98: 19.9 | CB98: 14.9 | CC98: 8 | CD98: 6.15 | CE98: 4.35 | CF98: 23.9 | CG98: 18.9 | CH98: 13.9 | CI98: 7 | CJ98: 5.15 | CK98: 3.35 | CL98: 0.5 | CM98: 4500 | CN98: 8 | CO98: 0.01 | CP98: 1000 | CQ98: 1.5 | CR98: 70 | CS98: 40 | CT98: 5000 | CU98: 2000 | CV98: 76 | CW98: 35 | CX98: 2000 | CY98: 13 | CZ98: 2000 | DA98: 8.5 | DB98: 8 | DC98: 6.5 | DD98: 5 | DE98: 6 | DF98: 5000
A99: Cabell | B99: =VLOOKUP(A99,tables!$A$2:$C$56,2,0) -> 6 | C99: 2029 | D99: =VLOOKUP(A99,tables!$A$2:$C$56,3,0) -> 02 | E99: West Virginia Paving, Inc., Shelly Co. | F99: Rt. 7 North,Gallipolis, OH 45631 | G99: WV Paving | H99: 4022 Ohio River Rd., Huntington, WV 25702 | I99: 0 | J99: 0 | K99: 92 | L99: 92 | M99: 92 | N99: 0 | O99: 0 | P99: 102 | Q99: 0 | R99: 102 | S99: 0 | T99: 0 | U99: 0 | V99: 0 | W99: 0 | X99: 0 | Y99: 0 | Z99: 65 | AA99: 2000 | AB99: 2.75 | AC99: 0.51 | AD99: 15 | AE99: 4 | AF99: 12 | AG99: 2 | AH99: 5 | AI99: 2.75 | AJ99: 0.46 | AK99: 85 | AL99: 30 | AM99: 20 | AN99: 10 | AO99: 2000 | AP99: 15000 | AQ99: 6.75 | AR99: 4.75 | AS99: 3.75 | AT99: 2.75 | AU99: 20.75 | AV99: 15.75 | AW99: 4.75 | AX99: 2.75 | AY99: 20.75 | AZ99: 15.75 | BA99: 4.75 | BB99: 2.75 | BC99: 3.5 | BD99: 14 | BE99: 6 | BF99: 21.5 | BG99: 16.75 | BH99: 11.75 | BI99: 6.75 | BJ99: 4.75 | BK99: 3.75 | BL99: 20.75 | BM99: 15.75 | BN99: 11.75 | BO99: 5.75 | BP99: 3.75 | BQ99: 2.75 | BR99: 3500 | BS99: 0 | BT99: 0.46 | BU99: 350 | BV99: 0 | BW99: 5 | BX99: 0 | BY99: 0 | BZ99: 24.9 | CA99: 19.9 | CB99: 14.9 | CC99: 8 | CD99: 6.15 | CE99: 4.35 | CF99: 23.9 | CG99: 18.9 | CH99: 13.9 | CI99: 7 | CJ99: 5.15 | CK99: 3.35 | CL99: 0.5 | CM99: 4500 | CN99: 8 | CO99: 0.01 | CP99: 1000 | CQ99: 1.5 | CR99: 70 | CS99: 40 | CT99: 5000 | CU99: 2000 | CV99: 76 | CW99: 35 | CX99: 2000 | CY99: 13 | CZ99: 2000 | DA99: 8.5 | DB99: 8 | DC99: 6.5 | DD99: 5 | DE99: 6 | DF99: 5000
A100: Cabell | B100: =VLOOKUP(A100,tables!$A$2:$C$56,2,0) -> 6 | C100: 2030 | D100: =VLOOKUP(A100,tables!$A$2:$C$56,3,0) -> 02 | E100: West Virginia Paving, Inc., Huntington Plant | F100: 4022 Ohio River Rd., Huntington, WV 25702 | G100: Shamblin Stone | H100: 658 Winfield Rd., St Albans, WV 25177 | I100: 85.75 | J100: 85.75 | K100: 90 | L100: 90 | M100: 90 | N100: 101 | O100: 90.5 | P100: 99 | Q100: 106 | R100: 99 | S100: 106 | T100: 0 | U100: 0 | V100: 0 | W100: 0 | X100: 105.5 | Y100: 105.5 | Z100: 65 | AA100: 2000 | AB100: 2.75 | AC100: 0.33 | AD100: 15 | AE100: 4 | AF100: 12 | AG100: 2 | AH100: 5 | AI100: 2.75 | AJ100: 0.28 | AK100: 85 | AL100: 30 | AM100: 20 | AN100: 10 | AO100: 2000 | AP100: 15000 | AQ100: 6.75 | AR100: 4.75 | AS100: 3.75 | AT100: 2.75 | AU100: 20.75 | AV100: 15.75 | AW100: 4.75 | AX100: 2.75 | AY100: 20.75 | AZ100: 15.75 | BA100: 4.75 | BB100: 2.75 | BC100: 3.5 | BD100: 14 | BE100: 6 | BF100: 22.25 | BG100: 17.5 | BH100: 12.5 | BI100: 6.75 | BJ100: 4.85 | BK100: 3.75 | BL100: 21.5 | BM100: 16.5 | BN100: 11.5 | BO100: 5.75 | BP100: 3.85 | BQ100: 2.75 | BR100: 3500 | BS100: 0 | BT100: 0.28 | BU100: 350 | BV100: 0 | BW100: 5 | BX100: 0 | BY100: 0 | BZ100: 24.9 | CA100: 19.9 | CB100: 14.9 | CC100: 8 | CD100: 6.15 | CE100: 4.35 | CF100: 23.9 | CG100: 18.9 | CH100: 13.9 | CI100: 7 | CJ100: 5.15 | CK100: 3.35 | CL100: 0.5 | CM100: 4500 | CN100: 8 | CO100: 0.01 | CP100: 1000 | CQ100: 1.5 | CR100: 70 | CS100: 40 | CT100: 5000 | CU100: 2000 | CV100: 76 | CW100: 35 | CX100: 2000 | CY100: 13 | CZ100: 2000 | DA100: 8.5 | DB100: 8 | DC100: 6.5 | DD100: 5 | DE100: 6 | DF100: 5000
A101: Cabell | B101: =VLOOKUP(A101,tables!$A$2:$C$56,2,0) -> 6 | C101: 2031 | D101: =VLOOKUP(A101,tables!$A$2:$C$56,3,0) -> 02 | E101: West Virginia Paving, Inc., Huntington Plant | F101: 4022 Ohio River Rd., Huntington, WV 25702 | G101: WV Paving | H101: 4022 Ohio River Rd., Huntington, WV 25702 | I101: 85.75 | J101: 85.75 | K101: 90 | L101: 90 | M101: 90 | N101: 101 | O101: 90.5 | P101: 99 | Q101: 106 | R101: 99 | S101: 106 | T101: 0 | U101: 0 | V101: 0 | W101: 0 | X101: 105.5 | Y101: 105.5 | Z101: 65 | AA101: 2000 | AB101: 2.75 | AC101: 0.33 | AD101: 15 | AE101: 4 | AF101: 12 | AG101: 2 | AH101: 5 | AI101: 2.75 | AJ101: 0.28 | AK101: 85 | AL101: 30 | AM101: 20 | AN101: 10 | AO101: 2000 | AP101: 15000 | AQ101: 6.75 | AR101: 4.75 | AS101: 3.75 | AT101: 2.75 | AU101: 20.75 | AV101: 15.75 | AW101: 4.75 | AX101: 2.75 | AY101: 20.75 | AZ101: 15.75 | BA101: 4.75 | BB101: 2.75 | BC101: 3.5 | BD101: 14 | BE101: 6 | BF101: 22.25 | BG101: 17.5 | BH101: 12.5 | BI101: 6.75 | BJ101: 4.85 | BK101: 3.75 | BL101: 21.5 | BM101: 16.5 | BN101: 11.5 | BO101: 5.75 | BP101: 3.85 | BQ101: 2.75 | BR101: 3500 | BS101: 0 | BT101: 0.28 | BU101: 350 | BV101: 0 | BW101: 5 | BX101: 0 | BY101: 0 | BZ101: 24.9 | CA101: 19.9 | CB101: 14.9 | CC101: 8 | CD101: 6.15 | CE101: 4.35 | CF101: 23.9 | CG101: 18.9 | CH101: 13.9 | CI101: 7 | CJ101: 5.15 | CK101: 3.35 | CL101: 0.5 | CM101: 4500 | CN101: 8 | CO101: 0.01 | CP101: 1000 | CQ101: 1.5 | CR101: 70 | CS101: 40 | CT101: 5000 | CU101: 2000 | CV101: 76 | CW101: 35 | CX101: 2000 | CY101: 13 | CZ101: 2000 | DA101: 8.5 | DB101: 8 | DC101: 6.5 | DD101: 5 | DE101: 6 | DF101: 5000
A102: Lincoln | B102: =VLOOKUP(A102,tables!$A$2:$C$56,2,0) -> 22 | C102: 2032 | D102: =VLOOKUP(A102,tables!$A$2:$C$56,3,0) -> 02 | E102: West Virginia Paving, Inc., Huntington Plant | F102: 4022 Ohio River Rd., Huntington, WV 25702 | G102: Shamblin Stone | H102: 70 Dunbar Ave., Dunbar WV 25064 | I102: 85.75 | J102: 85.75 | K102: 90 | L102: 90 | M102: 90 | N102: 101 | O102: 90.5 | P102: 99 | Q102: 106 | R102: 99 | S102: 106 | T102: 0 | U102: 0 | V102: 0 | W102: 0 | X102: 105.5 | Y102: 105.5 | Z102: 65 | AA102: 2000 | AB102: 2.75 | AC102: 0.33 | AD102: 15 | AE102: 4 | AF102: 12 | AG102: 2 | AH102: 5 | AI102: 2.75 | AJ102: 0.28 | AK102: 85 | AL102: 30 | AM102: 20 | AN102: 10 | AO102: 2000 | AP102: 15000 | AQ102: 6.75 | AR102: 4.75 | AS102: 3.75 | AT102: 2.75 | AU102: 20.75 | AV102: 15.75 | AW102: 4.75 | AX102: 2.75 | AY102: 20.75 | AZ102: 15.75 | BA102: 4.75 | BB102: 2.75 | BC102: 3.5 | BD102: 14 | BE102: 6 | BF102: 22.25 | BG102: 17.5 | BH102: 12.5 | BI102: 6.75 | BJ102: 4.85 | BK102: 3.75 | BL102: 21.5 | BM102: 16.5 | BN102: 11.5 | BO102: 5.75 | BP102: 3.85 | BQ102: 2.75 | BR102: 3500 | BS102: 0 | BT102: 0.28 | BU102: 350 | BV102: 0 | BW102: 5 | BX102: 0 | BY102: 0 | BZ102: 24.9 | CA102: 19.9 | CB102: 14.9 | CC102: 8 | CD102: 6.15 | CE102: 4.35 | CF102: 23.9 | CG102: 18.9 | CH102: 13.9 | CI102: 7 | CJ102: 5.15 | CK102: 3.35 | CL102: 0.5 | CM102: 4500 | CN102: 8 | CO102: 0.01 | CP102: 1000 | CQ102: 1.5 | CR102: 70 | CS102: 40 | CT102: 5000 | CU102: 2000 | CV102: 76 | CW102: 35 | CX102: 2000 | CY102: 13 | CZ102: 2000 | DA102: 8.5 | DB102: 8 | DC102: 6.5 | DD102: 5 | DE102: 6 | DF102: 5000
A103: Lincoln | B103: =VLOOKUP(A103,tables!$A$2:$C$56,2,0) -> 22 | C103: 2033 | D103: =VLOOKUP(A103,tables!$A$2:$C$56,3,0) -> 02 | E103: West Virginia Paving, Inc., Huntington Plant | F103: 4022 Ohio River Rd., Huntington, WV 25702 | G103: Shamblin Stone | H103: 658 Winfield Rd., St Albans, WV 25177 | I103: 85.75 | J103: 85.75 | K103: 90 | L103: 90 | M103: 90 | N103: 101 | O103: 90.5 | P103: 99 | Q103: 106 | R103: 99 | S103: 106 | T103: 0 | U103: 0 | V103: 0 | W103: 0 | X103: 105.5 | Y103: 105.5 | Z103: 65 | AA103: 2000 | AB103: 2.75 | AC103: 0.33 | AD103: 15 | AE103: 4 | AF103: 12 | AG103: 2 | AH103: 5 | AI103: 2.75 | AJ103: 0.28 | AK103: 85 | AL103: 30 | AM103: 20 | AN103: 10 | AO103: 2000 | AP103: 15000 | AQ103: 6.75 | AR103: 4.75 | AS103: 3.75 | AT103: 2.75 | AU103: 20.75 | AV103: 15.75 | AW103: 4.75 | AX103: 2.75 | AY103: 20.75 | AZ103: 15.75 | BA103: 4.75 | BB103: 2.75 | BC103: 3.5 | BD103: 14 | BE103: 6 | BF103: 22.25 | BG103: 17.5 | BH103: 12.5 | BI103: 6.75 | BJ103: 4.85 | BK103: 3.75 | BL103: 21.5 | BM103: 16.5 | BN103: 11.5 | BO103: 5.75 | BP103: 3.85 | BQ103: 2.75 | BR103: 3500 | BS103: 0 | BT103: 0.28 | BU103: 350 | BV103: 0 | BW103: 5 | BX103: 0 | BY103: 0 | BZ103: 24.9 | CA103: 19.9 | CB103: 14.9 | CC103: 8 | CD103: 6.15 | CE103: 4.35 | CF103: 23.9 | CG103: 18.9 | CH103: 13.9 | CI103: 7 | CJ103: 5.15 | CK103: 3.35 | CL103: 0.5 | CM103: 4500 | CN103: 8 | CO103: 0.01 | CP103: 1000 | CQ103: 1.5 | CR103: 70 | CS103: 40 | CT103: 5000 | CU103: 2000 | CV103: 76 | CW103: 35 | CX103: 2000 | CY103: 13 | CZ103: 2000 | DA103: 8.5 | DB103: 8 | DC103: 6.5 | DD103: 5 | DE103: 6 | DF103: 5000
A104: Lincoln | B104: =VLOOKUP(A104,tables!$A$2:$C$56,2,0) -> 22 | C104: 2034 | D104: =VLOOKUP(A104,tables!$A$2:$C$56,3,0) -> 02 | E104: West Virginia Paving, Inc., Huntington Plant | F104: 4022 Ohio River Rd., Huntington, WV 25702 | G104: WV Paving | H104: 4022 Ohio River Rd., Huntington, WV 25702 | I104: 85.75 | J104: 85.75 | K104: 90 | L104: 90 | M104: 90 | N104: 101 | O104: 90.5 | P104: 99 | Q104: 106 | R104: 99 | S104: 106 | T104: 0 | U104: 0 | V104: 0 | W104: 0 | X104: 105.5 | Y104: 105.5 | Z104: 65 | AA104: 2000 | AB104: 2.75 | AC104: 0.33 | AD104: 15 | AE104: 4 | AF104: 12 | AG104: 2 | AH104: 5 | AI104: 2.75 | AJ104: 0.28 | AK104: 85 | AL104: 30 | AM104: 20 | AN104: 10 | AO104: 2000 | AP104: 15000 | AQ104: 6.75 | AR104: 4.75 | AS104: 3.75 | AT104: 2.75 | AU104: 20.75 | AV104: 15.75 | AW104: 4.75 | AX104: 2.75 | AY104: 20.75 | AZ104: 15.75 | BA104: 4.75 | BB104: 2.75 | BC104: 3.5 | BD104: 14 | BE104: 6 | BF104: 22.25 | BG104: 17.5 | BH104: 12.5 | BI104: 6.75 | BJ104: 4.85 | BK104: 3.75 | BL104: 21.5 | BM104: 16.5 | BN104: 11.5 | BO104: 5.75 | BP104: 3.85 | BQ104: 2.75 | BR104: 3500 | BS104: 0 | BT104: 0.28 | BU104: 350 | BV104: 0 | BW104: 5 | BX104: 0 | BY104: 0 | BZ104: 24.9 | CA104: 19.9 | CB104: 14.9 | CC104: 8 | CD104: 6.15 | CE104: 4.35 | CF104: 23.9 | CG104: 18.9 | CH104: 13.9 | CI104: 7 | CJ104: 5.15 | CK104: 3.35 | CL104: 0.5 | CM104: 4500 | CN104: 8 | CO104: 0.01 | CP104: 1000 | CQ104: 1.5 | CR104: 70 | CS104: 40 | CT104: 5000 | CU104: 2000 | CV104: 76 | CW104: 35 | CX104: 2000 | CY104: 13 | CZ104: 2000 | DA104: 8.5 | DB104: 8 | DC104: 6.5 | DD104: 5 | DE104: 6 | DF104: 5000
A105: Lincoln | B105: =VLOOKUP(A105,tables!$A$2:$C$56,2,0) -> 22 | C105: 2035 | D105: =VLOOKUP(A105,tables!$A$2:$C$56,3,0) -> 02 | E105: West Virginia Paving, Inc., Huntington Plant | F105: 4022 Ohio River Rd., Huntington, WV 25702 | G105: WV Paving | H105: US 119 Whitman Creek Rd., Whitman, WV 25652 | I105: 85.75 | J105: 85.75 | K105: 90 | L105: 90 | M105: 90 | N105: 101 | O105: 90.5 | P105: 99 | Q105: 106 | R105: 99 | S105: 106 | T105: 0 | U105: 0 | V105: 0 | W105: 0 | X105: 105.5 | Y105: 105.5 | Z105: 65 | AA105: 2000 | AB105: 2.75 | AC105: 0.33 | AD105: 15 | AE105: 4 | AF105: 12 | AG105: 2 | AH105: 5 | AI105: 2.75 | AJ105: 0.28 | AK105: 85 | AL105: 30 | AM105: 20 | AN105: 10 | AO105: 2000 | AP105: 15000 | AQ105: 6.75 | AR105: 4.75 | AS105: 3.75 | AT105: 2.75 | AU105: 20.75 | AV105: 15.75 | AW105: 4.75 | AX105: 2.75 | AY105: 20.75 | AZ105: 15.75 | BA105: 4.75 | BB105: 2.75 | BC105: 3.5 | BD105: 14 | BE105: 6 | BF105: 22.25 | BG105: 17.5 | BH105: 12.5 | BI105: 6.75 | BJ105: 4.85 | BK105: 3.75 | BL105: 21.5 | BM105: 16.5 | BN105: 11.5 | BO105: 5.75 | BP105: 3.85 | BQ105: 2.75 | BR105: 3500 | BS105: 0 | BT105: 0.28 | BU105: 350 | BV105: 0 | BW105: 5 | BX105: 0 | BY105: 0 | BZ105: 24.9 | CA105: 19.9 | CB105: 14.9 | CC105: 8 | CD105: 6.15 | CE105: 4.35 | CF105: 23.9 | CG105: 18.9 | CH105: 13.9 | CI105: 7 | CJ105: 5.15 | CK105: 3.35 | CL105: 0.5 | CM105: 4500 | CN105: 8 | CO105: 0.01 | CP105: 1000 | CQ105: 1.5 | CR105: 70 | CS105: 40 | CT105: 5000 | CU105: 2000 | CV105: 76 | CW105: 35 | CX105: 2000 | CY105: 13 | CZ105: 2000 | DA105: 8.5 | DB105: 8 | DC105: 6.5 | DD105: 5 | DE105: 6 | DF105: 5000
A106: Wayne | B106: =VLOOKUP(A106,tables!$A$2:$C$56,2,0) -> 50 | C106: 2036 | D106: =VLOOKUP(A106,tables!$A$2:$C$56,3,0) -> 02 | E106: West Virginia Paving, Inc., Huntington Plant | F106: 4022 Ohio River Rd., Huntington, WV 25702 | G106: WV Paving | H106: 4022 Ohio River Rd., Huntington, WV 25702 | I106: 85.75 | J106: 85.75 | K106: 90 | L106: 90 | M106: 90 | N106: 101 | O106: 90.5 | P106: 99 | Q106: 106 | R106: 99 | S106: 106 | T106: 0 | U106: 0 | V106: 0 | W106: 0 | X106: 105.5 | Y106: 105.5 | Z106: 65 | AA106: 2000 | AB106: 2.75 | AC106: 0.33 | AD106: 15 | AE106: 4 | AF106: 12 | AG106: 2 | AH106: 5 | AI106: 2.75 | AJ106: 0.28 | AK106: 85 | AL106: 30 | AM106: 20 | AN106: 10 | AO106: 2000 | AP106: 15000 | AQ106: 6.75 | AR106: 4.75 | AS106: 3.75 | AT106: 2.75 | AU106: 20.75 | AV106: 15.75 | AW106: 4.75 | AX106: 2.75 | AY106: 20.75 | AZ106: 15.75 | BA106: 4.75 | BB106: 2.75 | BC106: 3.5 | BD106: 14 | BE106: 6 | BF106: 22.25 | BG106: 17.5 | BH106: 12.5 | BI106: 6.75 | BJ106: 4.85 | BK106: 3.75 | BL106: 21.5 | BM106: 16.5 | BN106: 11.5 | BO106: 5.75 | BP106: 3.85 | BQ106: 2.75 | BR106: 3500 | BS106: 0 | BT106: 0.28 | BU106: 350 | BV106: 0 | BW106: 5 | BX106: 0 | BY106: 0 | BZ106: 24.9 | CA106: 19.9 | CB106: 14.9 | CC106: 8 | CD106: 6.15 | CE106: 4.35 | CF106: 23.9 | CG106: 18.9 | CH106: 13.9 | CI106: 7 | CJ106: 5.15 | CK106: 3.35 | CL106: 0.5 | CM106: 4500 | CN106: 8 | CO106: 0.01 | CP106: 1000 | CQ106: 1.5 | CR106: 70 | CS106: 40 | CT106: 5000 | CU106: 2000 | CV106: 76 | CW106: 35 | CX106: 2000 | CY106: 13 | CZ106: 2000 | DA106: 8.5 | DB106: 8 | DC106: 6.5 | DD106: 5 | DE106: 6 | DF106: 5000
A107: Lincoln | B107: =VLOOKUP(A107,tables!$A$2:$C$56,2,0) -> 22 | C107: 2037 | D107: =VLOOKUP(A107,tables!$A$2:$C$56,3,0) -> 02 | E107: West Virginia Paving, Inc., Whitman Plant | F107: US 119 Whitman Creek Rd., Whitman, WV 25652 | G107: Shamblin Stone | H107: 70 Dunbar Ave., Dunbar WV 25064 | I107: 106.5 | J107: 106.5 | K107: 113 | L107: 113 | M107: 113 | N107: 118.5 | O107: 114.5 | P107: 120.5 | Q107: 122.5 | R107: 120.5 | S107: 121.5 | T107: 0 | U107: 0 | V107: 0 | W107: 0 | X107: 119.5 | Y107: 119.5 | Z107: 65 | AA107: 2000 | AB107: 2.75 | AC107: 0.33 | AD107: 15 | AE107: 4 | AF107: 12 | AG107: 2 | AH107: 5 | AI107: 2.75 | AJ107: 0.28 | AK107: 85 | AL107: 30 | AM107: 20 | AN107: 10 | AO107: 2000 | AP107: 15000 | AQ107: 6.75 | AR107: 4.75 | AS107: 3.75 | AT107: 2.75 | AU107: 20.75 | AV107: 15.75 | AW107: 4.75 | AX107: 2.75 | AY107: 20.75 | AZ107: 15.75 | BA107: 4.75 | BB107: 2.75 | BC107: 3.5 | BD107: 14 | BE107: 6 | BF107: 22.25 | BG107: 17.5 | BH107: 12.5 | BI107: 6.75 | BJ107: 4.85 | BK107: 3.75 | BL107: 21.5 | BM107: 16.5 | BN107: 11.5 | BO107: 5.75 | BP107: 3.85 | BQ107: 2.75 | BR107: 3500 | BS107: 0 | BT107: 0.28 | BU107: 350 | BV107: 0 | BW107: 5 | BX107: 0 | BY107: 0 | BZ107: 24.9 | CA107: 19.9 | CB107: 14.9 | CC107: 8 | CD107: 6.15 | CE107: 4.35 | CF107: 23.9 | CG107: 18.9 | CH107: 13.9 | CI107: 7 | CJ107: 5.15 | CK107: 3.35 | CL107: 0.5 | CM107: 4500 | CN107: 8 | CO107: 0.01 | CP107: 1000 | CQ107: 1.5 | CR107: 70 | CS107: 40 | CT107: 5000 | CU107: 2000 | CV107: 76 | CW107: 35 | CX107: 2000 | CY107: 13 | CZ107: 2000 | DA107: 8.5 | DB107: 8 | DC107: 6.5 | DD107: 5 | DE107: 6 | DF107: 5000
A108: Lincoln | B108: =VLOOKUP(A108,tables!$A$2:$C$56,2,0) -> 22 | C108: 2038 | D108: =VLOOKUP(A108,tables!$A$2:$C$56,3,0) -> 02 | E108: West Virginia Paving, Inc., Whitman Plant | F108: US 119 Whitman Creek Rd., Whitman, WV 25652 | G108: WV Paving | H108: 658 Winfield Rd., St Albans, WV 25177 | I108: 106.5 | J108: 106.5 | K108: 113 | L108: 113 | M108: 113 | N108: 118.5 | O108: 114.5 | P108: 120.5 | Q108: 122.5 | R108: 120.5 | S108: 121.5 | T108: 0 | U108: 0 | V108: 0 | W108: 0 | X108: 119.5 | Y108: 119.5 | Z108: 65 | AA108: 2000 | AB108: 2.75 | AC108: 0.33 | AD108: 15 | AE108: 4 | AF108: 12 | AG108: 2 | AH108: 5 | AI108: 2.75 | AJ108: 0.28 | AK108: 85 | AL108: 30 | AM108: 20 | AN108: 10 | AO108: 2000 | AP108: 15000 | AQ108: 6.75 | AR108: 4.75 | AS108: 3.75 | AT108: 2.75 | AU108: 20.75 | AV108: 15.75 | AW108: 4.75 | AX108: 2.75 | AY108: 20.75 | AZ108: 15.75 | BA108: 4.75 | BB108: 2.75 | BC108: 3.5 | BD108: 14 | BE108: 6 | BF108: 22.25 | BG108: 17.5 | BH108: 12.5 | BI108: 6.75 | BJ108: 4.85 | BK108: 3.75 | BL108: 21.5 | BM108: 16.5 | BN108: 11.5 | BO108: 5.75 | BP108: 3.85 | BQ108: 2.75 | BR108: 3500 | BS108: 0 | BT108: 0.28 | BU108: 350 | BV108: 0 | BW108: 5 | BX108: 0 | BY108: 0 | BZ108: 24.9 | CA108: 19.9 | CB108: 14.9 | CC108: 8 | CD108: 6.15 | CE108: 4.35 | CF108: 23.9 | CG108: 18.9 | CH108: 13.9 | CI108: 7 | CJ108: 5.15 | CK108: 3.35 | CL108: 0.5 | CM108: 4500 | CN108: 8 | CO108: 0.01 | CP108: 1000 | CQ108: 1.5 | CR108: 70 | CS108: 40 | CT108: 5000 | CU108: 2000 | CV108: 76 | CW108: 35 | CX108: 2000 | CY108: 13 | CZ108: 2000 | DA108: 8.5 | DB108: 8 | DC108: 6.5 | DD108: 5 | DE108: 6 | DF108: 5000
A109: Lincoln | B109: =VLOOKUP(A109,tables!$A$2:$C$56,2,0) -> 22 | C109: 2039 | D109: =VLOOKUP(A109,tables!$A$2:$C$56,3,0) -> 02 | E109: West Virginia Paving, Inc., Whitman Plant | F109: US 119 Whitman Creek Rd., Whitman, WV 25652 | G109: WV Paving | H109: US 119 Whitman Creek Rd., Whitman, WV 25652 | I109: 106.5 | J109: 106.5 | K109: 113 | L109: 113 | M109: 113 | N109: 118.5 | O109: 114.5 | P109: 120.5 | Q109: 122.5 | R109: 120.5 | S109: 121.5 | T109: 0 | U109: 0 | V109: 0 | W109: 0 | X109: 119.5 | Y109: 119.5 | Z109: 65 | AA109: 2000 | AB109: 2.75 | AC109: 0.33 | AD109: 15 | AE109: 4 | AF109: 12 | AG109: 2 | AH109: 5 | AI109: 2.75 | AJ109: 0.28 | AK109: 85 | AL109: 30 | AM109: 20 | AN109: 10 | AO109: 2000 | AP109: 15000 | AQ109: 6.75 | AR109: 4.75 | AS109: 3.75 | AT109: 2.75 | AU109: 20.75 | AV109: 15.75 | AW109: 4.75 | AX109: 2.75 | AY109: 20.75 | AZ109: 15.75 | BA109: 4.75 | BB109: 2.75 | BC109: 3.5 | BD109: 14 | BE109: 6 | BF109: 22.25 | BG109: 17.5 | BH109: 12.5 | BI109: 6.75 | BJ109: 4.85 | BK109: 3.75 | BL109: 21.5 | BM109: 16.5 | BN109: 11.5 | BO109: 5.75 | BP109: 3.85 | BQ109: 2.75 | BR109: 3500 | BS109: 0 | BT109: 0.28 | BU109: 350 | BV109: 0 | BW109: 5 | BX109: 0 | BY109: 0 | BZ109: 24.9 | CA109: 19.9 | CB109: 14.9 | CC109: 8 | CD109: 6.15 | CE109: 4.35 | CF109: 23.9 | CG109: 18.9 | CH109: 13.9 | CI109: 7 | CJ109: 5.15 | CK109: 3.35 | CL109: 0.5 | CM109: 4500 | CN109: 8 | CO109: 0.01 | CP109: 1000 | CQ109: 1.5 | CR109: 70 | CS109: 40 | CT109: 5000 | CU109: 2000 | CV109: 76 | CW109: 35 | CX109: 2000 | CY109: 13 | CZ109: 2000 | DA109: 8.5 | DB109: 8 | DC109: 6.5 | DD109: 5 | DE109: 6 | DF109: 5000
A110: Logan | B110: =VLOOKUP(A110,tables!$A$2:$C$56,2,0) -> 23 | C110: 2040 | D110: =VLOOKUP(A110,tables!$A$2:$C$56,3,0) -> 02 | E110: West Virginia Paving, Inc., Whitman Plant | F110: US 119 Whitman Creek Rd., Whitman, WV 25652 | G110: WV Paving | H110: US 119 Whitman Creek Rd., Whitman, WV 25652 | I110: 106.5 | J110: 106.5 | K110: 113 | L110: 113 | M110: 113 | N110: 118.5 | O110: 114.5 | P110: 120.5 | Q110: 122.5 | R110: 120.5 | S110: 121.5 | T110: 0 | U110: 0 | V110: 0 | W110: 0 | X110: 119.5 | Y110: 119.5 | Z110: 65 | AA110: 2000 | AB110: 2.75 | AC110: 0.33 | AD110: 15 | AE110: 4 | AF110: 12 | AG110: 2 | AH110: 5 | AI110: 2.75 | AJ110: 0.28 | AK110: 85 | AL110: 30 | AM110: 20 | AN110: 10 | AO110: 2000 | AP110: 15000 | AQ110: 6.75 | AR110: 4.75 | AS110: 3.75 | AT110: 2.75 | AU110: 20.75 | AV110: 15.75 | AW110: 4.75 | AX110: 2.75 | AY110: 20.75 | AZ110: 15.75 | BA110: 4.75 | BB110: 2.75 | BC110: 3.5 | BD110: 14 | BE110: 6 | BF110: 22.25 | BG110: 17.5 | BH110: 12.5 | BI110: 6.75 | BJ110: 4.85 | BK110: 3.75 | BL110: 21.5 | BM110: 16.5 | BN110: 11.5 | BO110: 5.75 | BP110: 3.85 | BQ110: 2.75 | BR110: 3500 | BS110: 0 | BT110: 0.28 | BU110: 350 | BV110: 0 | BW110: 5 | BX110: 0 | BY110: 0 | BZ110: 24.9 | CA110: 19.9 | CB110: 14.9 | CC110: 8 | CD110: 6.15 | CE110: 4.35 | CF110: 23.9 | CG110: 18.9 | CH110: 13.9 | CI110: 7 | CJ110: 5.15 | CK110: 3.35 | CL110: 0.5 | CM110: 4500 | CN110: 8 | CO110: 0.01 | CP110: 1000 | CQ110: 1.5 | CR110: 70 | CS110: 40 | CT110: 5000 | CU110: 2000 | CV110: 76 | CW110: 35 | CX110: 2000 | CY110: 13 | CZ110: 2000 | DA110: 8.5 | DB110: 8 | DC110: 6.5 | DD110: 5 | DE110: 6 | DF110: 5000
A111: Mingo | B111: =VLOOKUP(A111,tables!$A$2:$C$56,2,0) -> 30 | C111: 2041 | D111: =VLOOKUP(A111,tables!$A$2:$C$56,3,0) -> 02 | E111: West Virginia Paving, Inc., Whitman Plant | F111: US 119 Whitman Creek Rd., Whitman, WV 25652 | G111: WV Paving | H111: 4022 Ohio River Rd., Huntington, WV 25702 | I111: 106.5 | J111: 106.5 | K111: 113 | L111: 113 | M111: 113 | N111: 118.5 | O111: 114.5 | P111: 120.5 | Q111: 122.5 | R111: 120.5 | S111: 121.5 | T111: 0 | U111: 0 | V111: 0 | W111: 0 | X111: 119.5 | Y111: 119.5 | Z111: 65 | AA111: 2000 | AB111: 2.75 | AC111: 0.33 | AD111: 15 | AE111: 4 | AF111: 12 | AG111: 2 | AH111: 5 | AI111: 2.75 | AJ111: 0.28 | AK111: 85 | AL111: 30 | AM111: 20 | AN111: 10 | AO111: 2000 | AP111: 15000 | AQ111: 6.75 | AR111: 4.75 | AS111: 3.75 | AT111: 2.75 | AU111: 20.75 | AV111: 15.75 | AW111: 4.75 | AX111: 2.75 | AY111: 20.75 | AZ111: 15.75 | BA111: 4.75 | BB111: 2.75 | BC111: 3.5 | BD111: 14 | BE111: 6 | BF111: 22.25 | BG111: 17.5 | BH111: 12.5 | BI111: 6.75 | BJ111: 4.85 | BK111: 3.75 | BL111: 21.5 | BM111: 16.5 | BN111: 11.5 | BO111: 5.75 | BP111: 3.85 | BQ111: 2.75 | BR111: 3500 | BS111: 0 | BT111: 0.28 | BU111: 350 | BV111: 0 | BW111: 5 | BX111: 0 | BY111: 0 | BZ111: 24.9 | CA111: 19.9 | CB111: 14.9 | CC111: 8 | CD111: 6.15 | CE111: 4.35 | CF111: 23.9 | CG111: 18.9 | CH111: 13.9 | CI111: 7 | CJ111: 5.15 | CK111: 3.35 | CL111: 0.5 | CM111: 4500 | CN111: 8 | CO111: 0.01 | CP111: 1000 | CQ111: 1.5 | CR111: 70 | CS111: 40 | CT111: 5000 | CU111: 2000 | CV111: 76 | CW111: 35 | CX111: 2000 | CY111: 13 | CZ111: 2000 | DA111: 8.5 | DB111: 8 | DC111: 6.5 | DD111: 5 | DE111: 6 | DF111: 5000
A112: Jackson | B112: =VLOOKUP(A112,tables!$A$2:$C$56,2,0) -> 18 | C112: 3001 | D112: =VLOOKUP(A112,tables!$A$2:$C$56,3,0) -> 03 | E112: BTI Contracting Inc. St. Albans | F112: 484 Industrial Rd, St Albans, WV 25177 | G112: Scary Creek Materials | H112: #9 Orders Way, Winfield, WV | I112: 78.94 | J112: 79.89 | K112: 80.72 | L112: 80.72 | M112: 81.39 | N112: 91.22 | O112: 83.54 | P112: 88.1 | Q112: 97.57 | R112: 88.1 | S112: 97.57 | T112: 118.91 | U112: 118.95 | V112: 113.94 | W112: 118.92 | X112: 96.22 | Y112: 96.22 | Z112: 67.5 | AA112: 1950 | AB112: 2.9 | AC112: 0.3 | AD112: 5 | AE112: 5 | AF112: 12.5 | AG112: 1.75 | AH112: 4.5 | AI112: 3 | AJ112: 0.27 | AK112: 83 | AL112: 29.75 | AM112: 19.5 | AN112: 9.7 | AO112: 1750 | AP112: 8000 | AQ112: 7 | AR112: 5 | AS112: 4 | AT112: 3 | AU112: 21.25 | AV112: 16 | AW112: 6 | AX112: 4 | AY112: 20.75 | AZ112: 16 | BA112: 6 | BB112: 4 | BC112: 3.25 | BD112: 13 | BE112: 5 | BF112: 23 | BG112: 16.75 | BH112: 11.75 | BI112: 6.6 | BJ112: 4.5 | BK112: 3.4 | BL112: 20.25 | BM112: 15.25 | BN112: 9.75 | BO112: 5 | BP112: 3.25 | BQ112: 2.25 | BR112: 3250 | BS112: 0 | BT112: 0.27 | BU112: 345 | BV112: 0 | BW112: 5 | BX112: 0 | BY112: 0 | BZ112: 24 | CA112: 18 | CB112: 13.5 | CC112: 7.25 | CD112: 5.5 | CE112: 3.6 | CF112: 22.5 | CG112: 16.5 | CH112: 12 | CI112: 6 | CJ112: 4.4 | CK112: 2.6 | CL112: 0.75 | CM112: 4250 | CN112: 7.25 | CO112: 0.01 | CP112: 960 | CQ112: 1 | CR112: 69 | CS112: 40 | CT112: 3500 | CU112: 1250 | CV112: 75 | CW112: 40 | CX112: 1750 | CY112: 22 | CZ112: 1950 | DA112: 9.5 | DB112: 7.4 | DC112: 6 | DD112: 4.55 | DE112: 5.25 | DF112: 5000
A113: Roane | B113: =VLOOKUP(A113,tables!$A$2:$C$56,2,0) -> 44 | C113: 3002 | D113: =VLOOKUP(A113,tables!$A$2:$C$56,3,0) -> 03 | E113: BTI Contracting Inc. St. Albans | F113: 484 Industrial Rd, St Albans, WV 25177 | G113: Scary Creek Materials | H113: #9 Orders Way, Winfield, WV | I113: 78.94 | J113: 79.89 | K113: 80.72 | L113: 80.72 | M113: 81.39 | N113: 91.22 | O113: 83.54 | P113: 88.1 | Q113: 97.57 | R113: 88.1 | S113: 97.57 | T113: 118.91 | U113: 118.95 | V113: 113.94 | W113: 118.92 | X113: 96.22 | Y113: 96.22 | Z113: 67.5 | AA113: 1950 | AB113: 2.9 | AC113: 0.3 | AD113: 5 | AE113: 5 | AF113: 12.5 | AG113: 1.75 | AH113: 4.5 | AI113: 3 | AJ113: 0.27 | AK113: 83 | AL113: 29.75 | AM113: 19.5 | AN113: 9.7 | AO113: 1750 | AP113: 8000 | AQ113: 7 | AR113: 5 | AS113: 4 | AT113: 3 | AU113: 21.25 | AV113: 16 | AW113: 6 | AX113: 4 | AY113: 20.75 | AZ113: 16 | BA113: 6 | BB113: 4 | BC113: 3.25 | BD113: 13 | BE113: 5 | BF113: 23 | BG113: 16.75 | BH113: 11.75 | BI113: 6.6 | BJ113: 4.5 | BK113: 3.4 | BL113: 20.25 | BM113: 15.25 | BN113: 9.75 | BO113: 5 | BP113: 3.25 | BQ113: 2.25 | BR113: 3250 | BS113: 0 | BT113: 0.27 | BU113: 345 | BV113: 0 | BW113: 5 | BX113: 0 | BY113: 0 | BZ113: 24 | CA113: 18 | CB113: 13.5 | CC113: 7.25 | CD113: 5.5 | CE113: 3.6 | CF113: 22.5 | CG113: 16.5 | CH113: 12 | CI113: 6 | CJ113: 4.4 | CK113: 2.6 | CL113: 0.75 | CM113: 4250 | CN113: 7.25 | CO113: 0.01 | CP113: 960 | CQ113: 1 | CR113: 69 | CS113: 40 | CT113: 3500 | CU113: 1250 | CV113: 75 | CW113: 40 | CX113: 1750 | CY113: 22 | CZ113: 1950 | DA113: 9.5 | DB113: 7.4 | DC113: 6 | DD113: 4.55 | DE113: 5.25 | DF113: 5000
A114: Jackson | B114: =VLOOKUP(A114,tables!$A$2:$C$56,2,0) -> 18 | C114: 3003 | D114: =VLOOKUP(A114,tables!$A$2:$C$56,3,0) -> 03 | E114: BTI Contracting Inc. St. Albans | F114: 484 Industrial Rd, St Albans, WV 25177 | G114: Valley Stone Yard | H114: 360 Valley Rd., Millwood WV, 25262 | I114: 78.94 | J114: 79.89 | K114: 80.72 | L114: 80.72 | M114: 81.39 | N114: 91.22 | O114: 83.54 | P114: 88.1 | Q114: 97.57 | R114: 88.1 | S114: 97.57 | T114: 118.91 | U114: 118.95 | V114: 113.94 | W114: 118.92 | X114: 96.22 | Y114: 96.22 | Z114: 67.5 | AA114: 1950 | AB114: 2.9 | AC114: 0.3 | AD114: 5 | AE114: 5 | AF114: 12.5 | AG114: 1.75 | AH114: 4.5 | AI114: 3 | AJ114: 0.27 | AK114: 83 | AL114: 29.75 | AM114: 19.5 | AN114: 9.7 | AO114: 1750 | AP114: 8000 | AQ114: 7 | AR114: 5 | AS114: 4 | AT114: 3 | AU114: 21.25 | AV114: 16 | AW114: 6 | AX114: 4 | AY114: 20.75 | AZ114: 16 | BA114: 6 | BB114: 4 | BC114: 3.25 | BD114: 13 | BE114: 5 | BF114: 23 | BG114: 16.75 | BH114: 11.75 | BI114: 6.6 | BJ114: 4.5 | BK114: 3.4 | BL114: 20.25 | BM114: 15.25 | BN114: 9.75 | BO114: 5 | BP114: 3.25 | BQ114: 2.25 | BR114: 3250 | BS114: 0 | BT114: 0.27 | BU114: 345 | BV114: 0 | BW114: 5 | BX114: 0 | BY114: 0 | BZ114: 24 | CA114: 18 | CB114: 13.5 | CC114: 7.25 | CD114: 5.5 | CE114: 3.6 | CF114: 22.5 | CG114: 16.5 | CH114: 12 | CI114: 6 | CJ114: 4.4 | CK114: 2.6 | CL114: 0.75 | CM114: 4250 | CN114: 7.25 | CO114: 0.01 | CP114: 960 | CQ114: 1 | CR114: 69 | CS114: 40 | CT114: 3500 | CU114: 1250 | CV114: 75 | CW114: 40 | CX114: 1750 | CY114: 22 | CZ114: 1950 | DA114: 9.5 | DB114: 7.4 | DC114: 6 | DD114: 4.55 | DE114: 5.25 | DF114: 5000
A115: Roane | B115: =VLOOKUP(A115,tables!$A$2:$C$56,2,0) -> 44 | C115: 3004 | D115: =VLOOKUP(A115,tables!$A$2:$C$56,3,0) -> 03 | E115: BTI Contracting Inc. St. Albans | F115: 484 Industrial Rd, St Albans, WV 25177 | G115: Valley Stone Yard | H115: 360 Valley Rd., Millwood WV, 25262 | I115: 78.94 | J115: 79.89 | K115: 80.72 | L115: 80.72 | M115: 81.39 | N115: 91.22 | O115: 83.54 | P115: 88.1 | Q115: 97.57 | R115: 88.1 | S115: 97.57 | T115: 118.91 | U115: 118.95 | V115: 113.94 | W115: 118.92 | X115: 96.22 | Y115: 96.22 | Z115: 67.5 | AA115: 1950 | AB115: 2.9 | AC115: 0.3 | AD115: 5 | AE115: 5 | AF115: 12.5 | AG115: 1.75 | AH115: 4.5 | AI115: 3 | AJ115: 0.27 | AK115: 83 | AL115: 29.75 | AM115: 19.5 | AN115: 9.7 | AO115: 1750 | AP115: 8000 | AQ115: 7 | AR115: 5 | AS115: 4 | AT115: 3 | AU115: 21.25 | AV115: 16 | AW115: 6 | AX115: 4 | AY115: 20.75 | AZ115: 16 | BA115: 6 | BB115: 4 | BC115: 3.25 | BD115: 13 | BE115: 5 | BF115: 23 | BG115: 16.75 | BH115: 11.75 | BI115: 6.6 | BJ115: 4.5 | BK115: 3.4 | BL115: 20.25 | BM115: 15.25 | BN115: 9.75 | BO115: 5 | BP115: 3.25 | BQ115: 2.25 | BR115: 3250 | BS115: 0 | BT115: 0.27 | BU115: 345 | BV115: 0 | BW115: 5 | BX115: 0 | BY115: 0 | BZ115: 24 | CA115: 18 | CB115: 13.5 | CC115: 7.25 | CD115: 5.5 | CE115: 3.6 | CF115: 22.5 | CG115: 16.5 | CH115: 12 | CI115: 6 | CJ115: 4.4 | CK115: 2.6 | CL115: 0.75 | CM115: 4250 | CN115: 7.25 | CO115: 0.01 | CP115: 960 | CQ115: 1 | CR115: 69 | CS115: 40 | CT115: 3500 | CU115: 1250 | CV115: 75 | CW115: 40 | CX115: 1750 | CY115: 22 | CZ115: 1950 | DA115: 9.5 | DB115: 7.4 | DC115: 6 | DD115: 4.55 | DE115: 5.25 | DF115: 5000
A116: Ritchie | B116: =VLOOKUP(A116,tables!$A$2:$C$56,2,0) -> 43 | C116: 3005 | D116: =VLOOKUP(A116,tables!$A$2:$C$56,3,0) -> 03 | E116: Greer Industries Inc., Clarksburg Asphalt Co. | F116: 2399 Benedum Dr. Rt. 131, Bridgeport,WV 26330 | G116: Greer Limestone Co | H116: 5630 Earl L. Core Road Rt 7, Morgantown, WV 26508 | I116: 65.5 | J116: 69 | K116: 68 | L116: 68 | M116: 69 | N116: 74 | O116: 71.8 | P116: 76 | Q116: 80.3 | R116: 76 | S116: 78 | T116: 104 | U116: 107 | V116: 93 | W116: 97 | X116: 81.4 | Y116: 81.4 | Z116: 28 | AA116: 1000 | AB116: 3 | AC116: 0.3 | AD116: 6 | AE116: 6 | AF116: 11 | AG116: 0 | AH116: 0 | AI116: 3 | AJ116: 0.3 | AK116: 100 | AL116: 42 | AM116: 15 | AN116: 8 | AO116: 1000 | AP116: 1250 | AQ116: 14 | AR116: 13 | AS116: 6 | AT116: 4 | AU116: 18 | AV116: 16 | AW116: 7 | AX116: 5 | AY116: 18 | AZ116: 16 | BA116: 7 | BB116: 5 | BC116: 4.5 | BD116: 12.5 | BE116: 3 | BF116: 24 | BG116: 17 | BH116: 10.1 | BI116: 6.1 | BJ116: 3 | BK116: 2.1 | BL116: 22 | BM116: 13.5 | BN116: 8.25 | BO116: 4.5 | BP116: 2.25 | BQ116: 1.65 | BR116: 2250 | BS116: 0 | BT116: 0.5 | BU116: 250 | BV116: 215 | BW116: 10 | BX116: 85 | BY116: 105 | BZ116: 24 | CA116: 17.5 | CB116: 11.25 | CC116: 6.1 | CD116: 3 | CE116: 2.1 | CF116: 22 | CG116: 13.5 | CH116: 8.25 | CI116: 4.5 | CJ116: 2.3 | CK116: 1.65 | CL116: 3 | CM116: 3000 | CN116: 5 | CO116: 0.07 | CP116: 700 | CQ116: 1.1 | CR116: 60 | CS116: 55 | CT116: 3000 | CU116: 1500 | CV116: 60 | CW116: 60 | CX116: 3000 | CY116: 25 | CZ116: 2000 | DA116: 9 | DB116: 8 | DC116: 6 | DD116: 5 | DE116: 8.5 | DF116: 2500
A117: Calhoun | B117: =VLOOKUP(A117,tables!$A$2:$C$56,2,0) -> 7 | C117: 3006 | D117: =VLOOKUP(A117,tables!$A$2:$C$56,3,0) -> 03 | E117: JF Allen Company, Buckhannon Plant | F117: 320 Alcon Rd., Buckhannon, WV 26201 | G117: Aggregates Quarry | H117: 3105 Harrison Ave., Elkins WV 26241 | I117: 73.69 | J117: 77.88 | K117: 78.16 | L117: 78.16 | M117: 78.36 | N117: 82.35 | O117: 78.19 | P117: 83.3 | Q117: 88.54 | R117: 83.31 | S117: 88.7 | T117: 104.61 | U117: 107.35 | V117: 100.87 | W117: 104.33 | X117: 89.45 | Y117: 92.33 | Z117: 32 | AA117: 2000 | AB117: 3 | AC117: 0.3 | AD117: 4.75 | AE117: 4.75 | AF117: 12.5 | AG117: 2 | AH117: 5 | AI117: 3 | AJ117: 0.3 | AK117: 111 | AL117: 44 | AM117: 20 | AN117: 10.5 | AO117: 2000 | AP117: 10000 | AQ117: 7.25 | AR117: 4.5 | AS117: 3.5 | AT117: 2.5 | AU117: 21 | AV117: 16 | AW117: 6.5 | AX117: 4 | AY117: 21 | AZ117: 16 | BA117: 6.5 | BB117: 4 | BC117: 4 | BD117: 13 | BE117: 5 | BF117: 29.75 | BG117: 16.1 | BH117: 10.4 | BI117: 5 | BJ117: 3.95 | BK117: 2.5 | BL117: 29.6 | BM117: 15 | BN117: 8.5 | BO117: 4 | BP117: 3.1 | BQ117: 2 | BR117: 4250 | BS117: 0 | BT117: 0.75 | BU117: 300 | BV117: 0 | BW117: 5 | BX117: 0 | BY117: 0 | BZ117: 29.9 | CA117: 19.75 | CB117: 12.85 | CC117: 8.1 | CD117: 6.75 | CE117: 3 | CF117: 29.9 | CG117: 19.75 | CH117: 12.7 | CI117: 8.1 | CJ117: 5 | CK117: 2.5 | CL117: 0.5 | CM117: 4250 | CN117: 6.25 | CO117: 0.01 | CP117: 850 | CQ117: 1.55 | CR117: 65 | CS117: 41 | CT117: 3500 | CU117: 1500 | CV117: 46 | CW117: 31 | CX117: 1950 | CY117: 17 | CZ117: 2450 | DA117: 10.05 | DB117: 8.5 | DC117: 7.5 | DD117: 5.5 | DE117: 5.5 | DF117: 4750
A118: Ritchie | B118: =VLOOKUP(A118,tables!$A$2:$C$56,2,0) -> 43 | C118: 3007 | D118: =VLOOKUP(A118,tables!$A$2:$C$56,3,0) -> 03 | E118: JF Allen Company, Buckhannon Plant | F118: 320 Alcon Rd., Buckhannon, WV 26201 | G118: Aggregates Quarry | H118: 3105 Harrison Ave., Elkins WV 26241 | I118: 73.69 | J118: 77.88 | K118: 78.16 | L118: 78.16 | M118: 78.36 | N118: 82.35 | O118: 78.19 | P118: 83.3 | Q118: 88.54 | R118: 83.31 | S118: 88.7 | T118: 104.61 | U118: 107.35 | V118: 100.87 | W118: 104.33 | X118: 89.45 | Y118: 92.33 | Z118: 32 | AA118: 2000 | AB118: 3 | AC118: 0.3 | AD118: 4.75 | AE118: 4.75 | AF118: 12.5 | AG118: 2 | AH118: 5 | AI118: 3 | AJ118: 0.3 | AK118: 111 | AL118: 44 | AM118: 20 | AN118: 10.5 | AO118: 2000 | AP118: 10000 | AQ118: 7.25 | AR118: 4.5 | AS118: 3.5 | AT118: 2.5 | AU118: 21 | AV118: 16 | AW118: 6.5 | AX118: 4 | AY118: 21 | AZ118: 16 | BA118: 6.5 | BB118: 4 | BC118: 4 | BD118: 13 | BE118: 5 | BF118: 29.75 | BG118: 16.1 | BH118: 10.4 | BI118: 5 | BJ118: 3.95 | BK118: 2.5 | BL118: 29.6 | BM118: 15 | BN118: 8.5 | BO118: 4 | BP118: 3.1 | BQ118: 2 | BR118: 4250 | BS118: 0 | BT118: 0.75 | BU118: 300 | BV118: 0 | BW118: 5 | BX118: 0 | BY118: 0 | BZ118: 29.9 | CA118: 19.75 | CB118: 12.85 | CC118: 8.1 | CD118: 6.75 | CE118: 3 | CF118: 29.9 | CG118: 19.75 | CH118: 12.7 | CI118: 8.1 | CJ118: 5 | CK118: 2.5 | CL118: 0.5 | CM118: 4250 | CN118: 6.25 | CO118: 0.01 | CP118: 850 | CQ118: 1.55 | CR118: 65 | CS118: 41 | CT118: 3500 | CU118: 1500 | CV118: 46 | CW118: 31 | CX118: 1950 | CY118: 17 | CZ118: 2450 | DA118: 10.05 | DB118: 8.5 | DC118: 7.5 | DD118: 5.5 | DE118: 5.5 | DF118: 4750
A119: Calhoun | B119: =VLOOKUP(A119,tables!$A$2:$C$56,2,0) -> 7 | C119: 3008 | D119: =VLOOKUP(A119,tables!$A$2:$C$56,3,0) -> 03 | E119: JF Allen Company, Saltwell Plant | F119: 5856 Saltwell Rd., Bridgeport, WV 26330 | G119: Aggregates Quarry | H119: 3105 Harrison Ave., Elkins WV 26241 | I119: 74.43 | J119: 78.36 | K119: 78.3 | L119: 78.3 | M119: 78.36 | N119: 82.35 | O119: 78.33 | P119: 83.3 | Q119: 88.54 | R119: 83.31 | S119: 88.7 | T119: 112.17 | U119: 115.06 | V119: 110.28 | W119: 111.37 | X119: 93.09 | Y119: 95.88 | Z119: 32 | AA119: 2000 | AB119: 3 | AC119: 0.3 | AD119: 4.75 | AE119: 4.75 | AF119: 12.5 | AG119: 2 | AH119: 5 | AI119: 3 | AJ119: 0.3 | AK119: 111 | AL119: 44 | AM119: 20 | AN119: 10.5 | AO119: 2000 | AP119: 10000 | AQ119: 7.25 | AR119: 4.5 | AS119: 3.5 | AT119: 2.5 | AU119: 21 | AV119: 16 | AW119: 6.5 | AX119: 4 | AY119: 21 | AZ119: 16 | BA119: 6.5 | BB119: 4 | BC119: 4 | BD119: 13 | BE119: 5 | BF119: 29.75 | BG119: 16.1 | BH119: 10.4 | BI119: 5 | BJ119: 3.95 | BK119: 2.5 | BL119: 29.6 | BM119: 15 | BN119: 8.5 | BO119: 4 | BP119: 3.1 | BQ119: 2 | BR119: 4250 | BS119: 0 | BT119: 0.75 | BU119: 300 | BV119: 0 | BW119: 5 | BX119: 0 | BY119: 0 | BZ119: 29.9 | CA119: 19.75 | CB119: 12.85 | CC119: 8.1 | CD119: 6.75 | CE119: 3 | CF119: 29.9 | CG119: 19.75 | CH119: 12.7 | CI119: 8.1 | CJ119: 5 | CK119: 2.5 | CL119: 0.5 | CM119: 4250 | CN119: 6.25 | CO119: 0.01 | CP119: 850 | CQ119: 1.55 | CR119: 65 | CS119: 41 | CT119: 3500 | CU119: 1500 | CV119: 46 | CW119: 31 | CX119: 1950 | CY119: 17 | CZ119: 2450 | DA119: 10.05 | DB119: 8.5 | DC119: 7.5 | DD119: 5.5 | DE119: 5.5 | DF119: 4750
A120: Ritchie | B120: =VLOOKUP(A120,tables!$A$2:$C$56,2,0) -> 43 | C120: 3009 | D120: =VLOOKUP(A120,tables!$A$2:$C$56,3,0) -> 03 | E120: JF Allen Company, Saltwell Plant | F120: 5856 Saltwell Rd., Bridgeport, WV 26330 | G120: Aggregates Quarry | H120: 3105 Harrison Ave., Elkins WV 26241 | I120: 74.43 | J120: 78.36 | K120: 78.3 | L120: 78.3 | M120: 78.36 | N120: 82.35 | O120: 78.33 | P120: 83.3 | Q120: 88.54 | R120: 83.31 | S120: 88.7 | T120: 112.17 | U120: 115.06 | V120: 110.28 | W120: 111.37 | X120: 93.09 | Y120: 95.88 | Z120: 32 | AA120: 2000 | AB120: 3 | AC120: 0.3 | AD120: 4.75 | AE120: 4.75 | AF120: 12.5 | AG120: 2 | AH120: 5 | AI120: 3 | AJ120: 0.3 | AK120: 111 | AL120: 44 | AM120: 20 | AN120: 10.5 | AO120: 2000 | AP120: 10000 | AQ120: 7.25 | AR120: 4.5 | AS120: 3.5 | AT120: 2.5 | AU120: 21 | AV120: 16 | AW120: 6.5 | AX120: 4 | AY120: 21 | AZ120: 16 | BA120: 6.5 | BB120: 4 | BC120: 4 | BD120: 13 | BE120: 5 | BF120: 29.75 | BG120: 16.1 | BH120: 10.4 | BI120: 5 | BJ120: 3.95 | BK120: 2.5 | BL120: 29.6 | BM120: 15 | BN120: 8.5 | BO120: 4 | BP120: 3.1 | BQ120: 2 | BR120: 4250 | BS120: 0 | BT120: 0.75 | BU120: 300 | BV120: 0 | BW120: 5 | BX120: 0 | BY120: 0 | BZ120: 29.9 | CA120: 19.75 | CB120: 12.85 | CC120: 8.1 | CD120: 6.75 | CE120: 3 | CF120: 29.9 | CG120: 19.75 | CH120: 12.7 | CI120: 8.1 | CJ120: 5 | CK120: 2.5 | CL120: 0.5 | CM120: 4250 | CN120: 6.25 | CO120: 0.01 | CP120: 850 | CQ120: 1.55 | CR120: 65 | CS120: 41 | CT120: 3500 | CU120: 1500 | CV120: 46 | CW120: 31 | CX120: 1950 | CY120: 17 | CZ120: 2450 | DA120: 10.05 | DB120: 8.5 | DC120: 7.5 | DD120: 5.5 | DE120: 5.5 | DF120: 4750
A121: Calhoun | B121: =VLOOKUP(A121,tables!$A$2:$C$56,2,0) -> 7 | C121: 3010 | D121: =VLOOKUP(A121,tables!$A$2:$C$56,3,0) -> 03 | E121: Kelly Paving Camden Materials | F121: 202 Hickory St., Parkersburg, WV 26101 | G121: Martin Marietta | H121: 99 Kanawha St., Parkersburg, WV 26101 | I121: 85.5 | J121: 88.75 | K121: 88 | L121: 88 | M121: 89.25 | N121: 102.75 | O121: 89.25 | P121: 92.25 | Q121: 102.75 | R121: 91.5 | S121: 101.75 | T121: 104 | U121: 104 | V121: 104 | W121: 104 | X121: 94.25 | Y121: 104.75 | Z121: 55 | AA121: 1500 | AB121: 3 | AC121: 0.35 | AD121: 5 | AE121: 5 | AF121: 15 | AG121: 2 | AH121: 4 | AI121: 3 | AJ121: 0.35 | AK121: 90 | AL121: 40 | AM121: 15 | AN121: 8 | AO121: 1000 | AP121: 5000 | AQ121: 6.5 | AR121: 4 | AS121: 2.5 | AT121: 2 | AU121: 25 | AV121: 15 | AW121: 4 | AX121: 2 | AY121: 25 | AZ121: 15 | BA121: 4 | BB121: 2 | BC121: 3.5 | BD121: 10 | BE121: 5 | BF121: 22 | BG121: 18 | BH121: 11 | BI121: 5.5 | BJ121: 3.5 | BK121: 2.5 | BL121: 21 | BM121: 17 | BN121: 10 | BO121: 5 | BP121: 3 | BQ121: 2 | BR121: 3000 | BS121: 0 | BT121: 0.35 | BU121: 350 | BV121: 122.5 | BW121: 4 | BX121: 50 | BY121: 112.5 | BZ121: 24 | CA121: 19 | CB121: 13 | CC121: 7 | CD121: 4.5 | CE121: 3.5 | CF121: 23 | CG121: 18 | CH121: 12 | CI121: 6 | CJ121: 4 | CK121: 3 | CL121: 0.5 | CM121: 3000 | CN121: 6.5 | CO121: 0.01 | CP121: 850 | CQ121: 1 | CR121: 72 | CS121: 25 | CT121: 2500 | CU121: 500 | CV121: 40 | CW121: 28 | CX121: 1250 | CY121: 8 | CZ121: 800 | DA121: 9 | DB121: 8 | DC121: 6 | DD121: 5 | DE121: 6 | DF121: 1000
A122: Jackson | B122: =VLOOKUP(A122,tables!$A$2:$C$56,2,0) -> 18 | C122: 3011 | D122: =VLOOKUP(A122,tables!$A$2:$C$56,3,0) -> 03 | E122: Kelly Paving Camden Materials | F122: 202 Hickory St., Parkersburg, WV 26101 | G122: Martin Marietta | H122: 99 Kanawha St., Parkersburg, WV 26101 | I122: 85.5 | J122: 88.75 | K122: 88 | L122: 88 | M122: 89.25 | N122: 102.75 | O122: 89.25 | P122: 92.25 | Q122: 102.75 | R122: 91.5 | S122: 101.75 | T122: 104 | U122: 104 | V122: 104 | W122: 104 | X122: 94.25 | Y122: 104.75 | Z122: 55 | AA122: 1500 | AB122: 3 | AC122: 0.35 | AD122: 5 | AE122: 5 | AF122: 15 | AG122: 2 | AH122: 4 | AI122: 3 | AJ122: 0.35 | AK122: 90 | AL122: 40 | AM122: 15 | AN122: 8 | AO122: 1000 | AP122: 5000 | AQ122: 6.5 | AR122: 4 | AS122: 2.5 | AT122: 2 | AU122: 25 | AV122: 15 | AW122: 4 | AX122: 2 | AY122: 25 | AZ122: 15 | BA122: 4 | BB122: 2 | BC122: 3.5 | BD122: 10 | BE122: 5 | BF122: 22 | BG122: 18 | BH122: 11 | BI122: 5.5 | BJ122: 3.5 | BK122: 2.5 | BL122: 21 | BM122: 17 | BN122: 10 | BO122: 5 | BP122: 3 | BQ122: 2 | BR122: 3000 | BS122: 0 | BT122: 0.35 | BU122: 350 | BV122: 122.5 | BW122: 4 | BX122: 50 | BY122: 112.5 | BZ122: 24 | CA122: 19 | CB122: 13 | CC122: 7 | CD122: 4.5 | CE122: 3.5 | CF122: 23 | CG122: 18 | CH122: 12 | CI122: 6 | CJ122: 4 | CK122: 3 | CL122: 0.5 | CM122: 3000 | CN122: 6.5 | CO122: 0.01 | CP122: 850 | CQ122: 1 | CR122: 72 | CS122: 25 | CT122: 2500 | CU122: 500 | CV122: 40 | CW122: 28 | CX122: 1250 | CY122: 8 | CZ122: 800 | DA122: 9 | DB122: 8 | DC122: 6 | DD122: 5 | DE122: 6 | DF122: 1000
A123: Pleasants | B123: =VLOOKUP(A123,tables!$A$2:$C$56,2,0) -> 37 | C123: 3012 | D123: =VLOOKUP(A123,tables!$A$2:$C$56,3,0) -> 03 | E123: Kelly Paving Camden Materials | F123: 202 Hickory St., Parkersburg, WV 26101 | G123: Martin Marietta | H123: 99 Kanawha St., Parkersburg, WV 26101 | I123: 85.5 | J123: 88.75 | K123: 88 | L123: 88 | M123: 89.25 | N123: 102.75 | O123: 89.25 | P123: 92.25 | Q123: 102.75 | R123: 91.5 | S123: 101.75 | T123: 104 | U123: 104 | V123: 104 | W123: 104 | X123: 94.25 | Y123: 104.75 | Z123: 55 | AA123: 1500 | AB123: 3 | AC123: 0.35 | AD123: 5 | AE123: 5 | AF123: 15 | AG123: 2 | AH123: 4 | AI123: 3 | AJ123: 0.35 | AK123: 90 | AL123: 40 | AM123: 15 | AN123: 8 | AO123: 1000 | AP123: 5000 | AQ123: 6.5 | AR123: 4 | AS123: 2.5 | AT123: 2 | AU123: 25 | AV123: 15 | AW123: 4 | AX123: 2 | AY123: 25 | AZ123: 15 | BA123: 4 | BB123: 2 | BC123: 3.5 | BD123: 10 | BE123: 5 | BF123: 22 | BG123: 18 | BH123: 11 | BI123: 5.5 | BJ123: 3.5 | BK123: 2.5 | BL123: 21 | BM123: 17 | BN123: 10 | BO123: 5 | BP123: 3 | BQ123: 2 | BR123: 3000 | BS123: 0 | BT123: 0.35 | BU123: 350 | BV123: 122.5 | BW123: 4 | BX123: 50 | BY123: 112.5 | BZ123: 24 | CA123: 19 | CB123: 13 | CC123: 7 | CD123: 4.5 | CE123: 3.5 | CF123: 23 | CG123: 18 | CH123: 12 | CI123: 6 | CJ123: 4 | CK123: 3 | CL123: 0.5 | CM123: 3000 | CN123: 6.5 | CO123: 0.01 | CP123: 850 | CQ123: 1 | CR123: 72 | CS123: 25 | CT123: 2500 | CU123: 500 | CV123: 40 | CW123: 28 | CX123: 1250 | CY123: 8 | CZ123: 800 | DA123: 9 | DB123: 8 | DC123: 6 | DD123: 5 | DE123: 6 | DF123: 1000
A124: Ritchie | B124: =VLOOKUP(A124,tables!$A$2:$C$56,2,0) -> 43 | C124: 3013 | D124: =VLOOKUP(A124,tables!$A$2:$C$56,3,0) -> 03 | E124: Kelly Paving Camden Materials | F124: 202 Hickory St., Parkersburg, WV 26101 | G124: Martin Marietta | H124: 99 Kanawha St., Parkersburg, WV 26101 | I124: 85.5 | J124: 88.75 | K124: 88 | L124: 88 | M124: 89.25 | N124: 102.75 | O124: 89.25 | P124: 92.25 | Q124: 102.75 | R124: 91.5 | S124: 101.75 | T124: 104 | U124: 104 | V124: 104 | W124: 104 | X124: 94.25 | Y124: 104.75 | Z124: 55 | AA124: 1500 | AB124: 3 | AC124: 0.35 | AD124: 5 | AE124: 5 | AF124: 15 | AG124: 2 | AH124: 4 | AI124: 3 | AJ124: 0.35 | AK124: 90 | AL124: 40 | AM124: 15 | AN124: 8 | AO124: 1000 | AP124: 5000 | AQ124: 6.5 | AR124: 4 | AS124: 2.5 | AT124: 2 | AU124: 25 | AV124: 15 | AW124: 4 | AX124: 2 | AY124: 25 | AZ124: 15 | BA124: 4 | BB124: 2 | BC124: 3.5 | BD124: 10 | BE124: 5 | BF124: 22 | BG124: 18 | BH124: 11 | BI124: 5.5 | BJ124: 3.5 | BK124: 2.5 | BL124: 21 | BM124: 17 | BN124: 10 | BO124: 5 | BP124: 3 | BQ124: 2 | BR124: 3000 | BS124: 0 | BT124: 0.35 | BU124: 350 | BV124: 122.5 | BW124: 4 | BX124: 50 | BY124: 112.5 | BZ124: 24 | CA124: 19 | CB124: 13 | CC124: 7 | CD124: 4.5 | CE124: 3.5 | CF124: 23 | CG124: 18 | CH124: 12 | CI124: 6 | CJ124: 4 | CK124: 3 | CL124: 0.5 | CM124: 3000 | CN124: 6.5 | CO124: 0.01 | CP124: 850 | CQ124: 1 | CR124: 72 | CS124: 25 | CT124: 2500 | CU124: 500 | CV124: 40 | CW124: 28 | CX124: 1250 | CY124: 8 | CZ124: 800 | DA124: 9 | DB124: 8 | DC124: 6 | DD124: 5 | DE124: 6 | DF124: 1000
A125: Roane | B125: =VLOOKUP(A125,tables!$A$2:$C$56,2,0) -> 44 | C125: 3014 | D125: =VLOOKUP(A125,tables!$A$2:$C$56,3,0) -> 03 | E125: Kelly Paving Camden Materials | F125: 202 Hickory St., Parkersburg, WV 26101 | G125: Martin Marietta | H125: 99 Kanawha St., Parkersburg, WV 26101 | I125: 85.5 | J125: 88.75 | K125: 88 | L125: 88 | M125: 89.25 | N125: 102.75 | O125: 89.25 | P125: 92.25 | Q125: 102.75 | R125: 91.5 | S125: 101.75 | T125: 104 | U125: 104 | V125: 104 | W125: 104 | X125: 94.25 | Y125: 104.75 | Z125: 55 | AA125: 1500 | AB125: 3 | AC125: 0.35 | AD125: 5 | AE125: 5 | AF125: 15 | AG125: 2 | AH125: 4 | AI125: 3 | AJ125: 0.35 | AK125: 90 | AL125: 40 | AM125: 15 | AN125: 8 | AO125: 1000 | AP125: 5000 | AQ125: 6.5 | AR125: 4 | AS125: 2.5 | AT125: 2 | AU125: 25 | AV125: 15 | AW125: 4 | AX125: 2 | AY125: 25 | AZ125: 15 | BA125: 4 | BB125: 2 | BC125: 3.5 | BD125: 10 | BE125: 5 | BF125: 22 | BG125: 18 | BH125: 11 | BI125: 5.5 | BJ125: 3.5 | BK125: 2.5 | BL125: 21 | BM125: 17 | BN125: 10 | BO125: 5 | BP125: 3 | BQ125: 2 | BR125: 3000 | BS125: 0 | BT125: 0.35 | BU125: 350 | BV125: 122.5 | BW125: 4 | BX125: 50 | BY125: 112.5 | BZ125: 24 | CA125: 19 | CB125: 13 | CC125: 7 | CD125: 4.5 | CE125: 3.5 | CF125: 23 | CG125: 18 | CH125: 12 | CI125: 6 | CJ125: 4 | CK125: 3 | CL125: 0.5 | CM125: 3000 | CN125: 6.5 | CO125: 0.01 | CP125: 850 | CQ125: 1 | CR125: 72 | CS125: 25 | CT125: 2500 | CU125: 500 | CV125: 40 | CW125: 28 | CX125: 1250 | CY125: 8 | CZ125: 800 | DA125: 9 | DB125: 8 | DC125: 6 | DD125: 5 | DE125: 6 | DF125: 1000
A126: Wirt | B126: =VLOOKUP(A126,tables!$A$2:$C$56,2,0) -> 53 | C126: 3015 | D126: =VLOOKUP(A126,tables!$A$2:$C$56,3,0) -> 03 | E126: Kelly Paving Camden Materials | F126: 202 Hickory St., Parkersburg, WV 26101 | G126: Martin Marietta | H126: 99 Kanawha St., Parkersburg, WV 26101 | I126: 85.5 | J126: 88.75 | K126: 88 | L126: 88 | M126: 89.25 | N126: 102.75 | O126: 89.25 | P126: 92.25 | Q126: 102.75 | R126: 91.5 | S126: 101.75 | T126: 104 | U126: 104 | V126: 104 | W126: 104 | X126: 94.25 | Y126: 104.75 | Z126: 55 | AA126: 1500 | AB126: 3 | AC126: 0.35 | AD126: 5 | AE126: 5 | AF126: 15 | AG126: 2 | AH126: 4 | AI126: 3 | AJ126: 0.35 | AK126: 90 | AL126: 40 | AM126: 15 | AN126: 8 | AO126: 1000 | AP126: 5000 | AQ126: 6.5 | AR126: 4 | AS126: 2.5 | AT126: 2 | AU126: 25 | AV126: 15 | AW126: 4 | AX126: 2 | AY126: 25 | AZ126: 15 | BA126: 4 | BB126: 2 | BC126: 3.5 | BD126: 10 | BE126: 5 | BF126: 22 | BG126: 18 | BH126: 11 | BI126: 5.5 | BJ126: 3.5 | BK126: 2.5 | BL126: 21 | BM126: 17 | BN126: 10 | BO126: 5 | BP126: 3 | BQ126: 2 | BR126: 3000 | BS126: 0 | BT126: 0.35 | BU126: 350 | BV126: 122.5 | BW126: 4 | BX126: 50 | BY126: 112.5 | BZ126: 24 | CA126: 19 | CB126: 13 | CC126: 7 | CD126: 4.5 | CE126: 3.5 | CF126: 23 | CG126: 18 | CH126: 12 | CI126: 6 | CJ126: 4 | CK126: 3 | CL126: 0.5 | CM126: 3000 | CN126: 6.5 | CO126: 0.01 | CP126: 850 | CQ126: 1 | CR126: 72 | CS126: 25 | CT126: 2500 | CU126: 500 | CV126: 40 | CW126: 28 | CX126: 1250 | CY126: 8 | CZ126: 800 | DA126: 9 | DB126: 8 | DC126: 6 | DD126: 5 | DE126: 6 | DF126: 1000
A127: Wood | B127: =VLOOKUP(A127,tables!$A$2:$C$56,2,0) -> 54 | C127: 3016 | D127: =VLOOKUP(A127,tables!$A$2:$C$56,3,0) -> 03 | E127: Kelly Paving Camden Materials | F127: 202 Hickory St., Parkersburg, WV 26101 | G127: Martin Marietta | H127: 99 Kanawha St., Parkersburg, WV 26101 | I127: 85.5 | J127: 88.75 | K127: 88 | L127: 88 | M127: 89.25 | N127: 102.75 | O127: 89.25 | P127: 92.25 | Q127: 102.75 | R127: 91.5 | S127: 101.75 | T127: 104 | U127: 104 | V127: 104 | W127: 104 | X127: 94.25 | Y127: 104.75 | Z127: 55 | AA127: 1500 | AB127: 3 | AC127: 0.35 | AD127: 5 | AE127: 5 | AF127: 15 | AG127: 2 | AH127: 4 | AI127: 3 | AJ127: 0.35 | AK127: 90 | AL127: 40 | AM127: 15 | AN127: 8 | AO127: 1000 | AP127: 5000 | AQ127: 6.5 | AR127: 4 | AS127: 2.5 | AT127: 2 | AU127: 25 | AV127: 15 | AW127: 4 | AX127: 2 | AY127: 25 | AZ127: 15 | BA127: 4 | BB127: 2 | BC127: 3.5 | BD127: 10 | BE127: 5 | BF127: 22 | BG127: 18 | BH127: 11 | BI127: 5.5 | BJ127: 3.5 | BK127: 2.5 | BL127: 21 | BM127: 17 | BN127: 10 | BO127: 5 | BP127: 3 | BQ127: 2 | BR127: 3000 | BS127: 0 | BT127: 0.35 | BU127: 350 | BV127: 122.5 | BW127: 4 | BX127: 50 | BY127: 112.5 | BZ127: 24 | CA127: 19 | CB127: 13 | CC127: 7 | CD127: 4.5 | CE127: 3.5 | CF127: 23 | CG127: 18 | CH127: 12 | CI127: 6 | CJ127: 4 | CK127: 3 | CL127: 0.5 | CM127: 3000 | CN127: 6.5 | CO127: 0.01 | CP127: 850 | CQ127: 1 | CR127: 72 | CS127: 25 | CT127: 2500 | CU127: 500 | CV127: 40 | CW127: 28 | CX127: 1250 | CY127: 8 | CZ127: 800 | DA127: 9 | DB127: 8 | DC127: 6 | DD127: 5 | DE127: 6 | DF127: 1000
A128: Calhoun | B128: =VLOOKUP(A128,tables!$A$2:$C$56,2,0) -> 7 | C128: 3017 | D128: =VLOOKUP(A128,tables!$A$2:$C$56,3,0) -> 03 | E128: Kelly Paving Inc., Plant #14 | F128: 123 Dodd Dr., St. Marys, WV 26170 | G128: Kelly Paving Inc. | H128: 123 Dodd Dr., St. Marys, WV 26170 | I128: 82 | J128: 88 | K128: 88 | L128: 88 | M128: 88 | N128: 100 | O128: 88 | P128: 92 | Q128: 103 | R128: 92 | S128: 100 | T128: 0 | U128: 0 | V128: 102 | W128: 104 | X128: 96 | Y128: 102 | Z128: 55 | AA128: 1500 | AB128: 3 | AC128: 0.35 | AD128: 7 | AE128: 6 | AF128: 15 | AG128: 2 | AH128: 4 | AI128: 3 | AJ128: 0.35 | AK128: 90 | AL128: 40 | AM128: 15 | AN128: 8 | AO128: 1000 | AP128: 5000 | AQ128: 6.5 | AR128: 4 | AS128: 2.5 | AT128: 2 | AU128: 25 | AV128: 15 | AW128: 4 | AX128: 2 | AY128: 25 | AZ128: 15 | BA128: 4 | BB128: 2 | BC128: 3.5 | BD128: 10 | BE128: 5 | BF128: 22 | BG128: 18 | BH128: 11 | BI128: 5.5 | BJ128: 3.5 | BK128: 2.5 | BL128: 21 | BM128: 17 | BN128: 10 | BO128: 5 | BP128: 3 | BQ128: 2 | BR128: 3000 | BS128: 0 | BT128: 0.35 | BU128: 350 | BV128: 0 | BW128: 3.5 | BX128: 0 | BY128: 0 | BZ128: 24 | CA128: 19 | CB128: 13 | CC128: 7 | CD128: 4.5 | CE128: 3.5 | CF128: 23 | CG128: 18 | CH128: 12 | CI128: 6 | CJ128: 4 | CK128: 3 | CL128: 0.5 | CM128: 3000 | CN128: 6.5 | CO128: 0.01 | CP128: 850 | CQ128: 1 | CR128: 72 | CS128: 25 | CT128: 5000 | CU128: 500 | CV128: 40 | CW128: 28 | CX128: 1250 | CY128: 8 | CZ128: 800 | DA128: 9 | DB128: 8 | DC128: 6 | DD128: 5 | DE128: 6 | DF128: 1000
A129: Jackson | B129: =VLOOKUP(A129,tables!$A$2:$C$56,2,0) -> 18 | C129: 3018 | D129: =VLOOKUP(A129,tables!$A$2:$C$56,3,0) -> 03 | E129: Kelly Paving Inc., Plant #14 | F129: 123 Dodd Dr., St. Marys, WV 26170 | I129: 82 | J129: 88 | K129: 88 | L129: 88 | M129: 88 | N129: 100 | O129: 88 | P129: 92 | Q129: 103 | R129: 92 | S129: 100 | T129: 0 | U129: 0 | V129: 102 | W129: 104 | X129: 96 | Y129: 102 | Z129: 55 | AA129: 1500 | AB129: 3 | AC129: 0.35 | AD129: 7 | AE129: 6 | AF129: 15 | AG129: 2 | AH129: 4 | AI129: 3 | AJ129: 0.35 | AK129: 90 | AL129: 40 | AM129: 15 | AN129: 8 | AO129: 1000 | AP129: 5000 | AQ129: 6.5 | AR129: 4 | AS129: 2.5 | AT129: 2 | AU129: 25 | AV129: 15 | AW129: 4 | AX129: 2 | AY129: 25 | AZ129: 15 | BA129: 4 | BB129: 2 | BC129: 3.5 | BD129: 10 | BE129: 5 | BF129: 22 | BG129: 18 | BH129: 11 | BI129: 5.5 | BJ129: 3.5 | BK129: 2.5 | BL129: 21 | BM129: 17 | BN129: 10 | BO129: 5 | BP129: 3 | BQ129: 2 | BR129: 3000 | BS129: 0 | BT129: 0.35 | BU129: 350 | BV129: 0 | BW129: 3.5 | BX129: 0 | BY129: 0 | BZ129: 24 | CA129: 19 | CB129: 13 | CC129: 7 | CD129: 4.5 | CE129: 3.5 | CF129: 23 | CG129: 18 | CH129: 12 | CI129: 6 | CJ129: 4 | CK129: 3 | CL129: 0.5 | CM129: 3000 | CN129: 6.5 | CO129: 0.01 | CP129: 850 | CQ129: 1 | CR129: 72 | CS129: 25 | CT129: 5000 | CU129: 500 | CV129: 40 | CW129: 28 | CX129: 1250 | CY129: 8 | CZ129: 800 | DA129: 9 | DB129: 8 | DC129: 6 | DD129: 5 | DE129: 6 | DF129: 1000
A130: Pleasants | B130: =VLOOKUP(A130,tables!$A$2:$C$56,2,0) -> 37 | C130: 3019 | D130: =VLOOKUP(A130,tables!$A$2:$C$56,3,0) -> 03 | E130: Kelly Paving Inc., Plant #14 | F130: 123 Dodd Dr., St. Marys, WV 26170 | G130: Kelly Paving Inc. | H130: 123 Dodd Dr., St. Marys, WV 26170 | I130: 82 | J130: 88 | K130: 88 | L130: 88 | M130: 88 | N130: 100 | O130: 88 | P130: 92 | Q130: 103 | R130: 92 | S130: 100 | T130: 0 | U130: 0 | V130: 102 | W130: 104 | X130: 96 | Y130: 102 | Z130: 55 | AA130: 1500 | AB130: 3 | AC130: 0.35 | AD130: 7 | AE130: 6 | AF130: 15 | AG130: 2 | AH130: 4 | AI130: 3 | AJ130: 0.35 | AK130: 90 | AL130: 40 | AM130: 15 | AN130: 8 | AO130: 1000 | AP130: 5000 | AQ130: 6.5 | AR130: 4 | AS130: 2.5 | AT130: 2 | AU130: 25 | AV130: 15 | AW130: 4 | AX130: 2 | AY130: 25 | AZ130: 15 | BA130: 4 | BB130: 2 | BC130: 3.5 | BD130: 10 | BE130: 5 | BF130: 22 | BG130: 18 | BH130: 11 | BI130: 5.5 | BJ130: 3.5 | BK130: 2.5 | BL130: 21 | BM130: 17 | BN130: 10 | BO130: 5 | BP130: 3 | BQ130: 2 | BR130: 3000 | BS130: 0 | BT130: 0.35 | BU130: 350 | BV130: 0 | BW130: 3.5 | BX130: 0 | BY130: 0 | BZ130: 24 | CA130: 19 | CB130: 13 | CC130: 7 | CD130: 4.5 | CE130: 3.5 | CF130: 23 | CG130: 18 | CH130: 12 | CI130: 6 | CJ130: 4 | CK130: 3 | CL130: 0.5 | CM130: 3000 | CN130: 6.5 | CO130: 0.01 | CP130: 850 | CQ130: 1 | CR130: 72 | CS130: 25 | CT130: 5000 | CU130: 500 | CV130: 40 | CW130: 28 | CX130: 1250 | CY130: 8 | CZ130: 800 | DA130: 9 | DB130: 8 | DC130: 6 | DD130: 5 | DE130: 6 | DF130: 1000
A131: Ritchie | B131: =VLOOKUP(A131,tables!$A$2:$C$56,2,0) -> 43 | C131: 3020 | D131: =VLOOKUP(A131,tables!$A$2:$C$56,3,0) -> 03 | E131: Kelly Paving Inc., Plant #14 | F131: 123 Dodd Dr., St. Marys, WV 26170 | G131: Kelly Paving Inc. | H131: 123 Dodd Dr., St. Marys, WV 26170 | I131: 82 | J131: 88 | K131: 88 | L131: 88 | M131: 88 | N131: 100 | O131: 88 | P131: 92 | Q131: 103 | R131: 92 | S131: 100 | T131: 0 | U131: 0 | V131: 102 | W131: 104 | X131: 96 | Y131: 102 | Z131: 55 | AA131: 1500 | AB131: 3 | AC131: 0.35 | AD131: 7 | AE131: 6 | AF131: 15 | AG131: 2 | AH131: 4 | AI131: 3 | AJ131: 0.35 | AK131: 90 | AL131: 40 | AM131: 15 | AN131: 8 | AO131: 1000 | AP131: 5000 | AQ131: 6.5 | AR131: 4 | AS131: 2.5 | AT131: 2 | AU131: 25 | AV131: 15 | AW131: 4 | AX131: 2 | AY131: 25 | AZ131: 15 | BA131: 4 | BB131: 2 | BC131: 3.5 | BD131: 10 | BE131: 5 | BF131: 22 | BG131: 18 | BH131: 11 | BI131: 5.5 | BJ131: 3.5 | BK131: 2.5 | BL131: 21 | BM131: 17 | BN131: 10 | BO131: 5 | BP131: 3 | BQ131: 2 | BR131: 3000 | BS131: 0 | BT131: 0.35 | BU131: 350 | BV131: 0 | BW131: 3.5 | BX131: 0 | BY131: 0 | BZ131: 24 | CA131: 19 | CB131: 13 | CC131: 7 | CD131: 4.5 | CE131: 3.5 | CF131: 23 | CG131: 18 | CH131: 12 | CI131: 6 | CJ131: 4 | CK131: 3 | CL131: 0.5 | CM131: 3000 | CN131: 6.5 | CO131: 0.01 | CP131: 850 | CQ131: 1 | CR131: 72 | CS131: 25 | CT131: 5000 | CU131: 500 | CV131: 40 | CW131: 28 | CX131: 1250 | CY131: 8 | CZ131: 800 | DA131: 9 | DB131: 8 | DC131: 6 | DD131: 5 | DE131: 6 | DF131: 1000
A132: Roane | B132: =VLOOKUP(A132,tables!$A$2:$C$56,2,0) -> 44 | C132: 3021 | D132: =VLOOKUP(A132,tables!$A$2:$C$56,3,0) -> 03 | E132: Kelly Paving Inc., Plant #14 | F132: 123 Dodd Dr., St. Marys, WV 26170 | G132: Kelly Paving Inc. | H132: 123 Dodd Dr., St. Marys, WV 26170 | I132: 82 | J132: 88 | K132: 88 | L132: 88 | M132: 88 | N132: 100 | O132: 88 | P132: 92 | Q132: 103 | R132: 92 | S132: 100 | T132: 0 | U132: 0 | V132: 102 | W132: 104 | X132: 96 | Y132: 102 | Z132: 55 | AA132: 1500 | AB132: 3 | AC132: 0.35 | AD132: 7 | AE132: 6 | AF132: 15 | AG132: 2 | AH132: 4 | AI132: 3 | AJ132: 0.35 | AK132: 90 | AL132: 40 | AM132: 15 | AN132: 8 | AO132: 1000 | AP132: 5000 | AQ132: 6.5 | AR132: 4 | AS132: 2.5 | AT132: 2 | AU132: 25 | AV132: 15 | AW132: 4 | AX132: 2 | AY132: 25 | AZ132: 15 | BA132: 4 | BB132: 2 | BC132: 3.5 | BD132: 10 | BE132: 5 | BF132: 22 | BG132: 18 | BH132: 11 | BI132: 5.5 | BJ132: 3.5 | BK132: 2.5 | BL132: 21 | BM132: 17 | BN132: 10 | BO132: 5 | BP132: 3 | BQ132: 2 | BR132: 3000 | BS132: 0 | BT132: 0.35 | BU132: 350 | BV132: 0 | BW132: 3.5 | BX132: 0 | BY132: 0 | BZ132: 24 | CA132: 19 | CB132: 13 | CC132: 7 | CD132: 4.5 | CE132: 3.5 | CF132: 23 | CG132: 18 | CH132: 12 | CI132: 6 | CJ132: 4 | CK132: 3 | CL132: 0.5 | CM132: 3000 | CN132: 6.5 | CO132: 0.01 | CP132: 850 | CQ132: 1 | CR132: 72 | CS132: 25 | CT132: 5000 | CU132: 500 | CV132: 40 | CW132: 28 | CX132: 1250 | CY132: 8 | CZ132: 800 | DA132: 9 | DB132: 8 | DC132: 6 | DD132: 5 | DE132: 6 | DF132: 1000
A133: Wirt | B133: =VLOOKUP(A133,tables!$A$2:$C$56,2,0) -> 53 | C133: 3022 | D133: =VLOOKUP(A133,tables!$A$2:$C$56,3,0) -> 03 | E133: Kelly Paving Inc., Plant #14 | F133: 123 Dodd Dr., St. Marys, WV 26170 | G133: Kelly Paving Inc. | H133: 123 Dodd Dr., St. Marys, WV 26170 | I133: 82 | J133: 88 | K133: 88 | L133: 88 | M133: 88 | N133: 100 | O133: 88 | P133: 92 | Q133: 103 | R133: 92 | S133: 100 | T133: 0 | U133: 0 | V133: 102 | W133: 104 | X133: 96 | Y133: 102 | Z133: 55 | AA133: 1500 | AB133: 3 | AC133: 0.35 | AD133: 7 | AE133: 6 | AF133: 15 | AG133: 2 | AH133: 4 | AI133: 3 | AJ133: 0.35 | AK133: 90 | AL133: 40 | AM133: 15 | AN133: 8 | AO133: 1000 | AP133: 5000 | AQ133: 6.5 | AR133: 4 | AS133: 2.5 | AT133: 2 | AU133: 25 | AV133: 15 | AW133: 4 | AX133: 2 | AY133: 25 | AZ133: 15 | BA133: 4 | BB133: 2 | BC133: 3.5 | BD133: 10 | BE133: 5 | BF133: 22 | BG133: 18 | BH133: 11 | BI133: 5.5 | BJ133: 3.5 | BK133: 2.5 | BL133: 21 | BM133: 17 | BN133: 10 | BO133: 5 | BP133: 3 | BQ133: 2 | BR133: 3000 | BS133: 0 | BT133: 0.35 | BU133: 350 | BV133: 0 | BW133: 3.5 | BX133: 0 | BY133: 0 | BZ133: 24 | CA133: 19 | CB133: 13 | CC133: 7 | CD133: 4.5 | CE133: 3.5 | CF133: 23 | CG133: 18 | CH133: 12 | CI133: 6 | CJ133: 4 | CK133: 3 | CL133: 0.5 | CM133: 3000 | CN133: 6.5 | CO133: 0.01 | CP133: 850 | CQ133: 1 | CR133: 72 | CS133: 25 | CT133: 5000 | CU133: 500 | CV133: 40 | CW133: 28 | CX133: 1250 | CY133: 8 | CZ133: 800 | DA133: 9 | DB133: 8 | DC133: 6 | DD133: 5 | DE133: 6 | DF133: 1000
A134: Wood | B134: =VLOOKUP(A134,tables!$A$2:$C$56,2,0) -> 54 | C134: 3023 | D134: =VLOOKUP(A134,tables!$A$2:$C$56,3,0) -> 03 | E134: Kelly Paving Inc., Plant #14 | F134: 123 Dodd Dr., St. Marys, WV 26170 | G134: Kelly Paving Inc. | H134: 123 Dodd Dr., St. Marys, WV 26170 | I134: 82 | J134: 88 | K134: 88 | L134: 88 | M134: 88 | N134: 100 | O134: 88 | P134: 92 | Q134: 103 | R134: 92 | S134: 100 | T134: 0 | U134: 0 | V134: 102 | W134: 104 | X134: 96 | Y134: 102 | Z134: 55 | AA134: 1500 | AB134: 3 | AC134: 0.35 | AD134: 7 | AE134: 6 | AF134: 15 | AG134: 2 | AH134: 4 | AI134: 3 | AJ134: 0.35 | AK134: 90 | AL134: 40 | AM134: 15 | AN134: 8 | AO134: 1000 | AP134: 5000 | AQ134: 6.5 | AR134: 4 | AS134: 2.5 | AT134: 2 | AU134: 25 | AV134: 15 | AW134: 4 | AX134: 2 | AY134: 25 | AZ134: 15 | BA134: 4 | BB134: 2 | BC134: 3.5 | BD134: 10 | BE134: 5 | BF134: 22 | BG134: 18 | BH134: 11 | BI134: 5.5 | BJ134: 3.5 | BK134: 2.5 | BL134: 21 | BM134: 17 | BN134: 10 | BO134: 5 | BP134: 3 | BQ134: 2 | BR134: 3000 | BS134: 0 | BT134: 0.35 | BU134: 350 | BV134: 0 | BW134: 3.5 | BX134: 0 | BY134: 0 | BZ134: 24 | CA134: 19 | CB134: 13 | CC134: 7 | CD134: 4.5 | CE134: 3.5 | CF134: 23 | CG134: 18 | CH134: 12 | CI134: 6 | CJ134: 4 | CK134: 3 | CL134: 0.5 | CM134: 3000 | CN134: 6.5 | CO134: 0.01 | CP134: 850 | CQ134: 1 | CR134: 72 | CS134: 25 | CT134: 5000 | CU134: 500 | CV134: 40 | CW134: 28 | CX134: 1250 | CY134: 8 | CZ134: 800 | DA134: 9 | DB134: 8 | DC134: 6 | DD134: 5 | DE134: 6 | DF134: 1000
A135: Calhoun | B135: =VLOOKUP(A135,tables!$A$2:$C$56,2,0) -> 7 | C135: 3024 | D135: =VLOOKUP(A135,tables!$A$2:$C$56,3,0) -> 03 | E135: Kelly Paving Inc., Plant #14 | F135: 123 Dodd Dr., St. Marys, WV 26170 | G135: Martin Marietta | H135: 619 Sand Hill Way, Petroleum, WV 26161 | I135: 82 | J135: 88 | K135: 88 | L135: 88 | M135: 88 | N135: 100 | O135: 88 | P135: 92 | Q135: 103 | R135: 92 | S135: 100 | T135: 0 | U135: 0 | V135: 102 | W135: 104 | X135: 96 | Y135: 102 | Z135: 55 | AA135: 1500 | AB135: 3 | AC135: 0.35 | AD135: 7 | AE135: 6 | AF135: 15 | AG135: 2 | AH135: 4 | AI135: 3 | AJ135: 0.35 | AK135: 90 | AL135: 40 | AM135: 15 | AN135: 8 | AO135: 1000 | AP135: 5000 | AQ135: 6.5 | AR135: 4 | AS135: 2.5 | AT135: 2 | AU135: 25 | AV135: 15 | AW135: 4 | AX135: 2 | AY135: 25 | AZ135: 15 | BA135: 4 | BB135: 2 | BC135: 3.5 | BD135: 10 | BE135: 5 | BF135: 22 | BG135: 18 | BH135: 11 | BI135: 5.5 | BJ135: 3.5 | BK135: 2.5 | BL135: 21 | BM135: 17 | BN135: 10 | BO135: 5 | BP135: 3 | BQ135: 2 | BR135: 3000 | BS135: 0 | BT135: 0.35 | BU135: 350 | BV135: 0 | BW135: 3.5 | BX135: 0 | BY135: 0 | BZ135: 24 | CA135: 19 | CB135: 13 | CC135: 7 | CD135: 4.5 | CE135: 3.5 | CF135: 23 | CG135: 18 | CH135: 12 | CI135: 6 | CJ135: 4 | CK135: 3 | CL135: 0.5 | CM135: 3000 | CN135: 6.5 | CO135: 0.01 | CP135: 850 | CQ135: 1 | CR135: 72 | CS135: 25 | CT135: 5000 | CU135: 500 | CV135: 40 | CW135: 28 | CX135: 1250 | CY135: 8 | CZ135: 800 | DA135: 9 | DB135: 8 | DC135: 6 | DD135: 5 | DE135: 6 | DF135: 1000
A136: Jackson | B136: =VLOOKUP(A136,tables!$A$2:$C$56,2,0) -> 18 | C136: 3025 | D136: =VLOOKUP(A136,tables!$A$2:$C$56,3,0) -> 03 | E136: Kelly Paving Inc., Plant #14 | F136: 123 Dodd Dr., St. Marys, WV 26170 | I136: 82 | J136: 88 | K136: 88 | L136: 88 | M136: 88 | N136: 100 | O136: 88 | P136: 92 | Q136: 103 | R136: 92 | S136: 100 | T136: 0 | U136: 0 | V136: 102 | W136: 104 | X136: 96 | Y136: 102 | Z136: 55 | AA136: 1500 | AB136: 3 | AC136: 0.35 | AD136: 7 | AE136: 6 | AF136: 15 | AG136: 2 | AH136: 4 | AI136: 3 | AJ136: 0.35 | AK136: 90 | AL136: 40 | AM136: 15 | AN136: 8 | AO136: 1000 | AP136: 5000 | AQ136: 6.5 | AR136: 4 | AS136: 2.5 | AT136: 2 | AU136: 25 | AV136: 15 | AW136: 4 | AX136: 2 | AY136: 25 | AZ136: 15 | BA136: 4 | BB136: 2 | BC136: 3.5 | BD136: 10 | BE136: 5 | BF136: 22 | BG136: 18 | BH136: 11 | BI136: 5.5 | BJ136: 3.5 | BK136: 2.5 | BL136: 21 | BM136: 17 | BN136: 10 | BO136: 5 | BP136: 3 | BQ136: 2 | BR136: 3000 | BS136: 0 | BT136: 0.35 | BU136: 350 | BV136: 0 | BW136: 3.5 | BX136: 0 | BY136: 0 | BZ136: 24 | CA136: 19 | CB136: 13 | CC136: 7 | CD136: 4.5 | CE136: 3.5 | CF136: 23 | CG136: 18 | CH136: 12 | CI136: 6 | CJ136: 4 | CK136: 3 | CL136: 0.5 | CM136: 3000 | CN136: 6.5 | CO136: 0.01 | CP136: 850 | CQ136: 1 | CR136: 72 | CS136: 25 | CT136: 5000 | CU136: 500 | CV136: 40 | CW136: 28 | CX136: 1250 | CY136: 8 | CZ136: 800 | DA136: 9 | DB136: 8 | DC136: 6 | DD136: 5 | DE136: 6 | DF136: 1000
A137: Pleasants | B137: =VLOOKUP(A137,tables!$A$2:$C$56,2,0) -> 37 | C137: 3026 | D137: =VLOOKUP(A137,tables!$A$2:$C$56,3,0) -> 03 | E137: Kelly Paving Inc., Plant #14 | F137: 123 Dodd Dr., St. Marys, WV 26170 | G137: Martin Marietta | H137: 619 Sand Hill Way, Petroleum, WV 26161 | I137: 82 | J137: 88 | K137: 88 | L137: 88 | M137: 88 | N137: 100 | O137: 88 | P137: 92 | Q137: 103 | R137: 92 | S137: 100 | T137: 0 | U137: 0 | V137: 102 | W137: 104 | X137: 96 | Y137: 102 | Z137: 55 | AA137: 1500 | AB137: 3 | AC137: 0.35 | AD137: 7 | AE137: 6 | AF137: 15 | AG137: 2 | AH137: 4 | AI137: 3 | AJ137: 0.35 | AK137: 90 | AL137: 40 | AM137: 15 | AN137: 8 | AO137: 1000 | AP137: 5000 | AQ137: 6.5 | AR137: 4 | AS137: 2.5 | AT137: 2 | AU137: 25 | AV137: 15 | AW137: 4 | AX137: 2 | AY137: 25 | AZ137: 15 | BA137: 4 | BB137: 2 | BC137: 3.5 | BD137: 10 | BE137: 5 | BF137: 22 | BG137: 18 | BH137: 11 | BI137: 5.5 | BJ137: 3.5 | BK137: 2.5 | BL137: 21 | BM137: 17 | BN137: 10 | BO137: 5 | BP137: 3 | BQ137: 2 | BR137: 3000 | BS137: 0 | BT137: 0.35 | BU137: 350 | BV137: 0 | BW137: 3.5 | BX137: 0 | BY137: 0 | BZ137: 24 | CA137: 19 | CB137: 13 | CC137: 7 | CD137: 4.5 | CE137: 3.5 | CF137: 23 | CG137: 18 | CH137: 12 | CI137: 6 | CJ137: 4 | CK137: 3 | CL137: 0.5 | CM137: 3000 | CN137: 6.5 | CO137: 0.01 | CP137: 850 | CQ137: 1 | CR137: 72 | CS137: 25 | CT137: 5000 | CU137: 500 | CV137: 40 | CW137: 28 | CX137: 1250 | CY137: 8 | CZ137: 800 | DA137: 9 | DB137: 8 | DC137: 6 | DD137: 5 | DE137: 6 | DF137: 1000
A138: Ritchie | B138: =VLOOKUP(A138,tables!$A$2:$C$56,2,0) -> 43 | C138: 3027 | D138: =VLOOKUP(A138,tables!$A$2:$C$56,3,0) -> 03 | E138: Kelly Paving Inc., Plant #14 | F138: 123 Dodd Dr., St. Marys, WV 26170 | G138: Martin Marietta | H138: 619 Sand Hill Way, Petroleum, WV 26161 | I138: 82 | J138: 88 | K138: 88 | L138: 88 | M138: 88 | N138: 100 | O138: 88 | P138: 92 | Q138: 103 | R138: 92 | S138: 100 | T138: 0 | U138: 0 | V138: 102 | W138: 104 | X138: 96 | Y138: 102 | Z138: 55 | AA138: 1500 | AB138: 3 | AC138: 0.35 | AD138: 7 | AE138: 6 | AF138: 15 | AG138: 2 | AH138: 4 | AI138: 3 | AJ138: 0.35 | AK138: 90 | AL138: 40 | AM138: 15 | AN138: 8 | AO138: 1000 | AP138: 5000 | AQ138: 6.5 | AR138: 4 | AS138: 2.5 | AT138: 2 | AU138: 25 | AV138: 15 | AW138: 4 | AX138: 2 | AY138: 25 | AZ138: 15 | BA138: 4 | BB138: 2 | BC138: 3.5 | BD138: 10 | BE138: 5 | BF138: 22 | BG138: 18 | BH138: 11 | BI138: 5.5 | BJ138: 3.5 | BK138: 2.5 | BL138: 21 | BM138: 17 | BN138: 10 | BO138: 5 | BP138: 3 | BQ138: 2 | BR138: 3000 | BS138: 0 | BT138: 0.35 | BU138: 350 | BV138: 0 | BW138: 3.5 | BX138: 0 | BY138: 0 | BZ138: 24 | CA138: 19 | CB138: 13 | CC138: 7 | CD138: 4.5 | CE138: 3.5 | CF138: 23 | CG138: 18 | CH138: 12 | CI138: 6 | CJ138: 4 | CK138: 3 | CL138: 0.5 | CM138: 3000 | CN138: 6.5 | CO138: 0.01 | CP138: 850 | CQ138: 1 | CR138: 72 | CS138: 25 | CT138: 5000 | CU138: 500 | CV138: 40 | CW138: 28 | CX138: 1250 | CY138: 8 | CZ138: 800 | DA138: 9 | DB138: 8 | DC138: 6 | DD138: 5 | DE138: 6 | DF138: 1000
A139: Roane | B139: =VLOOKUP(A139,tables!$A$2:$C$56,2,0) -> 44 | C139: 3028 | D139: =VLOOKUP(A139,tables!$A$2:$C$56,3,0) -> 03 | E139: Kelly Paving Inc., Plant #14 | F139: 123 Dodd Dr., St. Marys, WV 26170 | G139: Martin Marietta | H139: 619 Sand Hill Way, Petroleum, WV 26161 | I139: 82 | J139: 88 | K139: 88 | L139: 88 | M139: 88 | N139: 100 | O139: 88 | P139: 92 | Q139: 103 | R139: 92 | S139: 100 | T139: 0 | U139: 0 | V139: 102 | W139: 104 | X139: 96 | Y139: 102 | Z139: 55 | AA139: 1500 | AB139: 3 | AC139: 0.35 | AD139: 7 | AE139: 6 | AF139: 15 | AG139: 2 | AH139: 4 | AI139: 3 | AJ139: 0.35 | AK139: 90 | AL139: 40 | AM139: 15 | AN139: 8 | AO139: 1000 | AP139: 5000 | AQ139: 6.5 | AR139: 4 | AS139: 2.5 | AT139: 2 | AU139: 25 | AV139: 15 | AW139: 4 | AX139: 2 | AY139: 25 | AZ139: 15 | BA139: 4 | BB139: 2 | BC139: 3.5 | BD139: 10 | BE139: 5 | BF139: 22 | BG139: 18 | BH139: 11 | BI139: 5.5 | BJ139: 3.5 | BK139: 2.5 | BL139: 21 | BM139: 17 | BN139: 10 | BO139: 5 | BP139: 3 | BQ139: 2 | BR139: 3000 | BS139: 0 | BT139: 0.35 | BU139: 350 | BV139: 0 | BW139: 3.5 | BX139: 0 | BY139: 0 | BZ139: 24 | CA139: 19 | CB139: 13 | CC139: 7 | CD139: 4.5 | CE139: 3.5 | CF139: 23 | CG139: 18 | CH139: 12 | CI139: 6 | CJ139: 4 | CK139: 3 | CL139: 0.5 | CM139: 3000 | CN139: 6.5 | CO139: 0.01 | CP139: 850 | CQ139: 1 | CR139: 72 | CS139: 25 | CT139: 5000 | CU139: 500 | CV139: 40 | CW139: 28 | CX139: 1250 | CY139: 8 | CZ139: 800 | DA139: 9 | DB139: 8 | DC139: 6 | DD139: 5 | DE139: 6 | DF139: 1000
A140: Wirt | B140: =VLOOKUP(A140,tables!$A$2:$C$56,2,0) -> 53 | C140: 3029 | D140: =VLOOKUP(A140,tables!$A$2:$C$56,3,0) -> 03 | E140: Kelly Paving Inc., Plant #14 | F140: 123 Dodd Dr., St. Marys, WV 26170 | G140: Martin Marietta | H140: 619 Sand Hill Way, Petroleum, WV 26161 | I140: 82 | J140: 88 | K140: 88 | L140: 88 | M140: 88 | N140: 100 | O140: 88 | P140: 92 | Q140: 103 | R140: 92 | S140: 100 | T140: 0 | U140: 0 | V140: 102 | W140: 104 | X140: 96 | Y140: 102 | Z140: 55 | AA140: 1500 | AB140: 3 | AC140: 0.35 | AD140: 7 | AE140: 6 | AF140: 15 | AG140: 2 | AH140: 4 | AI140: 3 | AJ140: 0.35 | AK140: 90 | AL140: 40 | AM140: 15 | AN140: 8 | AO140: 1000 | AP140: 5000 | AQ140: 6.5 | AR140: 4 | AS140: 2.5 | AT140: 2 | AU140: 25 | AV140: 15 | AW140: 4 | AX140: 2 | AY140: 25 | AZ140: 15 | BA140: 4 | BB140: 2 | BC140: 3.5 | BD140: 10 | BE140: 5 | BF140: 22 | BG140: 18 | BH140: 11 | BI140: 5.5 | BJ140: 3.5 | BK140: 2.5 | BL140: 21 | BM140: 17 | BN140: 10 | BO140: 5 | BP140: 3 | BQ140: 2 | BR140: 3000 | BS140: 0 | BT140: 0.35 | BU140: 350 | BV140: 0 | BW140: 3.5 | BX140: 0 | BY140: 0 | BZ140: 24 | CA140: 19 | CB140: 13 | CC140: 7 | CD140: 4.5 | CE140: 3.5 | CF140: 23 | CG140: 18 | CH140: 12 | CI140: 6 | CJ140: 4 | CK140: 3 | CL140: 0.5 | CM140: 3000 | CN140: 6.5 | CO140: 0.01 | CP140: 850 | CQ140: 1 | CR140: 72 | CS140: 25 | CT140: 5000 | CU140: 500 | CV140: 40 | CW140: 28 | CX140: 1250 | CY140: 8 | CZ140: 800 | DA140: 9 | DB140: 8 | DC140: 6 | DD140: 5 | DE140: 6 | DF140: 1000
A141: Wood | B141: =VLOOKUP(A141,tables!$A$2:$C$56,2,0) -> 54 | C141: 3030 | D141: =VLOOKUP(A141,tables!$A$2:$C$56,3,0) -> 03 | E141: Kelly Paving Inc., Plant #14 | F141: 123 Dodd Dr., St. Marys, WV 26170 | G141: Martin Marietta | H141: 619 Sand Hill Way, Petroleum, WV 26161 | I141: 82 | J141: 88 | K141: 88 | L141: 88 | M141: 88 | N141: 100 | O141: 88 | P141: 92 | Q141: 103 | R141: 92 | S141: 100 | T141: 0 | U141: 0 | V141: 102 | W141: 104 | X141: 96 | Y141: 102 | Z141: 55 | AA141: 1500 | AB141: 3 | AC141: 0.35 | AD141: 7 | AE141: 6 | AF141: 15 | AG141: 2 | AH141: 4 | AI141: 3 | AJ141: 0.35 | AK141: 90 | AL141: 40 | AM141: 15 | AN141: 8 | AO141: 1000 | AP141: 5000 | AQ141: 6.5 | AR141: 4 | AS141: 2.5 | AT141: 2 | AU141: 25 | AV141: 15 | AW141: 4 | AX141: 2 | AY141: 25 | AZ141: 15 | BA141: 4 | BB141: 2 | BC141: 3.5 | BD141: 10 | BE141: 5 | BF141: 22 | BG141: 18 | BH141: 11 | BI141: 5.5 | BJ141: 3.5 | BK141: 2.5 | BL141: 21 | BM141: 17 | BN141: 10 | BO141: 5 | BP141: 3 | BQ141: 2 | BR141: 3000 | BS141: 0 | BT141: 0.35 | BU141: 350 | BV141: 0 | BW141: 3.5 | BX141: 0 | BY141: 0 | BZ141: 24 | CA141: 19 | CB141: 13 | CC141: 7 | CD141: 4.5 | CE141: 3.5 | CF141: 23 | CG141: 18 | CH141: 12 | CI141: 6 | CJ141: 4 | CK141: 3 | CL141: 0.5 | CM141: 3000 | CN141: 6.5 | CO141: 0.01 | CP141: 850 | CQ141: 1 | CR141: 72 | CS141: 25 | CT141: 5000 | CU141: 500 | CV141: 40 | CW141: 28 | CX141: 1250 | CY141: 8 | CZ141: 800 | DA141: 9 | DB141: 8 | DC141: 6 | DD141: 5 | DE141: 6 | DF141: 1000
A142: Calhoun | B142: =VLOOKUP(A142,tables!$A$2:$C$56,2,0) -> 7 | C142: 3031 | D142: =VLOOKUP(A142,tables!$A$2:$C$56,3,0) -> 03 | E142: Kelly Paving Inc., Plant #14 | F142: 123 Dodd Dr., St. Marys, WV 26170 | G142: Martin Marietta | H142: 99 Kanawha St., Parkersburg, WV 26101 | I142: 82 | J142: 88 | K142: 88 | L142: 88 | M142: 88 | N142: 100 | O142: 88 | P142: 92 | Q142: 103 | R142: 92 | S142: 100 | T142: 0 | U142: 0 | V142: 102 | W142: 104 | X142: 96 | Y142: 102 | Z142: 55 | AA142: 1500 | AB142: 3 | AC142: 0.35 | AD142: 7 | AE142: 6 | AF142: 15 | AG142: 2 | AH142: 4 | AI142: 3 | AJ142: 0.35 | AK142: 90 | AL142: 40 | AM142: 15 | AN142: 8 | AO142: 1000 | AP142: 5000 | AQ142: 6.5 | AR142: 4 | AS142: 2.5 | AT142: 2 | AU142: 25 | AV142: 15 | AW142: 4 | AX142: 2 | AY142: 25 | AZ142: 15 | BA142: 4 | BB142: 2 | BC142: 3.5 | BD142: 10 | BE142: 5 | BF142: 22 | BG142: 18 | BH142: 11 | BI142: 5.5 | BJ142: 3.5 | BK142: 2.5 | BL142: 21 | BM142: 17 | BN142: 10 | BO142: 5 | BP142: 3 | BQ142: 2 | BR142: 3000 | BS142: 0 | BT142: 0.35 | BU142: 350 | BV142: 0 | BW142: 3.5 | BX142: 0 | BY142: 0 | BZ142: 24 | CA142: 19 | CB142: 13 | CC142: 7 | CD142: 4.5 | CE142: 3.5 | CF142: 23 | CG142: 18 | CH142: 12 | CI142: 6 | CJ142: 4 | CK142: 3 | CL142: 0.5 | CM142: 3000 | CN142: 6.5 | CO142: 0.01 | CP142: 850 | CQ142: 1 | CR142: 72 | CS142: 25 | CT142: 5000 | CU142: 500 | CV142: 40 | CW142: 28 | CX142: 1250 | CY142: 8 | CZ142: 800 | DA142: 9 | DB142: 8 | DC142: 6 | DD142: 5 | DE142: 6 | DF142: 1000
A143: Jackson | B143: =VLOOKUP(A143,tables!$A$2:$C$56,2,0) -> 18 | C143: 3032 | D143: =VLOOKUP(A143,tables!$A$2:$C$56,3,0) -> 03 | E143: Kelly Paving Inc., Plant #14 | F143: 123 Dodd Dr., St. Marys, WV 26170 | G143: Martin Marietta | H143: 99 Kanawha St., Parkersburg, WV 26101 | I143: 82 | J143: 88 | K143: 88 | L143: 88 | M143: 88 | N143: 100 | O143: 88 | P143: 92 | Q143: 103 | R143: 92 | S143: 100 | T143: 0 | U143: 0 | V143: 102 | W143: 104 | X143: 96 | Y143: 102 | Z143: 55 | AA143: 1500 | AB143: 3 | AC143: 0.35 | AD143: 7 | AE143: 6 | AF143: 15 | AG143: 2 | AH143: 4 | AI143: 3 | AJ143: 0.35 | AK143: 90 | AL143: 40 | AM143: 15 | AN143: 8 | AO143: 1000 | AP143: 5000 | AQ143: 6.5 | AR143: 4 | AS143: 2.5 | AT143: 2 | AU143: 25 | AV143: 15 | AW143: 4 | AX143: 2 | AY143: 25 | AZ143: 15 | BA143: 4 | BB143: 2 | BC143: 3.5 | BD143: 10 | BE143: 5 | BF143: 22 | BG143: 18 | BH143: 11 | BI143: 5.5 | BJ143: 3.5 | BK143: 2.5 | BL143: 21 | BM143: 17 | BN143: 10 | BO143: 5 | BP143: 3 | BQ143: 2 | BR143: 3000 | BS143: 0 | BT143: 0.35 | BU143: 350 | BV143: 0 | BW143: 3.5 | BX143: 0 | BY143: 0 | BZ143: 24 | CA143: 19 | CB143: 13 | CC143: 7 | CD143: 4.5 | CE143: 3.5 | CF143: 23 | CG143: 18 | CH143: 12 | CI143: 6 | CJ143: 4 | CK143: 3 | CL143: 0.5 | CM143: 3000 | CN143: 6.5 | CO143: 0.01 | CP143: 850 | CQ143: 1 | CR143: 72 | CS143: 25 | CT143: 5000 | CU143: 500 | CV143: 40 | CW143: 28 | CX143: 1250 | CY143: 8 | CZ143: 800 | DA143: 9 | DB143: 8 | DC143: 6 | DD143: 5 | DE143: 6 | DF143: 1000
A144: Pleasants | B144: =VLOOKUP(A144,tables!$A$2:$C$56,2,0) -> 37 | C144: 3033 | D144: =VLOOKUP(A144,tables!$A$2:$C$56,3,0) -> 03 | E144: Kelly Paving Inc., Plant #14 | F144: 123 Dodd Dr., St. Marys, WV 26170 | G144: Martin Marietta | H144: 195 Wetzel St., New Martinsville, WV 26155 | I144: 82 | J144: 88 | K144: 88 | L144: 88 | M144: 88 | N144: 100 | O144: 88 | P144: 92 | Q144: 103 | R144: 92 | S144: 100 | T144: 0 | U144: 0 | V144: 102 | W144: 104 | X144: 96 | Y144: 102 | Z144: 55 | AA144: 1500 | AB144: 3 | AC144: 0.35 | AD144: 7 | AE144: 6 | AF144: 15 | AG144: 2 | AH144: 4 | AI144: 3 | AJ144: 0.35 | AK144: 90 | AL144: 40 | AM144: 15 | AN144: 8 | AO144: 1000 | AP144: 5000 | AQ144: 6.5 | AR144: 4 | AS144: 2.5 | AT144: 2 | AU144: 25 | AV144: 15 | AW144: 4 | AX144: 2 | AY144: 25 | AZ144: 15 | BA144: 4 | BB144: 2 | BC144: 3.5 | BD144: 10 | BE144: 5 | BF144: 22 | BG144: 18 | BH144: 11 | BI144: 5.5 | BJ144: 3.5 | BK144: 2.5 | BL144: 21 | BM144: 17 | BN144: 10 | BO144: 5 | BP144: 3 | BQ144: 2 | BR144: 3000 | BS144: 0 | BT144: 0.35 | BU144: 350 | BV144: 0 | BW144: 3.5 | BX144: 0 | BY144: 0 | BZ144: 24 | CA144: 19 | CB144: 13 | CC144: 7 | CD144: 4.5 | CE144: 3.5 | CF144: 23 | CG144: 18 | CH144: 12 | CI144: 6 | CJ144: 4 | CK144: 3 | CL144: 0.5 | CM144: 3000 | CN144: 6.5 | CO144: 0.01 | CP144: 850 | CQ144: 1 | CR144: 72 | CS144: 25 | CT144: 5000 | CU144: 500 | CV144: 40 | CW144: 28 | CX144: 1250 | CY144: 8 | CZ144: 800 | DA144: 9 | DB144: 8 | DC144: 6 | DD144: 5 | DE144: 6 | DF144: 1000
A145: Ritchie | B145: =VLOOKUP(A145,tables!$A$2:$C$56,2,0) -> 43 | C145: 3034 | D145: =VLOOKUP(A145,tables!$A$2:$C$56,3,0) -> 03 | E145: Kelly Paving Inc., Plant #14 | F145: 123 Dodd Dr., St. Marys, WV 26170 | G145: Martin Marietta | H145: 99 Kanawha St., Parkersburg, WV 26101 | I145: 82 | J145: 88 | K145: 88 | L145: 88 | M145: 88 | N145: 100 | O145: 88 | P145: 92 | Q145: 103 | R145: 92 | S145: 100 | T145: 0 | U145: 0 | V145: 102 | W145: 104 | X145: 96 | Y145: 102 | Z145: 55 | AA145: 1500 | AB145: 3 | AC145: 0.35 | AD145: 7 | AE145: 6 | AF145: 15 | AG145: 2 | AH145: 4 | AI145: 3 | AJ145: 0.35 | AK145: 90 | AL145: 40 | AM145: 15 | AN145: 8 | AO145: 1000 | AP145: 5000 | AQ145: 6.5 | AR145: 4 | AS145: 2.5 | AT145: 2 | AU145: 25 | AV145: 15 | AW145: 4 | AX145: 2 | AY145: 25 | AZ145: 15 | BA145: 4 | BB145: 2 | BC145: 3.5 | BD145: 10 | BE145: 5 | BF145: 22 | BG145: 18 | BH145: 11 | BI145: 5.5 | BJ145: 3.5 | BK145: 2.5 | BL145: 21 | BM145: 17 | BN145: 10 | BO145: 5 | BP145: 3 | BQ145: 2 | BR145: 3000 | BS145: 0 | BT145: 0.35 | BU145: 350 | BV145: 0 | BW145: 3.5 | BX145: 0 | BY145: 0 | BZ145: 24 | CA145: 19 | CB145: 13 | CC145: 7 | CD145: 4.5 | CE145: 3.5 | CF145: 23 | CG145: 18 | CH145: 12 | CI145: 6 | CJ145: 4 | CK145: 3 | CL145: 0.5 | CM145: 3000 | CN145: 6.5 | CO145: 0.01 | CP145: 850 | CQ145: 1 | CR145: 72 | CS145: 25 | CT145: 5000 | CU145: 500 | CV145: 40 | CW145: 28 | CX145: 1250 | CY145: 8 | CZ145: 800 | DA145: 9 | DB145: 8 | DC145: 6 | DD145: 5 | DE145: 6 | DF145: 1000
A146: Roane | B146: =VLOOKUP(A146,tables!$A$2:$C$56,2,0) -> 44 | C146: 3035 | D146: =VLOOKUP(A146,tables!$A$2:$C$56,3,0) -> 03 | E146: Kelly Paving Inc., Plant #14 | F146: 123 Dodd Dr., St. Marys, WV 26170 | G146: Martin Marietta | H146: 99 Kanawha St., Parkersburg, WV 26101 | I146: 82 | J146: 88 | K146: 88 | L146: 88 | M146: 88 | N146: 100 | O146: 88 | P146: 92 | Q146: 103 | R146: 92 | S146: 100 | T146: 0 | U146: 0 | V146: 102 | W146: 104 | X146: 96 | Y146: 102 | Z146: 55 | AA146: 1500 | AB146: 3 | AC146: 0.35 | AD146: 7 | AE146: 6 | AF146: 15 | AG146: 2 | AH146: 4 | AI146: 3 | AJ146: 0.35 | AK146: 90 | AL146: 40 | AM146: 15 | AN146: 8 | AO146: 1000 | AP146: 5000 | AQ146: 6.5 | AR146: 4 | AS146: 2.5 | AT146: 2 | AU146: 25 | AV146: 15 | AW146: 4 | AX146: 2 | AY146: 25 | AZ146: 15 | BA146: 4 | BB146: 2 | BC146: 3.5 | BD146: 10 | BE146: 5 | BF146: 22 | BG146: 18 | BH146: 11 | BI146: 5.5 | BJ146: 3.5 | BK146: 2.5 | BL146: 21 | BM146: 17 | BN146: 10 | BO146: 5 | BP146: 3 | BQ146: 2 | BR146: 3000 | BS146: 0 | BT146: 0.35 | BU146: 350 | BV146: 0 | BW146: 3.5 | BX146: 0 | BY146: 0 | BZ146: 24 | CA146: 19 | CB146: 13 | CC146: 7 | CD146: 4.5 | CE146: 3.5 | CF146: 23 | CG146: 18 | CH146: 12 | CI146: 6 | CJ146: 4 | CK146: 3 | CL146: 0.5 | CM146: 3000 | CN146: 6.5 | CO146: 0.01 | CP146: 850 | CQ146: 1 | CR146: 72 | CS146: 25 | CT146: 5000 | CU146: 500 | CV146: 40 | CW146: 28 | CX146: 1250 | CY146: 8 | CZ146: 800 | DA146: 9 | DB146: 8 | DC146: 6 | DD146: 5 | DE146: 6 | DF146: 1000
A147: Wirt | B147: =VLOOKUP(A147,tables!$A$2:$C$56,2,0) -> 53 | C147: 3036 | D147: =VLOOKUP(A147,tables!$A$2:$C$56,3,0) -> 03 | E147: Kelly Paving Inc., Plant #14 | F147: 123 Dodd Dr., St. Marys, WV 26170 | G147: Martin Marietta | H147: 99 Kanawha St., Parkersburg, WV 26101 | I147: 82 | J147: 88 | K147: 88 | L147: 88 | M147: 88 | N147: 100 | O147: 88 | P147: 92 | Q147: 103 | R147: 92 | S147: 100 | T147: 0 | U147: 0 | V147: 102 | W147: 104 | X147: 96 | Y147: 102 | Z147: 55 | AA147: 1500 | AB147: 3 | AC147: 0.35 | AD147: 7 | AE147: 6 | AF147: 15 | AG147: 2 | AH147: 4 | AI147: 3 | AJ147: 0.35 | AK147: 90 | AL147: 40 | AM147: 15 | AN147: 8 | AO147: 1000 | AP147: 5000 | AQ147: 6.5 | AR147: 4 | AS147: 2.5 | AT147: 2 | AU147: 25 | AV147: 15 | AW147: 4 | AX147: 2 | AY147: 25 | AZ147: 15 | BA147: 4 | BB147: 2 | BC147: 3.5 | BD147: 10 | BE147: 5 | BF147: 22 | BG147: 18 | BH147: 11 | BI147: 5.5 | BJ147: 3.5 | BK147: 2.5 | BL147: 21 | BM147: 17 | BN147: 10 | BO147: 5 | BP147: 3 | BQ147: 2 | BR147: 3000 | BS147: 0 | BT147: 0.35 | BU147: 350 | BV147: 0 | BW147: 3.5 | BX147: 0 | BY147: 0 | BZ147: 24 | CA147: 19 | CB147: 13 | CC147: 7 | CD147: 4.5 | CE147: 3.5 | CF147: 23 | CG147: 18 | CH147: 12 | CI147: 6 | CJ147: 4 | CK147: 3 | CL147: 0.5 | CM147: 3000 | CN147: 6.5 | CO147: 0.01 | CP147: 850 | CQ147: 1 | CR147: 72 | CS147: 25 | CT147: 5000 | CU147: 500 | CV147: 40 | CW147: 28 | CX147: 1250 | CY147: 8 | CZ147: 800 | DA147: 9 | DB147: 8 | DC147: 6 | DD147: 5 | DE147: 6 | DF147: 1000
A148: Calhoun | B148: =VLOOKUP(A148,tables!$A$2:$C$56,2,0) -> 7 | C148: 3037 | D148: =VLOOKUP(A148,tables!$A$2:$C$56,3,0) -> 03 | E148: Meadows Stone & Paving Inc., Gassaway Stoneyard | F148: 661 B&O Railroad Yard, Gassaway, WV 26624 | G148: Gassaway Plant | H148: 661 B&O Railroad Yard, Gassaway, WV 26624 | I148: 73 | J148: 80 | K148: 78 | L148: 78 | M148: 78 | N148: 93 | O148: 80 | P148: 81.5 | Q148: 83.5 | R148: 81.5 | S148: 101 | T148: 113 | U148: 125 | V148: 111 | W148: 122 | X148: 81 | Y148: 103 | Z148: 42 | AA148: 2000 | AB148: 2.5 | AC148: 0.3 | AD148: 12 | AE148: 8 | AF148: 12 | AG148: 5 | AH148: 10 | AI148: 2.5 | AJ148: 0.3 | AK148: 100 | AL148: 35 | AM148: 17 | AN148: 10 | AO148: 1800 | AP148: 3800 | AQ148: 7 | AR148: 4.25 | AS148: 3 | AT148: 2 | AU148: 25 | AV148: 16 | AW148: 4.75 | AX148: 2.5 | AY148: 25 | AZ148: 16 | BA148: 4.75 | BB148: 2.5 | BC148: 3 | BD148: 14 | BE148: 4.75 | BF148: 34 | BG148: 21 | BH148: 12 | BI148: 6 | BJ148: 3.9 | BK148: 2.55 | BL148: 30 | BM148: 19 | BN148: 11.5 | BO148: 5.9 | BP148: 3.6 | BQ148: 2.4 | BR148: 3400 | BS148: 0 | BT148: 5.25 | BU148: 360 | BV148: 0 | BW148: 0 | BX148: 0 | BY148: 0 | BZ148: 44 | CA148: 26.5 | CB148: 14.75 | CC148: 8.1 | CD148: 4.8 | CE148: 3.05 | CF148: 40 | CG148: 25 | CH148: 14.25 | CI148: 8 | CJ148: 4.5 | CK148: 2.9 | CL148: 0.6 | CM148: 3500 | CN148: 7 | CO148: 0.02 | CP148: 850 | CQ148: 1.25 | CR148: 60 | CS148: 50 | CT148: 3500 | CU148: 1400 | CV148: 70 | CW148: 50 | CX148: 3500 | CY148: 20 | CZ148: 1500 | DA148: 24 | DB148: 20 | DC148: 16 | DD148: 11 | DE148: 2.25 | DF148: 4000
A149: Roane | B149: =VLOOKUP(A149,tables!$A$2:$C$56,2,0) -> 44 | C149: 3038 | D149: =VLOOKUP(A149,tables!$A$2:$C$56,3,0) -> 03 | E149: Meadows Stone & Paving Inc., Gassaway Stoneyard | F149: 661 B&O Railroad Yard, Gassaway, WV 26624 | G149: Gassaway Plant | H149: 661 B&O Railroad Yard, Gassaway, WV 26624 | I149: 73 | J149: 80 | K149: 78 | L149: 78 | M149: 78 | N149: 93 | O149: 80 | P149: 81.5 | Q149: 83.5 | R149: 81.5 | S149: 101 | T149: 113 | U149: 125 | V149: 111 | W149: 122 | X149: 81 | Y149: 103 | Z149: 42 | AA149: 2000 | AB149: 2.5 | AC149: 0.3 | AD149: 12 | AE149: 8 | AF149: 12 | AG149: 5 | AH149: 10 | AI149: 2.5 | AJ149: 0.3 | AK149: 100 | AL149: 35 | AM149: 17 | AN149: 10 | AO149: 1800 | AP149: 3800 | AQ149: 7 | AR149: 4.25 | AS149: 3 | AT149: 2 | AU149: 25 | AV149: 16 | AW149: 4.75 | AX149: 2.5 | AY149: 25 | AZ149: 16 | BA149: 4.75 | BB149: 2.5 | BC149: 3 | BD149: 14 | BE149: 4.75 | BF149: 34 | BG149: 21 | BH149: 12 | BI149: 6 | BJ149: 3.9 | BK149: 2.55 | BL149: 30 | BM149: 19 | BN149: 11.5 | BO149: 5.9 | BP149: 3.6 | BQ149: 2.4 | BR149: 3400 | BS149: 0 | BT149: 5.25 | BU149: 360 | BV149: 0 | BW149: 0 | BX149: 0 | BY149: 0 | BZ149: 44 | CA149: 26.5 | CB149: 14.75 | CC149: 8.1 | CD149: 4.8 | CE149: 3.05 | CF149: 40 | CG149: 25 | CH149: 14.25 | CI149: 8 | CJ149: 4.5 | CK149: 2.9 | CL149: 0.6 | CM149: 3500 | CN149: 7 | CO149: 0.02 | CP149: 850 | CQ149: 1.25 | CR149: 60 | CS149: 50 | CT149: 3500 | CU149: 1400 | CV149: 70 | CW149: 50 | CX149: 3500 | CY149: 20 | CZ149: 1500 | DA149: 24 | DB149: 20 | DC149: 16 | DD149: 11 | DE149: 2.25 | DF149: 4000
A150: Calhoun | B150: =VLOOKUP(A150,tables!$A$2:$C$56,2,0) -> 7 | C150: 3039 | D150: =VLOOKUP(A150,tables!$A$2:$C$56,3,0) -> 03 | E150: West Virginia Paving, Inc., Camden Materials | F150: 202 Hickory St., Parkersburg, WV 26101 | G150: Valley Stone Yard | H150: 360 Valley Rd., Millwood WV, 25262 | I150: 91 | J150: 94 | K150: 94 | L150: 94 | M150: 95 | N150: 109 | O150: 95 | P150: 98 | Q150: 109 | R150: 97 | S150: 108 | T150: 111 | U150: 111 | V150: 111 | W150: 111 | X150: 100 | Y150: 112 | Z150: 65 | AA150: 2000 | AB150: 2.75 | AC150: 0.33 | AD150: 5 | AE150: 5 | AF150: 15 | AG150: 2 | AH150: 4 | AI150: 2.75 | AJ150: 0.28 | AK150: 85 | AL150: 30 | AM150: 20 | AN150: 10 | AO150: 2000 | AP150: 15000 | AQ150: 6.75 | AR150: 4.75 | AS150: 3.75 | AT150: 2.75 | AU150: 20.75 | AV150: 15.75 | AW150: 4.75 | AX150: 2.75 | AY150: 20.75 | AZ150: 15.752 | BA150: 4.752 | BB150: 2.75 | BC150: 3.5 | BD150: 14 | BE150: 6 | BF150: 22.25 | BG150: 17.5 | BH150: 12.5 | BI150: 6.75 | BJ150: 4.85 | BK150: 3.75 | BL150: 21.5 | BM150: 16.5 | BN150: 11.5 | BO150: 5.75 | BP150: 3.85 | BQ150: 2.75 | BR150: 3500 | BS150: 0 | BT150: 0.28 | BU150: 350 | BV150: 129 | BW150: 5 | BX150: 50 | BY150: 120 | BZ150: 24.9 | CA150: 19.9 | CB150: 14.9 | CC150: 8 | CD150: 6.15 | CE150: 4.35 | CF150: 23.9 | CG150: 18.9 | CH150: 13.9 | CI150: 7 | CJ150: 5.15 | CK150: 3.35 | CL150: 0.5 | CM150: 4500 | CN150: 8 | CO150: 0.01 | CP150: 1000 | CQ150: 1.5 | CR150: 70 | CS150: 40 | CT150: 2500 | CU150: 500 | CV150: 76 | CW150: 35 | CX150: 2000 | CY150: 13 | CZ150: 2000 | DA150: 8.5 | DB150: 8 | DC150: 6.5 | DD150: 5 | DE150: 6 | DF150: 5000
A151: Jackson | B151: =VLOOKUP(A151,tables!$A$2:$C$56,2,0) -> 18 | C151: 3040 | D151: =VLOOKUP(A151,tables!$A$2:$C$56,3,0) -> 03 | E151: West Virginia Paving, Inc., Camden Materials | F151: 202 Hickory St., Parkersburg, WV 26101 | G151: Valley Stone Yard | H151: 360 Valley Rd., Millwood WV, 25262 | I151: 91 | J151: 94 | K151: 94 | L151: 94 | M151: 95 | N151: 109 | O151: 95 | P151: 98 | Q151: 109 | R151: 97 | S151: 108 | T151: 111 | U151: 111 | V151: 111 | W151: 111 | X151: 100 | Y151: 112 | Z151: 65 | AA151: 2000 | AB151: 2.75 | AC151: 0.33 | AD151: 5 | AE151: 5 | AF151: 15 | AG151: 2 | AH151: 4 | AI151: 2.75 | AJ151: 0.28 | AK151: 85 | AL151: 30 | AM151: 20 | AN151: 10 | AO151: 2000 | AP151: 15000 | AQ151: 6.75 | AR151: 4.75 | AS151: 3.75 | AT151: 2.75 | AU151: 20.75 | AV151: 15.75 | AW151: 4.75 | AX151: 2.75 | AY151: 20.75 | AZ151: 15.752 | BA151: 4.752 | BB151: 2.75 | BC151: 3.5 | BD151: 14 | BE151: 6 | BF151: 22.25 | BG151: 17.5 | BH151: 12.5 | BI151: 6.75 | BJ151: 4.85 | BK151: 3.75 | BL151: 21.5 | BM151: 16.5 | BN151: 11.5 | BO151: 5.75 | BP151: 3.85 | BQ151: 2.75 | BR151: 3500 | BS151: 0 | BT151: 0.28 | BU151: 350 | BV151: 129 | BW151: 5 | BX151: 50 | BY151: 120 | BZ151: 24.9 | CA151: 19.9 | CB151: 14.9 | CC151: 8 | CD151: 6.15 | CE151: 4.35 | CF151: 23.9 | CG151: 18.9 | CH151: 13.9 | CI151: 7 | CJ151: 5.15 | CK151: 3.35 | CL151: 0.5 | CM151: 4500 | CN151: 8 | CO151: 0.01 | CP151: 1000 | CQ151: 1.5 | CR151: 70 | CS151: 40 | CT151: 2500 | CU151: 500 | CV151: 76 | CW151: 35 | CX151: 2000 | CY151: 13 | CZ151: 2000 | DA151: 8.5 | DB151: 8 | DC151: 6.5 | DD151: 5 | DE151: 6 | DF151: 5000
A152: Jackson | B152: =VLOOKUP(A152,tables!$A$2:$C$56,2,0) -> 18 | C152: 3041 | D152: =VLOOKUP(A152,tables!$A$2:$C$56,3,0) -> 03 | E152: West Virginia Paving, Inc., Camden Materials | F152: 202 Hickory St., Parkersburg, WV 26101 | G152: Shelly Materials | H152: Route 7 North, Gallipolis OH, 45631 | I152: 91 | J152: 94 | K152: 94 | L152: 94 | M152: 95 | N152: 109 | O152: 95 | P152: 98 | Q152: 109 | R152: 97 | S152: 108 | T152: 111 | U152: 111 | V152: 111 | W152: 111 | X152: 100 | Y152: 112 | Z152: 65 | AA152: 2000 | AB152: 2.75 | AC152: 0.33 | AD152: 5 | AE152: 5 | AF152: 15 | AG152: 2 | AH152: 4 | AI152: 2.75 | AJ152: 0.28 | AK152: 85 | AL152: 30 | AM152: 20 | AN152: 10 | AO152: 2000 | AP152: 15000 | AQ152: 6.75 | AR152: 4.75 | AS152: 3.75 | AT152: 2.75 | AU152: 20.75 | AV152: 15.75 | AW152: 4.75 | AX152: 2.75 | AY152: 20.75 | AZ152: 15.752 | BA152: 4.752 | BB152: 2.75 | BC152: 3.5 | BD152: 14 | BE152: 6 | BF152: 22.25 | BG152: 17.5 | BH152: 12.5 | BI152: 6.75 | BJ152: 4.85 | BK152: 3.75 | BL152: 21.5 | BM152: 16.5 | BN152: 11.5 | BO152: 5.75 | BP152: 3.85 | BQ152: 2.75 | BR152: 3500 | BS152: 0 | BT152: 0.28 | BU152: 350 | BV152: 129 | BW152: 5 | BX152: 50 | BY152: 120 | BZ152: 24.9 | CA152: 19.9 | CB152: 14.9 | CC152: 8 | CD152: 6.15 | CE152: 4.35 | CF152: 23.9 | CG152: 18.9 | CH152: 13.9 | CI152: 7 | CJ152: 5.15 | CK152: 3.35 | CL152: 0.5 | CM152: 4500 | CN152: 8 | CO152: 0.01 | CP152: 1000 | CQ152: 1.5 | CR152: 70 | CS152: 40 | CT152: 2500 | CU152: 500 | CV152: 76 | CW152: 35 | CX152: 2000 | CY152: 13 | CZ152: 2000 | DA152: 8.5 | DB152: 8 | DC152: 6.5 | DD152: 5 | DE152: 6 | DF152: 5000
A153: Pleasants | B153: =VLOOKUP(A153,tables!$A$2:$C$56,2,0) -> 37 | C153: 3042 | D153: =VLOOKUP(A153,tables!$A$2:$C$56,3,0) -> 03 | E153: West Virginia Paving, Inc., Camden Materials | F153: 202 Hickory St., Parkersburg, WV 26101 | I153: 91 | J153: 94 | K153: 94 | L153: 94 | M153: 95 | N153: 109 | O153: 95 | P153: 98 | Q153: 109 | R153: 97 | S153: 108 | T153: 111 | U153: 111 | V153: 111 | W153: 111 | X153: 100 | Y153: 112 | Z153: 65 | AA153: 2000 | AB153: 2.75 | AC153: 0.33 | AD153: 5 | AE153: 5 | AF153: 15 | AG153: 2 | AH153: 4 | AI153: 2.75 | AJ153: 0.28 | AK153: 85 | AL153: 30 | AM153: 20 | AN153: 10 | AO153: 2000 | AP153: 15000 | AQ153: 6.75 | AR153: 4.75 | AS153: 3.75 | AT153: 2.75 | AU153: 20.75 | AV153: 15.75 | AW153: 4.75 | AX153: 2.75 | AY153: 20.75 | AZ153: 15.752 | BA153: 4.752 | BB153: 2.75 | BC153: 3.5 | BD153: 14 | BE153: 6 | BF153: 22.25 | BG153: 17.5 | BH153: 12.5 | BI153: 6.75 | BJ153: 4.85 | BK153: 3.75 | BL153: 21.5 | BM153: 16.5 | BN153: 11.5 | BO153: 5.75 | BP153: 3.85 | BQ153: 2.75 | BR153: 3500 | BS153: 0 | BT153: 0.28 | BU153: 350 | BV153: 129 | BW153: 5 | BX153: 50 | BY153: 120 | BZ153: 24.9 | CA153: 19.9 | CB153: 14.9 | CC153: 8 | CD153: 6.15 | CE153: 4.35 | CF153: 23.9 | CG153: 18.9 | CH153: 13.9 | CI153: 7 | CJ153: 5.15 | CK153: 3.35 | CL153: 0.5 | CM153: 4500 | CN153: 8 | CO153: 0.01 | CP153: 1000 | CQ153: 1.5 | CR153: 70 | CS153: 40 | CT153: 2500 | CU153: 500 | CV153: 76 | CW153: 35 | CX153: 2000 | CY153: 13 | CZ153: 2000 | DA153: 8.5 | DB153: 8 | DC153: 6.5 | DD153: 5 | DE153: 6 | DF153: 5000
A154: Ritchie | B154: =VLOOKUP(A154,tables!$A$2:$C$56,2,0) -> 43 | C154: 3043 | D154: =VLOOKUP(A154,tables!$A$2:$C$56,3,0) -> 03 | E154: West Virginia Paving, Inc., Camden Materials | F154: 202 Hickory St., Parkersburg, WV 26101 | I154: 91 | J154: 94 | K154: 94 | L154: 94 | M154: 95 | N154: 109 | O154: 95 | P154: 98 | Q154: 109 | R154: 97 | S154: 108 | T154: 111 | U154: 111 | V154: 111 | W154: 111 | X154: 100 | Y154: 112 | Z154: 65 | AA154: 2000 | AB154: 2.75 | AC154: 0.33 | AD154: 5 | AE154: 5 | AF154: 15 | AG154: 2 | AH154: 4 | AI154: 2.75 | AJ154: 0.28 | AK154: 85 | AL154: 30 | AM154: 20 | AN154: 10 | AO154: 2000 | AP154: 15000 | AQ154: 6.75 | AR154: 4.75 | AS154: 3.75 | AT154: 2.75 | AU154: 20.75 | AV154: 15.75 | AW154: 4.75 | AX154: 2.75 | AY154: 20.75 | AZ154: 15.752 | BA154: 4.752 | BB154: 2.75 | BC154: 3.5 | BD154: 14 | BE154: 6 | BF154: 22.25 | BG154: 17.5 | BH154: 12.5 | BI154: 6.75 | BJ154: 4.85 | BK154: 3.75 | BL154: 21.5 | BM154: 16.5 | BN154: 11.5 | BO154: 5.75 | BP154: 3.85 | BQ154: 2.75 | BR154: 3500 | BS154: 0 | BT154: 0.28 | BU154: 350 | BV154: 129 | BW154: 5 | BX154: 50 | BY154: 120 | BZ154: 24.9 | CA154: 19.9 | CB154: 14.9 | CC154: 8 | CD154: 6.15 | CE154: 4.35 | CF154: 23.9 | CG154: 18.9 | CH154: 13.9 | CI154: 7 | CJ154: 5.15 | CK154: 3.35 | CL154: 0.5 | CM154: 4500 | CN154: 8 | CO154: 0.01 | CP154: 1000 | CQ154: 1.5 | CR154: 70 | CS154: 40 | CT154: 2500 | CU154: 500 | CV154: 76 | CW154: 35 | CX154: 2000 | CY154: 13 | CZ154: 2000 | DA154: 8.5 | DB154: 8 | DC154: 6.5 | DD154: 5 | DE154: 6 | DF154: 5000
A155: Roane | B155: =VLOOKUP(A155,tables!$A$2:$C$56,2,0) -> 44 | C155: 3044 | D155: =VLOOKUP(A155,tables!$A$2:$C$56,3,0) -> 03 | E155: West Virginia Paving, Inc., Camden Materials | F155: 202 Hickory St., Parkersburg, WV 26101 | G155: Valley Stone Yard | H155: 360 Valley Rd., Millwood WV, 25262 | I155: 91 | J155: 94 | K155: 94 | L155: 94 | M155: 95 | N155: 109 | O155: 95 | P155: 98 | Q155: 109 | R155: 97 | S155: 108 | T155: 111 | U155: 111 | V155: 111 | W155: 111 | X155: 100 | Y155: 112 | Z155: 65 | AA155: 2000 | AB155: 2.75 | AC155: 0.33 | AD155: 5 | AE155: 5 | AF155: 15 | AG155: 2 | AH155: 4 | AI155: 2.75 | AJ155: 0.28 | AK155: 85 | AL155: 30 | AM155: 20 | AN155: 10 | AO155: 2000 | AP155: 15000 | AQ155: 6.75 | AR155: 4.75 | AS155: 3.75 | AT155: 2.75 | AU155: 20.75 | AV155: 15.75 | AW155: 4.75 | AX155: 2.75 | AY155: 20.75 | AZ155: 15.752 | BA155: 4.752 | BB155: 2.75 | BC155: 3.5 | BD155: 14 | BE155: 6 | BF155: 22.25 | BG155: 17.5 | BH155: 12.5 | BI155: 6.75 | BJ155: 4.85 | BK155: 3.75 | BL155: 21.5 | BM155: 16.5 | BN155: 11.5 | BO155: 5.75 | BP155: 3.85 | BQ155: 2.75 | BR155: 3500 | BS155: 0 | BT155: 0.28 | BU155: 350 | BV155: 129 | BW155: 5 | BX155: 50 | BY155: 120 | BZ155: 24.9 | CA155: 19.9 | CB155: 14.9 | CC155: 8 | CD155: 6.15 | CE155: 4.35 | CF155: 23.9 | CG155: 18.9 | CH155: 13.9 | CI155: 7 | CJ155: 5.15 | CK155: 3.35 | CL155: 0.5 | CM155: 4500 | CN155: 8 | CO155: 0.01 | CP155: 1000 | CQ155: 1.5 | CR155: 70 | CS155: 40 | CT155: 2500 | CU155: 500 | CV155: 76 | CW155: 35 | CX155: 2000 | CY155: 13 | CZ155: 2000 | DA155: 8.5 | DB155: 8 | DC155: 6.5 | DD155: 5 | DE155: 6 | DF155: 5000
A156: Roane | B156: =VLOOKUP(A156,tables!$A$2:$C$56,2,0) -> 44 | C156: 3045 | D156: =VLOOKUP(A156,tables!$A$2:$C$56,3,0) -> 03 | E156: West Virginia Paving, Inc., Camden Materials | F156: 202 Hickory St., Parkersburg, WV 26101 | G156: Shamblin Stone | H156: 658 Winfield Rd., St Albans, WV 25177 | I156: 91 | J156: 94 | K156: 94 | L156: 94 | M156: 95 | N156: 109 | O156: 95 | P156: 98 | Q156: 109 | R156: 97 | S156: 108 | T156: 111 | U156: 111 | V156: 111 | W156: 111 | X156: 100 | Y156: 112 | Z156: 65 | AA156: 2000 | AB156: 2.75 | AC156: 0.33 | AD156: 5 | AE156: 5 | AF156: 15 | AG156: 2 | AH156: 4 | AI156: 2.75 | AJ156: 0.28 | AK156: 85 | AL156: 30 | AM156: 20 | AN156: 10 | AO156: 2000 | AP156: 15000 | AQ156: 6.75 | AR156: 4.75 | AS156: 3.75 | AT156: 2.75 | AU156: 20.75 | AV156: 15.75 | AW156: 4.75 | AX156: 2.75 | AY156: 20.75 | AZ156: 15.752 | BA156: 4.752 | BB156: 2.75 | BC156: 3.5 | BD156: 14 | BE156: 6 | BF156: 22.25 | BG156: 17.5 | BH156: 12.5 | BI156: 6.75 | BJ156: 4.85 | BK156: 3.75 | BL156: 21.5 | BM156: 16.5 | BN156: 11.5 | BO156: 5.75 | BP156: 3.85 | BQ156: 2.75 | BR156: 3500 | BS156: 0 | BT156: 0.28 | BU156: 350 | BV156: 129 | BW156: 5 | BX156: 50 | BY156: 120 | BZ156: 24.9 | CA156: 19.9 | CB156: 14.9 | CC156: 8 | CD156: 6.15 | CE156: 4.35 | CF156: 23.9 | CG156: 18.9 | CH156: 13.9 | CI156: 7 | CJ156: 5.15 | CK156: 3.35 | CL156: 0.5 | CM156: 4500 | CN156: 8 | CO156: 0.01 | CP156: 1000 | CQ156: 1.5 | CR156: 70 | CS156: 40 | CT156: 2500 | CU156: 500 | CV156: 76 | CW156: 35 | CX156: 2000 | CY156: 13 | CZ156: 2000 | DA156: 8.5 | DB156: 8 | DC156: 6.5 | DD156: 5 | DE156: 6 | DF156: 5000
A157: Wirt | B157: =VLOOKUP(A157,tables!$A$2:$C$56,2,0) -> 53 | C157: 3046 | D157: =VLOOKUP(A157,tables!$A$2:$C$56,3,0) -> 03 | E157: West Virginia Paving, Inc., Camden Materials | F157: 202 Hickory St., Parkersburg, WV 26101 | I157: 91 | J157: 94 | K157: 94 | L157: 94 | M157: 95 | N157: 109 | O157: 95 | P157: 98 | Q157: 109 | R157: 97 | S157: 108 | T157: 111 | U157: 111 | V157: 111 | W157: 111 | X157: 100 | Y157: 112 | Z157: 65 | AA157: 2000 | AB157: 2.75 | AC157: 0.33 | AD157: 5 | AE157: 5 | AF157: 15 | AG157: 2 | AH157: 4 | AI157: 2.75 | AJ157: 0.28 | AK157: 85 | AL157: 30 | AM157: 20 | AN157: 10 | AO157: 2000 | AP157: 15000 | AQ157: 6.75 | AR157: 4.75 | AS157: 3.75 | AT157: 2.75 | AU157: 20.75 | AV157: 15.75 | AW157: 4.75 | AX157: 2.75 | AY157: 20.75 | AZ157: 15.752 | BA157: 4.752 | BB157: 2.75 | BC157: 3.5 | BD157: 14 | BE157: 6 | BF157: 22.25 | BG157: 17.5 | BH157: 12.5 | BI157: 6.75 | BJ157: 4.85 | BK157: 3.75 | BL157: 21.5 | BM157: 16.5 | BN157: 11.5 | BO157: 5.75 | BP157: 3.85 | BQ157: 2.75 | BR157: 3500 | BS157: 0 | BT157: 0.28 | BU157: 350 | BV157: 129 | BW157: 5 | BX157: 50 | BY157: 120 | BZ157: 24.9 | CA157: 19.9 | CB157: 14.9 | CC157: 8 | CD157: 6.15 | CE157: 4.35 | CF157: 23.9 | CG157: 18.9 | CH157: 13.9 | CI157: 7 | CJ157: 5.15 | CK157: 3.35 | CL157: 0.5 | CM157: 4500 | CN157: 8 | CO157: 0.01 | CP157: 1000 | CQ157: 1.5 | CR157: 70 | CS157: 40 | CT157: 2500 | CU157: 500 | CV157: 76 | CW157: 35 | CX157: 2000 | CY157: 13 | CZ157: 2000 | DA157: 8.5 | DB157: 8 | DC157: 6.5 | DD157: 5 | DE157: 6 | DF157: 5000
A158: Wood | B158: =VLOOKUP(A158,tables!$A$2:$C$56,2,0) -> 54 | C158: 3047 | D158: =VLOOKUP(A158,tables!$A$2:$C$56,3,0) -> 03 | E158: West Virginia Paving, Inc., Camden Materials | F158: 202 Hickory St., Parkersburg, WV 26101 | G158: Valley Stone Yard | H158: 360 Valley Rd., Millwood WV, 25262 | I158: 91 | J158: 94 | K158: 94 | L158: 94 | M158: 95 | N158: 109 | O158: 95 | P158: 98 | Q158: 109 | R158: 97 | S158: 108 | T158: 111 | U158: 111 | V158: 111 | W158: 111 | X158: 100 | Y158: 112 | Z158: 65 | AA158: 2000 | AB158: 2.75 | AC158: 0.33 | AD158: 5 | AE158: 5 | AF158: 15 | AG158: 2 | AH158: 4 | AI158: 2.75 | AJ158: 0.28 | AK158: 85 | AL158: 30 | AM158: 20 | AN158: 10 | AO158: 2000 | AP158: 15000 | AQ158: 6.75 | AR158: 4.75 | AS158: 3.75 | AT158: 2.75 | AU158: 20.75 | AV158: 15.75 | AW158: 4.75 | AX158: 2.75 | AY158: 20.75 | AZ158: 15.752 | BA158: 4.752 | BB158: 2.75 | BC158: 3.5 | BD158: 14 | BE158: 6 | BF158: 22.25 | BG158: 17.5 | BH158: 12.5 | BI158: 6.75 | BJ158: 4.85 | BK158: 3.75 | BL158: 21.5 | BM158: 16.5 | BN158: 11.5 | BO158: 5.75 | BP158: 3.85 | BQ158: 2.75 | BR158: 3500 | BS158: 0 | BT158: 0.28 | BU158: 350 | BV158: 129 | BW158: 5 | BX158: 50 | BY158: 120 | BZ158: 24.9 | CA158: 19.9 | CB158: 14.9 | CC158: 8 | CD158: 6.15 | CE158: 4.35 | CF158: 23.9 | CG158: 18.9 | CH158: 13.9 | CI158: 7 | CJ158: 5.15 | CK158: 3.35 | CL158: 0.5 | CM158: 4500 | CN158: 8 | CO158: 0.01 | CP158: 1000 | CQ158: 1.5 | CR158: 70 | CS158: 40 | CT158: 2500 | CU158: 500 | CV158: 76 | CW158: 35 | CX158: 2000 | CY158: 13 | CZ158: 2000 | DA158: 8.5 | DB158: 8 | DC158: 6.5 | DD158: 5 | DE158: 6 | DF158: 5000
A159: Calhoun | B159: =VLOOKUP(A159,tables!$A$2:$C$56,2,0) -> 7 | C159: 3048 | D159: =VLOOKUP(A159,tables!$A$2:$C$56,3,0) -> 03 | E159: West Virginia Paving, Inc., Dunbar Plant | F159: 2902 Charles Ave., Dunbar, WV 25064 | G159: Valley Stone Yard | H159: 360 Valley Rd., Millwood WV, 25262 | I159: 86.5 | J159: 86.5 | K159: 88 | L159: 88 | M159: 88 | N159: 0 | O159: 91.5 | P159: 95.5 | Q159: 107.5 | R159: 95.5 | S159: 104.5 | T159: 0 | U159: 0 | V159: 113.5 | W159: 0 | X159: 103.5 | Y159: 103.5 | Z159: 65 | AA159: 2000 | AB159: 2.75 | AC159: 0.33 | AD159: 15 | AE159: 4 | AF159: 12 | AG159: 2 | AH159: 5 | AI159: 2.75 | AJ159: 0.28 | AK159: 85 | AL159: 30 | AM159: 20 | AN159: 10 | AO159: 2000 | AP159: 15000 | AQ159: 6.75 | AR159: 4.75 | AS159: 3.75 | AT159: 2.75 | AU159: 20.75 | AV159: 15.75 | AW159: 4.75 | AX159: 2.75 | AY159: 20.75 | AZ159: 15.75 | BA159: 4.75 | BB159: 2.75 | BC159: 3.5 | BD159: 14 | BE159: 6 | BF159: 22.25 | BG159: 17.5 | BH159: 12.5 | BI159: 6.75 | BJ159: 4.85 | BK159: 3.75 | BL159: 21.5 | BM159: 16.5 | BN159: 11.5 | BO159: 5.75 | BP159: 3.85 | BQ159: 2.75 | BR159: 3500 | BS159: 0 | BT159: 0.28 | BU159: 350 | BV159: 0 | BW159: 5 | BX159: 0 | BY159: 0 | BZ159: 24.9 | CA159: 19.9 | CB159: 14.9 | CC159: 8 | CD159: 6.15 | CE159: 4.35 | CF159: 23.9 | CG159: 18.9 | CH159: 13.9 | CI159: 7 | CJ159: 5.15 | CK159: 3.35 | CL159: 0.5 | CM159: 4500 | CN159: 8 | CO159: 0.01 | CP159: 1000 | CQ159: 1.5 | CR159: 70 | CS159: 40 | CT159: 5000 | CU159: 2000 | CV159: 76 | CW159: 35 | CX159: 2000 | CY159: 13 | CZ159: 2000 | DA159: 8.5 | DB159: 8 | DC159: 6.5 | DD159: 5 | DE159: 6 | DF159: 5000
A160: Jackson | B160: =VLOOKUP(A160,tables!$A$2:$C$56,2,0) -> 18 | C160: 3049 | D160: =VLOOKUP(A160,tables!$A$2:$C$56,3,0) -> 03 | E160: West Virginia Paving, Inc., Dunbar Plant | F160: 2902 Charles Ave., Dunbar, WV 25064 | G160: Valley Stone Yard | H160: 360 Valley Rd., Millwood WV, 25262 | I160: 86.5 | J160: 86.5 | K160: 88 | L160: 88 | M160: 88 | N160: 0 | O160: 91.5 | P160: 95.5 | Q160: 107.5 | R160: 95.5 | S160: 104.5 | T160: 0 | U160: 0 | V160: 113.5 | W160: 0 | X160: 103.5 | Y160: 103.5 | Z160: 65 | AA160: 2000 | AB160: 2.75 | AC160: 0.33 | AD160: 15 | AE160: 4 | AF160: 12 | AG160: 2 | AH160: 5 | AI160: 2.75 | AJ160: 0.28 | AK160: 85 | AL160: 30 | AM160: 20 | AN160: 10 | AO160: 2000 | AP160: 15000 | AQ160: 6.75 | AR160: 4.75 | AS160: 3.75 | AT160: 2.75 | AU160: 20.75 | AV160: 15.75 | AW160: 4.75 | AX160: 2.75 | AY160: 20.75 | AZ160: 15.75 | BA160: 4.75 | BB160: 2.75 | BC160: 3.5 | BD160: 14 | BE160: 6 | BF160: 22.25 | BG160: 17.5 | BH160: 12.5 | BI160: 6.75 | BJ160: 4.85 | BK160: 3.75 | BL160: 21.5 | BM160: 16.5 | BN160: 11.5 | BO160: 5.75 | BP160: 3.85 | BQ160: 2.75 | BR160: 3500 | BS160: 0 | BT160: 0.28 | BU160: 350 | BV160: 0 | BW160: 5 | BX160: 0 | BY160: 0 | BZ160: 24.9 | CA160: 19.9 | CB160: 14.9 | CC160: 8 | CD160: 6.15 | CE160: 4.35 | CF160: 23.9 | CG160: 18.9 | CH160: 13.9 | CI160: 7 | CJ160: 5.15 | CK160: 3.35 | CL160: 0.5 | CM160: 4500 | CN160: 8 | CO160: 0.01 | CP160: 1000 | CQ160: 1.5 | CR160: 70 | CS160: 40 | CT160: 5000 | CU160: 2000 | CV160: 76 | CW160: 35 | CX160: 2000 | CY160: 13 | CZ160: 2000 | DA160: 8.5 | DB160: 8 | DC160: 6.5 | DD160: 5 | DE160: 6 | DF160: 5000
A161: Jackson | B161: =VLOOKUP(A161,tables!$A$2:$C$56,2,0) -> 18 | C161: 3050 | D161: =VLOOKUP(A161,tables!$A$2:$C$56,3,0) -> 03 | E161: West Virginia Paving, Inc., Dunbar Plant | F161: 2902 Charles Ave., Dunbar, WV 25064 | G161: Shelly Materials | H161: Route 7 North, Gallipolis OH, 45631 | I161: 86.5 | J161: 86.5 | K161: 88 | L161: 88 | M161: 88 | N161: 0 | O161: 91.5 | P161: 95.5 | Q161: 107.5 | R161: 95.5 | S161: 104.5 | T161: 0 | U161: 0 | V161: 113.5 | W161: 0 | X161: 103.5 | Y161: 103.5 | Z161: 65 | AA161: 2000 | AB161: 2.75 | AC161: 0.33 | AD161: 15 | AE161: 4 | AF161: 12 | AG161: 2 | AH161: 5 | AI161: 2.75 | AJ161: 0.28 | AK161: 85 | AL161: 30 | AM161: 20 | AN161: 10 | AO161: 2000 | AP161: 15000 | AQ161: 6.75 | AR161: 4.75 | AS161: 3.75 | AT161: 2.75 | AU161: 20.75 | AV161: 15.75 | AW161: 4.75 | AX161: 2.75 | AY161: 20.75 | AZ161: 15.75 | BA161: 4.75 | BB161: 2.75 | BC161: 3.5 | BD161: 14 | BE161: 6 | BF161: 22.25 | BG161: 17.5 | BH161: 12.5 | BI161: 6.75 | BJ161: 4.85 | BK161: 3.75 | BL161: 21.5 | BM161: 16.5 | BN161: 11.5 | BO161: 5.75 | BP161: 3.85 | BQ161: 2.75 | BR161: 3500 | BS161: 0 | BT161: 0.28 | BU161: 350 | BV161: 0 | BW161: 5 | BX161: 0 | BY161: 0 | BZ161: 24.9 | CA161: 19.9 | CB161: 14.9 | CC161: 8 | CD161: 6.15 | CE161: 4.35 | CF161: 23.9 | CG161: 18.9 | CH161: 13.9 | CI161: 7 | CJ161: 5.15 | CK161: 3.35 | CL161: 0.5 | CM161: 4500 | CN161: 8 | CO161: 0.01 | CP161: 1000 | CQ161: 1.5 | CR161: 70 | CS161: 40 | CT161: 5000 | CU161: 2000 | CV161: 76 | CW161: 35 | CX161: 2000 | CY161: 13 | CZ161: 2000 | DA161: 8.5 | DB161: 8 | DC161: 6.5 | DD161: 5 | DE161: 6 | DF161: 5000
A162: Roane | B162: =VLOOKUP(A162,tables!$A$2:$C$56,2,0) -> 44 | C162: 3051 | D162: =VLOOKUP(A162,tables!$A$2:$C$56,3,0) -> 03 | E162: West Virginia Paving, Inc., Dunbar Plant | F162: 2902 Charles Ave., Dunbar, WV 25064 | G162: Valley Stone Yard | H162: 360 Valley Rd., Millwood WV, 25262 | I162: 86.5 | J162: 86.5 | K162: 88 | L162: 88 | M162: 88 | N162: 0 | O162: 91.5 | P162: 95.5 | Q162: 107.5 | R162: 95.5 | S162: 104.5 | T162: 0 | U162: 0 | V162: 113.5 | W162: 0 | X162: 103.5 | Y162: 103.5 | Z162: 65 | AA162: 2000 | AB162: 2.75 | AC162: 0.33 | AD162: 15 | AE162: 4 | AF162: 12 | AG162: 2 | AH162: 5 | AI162: 2.75 | AJ162: 0.28 | AK162: 85 | AL162: 30 | AM162: 20 | AN162: 10 | AO162: 2000 | AP162: 15000 | AQ162: 6.75 | AR162: 4.75 | AS162: 3.75 | AT162: 2.75 | AU162: 20.75 | AV162: 15.75 | AW162: 4.75 | AX162: 2.75 | AY162: 20.75 | AZ162: 15.75 | BA162: 4.75 | BB162: 2.75 | BC162: 3.5 | BD162: 14 | BE162: 6 | BF162: 22.25 | BG162: 17.5 | BH162: 12.5 | BI162: 6.75 | BJ162: 4.85 | BK162: 3.75 | BL162: 21.5 | BM162: 16.5 | BN162: 11.5 | BO162: 5.75 | BP162: 3.85 | BQ162: 2.75 | BR162: 3500 | BS162: 0 | BT162: 0.28 | BU162: 350 | BV162: 0 | BW162: 5 | BX162: 0 | BY162: 0 | BZ162: 24.9 | CA162: 19.9 | CB162: 14.9 | CC162: 8 | CD162: 6.15 | CE162: 4.35 | CF162: 23.9 | CG162: 18.9 | CH162: 13.9 | CI162: 7 | CJ162: 5.15 | CK162: 3.35 | CL162: 0.5 | CM162: 4500 | CN162: 8 | CO162: 0.01 | CP162: 1000 | CQ162: 1.5 | CR162: 70 | CS162: 40 | CT162: 5000 | CU162: 2000 | CV162: 76 | CW162: 35 | CX162: 2000 | CY162: 13 | CZ162: 2000 | DA162: 8.5 | DB162: 8 | DC162: 6.5 | DD162: 5 | DE162: 6 | DF162: 5000
A163: Roane | B163: =VLOOKUP(A163,tables!$A$2:$C$56,2,0) -> 44 | C163: 3052 | D163: =VLOOKUP(A163,tables!$A$2:$C$56,3,0) -> 03 | E163: West Virginia Paving, Inc., Dunbar Plant | F163: 2902 Charles Ave., Dunbar, WV 25064 | G163: Shamblin Stone | H163: 658 Winfield Rd., St Albans, WV 25177 | I163: 86.5 | J163: 86.5 | K163: 88 | L163: 88 | M163: 88 | N163: 0 | O163: 91.5 | P163: 95.5 | Q163: 107.5 | R163: 95.5 | S163: 104.5 | T163: 0 | U163: 0 | V163: 113.5 | W163: 0 | X163: 103.5 | Y163: 103.5 | Z163: 65 | AA163: 2000 | AB163: 2.75 | AC163: 0.33 | AD163: 15 | AE163: 4 | AF163: 12 | AG163: 2 | AH163: 5 | AI163: 2.75 | AJ163: 0.28 | AK163: 85 | AL163: 30 | AM163: 20 | AN163: 10 | AO163: 2000 | AP163: 15000 | AQ163: 6.75 | AR163: 4.75 | AS163: 3.75 | AT163: 2.75 | AU163: 20.75 | AV163: 15.75 | AW163: 4.75 | AX163: 2.75 | AY163: 20.75 | AZ163: 15.75 | BA163: 4.75 | BB163: 2.75 | BC163: 3.5 | BD163: 14 | BE163: 6 | BF163: 22.25 | BG163: 17.5 | BH163: 12.5 | BI163: 6.75 | BJ163: 4.85 | BK163: 3.75 | BL163: 21.5 | BM163: 16.5 | BN163: 11.5 | BO163: 5.75 | BP163: 3.85 | BQ163: 2.75 | BR163: 3500 | BS163: 0 | BT163: 0.28 | BU163: 350 | BV163: 0 | BW163: 5 | BX163: 0 | BY163: 0 | BZ163: 24.9 | CA163: 19.9 | CB163: 14.9 | CC163: 8 | CD163: 6.15 | CE163: 4.35 | CF163: 23.9 | CG163: 18.9 | CH163: 13.9 | CI163: 7 | CJ163: 5.15 | CK163: 3.35 | CL163: 0.5 | CM163: 4500 | CN163: 8 | CO163: 0.01 | CP163: 1000 | CQ163: 1.5 | CR163: 70 | CS163: 40 | CT163: 5000 | CU163: 2000 | CV163: 76 | CW163: 35 | CX163: 2000 | CY163: 13 | CZ163: 2000 | DA163: 8.5 | DB163: 8 | DC163: 6.5 | DD163: 5 | DE163: 6 | DF163: 5000
A164: Calhoun | B164: =VLOOKUP(A164,tables!$A$2:$C$56,2,0) -> 7 | C164: 3053 | D164: =VLOOKUP(A164,tables!$A$2:$C$56,3,0) -> 03 | E164: West Virginia Paving, Inc., Poca Plant | F164: Rt 1 Wright Rd., Poca, WV 25159 | G164: Valley Stone Yard | H164: 360 Valley Rd., Millwood WV, 25262 | I164: 86.5 | J164: 86.5 | K164: 88 | L164: 88 | M164: 88 | N164: 0 | O164: 91.5 | P164: 95.5 | Q164: 107.5 | R164: 95.5 | S164: 104.5 | T164: 0 | U164: 0 | V164: 113.5 | W164: 0 | X164: 103.5 | Y164: 103.5 | Z164: 65 | AA164: 2000 | AB164: 2.75 | AC164: 0.33 | AD164: 15 | AE164: 4 | AF164: 12 | AG164: 2 | AH164: 5 | AI164: 2.75 | AJ164: 0.28 | AK164: 85 | AL164: 30 | AM164: 20 | AN164: 10 | AO164: 2000 | AP164: 15000 | AQ164: 6.75 | AR164: 4.75 | AS164: 3.75 | AT164: 2.75 | AU164: 20.75 | AV164: 15.75 | AW164: 4.75 | AX164: 2.75 | AY164: 20.75 | AZ164: 15.75 | BA164: 4.75 | BB164: 2.75 | BC164: 3.5 | BD164: 14 | BE164: 6 | BF164: 22.25 | BG164: 17.5 | BH164: 12.5 | BI164: 6.75 | BJ164: 4.85 | BK164: 3.75 | BL164: 21.5 | BM164: 16.5 | BN164: 11.5 | BO164: 5.75 | BP164: 3.85 | BQ164: 2.75 | BR164: 3500 | BS164: 0 | BT164: 0.28 | BU164: 350 | BV164: 0 | BW164: 5 | BX164: 0 | BY164: 0 | BZ164: 24.9 | CA164: 19.9 | CB164: 14.9 | CC164: 8 | CD164: 6.15 | CE164: 4.35 | CF164: 23.9 | CG164: 18.9 | CH164: 13.9 | CI164: 7 | CJ164: 5.15 | CK164: 3.35 | CL164: 0.5 | CM164: 4500 | CN164: 8 | CO164: 0.01 | CP164: 1000 | CQ164: 1.5 | CR164: 70 | CS164: 40 | CT164: 5000 | CU164: 2000 | CV164: 76 | CW164: 35 | CX164: 2000 | CY164: 13 | CZ164: 2000 | DA164: 8.5 | DB164: 8 | DC164: 6.5 | DD164: 5 | DE164: 6 | DF164: 5000
A165: Jackson | B165: =VLOOKUP(A165,tables!$A$2:$C$56,2,0) -> 18 | C165: 3054 | D165: =VLOOKUP(A165,tables!$A$2:$C$56,3,0) -> 03 | E165: West Virginia Paving, Inc., Poca Plant | F165: Rt 1 Wright Rd., Poca, WV 25159 | G165: Valley Stone Yard | H165: 360 Valley Rd., Millwood WV, 25262 | I165: 86.5 | J165: 86.5 | K165: 88 | L165: 88 | M165: 88 | N165: 0 | O165: 91.5 | P165: 95.5 | Q165: 107.5 | R165: 95.5 | S165: 104.5 | T165: 0 | U165: 0 | V165: 113.5 | W165: 0 | X165: 103.5 | Y165: 103.5 | Z165: 65 | AA165: 2000 | AB165: 2.75 | AC165: 0.33 | AD165: 15 | AE165: 4 | AF165: 12 | AG165: 2 | AH165: 5 | AI165: 2.75 | AJ165: 0.28 | AK165: 85 | AL165: 30 | AM165: 20 | AN165: 10 | AO165: 2000 | AP165: 15000 | AQ165: 6.75 | AR165: 4.75 | AS165: 3.75 | AT165: 2.75 | AU165: 20.75 | AV165: 15.75 | AW165: 4.75 | AX165: 2.75 | AY165: 20.75 | AZ165: 15.75 | BA165: 4.75 | BB165: 2.75 | BC165: 3.5 | BD165: 14 | BE165: 6 | BF165: 22.25 | BG165: 17.5 | BH165: 12.5 | BI165: 6.75 | BJ165: 4.85 | BK165: 3.75 | BL165: 21.5 | BM165: 16.5 | BN165: 11.5 | BO165: 5.75 | BP165: 3.85 | BQ165: 2.75 | BR165: 3500 | BS165: 0 | BT165: 0.28 | BU165: 350 | BV165: 0 | BW165: 5 | BX165: 0 | BY165: 0 | BZ165: 24.9 | CA165: 19.9 | CB165: 14.9 | CC165: 8 | CD165: 6.15 | CE165: 4.35 | CF165: 23.9 | CG165: 18.9 | CH165: 13.9 | CI165: 7 | CJ165: 5.15 | CK165: 3.35 | CL165: 0.5 | CM165: 4500 | CN165: 8 | CO165: 0.01 | CP165: 1000 | CQ165: 1.5 | CR165: 70 | CS165: 40 | CT165: 5000 | CU165: 2000 | CV165: 76 | CW165: 35 | CX165: 2000 | CY165: 13 | CZ165: 2000 | DA165: 8.5 | DB165: 8 | DC165: 6.5 | DD165: 5 | DE165: 6 | DF165: 5000
A166: Jackson | B166: =VLOOKUP(A166,tables!$A$2:$C$56,2,0) -> 18 | C166: 3055 | D166: =VLOOKUP(A166,tables!$A$2:$C$56,3,0) -> 03 | E166: West Virginia Paving, Inc., Poca Plant | F166: Rt 1 Wright Rd., Poca, WV 25159 | G166: Shelly Materials | H166: Route 7 North, Gallipolis OH, 45631 | I166: 86.5 | J166: 86.5 | K166: 88 | L166: 88 | M166: 88 | N166: 0 | O166: 91.5 | P166: 95.5 | Q166: 107.5 | R166: 95.5 | S166: 104.5 | T166: 0 | U166: 0 | V166: 113.5 | W166: 0 | X166: 103.5 | Y166: 103.5 | Z166: 65 | AA166: 2000 | AB166: 2.75 | AC166: 0.33 | AD166: 15 | AE166: 4 | AF166: 12 | AG166: 2 | AH166: 5 | AI166: 2.75 | AJ166: 0.28 | AK166: 85 | AL166: 30 | AM166: 20 | AN166: 10 | AO166: 2000 | AP166: 15000 | AQ166: 6.75 | AR166: 4.75 | AS166: 3.75 | AT166: 2.75 | AU166: 20.75 | AV166: 15.75 | AW166: 4.75 | AX166: 2.75 | AY166: 20.75 | AZ166: 15.75 | BA166: 4.75 | BB166: 2.75 | BC166: 3.5 | BD166: 14 | BE166: 6 | BF166: 22.25 | BG166: 17.5 | BH166: 12.5 | BI166: 6.75 | BJ166: 4.85 | BK166: 3.75 | BL166: 21.5 | BM166: 16.5 | BN166: 11.5 | BO166: 5.75 | BP166: 3.85 | BQ166: 2.75 | BR166: 3500 | BS166: 0 | BT166: 0.28 | BU166: 350 | BV166: 0 | BW166: 5 | BX166: 0 | BY166: 0 | BZ166: 24.9 | CA166: 19.9 | CB166: 14.9 | CC166: 8 | CD166: 6.15 | CE166: 4.35 | CF166: 23.9 | CG166: 18.9 | CH166: 13.9 | CI166: 7 | CJ166: 5.15 | CK166: 3.35 | CL166: 0.5 | CM166: 4500 | CN166: 8 | CO166: 0.01 | CP166: 1000 | CQ166: 1.5 | CR166: 70 | CS166: 40 | CT166: 5000 | CU166: 2000 | CV166: 76 | CW166: 35 | CX166: 2000 | CY166: 13 | CZ166: 2000 | DA166: 8.5 | DB166: 8 | DC166: 6.5 | DD166: 5 | DE166: 6 | DF166: 5000
A167: Roane | B167: =VLOOKUP(A167,tables!$A$2:$C$56,2,0) -> 44 | C167: 3056 | D167: =VLOOKUP(A167,tables!$A$2:$C$56,3,0) -> 03 | E167: West Virginia Paving, Inc., Poca Plant | F167: Rt 1 Wright Rd., Poca, WV 25159 | G167: Valley Stone Yard | H167: 360 Valley Rd., Millwood WV, 25262 | I167: 86.5 | J167: 86.5 | K167: 88 | L167: 88 | M167: 88 | N167: 0 | O167: 91.5 | P167: 95.5 | Q167: 107.5 | R167: 95.5 | S167: 104.5 | T167: 0 | U167: 0 | V167: 113.5 | W167: 0 | X167: 103.5 | Y167: 103.5 | Z167: 65 | AA167: 2000 | AB167: 2.75 | AC167: 0.33 | AD167: 15 | AE167: 4 | AF167: 12 | AG167: 2 | AH167: 5 | AI167: 2.75 | AJ167: 0.28 | AK167: 85 | AL167: 30 | AM167: 20 | AN167: 10 | AO167: 2000 | AP167: 15000 | AQ167: 6.75 | AR167: 4.75 | AS167: 3.75 | AT167: 2.75 | AU167: 20.75 | AV167: 15.75 | AW167: 4.75 | AX167: 2.75 | AY167: 20.75 | AZ167: 15.75 | BA167: 4.75 | BB167: 2.75 | BC167: 3.5 | BD167: 14 | BE167: 6 | BF167: 22.25 | BG167: 17.5 | BH167: 12.5 | BI167: 6.75 | BJ167: 4.85 | BK167: 3.75 | BL167: 21.5 | BM167: 16.5 | BN167: 11.5 | BO167: 5.75 | BP167: 3.85 | BQ167: 2.75 | BR167: 3500 | BS167: 0 | BT167: 0.28 | BU167: 350 | BV167: 0 | BW167: 5 | BX167: 0 | BY167: 0 | BZ167: 24.9 | CA167: 19.9 | CB167: 14.9 | CC167: 8 | CD167: 6.15 | CE167: 4.35 | CF167: 23.9 | CG167: 18.9 | CH167: 13.9 | CI167: 7 | CJ167: 5.15 | CK167: 3.35 | CL167: 0.5 | CM167: 4500 | CN167: 8 | CO167: 0.01 | CP167: 1000 | CQ167: 1.5 | CR167: 70 | CS167: 40 | CT167: 5000 | CU167: 2000 | CV167: 76 | CW167: 35 | CX167: 2000 | CY167: 13 | CZ167: 2000 | DA167: 8.5 | DB167: 8 | DC167: 6.5 | DD167: 5 | DE167: 6 | DF167: 5000
A168: Roane | B168: =VLOOKUP(A168,tables!$A$2:$C$56,2,0) -> 44 | C168: 3057 | D168: =VLOOKUP(A168,tables!$A$2:$C$56,3,0) -> 03 | E168: West Virginia Paving, Inc., Poca Plant | F168: Rt 1 Wright Rd., Poca, WV 25159 | G168: Shamblin Stone | H168: 658 Winfield Rd., St Albans, WV 25177 | I168: 86.5 | J168: 86.5 | K168: 88 | L168: 88 | M168: 88 | N168: 0 | O168: 91.5 | P168: 95.5 | Q168: 107.5 | R168: 95.5 | S168: 104.5 | T168: 0 | U168: 0 | V168: 113.5 | W168: 0 | X168: 103.5 | Y168: 103.5 | Z168: 65 | AA168: 2000 | AB168: 2.75 | AC168: 0.33 | AD168: 15 | AE168: 4 | AF168: 12 | AG168: 2 | AH168: 5 | AI168: 2.75 | AJ168: 0.28 | AK168: 85 | AL168: 30 | AM168: 20 | AN168: 10 | AO168: 2000 | AP168: 15000 | AQ168: 6.75 | AR168: 4.75 | AS168: 3.75 | AT168: 2.75 | AU168: 20.75 | AV168: 15.75 | AW168: 4.75 | AX168: 2.75 | AY168: 20.75 | AZ168: 15.75 | BA168: 4.75 | BB168: 2.75 | BC168: 3.5 | BD168: 14 | BE168: 6 | BF168: 22.25 | BG168: 17.5 | BH168: 12.5 | BI168: 6.75 | BJ168: 4.85 | BK168: 3.75 | BL168: 21.5 | BM168: 16.5 | BN168: 11.5 | BO168: 5.75 | BP168: 3.85 | BQ168: 2.75 | BR168: 3500 | BS168: 0 | BT168: 0.28 | BU168: 350 | BV168: 0 | BW168: 5 | BX168: 0 | BY168: 0 | BZ168: 24.9 | CA168: 19.9 | CB168: 14.9 | CC168: 8 | CD168: 6.15 | CE168: 4.35 | CF168: 23.9 | CG168: 18.9 | CH168: 13.9 | CI168: 7 | CJ168: 5.15 | CK168: 3.35 | CL168: 0.5 | CM168: 4500 | CN168: 8 | CO168: 0.01 | CP168: 1000 | CQ168: 1.5 | CR168: 70 | CS168: 40 | CT168: 5000 | CU168: 2000 | CV168: 76 | CW168: 35 | CX168: 2000 | CY168: 13 | CZ168: 2000 | DA168: 8.5 | DB168: 8 | DC168: 6.5 | DD168: 5 | DE168: 6 | DF168: 5000
A169: Jackson | B169: =VLOOKUP(A169,tables!$A$2:$C$56,2,0) -> 18 | C169: 3058 | D169: =VLOOKUP(A169,tables!$A$2:$C$56,3,0) -> 03 | E169: West Virginia Paving, Inc., Shelly Co. | F169: Rt. 7 North,Gallipolis, OH 45631 | G169: Valley Stone Yard | H169: 360 Valley Rd., Millwood WV, 25262 | I169: 0 | J169: 0 | K169: 92 | L169: 92 | M169: 92 | N169: 0 | O169: 0 | P169: 102 | Q169: 0 | R169: 102 | S169: 0 | T169: 0 | U169: 0 | V169: 0 | W169: 0 | X169: 0 | Y169: 0 | Z169: 65 | AA169: 2000 | AB169: 2.75 | AC169: 0.51 | AD169: 15 | AE169: 4 | AF169: 12 | AG169: 2 | AH169: 5 | AI169: 2.75 | AJ169: 0.46 | AK169: 85 | AL169: 30 | AM169: 20 | AN169: 10 | AO169: 2000 | AP169: 15000 | AQ169: 6.75 | AR169: 4.75 | AS169: 3.75 | AT169: 2.75 | AU169: 20.75 | AV169: 15.75 | AW169: 4.75 | AX169: 2.75 | AY169: 20.75 | AZ169: 15.75 | BA169: 4.75 | BB169: 2.75 | BC169: 3.5 | BD169: 14 | BE169: 6 | BF169: 21.5 | BG169: 16.75 | BH169: 11.75 | BI169: 6.75 | BJ169: 4.75 | BK169: 3.75 | BL169: 20.75 | BM169: 15.75 | BN169: 11.75 | BO169: 5.75 | BP169: 3.75 | BQ169: 2.75 | BR169: 3500 | BS169: 0 | BT169: 0.46 | BU169: 350 | BV169: 0 | BW169: 5 | BX169: 0 | BY169: 0 | BZ169: 24.9 | CA169: 19.9 | CB169: 14.9 | CC169: 8 | CD169: 6.15 | CE169: 4.35 | CF169: 23.9 | CG169: 18.9 | CH169: 13.9 | CI169: 7 | CJ169: 5.15 | CK169: 3.35 | CL169: 0.5 | CM169: 4500 | CN169: 8 | CO169: 0.01 | CP169: 1000 | CQ169: 1.5 | CR169: 70 | CS169: 40 | CT169: 5000 | CU169: 2000 | CV169: 76 | CW169: 35 | CX169: 2000 | CY169: 13 | CZ169: 2000 | DA169: 8.5 | DB169: 8 | DC169: 6.5 | DD169: 5 | DE169: 6 | DF169: 5000
A170: Jackson | B170: =VLOOKUP(A170,tables!$A$2:$C$56,2,0) -> 18 | C170: 3059 | D170: =VLOOKUP(A170,tables!$A$2:$C$56,3,0) -> 03 | E170: West Virginia Paving, Inc., Shelly Co. | F170: Rt. 7 North,Gallipolis, OH 45631 | G170: Shelly Materials | H170: Route 7 North, Gallipolis OH, 45631 | I170: 0 | J170: 0 | K170: 92 | L170: 92 | M170: 92 | N170: 0 | O170: 0 | P170: 102 | Q170: 0 | R170: 102 | S170: 0 | T170: 0 | U170: 0 | V170: 0 | W170: 0 | X170: 0 | Y170: 0 | Z170: 65 | AA170: 2000 | AB170: 2.75 | AC170: 0.51 | AD170: 15 | AE170: 4 | AF170: 12 | AG170: 2 | AH170: 5 | AI170: 2.75 | AJ170: 0.46 | AK170: 85 | AL170: 30 | AM170: 20 | AN170: 10 | AO170: 2000 | AP170: 15000 | AQ170: 6.75 | AR170: 4.75 | AS170: 3.75 | AT170: 2.75 | AU170: 20.75 | AV170: 15.75 | AW170: 4.75 | AX170: 2.75 | AY170: 20.75 | AZ170: 15.75 | BA170: 4.75 | BB170: 2.75 | BC170: 3.5 | BD170: 14 | BE170: 6 | BF170: 21.5 | BG170: 16.75 | BH170: 11.75 | BI170: 6.75 | BJ170: 4.75 | BK170: 3.75 | BL170: 20.75 | BM170: 15.75 | BN170: 11.75 | BO170: 5.75 | BP170: 3.75 | BQ170: 2.75 | BR170: 3500 | BS170: 0 | BT170: 0.46 | BU170: 350 | BV170: 0 | BW170: 5 | BX170: 0 | BY170: 0 | BZ170: 24.9 | CA170: 19.9 | CB170: 14.9 | CC170: 8 | CD170: 6.15 | CE170: 4.35 | CF170: 23.9 | CG170: 18.9 | CH170: 13.9 | CI170: 7 | CJ170: 5.15 | CK170: 3.35 | CL170: 0.5 | CM170: 4500 | CN170: 8 | CO170: 0.01 | CP170: 1000 | CQ170: 1.5 | CR170: 70 | CS170: 40 | CT170: 5000 | CU170: 2000 | CV170: 76 | CW170: 35 | CX170: 2000 | CY170: 13 | CZ170: 2000 | DA170: 8.5 | DB170: 8 | DC170: 6.5 | DD170: 5 | DE170: 6 | DF170: 5000
A171: Jackson | B171: =VLOOKUP(A171,tables!$A$2:$C$56,2,0) -> 18 | C171: 3060 | D171: =VLOOKUP(A171,tables!$A$2:$C$56,3,0) -> 03 | E171: West Virginia Paving, Inc., Ripley Plant | F171: 2187 Ripley Rd., Ripley, WV25271 | G171: Valley Stone Yard | H171: 360 Valley Rd., Millwood WV, 25262 | I171: 0 | J171: 0 | K171: 96 | L171: 96 | M171: 96 | N171: 0 | O171: 0 | P171: 100 | Q171: 0 | R171: 100 | S171: 0 | T171: 0 | U171: 0 | V171: 110 | W171: 0 | X171: 0 | Y171: 0 | Z171: 65 | AA171: 2000 | AB171: 2.75 | AC171: 0.33 | AD171: 15 | AE171: 4 | AF171: 12 | AG171: 2 | AH171: 5 | AI171: 2.75 | AJ171: 0.28 | AK171: 85 | AL171: 30 | AM171: 20 | AN171: 10 | AO171: 2000 | AP171: 15000 | AQ171: 6.75 | AR171: 4.75 | AS171: 3.75 | AT171: 2.75 | AU171: 20.75 | AV171: 15.75 | AW171: 4.75 | AX171: 2.75 | AY171: 20.75 | AZ171: 15.75 | BA171: 4.75 | BB171: 2.75 | BC171: 3.5 | BD171: 14 | BE171: 6 | BF171: 22.25 | BG171: 17.5 | BH171: 12.5 | BI171: 6.75 | BJ171: 4.85 | BK171: 3.75 | BL171: 21.5 | BM171: 16.5 | BN171: 11.5 | BO171: 5.75 | BP171: 3.85 | BQ171: 2.75 | BR171: 3500 | BS171: 0 | BT171: 0.28 | BU171: 350 | BV171: 0 | BW171: 5 | BX171: 0 | BY171: 0 | BZ171: 24.9 | CA171: 19.9 | CB171: 14.9 | CC171: 8 | CD171: 6.15 | CE171: 4.35 | CF171: 23.9 | CG171: 18.9 | CH171: 13.9 | CI171: 7 | CJ171: 5.15 | CK171: 3.35 | CL171: 0.5 | CM171: 4500 | CN171: 8 | CO171: 0.01 | CP171: 1000 | CQ171: 1.5 | CR171: 70 | CS171: 40 | CT171: 5000 | CU171: 2000 | CV171: 76 | CW171: 35 | CX171: 2000 | CY171: 13 | CZ171: 2000 | DA171: 8.5 | DB171: 8 | DC171: 6.5 | DD171: 5 | DE171: 6 | DF171: 5000
A172: Jackson | B172: =VLOOKUP(A172,tables!$A$2:$C$56,2,0) -> 18 | C172: 3061 | D172: =VLOOKUP(A172,tables!$A$2:$C$56,3,0) -> 03 | E172: West Virginia Paving, Inc., Ripley Plant | F172: 2187 Ripley Rd., Ripley, WV25271 | G172: Shelly Materials | H172: Route 7 North, Gallipolis OH, 45631 | I172: 0 | J172: 0 | K172: 96 | L172: 96 | M172: 96 | N172: 0 | O172: 0 | P172: 100 | Q172: 0 | R172: 100 | S172: 0 | T172: 0 | U172: 0 | V172: 110 | W172: 0 | X172: 0 | Y172: 0 | Z172: 65 | AA172: 2000 | AB172: 2.75 | AC172: 0.33 | AD172: 15 | AE172: 4 | AF172: 12 | AG172: 2 | AH172: 5 | AI172: 2.75 | AJ172: 0.28 | AK172: 85 | AL172: 30 | AM172: 20 | AN172: 10 | AO172: 2000 | AP172: 15000 | AQ172: 6.75 | AR172: 4.75 | AS172: 3.75 | AT172: 2.75 | AU172: 20.75 | AV172: 15.75 | AW172: 4.75 | AX172: 2.75 | AY172: 20.75 | AZ172: 15.75 | BA172: 4.75 | BB172: 2.75 | BC172: 3.5 | BD172: 14 | BE172: 6 | BF172: 22.25 | BG172: 17.5 | BH172: 12.5 | BI172: 6.75 | BJ172: 4.85 | BK172: 3.75 | BL172: 21.5 | BM172: 16.5 | BN172: 11.5 | BO172: 5.75 | BP172: 3.85 | BQ172: 2.75 | BR172: 3500 | BS172: 0 | BT172: 0.28 | BU172: 350 | BV172: 0 | BW172: 5 | BX172: 0 | BY172: 0 | BZ172: 24.9 | CA172: 19.9 | CB172: 14.9 | CC172: 8 | CD172: 6.15 | CE172: 4.35 | CF172: 23.9 | CG172: 18.9 | CH172: 13.9 | CI172: 7 | CJ172: 5.15 | CK172: 3.35 | CL172: 0.5 | CM172: 4500 | CN172: 8 | CO172: 0.01 | CP172: 1000 | CQ172: 1.5 | CR172: 70 | CS172: 40 | CT172: 5000 | CU172: 2000 | CV172: 76 | CW172: 35 | CX172: 2000 | CY172: 13 | CZ172: 2000 | DA172: 8.5 | DB172: 8 | DC172: 6.5 | DD172: 5 | DE172: 6 | DF172: 5000
A173: Roane | B173: =VLOOKUP(A173,tables!$A$2:$C$56,2,0) -> 44 | C173: 3062 | D173: =VLOOKUP(A173,tables!$A$2:$C$56,3,0) -> 03 | E173: West Virginia Paving, Inc., Ripley Plant | F173: 2187 Ripley Rd., Ripley, WV25271 | G173: Valley Stone Yard | H173: 360 Valley Rd., Millwood WV, 25262 | I173: 0 | J173: 0 | K173: 96 | L173: 96 | M173: 96 | N173: 0 | O173: 0 | P173: 100 | Q173: 0 | R173: 100 | S173: 0 | T173: 0 | U173: 0 | V173: 110 | W173: 0 | X173: 0 | Y173: 0 | Z173: 65 | AA173: 2000 | AB173: 2.75 | AC173: 0.33 | AD173: 15 | AE173: 4 | AF173: 12 | AG173: 2 | AH173: 5 | AI173: 2.75 | AJ173: 0.28 | AK173: 85 | AL173: 30 | AM173: 20 | AN173: 10 | AO173: 2000 | AP173: 15000 | AQ173: 6.75 | AR173: 4.75 | AS173: 3.75 | AT173: 2.75 | AU173: 20.75 | AV173: 15.75 | AW173: 4.75 | AX173: 2.75 | AY173: 20.75 | AZ173: 15.75 | BA173: 4.75 | BB173: 2.75 | BC173: 3.5 | BD173: 14 | BE173: 6 | BF173: 22.25 | BG173: 17.5 | BH173: 12.5 | BI173: 6.75 | BJ173: 4.85 | BK173: 3.75 | BL173: 21.5 | BM173: 16.5 | BN173: 11.5 | BO173: 5.75 | BP173: 3.85 | BQ173: 2.75 | BR173: 3500 | BS173: 0 | BT173: 0.28 | BU173: 350 | BV173: 0 | BW173: 5 | BX173: 0 | BY173: 0 | BZ173: 24.9 | CA173: 19.9 | CB173: 14.9 | CC173: 8 | CD173: 6.15 | CE173: 4.35 | CF173: 23.9 | CG173: 18.9 | CH173: 13.9 | CI173: 7 | CJ173: 5.15 | CK173: 3.35 | CL173: 0.5 | CM173: 4500 | CN173: 8 | CO173: 0.01 | CP173: 1000 | CQ173: 1.5 | CR173: 70 | CS173: 40 | CT173: 5000 | CU173: 2000 | CV173: 76 | CW173: 35 | CX173: 2000 | CY173: 13 | CZ173: 2000 | DA173: 8.5 | DB173: 8 | DC173: 6.5 | DD173: 5 | DE173: 6 | DF173: 5000
A174: Roane | B174: =VLOOKUP(A174,tables!$A$2:$C$56,2,0) -> 44 | C174: 3063 | D174: =VLOOKUP(A174,tables!$A$2:$C$56,3,0) -> 03 | E174: West Virginia Paving, Inc., Ripley Plant | F174: 2187 Ripley Rd., Ripley, WV25271 | G174: Shamblin Stone | H174: 658 Winfield Rd., St Albans, WV 25177 | I174: 0 | J174: 0 | K174: 96 | L174: 96 | M174: 96 | N174: 0 | O174: 0 | P174: 100 | Q174: 0 | R174: 100 | S174: 0 | T174: 0 | U174: 0 | V174: 110 | W174: 0 | X174: 0 | Y174: 0 | Z174: 65 | AA174: 2000 | AB174: 2.75 | AC174: 0.33 | AD174: 15 | AE174: 4 | AF174: 12 | AG174: 2 | AH174: 5 | AI174: 2.75 | AJ174: 0.28 | AK174: 85 | AL174: 30 | AM174: 20 | AN174: 10 | AO174: 2000 | AP174: 15000 | AQ174: 6.75 | AR174: 4.75 | AS174: 3.75 | AT174: 2.75 | AU174: 20.75 | AV174: 15.75 | AW174: 4.75 | AX174: 2.75 | AY174: 20.75 | AZ174: 15.75 | BA174: 4.75 | BB174: 2.75 | BC174: 3.5 | BD174: 14 | BE174: 6 | BF174: 22.25 | BG174: 17.5 | BH174: 12.5 | BI174: 6.75 | BJ174: 4.85 | BK174: 3.75 | BL174: 21.5 | BM174: 16.5 | BN174: 11.5 | BO174: 5.75 | BP174: 3.85 | BQ174: 2.75 | BR174: 3500 | BS174: 0 | BT174: 0.28 | BU174: 350 | BV174: 0 | BW174: 5 | BX174: 0 | BY174: 0 | BZ174: 24.9 | CA174: 19.9 | CB174: 14.9 | CC174: 8 | CD174: 6.15 | CE174: 4.35 | CF174: 23.9 | CG174: 18.9 | CH174: 13.9 | CI174: 7 | CJ174: 5.15 | CK174: 3.35 | CL174: 0.5 | CM174: 4500 | CN174: 8 | CO174: 0.01 | CP174: 1000 | CQ174: 1.5 | CR174: 70 | CS174: 40 | CT174: 5000 | CU174: 2000 | CV174: 76 | CW174: 35 | CX174: 2000 | CY174: 13 | CZ174: 2000 | DA174: 8.5 | DB174: 8 | DC174: 6.5 | DD174: 5 | DE174: 6 | DF174: 5000
A175: Wood | B175: =VLOOKUP(A175,tables!$A$2:$C$56,2,0) -> 54 | C175: 3064 | D175: =VLOOKUP(A175,tables!$A$2:$C$56,3,0) -> 03 | E175: West Virginia Paving, Inc., Ripley Plant | F175: 2187 Ripley Rd., Ripley, WV25271 | G175: Valley Stone Yard | H175: 360 Valley Rd., Millwood WV, 25262 | I175: 0 | J175: 0 | K175: 96 | L175: 96 | M175: 96 | N175: 0 | O175: 0 | P175: 100 | Q175: 0 | R175: 100 | S175: 0 | T175: 0 | U175: 0 | V175: 110 | W175: 0 | X175: 0 | Y175: 0 | Z175: 65 | AA175: 2000 | AB175: 2.75 | AC175: 0.33 | AD175: 15 | AE175: 4 | AF175: 12 | AG175: 2 | AH175: 5 | AI175: 2.75 | AJ175: 0.28 | AK175: 85 | AL175: 30 | AM175: 20 | AN175: 10 | AO175: 2000 | AP175: 15000 | AQ175: 6.75 | AR175: 4.75 | AS175: 3.75 | AT175: 2.75 | AU175: 20.75 | AV175: 15.75 | AW175: 4.75 | AX175: 2.75 | AY175: 20.75 | AZ175: 15.75 | BA175: 4.75 | BB175: 2.75 | BC175: 3.5 | BD175: 14 | BE175: 6 | BF175: 22.25 | BG175: 17.5 | BH175: 12.5 | BI175: 6.75 | BJ175: 4.85 | BK175: 3.75 | BL175: 21.5 | BM175: 16.5 | BN175: 11.5 | BO175: 5.75 | BP175: 3.85 | BQ175: 2.75 | BR175: 3500 | BS175: 0 | BT175: 0.28 | BU175: 350 | BV175: 0 | BW175: 5 | BX175: 0 | BY175: 0 | BZ175: 24.9 | CA175: 19.9 | CB175: 14.9 | CC175: 8 | CD175: 6.15 | CE175: 4.35 | CF175: 23.9 | CG175: 18.9 | CH175: 13.9 | CI175: 7 | CJ175: 5.15 | CK175: 3.35 | CL175: 0.5 | CM175: 4500 | CN175: 8 | CO175: 0.01 | CP175: 1000 | CQ175: 1.5 | CR175: 70 | CS175: 40 | CT175: 5000 | CU175: 2000 | CV175: 76 | CW175: 35 | CX175: 2000 | CY175: 13 | CZ175: 2000 | DA175: 8.5 | DB175: 8 | DC175: 6.5 | DD175: 5 | DE175: 6 | DF175: 5000
A176: Doddridge | B176: =VLOOKUP(A176,tables!$A$2:$C$56,2,0) -> 9 | C176: 4001 | D176: =VLOOKUP(A176,tables!$A$2:$C$56,3,0) -> 04 | E176: Greer Industries Inc., Greer Asphalt Co. | F176: 8410 Veterans Memorial Hwy., Masontown, WV 26542 | G176: Greer Limestone Co | H176: 5630 Earl L. Core Road Rt 7, Morgantown, WV 26508 | I176: 55 | J176: 57.25 | K176: 57.75 | L176: 57.75 | M176: 58.5 | N176: 62 | O176: 61 | P176: 67 | Q176: 70.65 | R176: 67 | S176: 67.8 | T176: 100 | U176: 103 | V176: 77.8 | W176: 80 | X176: 67.25 | Y176: 69.2 | Z176: 26 | AA176: 1000 | AB176: 3 | AC176: 0.3 | AD176: 6 | AE176: 6 | AF176: 11 | AG176: 0 | AH176: 0 | AI176: 3 | AJ176: 0.3 | AK176: 100 | AL176: 42 | AM176: 15 | AN176: 8 | AO176: 1000 | AP176: 1250 | AQ176: 14 | AR176: 13 | AS176: 6 | AT176: 4 | AU176: 18 | AV176: 16 | AW176: 7 | AX176: 5 | AY176: 18 | AZ176: 16 | BA176: 7 | BB176: 5 | BC176: 4.5 | BD176: 12.5 | BE176: 3 | BF176: 24 | BG176: 17 | BH176: 10.1 | BI176: 6.1 | BJ176: 3 | BK176: 2.07 | BL176: 22 | BM176: 13.5 | BN176: 8.25 | BO176: 4.5 | BP176: 2.25 | BQ176: 1.55 | BR176: 2250 | BS176: 0 | BT176: 0.5 | BU176: 250 | BV176: 200 | BW176: 10 | BX176: 85 | BY176: 100 | BZ176: 24 | CA176: 17.5 | CB176: 11.25 | CC176: 6.1 | CD176: 3 | CE176: 2.07 | CF176: 22 | CG176: 13.5 | CH176: 8.25 | CI176: 4.5 | CJ176: 2.3 | CK176: 1.55 | CL176: 3 | CM176: 3000 | CN176: 5 | CO176: 0.07 | CP176: 700 | CQ176: 1.1 | CR176: 60 | CS176: 55 | CT176: 3000 | CU176: 1500 | CV176: 60 | CW176: 60 | CX176: 3000 | CY176: 25 | CZ176: 2000 | DA176: 9 | DB176: 8 | DC176: 6 | DD176: 5 | DE176: 8.5 | DF176: 2500
A177: Harrison | B177: =VLOOKUP(A177,tables!$A$2:$C$56,2,0) -> 17 | C177: 4002 | D177: =VLOOKUP(A177,tables!$A$2:$C$56,3,0) -> 04 | E177: Greer Industries Inc., Greer Asphalt Co. | F177: 8410 Veterans Memorial Hwy., Masontown, WV 26542 | G177: Greer Limestone Co | H177: 5630 Earl L. Core Road Rt 7, Morgantown, WV 26508 | I177: 55 | J177: 57.25 | K177: 57.75 | L177: 57.75 | M177: 58.5 | N177: 62 | O177: 61 | P177: 67 | Q177: 70.65 | R177: 67 | S177: 67.8 | T177: 100 | U177: 103 | V177: 77.8 | W177: 80 | X177: 67.25 | Y177: 69.2 | Z177: 26 | AA177: 1000 | AB177: 3 | AC177: 0.3 | AD177: 6 | AE177: 6 | AF177: 11 | AG177: 0 | AH177: 0 | AI177: 3 | AJ177: 0.3 | AK177: 100 | AL177: 42 | AM177: 15 | AN177: 8 | AO177: 1000 | AP177: 1250 | AQ177: 14 | AR177: 13 | AS177: 6 | AT177: 4 | AU177: 18 | AV177: 16 | AW177: 7 | AX177: 5 | AY177: 18 | AZ177: 16 | BA177: 7 | BB177: 5 | BC177: 4.5 | BD177: 12.5 | BE177: 3 | BF177: 24 | BG177: 17 | BH177: 10.1 | BI177: 6.1 | BJ177: 3 | BK177: 2.07 | BL177: 22 | BM177: 13.5 | BN177: 8.25 | BO177: 4.5 | BP177: 2.25 | BQ177: 1.55 | BR177: 2250 | BS177: 0 | BT177: 0.5 | BU177: 250 | BV177: 200 | BW177: 10 | BX177: 85 | BY177: 100 | BZ177: 24 | CA177: 17.5 | CB177: 11.25 | CC177: 6.1 | CD177: 3 | CE177: 2.07 | CF177: 22 | CG177: 13.5 | CH177: 8.25 | CI177: 4.5 | CJ177: 2.3 | CK177: 1.55 | CL177: 3 | CM177: 3000 | CN177: 5 | CO177: 0.07 | CP177: 700 | CQ177: 1.1 | CR177: 60 | CS177: 55 | CT177: 3000 | CU177: 1500 | CV177: 60 | CW177: 60 | CX177: 3000 | CY177: 25 | CZ177: 2000 | DA177: 9 | DB177: 8 | DC177: 6 | DD177: 5 | DE177: 8.5 | DF177: 2500
A178: Marion | B178: =VLOOKUP(A178,tables!$A$2:$C$56,2,0) -> 25 | C178: 4003 | D178: =VLOOKUP(A178,tables!$A$2:$C$56,3,0) -> 04 | E178: Greer Industries Inc., Greer Asphalt Co. | F178: 8410 Veterans Memorial Hwy., Masontown, WV 26542 | G178: Greer Limestone Co | H178: 5630 Earl L. Core Road Rt 7, Morgantown, WV 26508 | I178: 55 | J178: 57.25 | K178: 57.75 | L178: 57.75 | M178: 58.5 | N178: 62 | O178: 61 | P178: 67 | Q178: 70.65 | R178: 67 | S178: 67.8 | T178: 100 | U178: 103 | V178: 77.8 | W178: 80 | X178: 67.25 | Y178: 69.2 | Z178: 26 | AA178: 1000 | AB178: 3 | AC178: 0.3 | AD178: 6 | AE178: 6 | AF178: 11 | AG178: 0 | AH178: 0 | AI178: 3 | AJ178: 0.3 | AK178: 100 | AL178: 42 | AM178: 15 | AN178: 8 | AO178: 1000 | AP178: 1250 | AQ178: 14 | AR178: 13 | AS178: 6 | AT178: 4 | AU178: 18 | AV178: 16 | AW178: 7 | AX178: 5 | AY178: 18 | AZ178: 16 | BA178: 7 | BB178: 5 | BC178: 4.5 | BD178: 12.5 | BE178: 3 | BF178: 24 | BG178: 17 | BH178: 10.1 | BI178: 6.1 | BJ178: 3 | BK178: 2.07 | BL178: 22 | BM178: 13.5 | BN178: 8.25 | BO178: 4.5 | BP178: 2.25 | BQ178: 1.55 | BR178: 2250 | BS178: 0 | BT178: 0.5 | BU178: 250 | BV178: 200 | BW178: 10 | BX178: 85 | BY178: 100 | BZ178: 24 | CA178: 17.5 | CB178: 11.25 | CC178: 6.1 | CD178: 3 | CE178: 2.07 | CF178: 22 | CG178: 13.5 | CH178: 8.25 | CI178: 4.5 | CJ178: 2.3 | CK178: 1.55 | CL178: 3 | CM178: 3000 | CN178: 5 | CO178: 0.07 | CP178: 700 | CQ178: 1.1 | CR178: 60 | CS178: 55 | CT178: 3000 | CU178: 1500 | CV178: 60 | CW178: 60 | CX178: 3000 | CY178: 25 | CZ178: 2000 | DA178: 9 | DB178: 8 | DC178: 6 | DD178: 5 | DE178: 8.5 | DF178: 2500
A179: Monongalia | B179: =VLOOKUP(A179,tables!$A$2:$C$56,2,0) -> 31 | C179: 4004 | D179: =VLOOKUP(A179,tables!$A$2:$C$56,3,0) -> 04 | E179: Greer Industries Inc., Greer Asphalt Co. | F179: 8410 Veterans Memorial Hwy., Masontown, WV 26542 | G179: Greer Limestone Co | H179: 5630 Earl L. Core Road Rt 7, Morgantown, WV 26508 | I179: 55 | J179: 57.25 | K179: 57.75 | L179: 57.75 | M179: 58.5 | N179: 62 | O179: 61 | P179: 67 | Q179: 70.65 | R179: 67 | S179: 67.8 | T179: 100 | U179: 103 | V179: 77.8 | W179: 80 | X179: 67.25 | Y179: 69.2 | Z179: 26 | AA179: 1000 | AB179: 3 | AC179: 0.3 | AD179: 6 | AE179: 6 | AF179: 11 | AG179: 0 | AH179: 0 | AI179: 3 | AJ179: 0.3 | AK179: 100 | AL179: 42 | AM179: 15 | AN179: 8 | AO179: 1000 | AP179: 1250 | AQ179: 14 | AR179: 13 | AS179: 6 | AT179: 4 | AU179: 18 | AV179: 16 | AW179: 7 | AX179: 5 | AY179: 18 | AZ179: 16 | BA179: 7 | BB179: 5 | BC179: 4.5 | BD179: 12.5 | BE179: 3 | BF179: 24 | BG179: 17 | BH179: 10.1 | BI179: 6.1 | BJ179: 3 | BK179: 2.07 | BL179: 22 | BM179: 13.5 | BN179: 8.25 | BO179: 4.5 | BP179: 2.25 | BQ179: 1.55 | BR179: 2250 | BS179: 0 | BT179: 0.5 | BU179: 250 | BV179: 200 | BW179: 10 | BX179: 85 | BY179: 100 | BZ179: 24 | CA179: 17.5 | CB179: 11.25 | CC179: 6.1 | CD179: 3 | CE179: 2.07 | CF179: 22 | CG179: 13.5 | CH179: 8.25 | CI179: 4.5 | CJ179: 2.3 | CK179: 1.55 | CL179: 3 | CM179: 3000 | CN179: 5 | CO179: 0.07 | CP179: 700 | CQ179: 1.1 | CR179: 60 | CS179: 55 | CT179: 3000 | CU179: 1500 | CV179: 60 | CW179: 60 | CX179: 3000 | CY179: 25 | CZ179: 2000 | DA179: 9 | DB179: 8 | DC179: 6 | DD179: 5 | DE179: 8.5 | DF179: 2500
A180: Preston | B180: =VLOOKUP(A180,tables!$A$2:$C$56,2,0) -> 39 | C180: 4005 | D180: =VLOOKUP(A180,tables!$A$2:$C$56,3,0) -> 04 | E180: Greer Industries Inc., Greer Asphalt Co. | F180: 8410 Veterans Memorial Hwy., Masontown, WV 26542 | G180: Greer Limestone Co | H180: 5630 Earl L. Core Road Rt 7, Morgantown, WV 26508 | I180: 55 | J180: 57.25 | K180: 57.75 | L180: 57.75 | M180: 58.5 | N180: 62 | O180: 61 | P180: 67 | Q180: 70.65 | R180: 67 | S180: 67.8 | T180: 100 | U180: 103 | V180: 77.8 | W180: 80 | X180: 67.25 | Y180: 69.2 | Z180: 26 | AA180: 1000 | AB180: 3 | AC180: 0.3 | AD180: 6 | AE180: 6 | AF180: 11 | AG180: 0 | AH180: 0 | AI180: 3 | AJ180: 0.3 | AK180: 100 | AL180: 42 | AM180: 15 | AN180: 8 | AO180: 1000 | AP180: 1250 | AQ180: 14 | AR180: 13 | AS180: 6 | AT180: 4 | AU180: 18 | AV180: 16 | AW180: 7 | AX180: 5 | AY180: 18 | AZ180: 16 | BA180: 7 | BB180: 5 | BC180: 4.5 | BD180: 12.5 | BE180: 3 | BF180: 24 | BG180: 17 | BH180: 10.1 | BI180: 6.1 | BJ180: 3 | BK180: 2.07 | BL180: 22 | BM180: 13.5 | BN180: 8.25 | BO180: 4.5 | BP180: 2.25 | BQ180: 1.55 | BR180: 2250 | BS180: 0 | BT180: 0.5 | BU180: 250 | BV180: 200 | BW180: 10 | BX180: 85 | BY180: 100 | BZ180: 24 | CA180: 17.5 | CB180: 11.25 | CC180: 6.1 | CD180: 3 | CE180: 2.07 | CF180: 22 | CG180: 13.5 | CH180: 8.25 | CI180: 4.5 | CJ180: 2.3 | CK180: 1.55 | CL180: 3 | CM180: 3000 | CN180: 5 | CO180: 0.07 | CP180: 700 | CQ180: 1.1 | CR180: 60 | CS180: 55 | CT180: 3000 | CU180: 1500 | CV180: 60 | CW180: 60 | CX180: 3000 | CY180: 25 | CZ180: 2000 | DA180: 9 | DB180: 8 | DC180: 6 | DD180: 5 | DE180: 8.5 | DF180: 2500
A181: Taylor | B181: =VLOOKUP(A181,tables!$A$2:$C$56,2,0) -> 46 | C181: 4006 | D181: =VLOOKUP(A181,tables!$A$2:$C$56,3,0) -> 04 | E181: Greer Industries Inc., Greer Asphalt Co. | F181: 8410 Veterans Memorial Hwy., Masontown, WV 26542 | G181: Greer Limestone Co | H181: 5630 Earl L. Core Road Rt 7, Morgantown, WV 26508 | I181: 55 | J181: 57.25 | K181: 57.75 | L181: 57.75 | M181: 58.5 | N181: 62 | O181: 61 | P181: 67 | Q181: 70.65 | R181: 67 | S181: 67.8 | T181: 100 | U181: 103 | V181: 77.8 | W181: 80 | X181: 67.25 | Y181: 69.2 | Z181: 26 | AA181: 1000 | AB181: 3 | AC181: 0.3 | AD181: 6 | AE181: 6 | AF181: 11 | AG181: 0 | AH181: 0 | AI181: 3 | AJ181: 0.3 | AK181: 100 | AL181: 42 | AM181: 15 | AN181: 8 | AO181: 1000 | AP181: 1250 | AQ181: 14 | AR181: 13 | AS181: 6 | AT181: 4 | AU181: 18 | AV181: 16 | AW181: 7 | AX181: 5 | AY181: 18 | AZ181: 16 | BA181: 7 | BB181: 5 | BC181: 4.5 | BD181: 12.5 | BE181: 3 | BF181: 24 | BG181: 17 | BH181: 10.1 | BI181: 6.1 | BJ181: 3 | BK181: 2.07 | BL181: 22 | BM181: 13.5 | BN181: 8.25 | BO181: 4.5 | BP181: 2.25 | BQ181: 1.55 | BR181: 2250 | BS181: 0 | BT181: 0.5 | BU181: 250 | BV181: 200 | BW181: 10 | BX181: 85 | BY181: 100 | BZ181: 24 | CA181: 17.5 | CB181: 11.25 | CC181: 6.1 | CD181: 3 | CE181: 2.07 | CF181: 22 | CG181: 13.5 | CH181: 8.25 | CI181: 4.5 | CJ181: 2.3 | CK181: 1.55 | CL181: 3 | CM181: 3000 | CN181: 5 | CO181: 0.07 | CP181: 700 | CQ181: 1.1 | CR181: 60 | CS181: 55 | CT181: 3000 | CU181: 1500 | CV181: 60 | CW181: 60 | CX181: 3000 | CY181: 25 | CZ181: 2000 | DA181: 9 | DB181: 8 | DC181: 6 | DD181: 5 | DE181: 8.5 | DF181: 2500
